Workbook

Sheet 공통(사업장수)
A1: 규모 | B1: 업종 | C1: 고용지청 | D1: 사업장수
D2: 2021년 | E2: 2022년 | F2: 2023년 11월
A3: 50인 미만 | B3: 제조업 | C3: 합계 | D3: 389,204 | E3: 399,222 | F3: 405,856
C4: 서 울 청 | D4: 8,363 | E4: 8,402 | F4: 8,376
C5: 서울강남 | D5: 1,636 | E5: 1,648 | F5: 1,695
C6: 서울동부 | D6: 6,087 | E6: 6,039 | F6: 5,929
C7: 서울서부 | D7: 3,030 | E7: 2,990 | F7: 2,917
C8: 서울남부 | D8: 4,066 | E8: 3,998 | F8: 3,974
C9: 서울북부 | D9: 4,454 | E9: 4,575 | F9: 4,483
C10: 서울관악 | D10: 7,579 | E10: 7,646 | F10: 7,567
C11: 의 정 부 | D11: 18,788 | E11: 19,241 | F11: 19,903
C12: 강 원 | D12: 1,832 | E12: 1,848 | F12: 1,922
C13: 태 백 | D13: 414 | E13: 417 | F13: 426
C14: 강 릉 | D14: 2,032 | E14: 2,042 | F14: 2,103
C15: 원 주 | D15: 2,145 | E15: 2,166 | F15: 2,222
C16: 영 월 | D16: 585 | E16: 598 | F16: 610
C17: 부 산 청 | D17: 7,955 | E17: 8,033 | F17: 8,081
C18: 부산동부 | D18: 4,029 | E18: 4,154 | F18: 4,283
C19: 부산북부 | D19: 12,956 | E19: 13,087 | F19: 13,492
C20: 창 원 | D20: 12,589 | E20: 12,930 | F20: 12,979
C21: 울 산 | D21: 7,658 | E21: 7,846 | F21: 8,128
C22: 양 산 | D22: 15,655 | E22: 16,319 | F22: 16,665
C23: 진 주 | D23: 3,772 | E23: 3,869 | F23: 4,043
C24: 통 영 | D24: 2,806 | E24: 2,918 | F24: 3,127
C25: 대 구 청 | D25: 13,159 | E25: 13,371 | F25: 13,142
C26: 대구서부 | D26: 17,089 | E26: 17,492 | F26: 17,716
C27: 포 항 | D27: 6,295 | E27: 6,469 | F27: 6,615
C28: 구 미 | D28: 5,627 | E28: 5,747 | F28: 5,747
C29: 영 주 | D29: 1,296 | E29: 1,341 | F29: 1,342
C30: 안 동 | D30: 1,103 | E30: 1,126 | F30: 1,141
C31: 중 부 청 | D31: 11,202 | E31: 11,273 | F31: 11,346
C32: 인천북부 | D32: 12,400 | E32: 12,704 | F32: 12,795
C33: 경 기 | D33: 30,994 | E33: 32,402 | F33: 33,582
C34: 부 천 | D34: 19,289 | E34: 19,573 | F34: 20,221
C35: 안 양 | D35: 8,564 | E35: 8,742 | F35: 8,952
C36: 안 산 | D36: 22,033 | E36: 22,298 | F36: 22,238
C37: 성 남 | D37: 15,718 | E37: 16,343 | F37: 16,730
C38: 평 택 | D38: 9,021 | E38: 9,238 | F38: 9,493
C39: 고 양 | D39: 12,570 | E39: 12,879 | F39: 13,331
C40: 광 주 청 | D40: 11,636 | E40: 12,088 | F40: 12,065
C41: 전 주 | D41: 5,366 | E41: 5,514 | F41: 5,589
C42: 익 산 | D42: 3,161 | E42: 3,239 | F42: 3,271
C43: 군 산 | D43: 2,509 | E43: 2,598 | F43: 2,695
C44: 목 포 | D44: 3,775 | E44: 3,957 | F44: 4,164
C45: 여 수 | D45: 4,142 | E45: 4,341 | F45: 4,472
C46: 제 주 | D46: 2,524 | E46: 2,631 | F46: 2,680
C47: 대 전 청 | D47: 11,448 | E47: 11,584 | F47: 11,765
C48: 청 주 | D48: 8,849 | E48: 9,431 | F48: 9,481
C49: 충 주 | D49: 5,267 | E49: 5,513 | F49: 5,392
C50: 천 안 | D50: 12,729 | E50: 13,444 | F50: 13,660
C51: 보 령 | D51: 1,948 | E51: 2,026 | F51: 2,163
C52: 서 산 | D52: 1,059 | E52: 1,092 | F52: 1,143

Sheet 서울권역
A1: 고용지청 | B1: 업종 | C1: 기준년도 | D1: 2021년 | P1: 2022년 | AB1: 2023년 11월
C2: 규모 | D2: 규모별 합계 | F2: 5인 미만 | H2: 5인 ~ 9인 | J2: 10인 ~ 19인 | L2: 20인 ~ 29인 | N2: 30인 ~ 49인 | P2: 규모별 합계 | R2: 5인 미만 | T2: 5인 ~ 9인 | V2: 10인 ~ 19인 | X2: 20인 ~ 29인 | Z2: 30인 ~ 49인 | AB2: 규모별 합계 | AD2: 5인 미만 | AF2: 5인 ~ 9인 | AH2: 10인 ~ 19인 | AJ2: 20인 ~ 29인 | AL2: 30인 ~ 49인
C3: 발생형태 | D3: 사고재해자수 합계 | E3: 사고사망자수 합계 | F3: 사고재해자수 | G3: 사고사망자수 | H3: 사고재해자수 | I3: 사고사망자수 | J3: 사고재해자수 | K3: 사고사망자수 | L3: 사고재해자수 | M3: 사고사망자수 | N3: 사고재해자수 | O3: 사고사망자수 | P3: 사고재해자수 합계 | Q3: 사고사망자수 합계 | R3: 사고재해자수 | S3: 사고사망자수 | T3: 사고재해자수 | U3: 사고사망자수 | V3: 사고재해자수 | W3: 사고사망자수 | X3: 사고재해자수 | Y3: 사고사망자수 | Z3: 사고재해자수 | AA3: 사고사망자수 | AB3: 사고재해자수 합계 | AC3: 사고사망자수 합계 | AD3: 사고재해자수 | AE3: 사고사망자수 | AF3: 사고재해자수 | AG3: 사고사망자수 | AH3: 사고재해자수 | AI3: 사고사망자수 | AJ3: 사고재해자수 | AK3: 사고사망자수 | AL3: 사고재해자수 | AM3: 사고사망자수
A4: 서 울 청 | B4: 합계 | D4: =SUM(F4,H4,J4,L4,N4) -> 85 | E4: 0 | F4: 51 | G4: 0 | H4: 8 | I4: 0 | J4: 13 | K4: 0 | L4: 6 | M4: 0 | N4: 7 | O4: 0 | P4: =SUM(R4,T4,V4,X4,Z4) -> 83 | Q4: 0 | R4: 53 | S4: 0 | T4: 11 | U4: 0 | V4: 13 | W4: 0 | X4: 3 | Y4: 0 | Z4: 3 | AA4: 0 | AB4: =SUM(AD4,AF4,AH4,AJ4,AL4) -> 81 | AC4: 0 | AD4: 47 | AE4: 0 | AF4: 18 | AG4: 0 | AH4: 5 | AI4: 0 | AJ4: 6 | AK4: 0 | AL4: 5 | AM4: 0
B5: 식료품제조업 | C5: 합계 | D5: 4 | E5: 0 | F5: 1 | G5: 0 | H5: 1 | I5: 0 | J5: 1 | K5: 0 | L5: 0 | M5: 0 | N5: 1 | O5: 0 | P5: 5 | Q5: 0 | R5: 2 | S5: 0 | T5: 1 | U5: 0 | V5: 2 | W5: 0 | X5: 0 | Y5: 0 | Z5: 0 | AA5: 0 | AB5: 7 | AC5: 0 | AD5: 2 | AE5: 0 | AF5: 3 | AG5: 0 | AH5: 0 | AI5: 0 | AJ5: 1 | AK5: 0 | AL5: 1 | AM5: 0
C6: 넘어짐(사람이 미끄러지거나 넘어짐) | D6: 1 | E6: 0 | F6: 1 | G6: 0 | H6: 0 | I6: 0 | J6: 0 | K6: 0 | L6: 0 | M6: 0 | N6: 0 | O6: 0 | P6: 1 | Q6: 0 | R6: 0 | S6: 0 | T6: 0 | U6: 0 | V6: 1 | W6: 0 | X6: 0 | Y6: 0 | Z6: 0 | AA6: 0 | AB6: 0 | AC6: 0 | AD6: 0 | AE6: 0 | AF6: 0 | AG6: 0 | AH6: 0 | AI6: 0 | AJ6: 0 | AK6: 0 | AL6: 0 | AM6: 0
C7: 깔림·뒤집힘(물체의 쓰러짐이나 뒤집힘) | D7: 0 | E7: 0 | F7: 0 | G7: 0 | H7: 0 | I7: 0 | J7: 0 | K7: 0 | L7: 0 | M7: 0 | N7: 0 | O7: 0 | P7: 0 | Q7: 0 | R7: 0 | S7: 0 | T7: 0 | U7: 0 | V7: 0 | W7: 0 | X7: 0 | Y7: 0 | Z7: 0 | AA7: 0 | AB7: 1 | AC7: 0 | AD7: 0 | AE7: 0 | AF7: 0 | AG7: 0 | AH7: 0 | AI7: 0 | AJ7: 0 | AK7: 0 | AL7: 1 | AM7: 0
C8: 부딪힘(물체에 부딪힘) | D8: 1 | E8: 0 | F8: 0 | G8: 0 | H8: 1 | I8: 0 | J8: 0 | K8: 0 | L8: 0 | M8: 0 | N8: 0 | O8: 0 | P8: 0 | Q8: 0 | R8: 0 | S8: 0 | T8: 0 | U8: 0 | V8: 0 | W8: 0 | X8: 0 | Y8: 0 | Z8: 0 | AA8: 0 | AB8: 1 | AC8: 0 | AD8: 0 | AE8: 0 | AF8: 1 | AG8: 0 | AH8: 0 | AI8: 0 | AJ8: 0 | AK8: 0 | AL8: 0 | AM8: 0
C9: 물체에 맞음(날아오거나 떨어진 물체에 맞음) | D9: 0 | E9: 0 | F9: 0 | G9: 0 | H9: 0 | I9: 0 | J9: 0 | K9: 0 | L9: 0 | M9: 0 | N9: 0 | O9: 0 | P9: 0 | Q9: 0 | R9: 0 | S9: 0 | T9: 0 | U9: 0 | V9: 0 | W9: 0 | X9: 0 | Y9: 0 | Z9: 0 | AA9: 0 | AB9: 2 | AC9: 0 | AD9: 1 | AE9: 0 | AF9: 0 | AG9: 0 | AH9: 0 | AI9: 0 | AJ9: 1 | AK9: 0 | AL9: 0 | AM9: 0
C10: 끼임(기계설비에 끼이거나 감김) | D10: 0 | E10: 0 | F10: 0 | G10: 0 | H10: 0 | I10: 0 | J10: 0 | K10: 0 | L10: 0 | M10: 0 | N10: 0 | O10: 0 | P10: 2 | Q10: 0 | R10: 2 | S10: 0 | T10: 0 | U10: 0 | V10: 0 | W10: 0 | X10: 0 | Y10: 0 | Z10: 0 | AA10: 0 | AB10: 0 | AC10: 0 | AD10: 0 | AE10: 0 | AF10: 0 | AG10: 0 | AH10: 0 | AI10: 0 | AJ10: 0 | AK10: 0 | AL10: 0 | AM10: 0
C11: 절단·베임·찔림 | D11: 2 | E11: 0 | F11: 0 | G11: 0 | H11: 0 | I11: 0 | J11: 1 | K11: 0 | L11: 0 | M11: 0 | N11: 1 | O11: 0 | P11: 2 | Q11: 0 | R11: 0 | S11: 0 | T11: 1 | U11: 0 | V11: 1 | W11: 0 | X11: 0 | Y11: 0 | Z11: 0 | AA11: 0 | AB11: 3 | AC11: 0 | AD11: 1 | AE11: 0 | AF11: 2 | AG11: 0 | AH11: 0 | AI11: 0 | AJ11: 0 | AK11: 0 | AL11: 0 | AM11: 0
C12: 근골격계질환 | D12: 0 | E12: 0 | F12: 0 | G12: 0 | H12: 0 | I12: 0 | J12: 0 | K12: 0 | L12: 0 | M12: 0 | N12: 0 | O12: 0 | P12: 0 | Q12: 0 | R12: 0 | S12: 0 | T12: 0 | U12: 0 | V12: 0 | W12: 0 | X12: 0 | Y12: 0 | Z12: 0 | AA12: 0 | AB12: 0 | AC12: 0 | AD12: 0 | AE12: 0 | AF12: 0 | AG12: 0 | AH12: 0 | AI12: 0 | AJ12: 0 | AK12: 0 | AL12: 0 | AM12: 0
B13: 섬유및섬유제품제조업 | C13: 합계 | D13: 19 | E13: 0 | F13: 15 | G13: 0 | H13: 2 | I13: 0 | J13: 1 | K13: 0 | L13: 1 | M13: 0 | N13: 0 | O13: 0 | P13: 27 | Q13: 0 | R13: 23 | S13: 0 | T13: 3 | U13: 0 | V13: 1 | W13: 0 | X13: 0 | Y13: 0 | Z13: 0 | AA13: 0 | AB13: 20 | AC13: 0 | AD13: 17 | AE13: 0 | AF13: 3 | AG13: 0 | AH13: 0 | AI13: 0 | AJ13: 0 | AK13: 0 | AL13: 0 | AM13: 0
C14: 떨어짐(높이가 있는 곳에서 사람이 떨어짐) | D14: 3 | E14: 0 | F14: 2 | G14: 0 | H14: 0 | I14: 0 | J14: 1 | K14: 0 | L14: 0 | M14: 0 | N14: 0 | O14: 0 | P14: 3 | Q14: 0 | R14: 3 | S14: 0 | T14: 0 | U14: 0 | V14: 0 | W14: 0 | X14: 0 | Y14: 0 | Z14: 0 | AA14: 0 | AB14: 2 | AC14: 0 | AD14: 2 | AE14: 0 | AF14: 0 | AG14: 0 | AH14: 0 | AI14: 0 | AJ14: 0 | AK14: 0 | AL14: 0 | AM14: 0
C15: 넘어짐(사람이 미끄러지거나 넘어짐) | D15: 2 | E15: 0 | F15: 1 | G15: 0 | H15: 0 | I15: 0 | J15: 0 | K15: 0 | L15: 1 | M15: 0 | N15: 0 | O15: 0 | P15: 5 | Q15: 0 | R15: 5 | S15: 0 | T15: 0 | U15: 0 | V15: 0 | W15: 0 | X15: 0 | Y15: 0 | Z15: 0 | AA15: 0 | AB15: 6 | AC15: 0 | AD15: 6 | AE15: 0 | AF15: 0 | AG15: 0 | AH15: 0 | AI15: 0 | AJ15: 0 | AK15: 0 | AL15: 0 | AM15: 0
C16: 깔림·뒤집힘(물체의 쓰러짐이나 뒤집힘) | D16: 1 | E16: 0 | F16: 1 | G16: 0 | H16: 0 | I16: 0 | J16: 0 | K16: 0 | L16: 0 | M16: 0 | N16: 0 | O16: 0 | P16: 0 | Q16: 0 | R16: 0 | S16: 0 | T16: 0 | U16: 0 | V16: 0 | W16: 0 | X16: 0 | Y16: 0 | Z16: 0 | AA16: 0 | AB16: 0 | AC16: 0 | AD16: 0 | AE16: 0 | AF16: 0 | AG16: 0 | AH16: 0 | AI16: 0 | AJ16: 0 | AK16: 0 | AL16: 0 | AM16: 0
C17: 물체에 맞음(날아오거나 떨어진 물체에 맞음) | D17: 0 | E17: 0 | F17: 0 | G17: 0 | H17: 0 | I17: 0 | J17: 0 | K17: 0 | L17: 0 | M17: 0 | N17: 0 | O17: 0 | P17: 1 | Q17: 0 | R17: 1 | S17: 0 | T17: 0 | U17: 0 | V17: 0 | W17: 0 | X17: 0 | Y17: 0 | Z17: 0 | AA17: 0 | AB17: 1 | AC17: 0 | AD17: 0 | AE17: 0 | AF17: 1 | AG17: 0 | AH17: 0 | AI17: 0 | AJ17: 0 | AK17: 0 | AL17: 0 | AM17: 0
C18: 끼임(기계설비에 끼이거나 감김) | D18: 3 | E18: 0 | F18: 3 | G18: 0 | H18: 0 | I18: 0 | J18: 0 | K18: 0 | L18: 0 | M18: 0 | N18: 0 | O18: 0 | P18: 6 | Q18: 0 | R18: 6 | S18: 0 | T18: 0 | U18: 0 | V18: 0 | W18: 0 | X18: 0 | Y18: 0 | Z18: 0 | AA18: 0 | AB18: 6 | AC18: 0 | AD18: 5 | AE18: 0 | AF18: 1 | AG18: 0 | AH18: 0 | AI18: 0 | AJ18: 0 | AK18: 0 | AL18: 0 | AM18: 0
C19: 절단·베임·찔림 | D19: 5 | E19: 0 | F19: 5 | G19: 0 | H19: 0 | I19: 0 | J19: 0 | K19: 0 | L19: 0 | M19: 0 | N19: 0 | O19: 0 | P19: 8 | Q19: 0 | R19: 5 | S19: 0 | T19: 2 | U19: 0 | V19: 1 | W19: 0 | X19: 0 | Y19: 0 | Z19: 0 | AA19: 0 | AB19: 3 | AC19: 0 | AD19: 2 | AE19: 0 | AF19: 1 | AG19: 0 | AH19: 0 | AI19: 0 | AJ19: 0 | AK19: 0 | AL19: 0 | AM19: 0
C20: 불균형 및 무리한 동작 | D20: 1 | E20: 0 | F20: 0 | G20: 0 | H20: 1 | I20: 0 | J20: 0 | K20: 0 | L20: 0 | M20: 0 | N20: 0 | O20: 0 | P20: 1 | Q20: 0 | R20: 0 | S20: 0 | T20: 1 | U20: 0 | V20: 0 | W20: 0 | X20: 0 | Y20: 0 | Z20: 0 | AA20: 0 | AB20: 0 | AC20: 0 | AD20: 0 | AE20: 0 | AF20: 0 | AG20: 0 | AH20: 0 | AI20: 0 | AJ20: 0 | AK20: 0 | AL20: 0 | AM20: 0
C21: 이상온도 접촉 | D21: 1 | E21: 0 | F21: 1 | G21: 0 | H21: 0 | I21: 0 | J21: 0 | K21: 0 | L21: 0 | M21: 0 | N21: 0 | O21: 0 | P21: 1 | Q21: 0 | R21: 1 | S21: 0 | T21: 0 | U21: 0 | V21: 0 | W21: 0 | X21: 0 | Y21: 0 | Z21: 0 | AA21: 0 | AB21: 1 | AC21: 0 | AD21: 1 | AE21: 0 | AF21: 0 | AG21: 0 | AH21: 0 | AI21: 0 | AJ21: 0 | AK21: 0 | AL21: 0 | AM21: 0
C22: 사업장외 교통사고 | D22: 3 | E22: 0 | F22: 2 | G22: 0 | H22: 1 | I22: 0 | J22: 0 | K22: 0 | L22: 0 | M22: 0 | N22: 0 | O22: 0 | P22: 2 | Q22: 0 | R22: 2 | S22: 0 | T22: 0 | U22: 0 | V22: 0 | W22: 0 | X22: 0 | Y22: 0 | Z22: 0 | AA22: 0 | AB22: 1 | AC22: 0 | AD22: 1 | AE22: 0 | AF22: 0 | AG22: 0 | AH22: 0 | AI22: 0 | AJ22: 0 | AK22: 0 | AL22: 0 | AM22: 0
C23: 뇌심혈관질환 | D23: 0 | E23: 0 | F23: 0 | G23: 0 | H23: 0 | I23: 0 | J23: 0 | K23: 0 | L23: 0 | M23: 0 | N23: 0 | O23: 0 | P23: 0 | Q23: 0 | R23: 0 | S23: 0 | T23: 0 | U23: 0 | V23: 0 | W23: 0 | X23: 0 | Y23: 0 | Z23: 0 | AA23: 0 | AB23: 0 | AC23: 0 | AD23: 0 | AE23: 0 | AF23: 0 | AG23: 0 | AH23: 0 | AI23: 0 | AJ23: 0 | AK23: 0 | AL23: 0 | AM23: 0
C24: 근골격계질환 | D24: 0 | E24: 0 | F24: 0 | G24: 0 | H24: 0 | I24: 0 | J24: 0 | K24: 0 | L24: 0 | M24: 0 | N24: 0 | O24: 0 | P24: 0 | Q24: 0 | R24: 0 | S24: 0 | T24: 0 | U24: 0 | V24: 0 | W24: 0 | X24: 0 | Y24: 0 | Z24: 0 | AA24: 0 | AB24: 0 | AC24: 0 | AD24: 0 | AE24: 0 | AF24: 0 | AG24: 0 | AH24: 0 | AI24: 0 | AJ24: 0 | AK24: 0 | AL24: 0 | AM24: 0
B25: 목재및종이제품제조업 | C25: 합계 | D25: 5 | E25: 0 | F25: 3 | G25: 0 | H25: 0 | I25: 0 | J25: 2 | K25: 0 | L25: 0 | M25: 0 | N25: 0 | O25: 0 | P25: 1 | Q25: 0 | R25: 1 | S25: 0 | T25: 0 | U25: 0 | V25: 0 | W25: 0 | X25: 0 | Y25: 0 | Z25: 0 | AA25: 0 | AB25: 2 | AC25: 0 | AD25: 1 | AE25: 0 | AF25: 0 | AG25: 0 | AH25: 1 | AI25: 0 | AJ25: 0 | AK25: 0 | AL25: 0 | AM25: 0
C26: 떨어짐(높이가 있는 곳에서 사람이 떨어짐) | D26: 1 | E26: 0 | F26: 1 | G26: 0 | H26: 0 | I26: 0 | J26: 0 | K26: 0 | L26: 0 | M26: 0 | N26: 0 | O26: 0 | P26: 0 | Q26: 0 | R26: 0 | S26: 0 | T26: 0 | U26: 0 | V26: 0 | W26: 0 | X26: 0 | Y26: 0 | Z26: 0 | AA26: 0 | AB26: 0 | AC26: 0 | AD26: 0 | AE26: 0 | AF26: 0 | AG26: 0 | AH26: 0 | AI26: 0 | AJ26: 0 | AK26: 0 | AL26: 0 | AM26: 0
C27: 넘어짐(사람이 미끄러지거나 넘어짐) | D27: 1 | E27: 0 | F27: 0 | G27: 0 | H27: 0 | I27: 0 | J27: 1 | K27: 0 | L27: 0 | M27: 0 | N27: 0 | O27: 0 | P27: 1 | Q27: 0 | R27: 1 | S27: 0 | T27: 0 | U27: 0 | V27: 0 | W27: 0 | X27: 0 | Y27: 0 | Z27: 0 | AA27: 0 | AB27: 0 | AC27: 0 | AD27: 0 | AE27: 0 | AF27: 0 | AG27: 0 | AH27: 0 | AI27: 0 | AJ27: 0 | AK27: 0 | AL27: 0 | AM27: 0
C28: 물체에 맞음(날아오거나 떨어진 물체에 맞음) | D28: 0 | E28: 0 | F28: 0 | G28: 0 | H28: 0 | I28: 0 | J28: 0 | K28: 0 | L28: 0 | M28: 0 | N28: 0 | O28: 0 | P28: 0 | Q28: 0 | R28: 0 | S28: 0 | T28: 0 | U28: 0 | V28: 0 | W28: 0 | X28: 0 | Y28: 0 | Z28: 0 | AA28: 0 | AB28: 1 | AC28: 0 | AD28: 0 | AE28: 0 | AF28: 0 | AG28: 0 | AH28: 1 | AI28: 0 | AJ28: 0 | AK28: 0 | AL28: 0 | AM28: 0
C29: 끼임(기계설비에 끼이거나 감김) | D29: 1 | E29: 0 | F29: 1 | G29: 0 | H29: 0 | I29: 0 | J29: 0 | K29: 0 | L29: 0 | M29: 0 | N29: 0 | O29: 0 | P29: 0 | Q29: 0 | R29: 0 | S29: 0 | T29: 0 | U29: 0 | V29: 0 | W29: 0 | X29: 0 | Y29: 0 | Z29: 0 | AA29: 0 | AB29: 0 | AC29: 0 | AD29: 0 | AE29: 0 | AF29: 0 | AG29: 0 | AH29: 0 | AI29: 0 | AJ29: 0 | AK29: 0 | AL29: 0 | AM29: 0
C30: 절단·베임·찔림 | D30: 1 | E30: 0 | F30: 1 | G30: 0 | H30: 0 | I30: 0 | J30: 0 | K30: 0 | L30: 0 | M30: 0 | N30: 0 | O30: 0 | P30: 0 | Q30: 0 | R30: 0 | S30: 0 | T30: 0 | U30: 0 | V30: 0 | W30: 0 | X30: 0 | Y30: 0 | Z30: 0 | AA30: 0 | AB30: 0 | AC30: 0 | AD30: 0 | AE30: 0 | AF30: 0 | AG30: 0 | AH30: 0 | AI30: 0 | AJ30: 0 | AK30: 0 | AL30: 0 | AM30: 0
C31: 불균형 및 무리한 동작 | D31: 1 | E31: 0 | F31: 0 | G31: 0 | H31: 0 | I31: 0 | J31: 1 | K31: 0 | L31: 0 | M31: 0 | N31: 0 | O31: 0 | P31: 0 | Q31: 0 | R31: 0 | S31: 0 | T31: 0 | U31: 0 | V31: 0 | W31: 0 | X31: 0 | Y31: 0 | Z31: 0 | AA31: 0 | AB31: 0 | AC31: 0 | AD31: 0 | AE31: 0 | AF31: 0 | AG31: 0 | AH31: 0 | AI31: 0 | AJ31: 0 | AK31: 0 | AL31: 0 | AM31: 0
C32: 사업장외 교통사고 | D32: 0 | E32: 0 | F32: 0 | G32: 0 | H32: 0 | I32: 0 | J32: 0 | K32: 0 | L32: 0 | M32: 0 | N32: 0 | O32: 0 | P32: 0 | Q32: 0 | R32: 0 | S32: 0 | T32: 0 | U32: 0 | V32: 0 | W32: 0 | X32: 0 | Y32: 0 | Z32: 0 | AA32: 0 | AB32: 1 | AC32: 0 | AD32: 1 | AE32: 0 | AF32: 0 | AG32: 0 | AH32: 0 | AI32: 0 | AJ32: 0 | AK32: 0 | AL32: 0 | AM32: 0
C33: 근골격계질환 | D33: 0 | E33: 0 | F33: 0 | G33: 0 | H33: 0 | I33: 0 | J33: 0 | K33: 0 | L33: 0 | M33: 0 | N33: 0 | O33: 0 | P33: 0 | Q33: 0 | R33: 0 | S33: 0 | T33: 0 | U33: 0 | V33: 0 | W33: 0 | X33: 0 | Y33: 0 | Z33: 0 | AA33: 0 | AB33: 0 | AC33: 0 | AD33: 0 | AE33: 0 | AF33: 0 | AG33: 0 | AH33: 0 | AI33: 0 | AJ33: 0 | AK33: 0 | AL33: 0 | AM33: 0
B34: 출판·인쇄·제본업 | C34: 합계 | D34: 26 | E34: 0 | F34: 15 | G34: 0 | H34: 3 | I34: 0 | J34: 4 | K34: 0 | L34: 4 | M34: 0 | N34: 0 | O34: 0 | P34: 18 | Q34: 0 | R34: 11 | S34: 0 | T34: 1 | U34: 0 | V34: 3 | W34: 0 | X34: 1 | Y34: 0 | Z34: 2 | AA34: 0 | AB34: 22 | AC34: 0 | AD34: 12 | AE34: 0 | AF34: 6 | AG34: 0 | AH34: 2 | AI34: 0 | AJ34: 2 | AK34: 0 | AL34: 0 | AM34: 0
C35: 떨어짐(높이가 있는 곳에서 사람이 떨어짐) | D35: 3 | E35: 0 | F35: 3 | G35: 0 | H35: 0 | I35: 0 | J35: 0 | K35: 0 | L35: 0 | M35: 0 | N35: 0 | O35: 0 | P35: 1 | Q35: 0 | R35: 1 | S35: 0 | T35: 0 | U35: 0 | V35: 0 | W35: 0 | X35: 0 | Y35: 0 | Z35: 0 | AA35: 0 | AB35: 0 | AC35: 0 | AD35: 0 | AE35: 0 | AF35: 0 | AG35: 0 | AH35: 0 | AI35: 0 | AJ35: 0 | AK35: 0 | AL35: 0 | AM35: 0
C36: 넘어짐(사람이 미끄러지거나 넘어짐) | D36: 6 | E36: 0 | F36: 4 | G36: 0 | H36: 0 | I36: 0 | J36: 1 | K36: 0 | L36: 1 | M36: 0 | N36: 0 | O36: 0 | P36: 3 | Q36: 0 | R36: 0 | S36: 0 | T36: 0 | U36: 0 | V36: 1 | W36: 0 | X36: 1 | Y36: 0 | Z36: 1 | AA36: 0 | AB36: 3 | AC36: 0 | AD36: 2 | AE36: 0 | AF36: 0 | AG36: 0 | AH36: 0 | AI36: 0 | AJ36: 1 | AK36: 0 | AL36: 0 | AM36: 0
C37: 깔림·뒤집힘(물체의 쓰러짐이나 뒤집힘) | D37: 1 | E37: 0 | F37: 0 | G37: 0 | H37: 1 | I37: 0 | J37: 0 | K37: 0 | L37: 0 | M37: 0 | N37: 0 | O37: 0 | P37: 1 | Q37: 0 | R37: 0 | S37: 0 | T37: 0 | U37: 0 | V37: 1 | W37: 0 | X37: 0 | Y37: 0 | Z37: 0 | AA37: 0 | AB37: 0 | AC37: 0 | AD37: 0 | AE37: 0 | AF37: 0 | AG37: 0 | AH37: 0 | AI37: 0 | AJ37: 0 | AK37: 0 | AL37: 0 | AM37: 0
C38: 부딪힘(물체에 부딪힘) | D38: 3 | E38: 0 | F38: 1 | G38: 0 | H38: 0 | I38: 0 | J38: 1 | K38: 0 | L38: 1 | M38: 0 | N38: 0 | O38: 0 | P38: 0 | Q38: 0 | R38: 0 | S38: 0 | T38: 0 | U38: 0 | V38: 0 | W38: 0 | X38: 0 | Y38: 0 | Z38: 0 | AA38: 0 | AB38: 1 | AC38: 0 | AD38: 0 | AE38: 0 | AF38: 1 | AG38: 0 | AH38: 0 | AI38: 0 | AJ38: 0 | AK38: 0 | AL38: 0 | AM38: 0
C39: 물체에 맞음(날아오거나 떨어진 물체에 맞음) | D39: 1 | E39: 0 | F39: 1 | G39: 0 | H39: 0 | I39: 0 | J39: 0 | K39: 0 | L39: 0 | M39: 0 | N39: 0 | O39: 0 | P39: 0 | Q39: 0 | R39: 0 | S39: 0 | T39: 0 | U39: 0 | V39: 0 | W39: 0 | X39: 0 | Y39: 0 | Z39: 0 | AA39: 0 | AB39: 2 | AC39: 0 | AD39: 1 | AE39: 0 | AF39: 1 | AG39: 0 | AH39: 0 | AI39: 0 | AJ39: 0 | AK39: 0 | AL39: 0 | AM39: 0
C40: 끼임(기계설비에 끼이거나 감김) | D40: 4 | E40: 0 | F40: 2 | G40: 0 | H40: 1 | I40: 0 | J40: 1 | K40: 0 | L40: 0 | M40: 0 | N40: 0 | O40: 0 | P40: 8 | Q40: 0 | R40: 5 | S40: 0 | T40: 1 | U40: 0 | V40: 1 | W40: 0 | X40: 0 | Y40: 0 | Z40: 1 | AA40: 0 | AB40: 9 | AC40: 0 | AD40: 5 | AE40: 0 | AF40: 3 | AG40: 0 | AH40: 1 | AI40: 0 | AJ40: 0 | AK40: 0 | AL40: 0 | AM40: 0
C41: 절단·베임·찔림 | D41: 5 | E41: 0 | F41: 2 | G41: 0 | H41: 1 | I41: 0 | J41: 1 | K41: 0 | L41: 1 | M41: 0 | N41: 0 | O41: 0 | P41: 1 | Q41: 0 | R41: 1 | S41: 0 | T41: 0 | U41: 0 | V41: 0 | W41: 0 | X41: 0 | Y41: 0 | Z41: 0 | AA41: 0 | AB41: 3 | AC41: 0 | AD41: 2 | AE41: 0 | AF41: 0 | AG41: 0 | AH41: 1 | AI41: 0 | AJ41: 0 | AK41: 0 | AL41: 0 | AM41: 0
C42: 화재 | D42: 0 | E42: 0 | F42: 0 | G42: 0 | H42: 0 | I42: 0 | J42: 0 | K42: 0 | L42: 0 | M42: 0 | N42: 0 | O42: 0 | P42: 2 | Q42: 0 | R42: 2 | S42: 0 | T42: 0 | U42: 0 | V42: 0 | W42: 0 | X42: 0 | Y42: 0 | Z42: 0 | AA42: 0 | AB42: 0 | AC42: 0 | AD42: 0 | AE42: 0 | AF42: 0 | AG42: 0 | AH42: 0 | AI42: 0 | AJ42: 0 | AK42: 0 | AL42: 0 | AM42: 0
C43: 불균형 및 무리한 동작 | D43: 2 | E43: 0 | F43: 1 | G43: 0 | H43: 0 | I43: 0 | J43: 0 | K43: 0 | L43: 1 | M43: 0 | N43: 0 | O43: 0 | P43: 0 | Q43: 0 | R43: 0 | S43: 0 | T43: 0 | U43: 0 | V43: 0 | W43: 0 | X43: 0 | Y43: 0 | Z43: 0 | AA43: 0 | AB43: 1 | AC43: 0 | AD43: 0 | AE43: 0 | AF43: 0 | AG43: 0 | AH43: 0 | AI43: 0 | AJ43: 1 | AK43: 0 | AL43: 0 | AM43: 0
C44: 이상온도 접촉 | D44: 0 | E44: 0 | F44: 0 | G44: 0 | H44: 0 | I44: 0 | J44: 0 | K44: 0 | L44: 0 | M44: 0 | N44: 0 | O44: 0 | P44: 2 | Q44: 0 | R44: 2 | S44: 0 | T44: 0 | U44: 0 | V44: 0 | W44: 0 | X44: 0 | Y44: 0 | Z44: 0 | AA44: 0 | AB44: 0 | AC44: 0 | AD44: 0 | AE44: 0 | AF44: 0 | AG44: 0 | AH44: 0 | AI44: 0 | AJ44: 0 | AK44: 0 | AL44: 0 | AM44: 0
C45: 사업장외 교통사고 | D45: 1 | E45: 0 | F45: 1 | G45: 0 | H45: 0 | I45: 0 | J45: 0 | K45: 0 | L45: 0 | M45: 0 | N45: 0 | O45: 0 | P45: 0 | Q45: 0 | R45: 0 | S45: 0 | T45: 0 | U45: 0 | V45: 0 | W45: 0 | X45: 0 | Y45: 0 | Z45: 0 | AA45: 0 | AB45: 3 | AC45: 0 | AD45: 2 | AE45: 0 | AF45: 1 | AG45: 0 | AH45: 0 | AI45: 0 | AJ45: 0 | AK45: 0 | AL45: 0 | AM45: 0
C46: 물리적인자 | D46: 0 | E46: 0 | F46: 0 | G46: 0 | H46: 0 | I46: 0 | J46: 0 | K46: 0 | L46: 0 | M46: 0 | N46: 0 | O46: 0 | P46: 0 | Q46: 0 | R46: 0 | S46: 0 | T46: 0 | U46: 0 | V46: 0 | W46: 0 | X46: 0 | Y46: 0 | Z46: 0 | AA46: 0 | AB46: 0 | AC46: 0 | AD46: 0 | AE46: 0 | AF46: 0 | AG46: 0 | AH46: 0 | AI46: 0 | AJ46: 0 | AK46: 0 | AL46: 0 | AM46: 0
C47: 뇌심혈관질환 | D47: 0 | E47: 0 | F47: 0 | G47: 0 | H47: 0 | I47: 0 | J47: 0 | K47: 0 | L47: 0 | M47: 0 | N47: 0 | O47: 0 | P47: 0 | Q47: 0 | R47: 0 | S47: 0 | T47: 0 | U47: 0 | V47: 0 | W47: 0 | X47: 0 | Y47: 0 | Z47: 0 | AA47: 0 | AB47: 0 | AC47: 0 | AD47: 0 | AE47: 0 | AF47: 0 | AG47: 0 | AH47: 0 | AI47: 0 | AJ47: 0 | AK47: 0 | AL47: 0 | AM47: 0
C48: 근골격계질환 | D48: 0 | E48: 0 | F48: 0 | G48: 0 | H48: 0 | I48: 0 | J48: 0 | K48: 0 | L48: 0 | M48: 0 | N48: 0 | O48: 0 | P48: 0 | Q48: 0 | R48: 0 | S48: 0 | T48: 0 | U48: 0 | V48: 0 | W48: 0 | X48: 0 | Y48: 0 | Z48: 0 | AA48: 0 | AB48: 0 | AC48: 0 | AD48: 0 | AE48: 0 | AF48: 0 | AG48: 0 | AH48: 0 | AI48: 0 | AJ48: 0 | AK48: 0 | AL48: 0 | AM48: 0
B49: 화학및고무제품제조업 | C49: 합계 | D49: 1 | E49: 0 | F49: 0 | G49: 0 | H49: 1 | I49: 0 | J49: 0 | K49: 0 | L49: 0 | M49: 0 | N49: 0 | O49: 0 | P49: 0 | Q49: 0 | R49: 0 | S49: 0 | T49: 0 | U49: 0 | V49: 0 | W49: 0 | X49: 0 | Y49: 0 | Z49: 0 | AA49: 0 | AB49: 3 | AC49: 0 | AD49: 2 | AE49: 0 | AF49: 1 | AG49: 0 | AH49: 0 | AI49: 0 | AJ49: 0 | AK49: 0 | AL49: 0 | AM49: 0
C50: 떨어짐(높이가 있는 곳에서 사람이 떨어짐) | D50: 1 | E50: 0 | F50: 0 | G50: 0 | H50: 1 | I50: 0 | J50: 0 | K50: 0 | L50: 0 | M50: 0 | N50: 0 | O50: 0 | P50: 0 | Q50: 0 | R50: 0 | S50: 0 | T50: 0 | U50: 0 | V50: 0 | W50: 0 | X50: 0 | Y50: 0 | Z50: 0 | AA50: 0 | AB50: 0 | AC50: 0 | AD50: 0 | AE50: 0 | AF50: 0 | AG50: 0 | AH50: 0 | AI50: 0 | AJ50: 0 | AK50: 0 | AL50: 0 | AM50: 0
C51: 부딪힘(물체에 부딪힘) | D51: 0 | E51: 0 | F51: 0 | G51: 0 | H51: 0 | I51: 0 | J51: 0 | K51: 0 | L51: 0 | M51: 0 | N51: 0 | O51: 0 | P51: 0 | Q51: 0 | R51: 0 | S51: 0 | T51: 0 | U51: 0 | V51: 0 | W51: 0 | X51: 0 | Y51: 0 | Z51: 0 | AA51: 0 | AB51: 1 | AC51: 0 | AD51: 1 | AE51: 0 | AF51: 0 | AG51: 0 | AH51: 0 | AI51: 0 | AJ51: 0 | AK51: 0 | AL51: 0 | AM51: 0
C52: 물체에 맞음(날아오거나 떨어진 물체에 맞음) | D52: 0 | E52: 0 | F52: 0 | G52: 0 | H52: 0 | I52: 0 | J52: 0 | K52: 0 | L52: 0 | M52: 0 | N52: 0 | O52: 0 | P52: 0 | Q52: 0 | R52: 0 | S52: 0 | T52: 0 | U52: 0 | V52: 0 | W52: 0 | X52: 0 | Y52: 0 | Z52: 0 | AA52: 0 | AB52: 1 | AC52: 0 | AD52: 0 | AE52: 0 | AF52: 1 | AG52: 0 | AH52: 0 | AI52: 0 | AJ52: 0 | AK52: 0 | AL52: 0 | AM52: 0
C53: 절단·베임·찔림 | D53: 0 | E53: 0 | F53: 0 | G53: 0 | H53: 0 | I53: 0 | J53: 0 | K53: 0 | L53: 0 | M53: 0 | N53: 0 | O53: 0 | P53: 0 | Q53: 0 | R53: 0 | S53: 0 | T53: 0 | U53: 0 | V53: 0 | W53: 0 | X53: 0 | Y53: 0 | Z53: 0 | AA53: 0 | AB53: 1 | AC53: 0 | AD53: 1 | AE53: 0 | AF53: 0 | AG53: 0 | AH53: 0 | AI53: 0 | AJ53: 0 | AK53: 0 | AL53: 0 | AM53: 0
B54: 의약품·화장품·연탄·석유제품제조업 | C54: 합계 | D54: 0 | E54: 0 | F54: 0 | G54: 0 | H54: 0 | I54: 0 | J54: 0 | K54: 0 | L54: 0 | M54: 0 | N54: 0 | O54: 0 | P54: 0 | Q54: 0 | R54: 0 | S54: 0 | T54: 0 | U54: 0 | V54: 0 | W54: 0 | X54: 0 | Y54: 0 | Z54: 0 | AA54: 0 | AB54: 1 | AC54: 0 | AD54: 0 | AE54: 0 | AF54: 0 | AG54: 0 | AH54: 0 | AI54: 0 | AJ54: 1 | AK54: 0 | AL54: 0 | AM54: 0
C55: 감전 | D55: 0 | E55: 0 | F55: 0 | G55: 0 | H55: 0 | I55: 0 | J55: 0 | K55: 0 | L55: 0 | M55: 0 | N55: 0 | O55: 0 | P55: 0 | Q55: 0 | R55: 0 | S55: 0 | T55: 0 | U55: 0 | V55: 0 | W55: 0 | X55: 0 | Y55: 0 | Z55: 0 | AA55: 0 | AB55: 1 | AC55: 0 | AD55: 0 | AE55: 0 | AF55: 0 | AG55: 0 | AH55: 0 | AI55: 0 | AJ55: 1 | AK55: 0 | AL55: 0 | AM55: 0
C56: 화학적인자 | D56: 0 | E56: 0 | F56: 0 | G56: 0 | H56: 0 | I56: 0 | J56: 0 | K56: 0 | L56: 0 | M56: 0 | N56: 0 | O56: 0 | P56: 0 | Q56: 0 | R56: 0 | S56: 0 | T56: 0 | U56: 0 | V56: 0 | W56: 0 | X56: 0 | Y56: 0 | Z56: 0 | AA56: 0 | AB56: 0 | AC56: 0 | AD56: 0 | AE56: 0 | AF56: 0 | AG56: 0 | AH56: 0 | AI56: 0 | AJ56: 0 | AK56: 0 | AL56: 0 | AM56: 0
B57: 기계기구·금속·비금속광물제품제조업 | C57: 합계 | D57: 17 | E57: 0 | F57: 8 | G57: 0 | H57: 0 | I57: 0 | J57: 4 | K57: 0 | L57: 1 | M57: 0 | N57: 4 | O57: 0 | P57: 15 | Q57: 0 | R57: 7 | S57: 0 | T57: 2 | U57: 0 | V57: 4 | W57: 0 | X57: 1 | Y57: 0 | Z57: 1 | AA57: 0 | AB57: 7 | AC57: 0 | AD57: 3 | AE57: 0 | AF57: 1 | AG57: 0 | AH57: 1 | AI57: 0 | AJ57: 1 | AK57: 0 | AL57: 1 | AM57: 0
C58: 떨어짐(높이가 있는 곳에서 사람이 떨어짐) | D58: 1 | E58: 0 | F58: 1 | G58: 0 | H58: 0 | I58: 0 | J58: 0 | K58: 0 | L58: 0 | M58: 0 | N58: 0 | O58: 0 | P58: 2 | Q58: 0 | R58: 1 | S58: 0 | T58: 0 | U58: 0 | V58: 1 | W58: 0 | X58: 0 | Y58: 0 | Z58: 0 | AA58: 0 | AB58: 1 | AC58: 0 | AD58: 1 | AE58: 0 | AF58: 0 | AG58: 0 | AH58: 0 | AI58: 0 | AJ58: 0 | AK58: 0 | AL58: 0 | AM58: 0
C59: 넘어짐(사람이 미끄러지거나 넘어짐) | D59: 1 | E59: 0 | F59: 0 | G59: 0 | H59: 0 | I59: 0 | J59: 0 | K59: 0 | L59: 0 | M59: 0 | N59: 1 | O59: 0 | P59: 3 | Q59: 0 | R59: 1 | S59: 0 | T59: 1 | U59: 0 | V59: 1 | W59: 0 | X59: 0 | Y59: 0 | Z59: 0 | AA59: 0 | AB59: 2 | AC59: 0 | AD59: 0 | AE59: 0 | AF59: 0 | AG59: 0 | AH59: 1 | AI59: 0 | AJ59: 0 | AK59: 0 | AL59: 1 | AM59: 0
C60: 깔림·뒤집힘(물체의 쓰러짐이나 뒤집힘) | D60: 0 | E60: 0 | F60: 0 | G60: 0 | H60: 0 | I60: 0 | J60: 0 | K60: 0 | L60: 0 | M60: 0 | N60: 0 | O60: 0 | P60: 0 | Q60: 0 | R60: 0 | S60: 0 | T60: 0 | U60: 0 | V60: 0 | W60: 0 | X60: 0 | Y60: 0 | Z60: 0 | AA60: 0 | AB60: 1 | AC60: 0 | AD60: 1 | AE60: 0 | AF60: 0 | AG60: 0 | AH60: 0 | AI60: 0 | AJ60: 0 | AK60: 0 | AL60: 0 | AM60: 0
C61: 부딪힘(물체에 부딪힘) | D61: 2 | E61: 0 | F61: 1 | G61: 0 | H61: 0 | I61: 0 | J61: 1 | K61: 0 | L61: 0 | M61: 0 | N61: 0 | O61: 0 | P61: 1 | Q61: 0 | R61: 0 | S61: 0 | T61: 1 | U61: 0 | V61: 0 | W61: 0 | X61: 0 | Y61: 0 | Z61: 0 | AA61: 0 | AB61: 1 | AC61: 0 | AD61: 0 | AE61: 0 | AF61: 1 | AG61: 0 | AH61: 0 | AI61: 0 | AJ61: 0 | AK61: 0 | AL61: 0 | AM61: 0
C62: 물체에 맞음(날아오거나 떨어진 물체에 맞음) | D62: 4 | E62: 0 | F62: 2 | G62: 0 | H62: 0 | I62: 0 | J62: 1 | K62: 0 | L62: 1 | M62: 0 | N62: 0 | O62: 0 | P62: 0 | Q62: 0 | R62: 0 | S62: 0 | T62: 0 | U62: 0 | V62: 0 | W62: 0 | X62: 0 | Y62: 0 | Z62: 0 | AA62: 0 | AB62: 0 | AC62: 0 | AD62: 0 | AE62: 0 | AF62: 0 | AG62: 0 | AH62: 0 | AI62: 0 | AJ62: 0 | AK62: 0 | AL62: 0 | AM62: 0
C63: 끼임(기계설비에 끼이거나 감김) | D63: 6 | E63: 0 | F63: 3 | G63: 0 | H63: 0 | I63: 0 | J63: 1 | K63: 0 | L63: 0 | M63: 0 | N63: 2 | O63: 0 | P63: 4 | Q63: 0 | R63: 2 | S63: 0 | T63: 0 | U63: 0 | V63: 1 | W63: 0 | X63: 1 | Y63: 0 | Z63: 0 | AA63: 0 | AB63: 2 | AC63: 0 | AD63: 1 | AE63: 0 | AF63: 0 | AG63: 0 | AH63: 0 | AI63: 0 | AJ63: 1 | AK63: 0 | AL63: 0 | AM63: 0
C64: 절단·베임·찔림 | D64: 1 | E64: 0 | F64: 0 | G64: 0 | H64: 0 | I64: 0 | J64: 0 | K64: 0 | L64: 0 | M64: 0 | N64: 1 | O64: 0 | P64: 3 | Q64: 0 | R64: 3 | S64: 0 | T64: 0 | U64: 0 | V64: 0 | W64: 0 | X64: 0 | Y64: 0 | Z64: 0 | AA64: 0 | AB64: 0 | AC64: 0 | AD64: 0 | AE64: 0 | AF64: 0 | AG64: 0 | AH64: 0 | AI64: 0 | AJ64: 0 | AK64: 0 | AL64: 0 | AM64: 0
C65: 불균형 및 무리한 동작 | D65: 1 | E65: 0 | F65: 1 | G65: 0 | H65: 0 | I65: 0 | J65: 0 | K65: 0 | L65: 0 | M65: 0 | N65: 0 | O65: 0 | P65: 1 | Q65: 0 | R65: 0 | S65: 0 | T65: 0 | U65: 0 | V65: 0 | W65: 0 | X65: 0 | Y65: 0 | Z65: 1 | AA65: 0 | AB65: 0 | AC65: 0 | AD65: 0 | AE65: 0 | AF65: 0 | AG65: 0 | AH65: 0 | AI65: 0 | AJ65: 0 | AK65: 0 | AL65: 0 | AM65: 0
C66: 이상온도 접촉 | D66: 1 | E66: 0 | F66: 0 | G66: 0 | H66: 0 | I66: 0 | J66: 1 | K66: 0 | L66: 0 | M66: 0 | N66: 0 | O66: 0 | P66: 0 | Q66: 0 | R66: 0 | S66: 0 | T66: 0 | U66: 0 | V66: 0 | W66: 0 | X66: 0 | Y66: 0 | Z66: 0 | AA66: 0 | AB66: 0 | AC66: 0 | AD66: 0 | AE66: 0 | AF66: 0 | AG66: 0 | AH66: 0 | AI66: 0 | AJ66: 0 | AK66: 0 | AL66: 0 | AM66: 0
C67: 사업장외 교통사고 | D67: 0 | E67: 0 | F67: 0 | G67: 0 | H67: 0 | I67: 0 | J67: 0 | K67: 0 | L67: 0 | M67: 0 | N67: 0 | O67: 0 | P67: 1 | Q67: 0 | R67: 0 | S67: 0 | T67: 0 | U67: 0 | V67: 1 | W67: 0 | X67: 0 | Y67: 0 | Z67: 0 | AA67: 0 | AB67: 0 | AC67: 0 | AD67: 0 | AE67: 0 | AF67: 0 | AG67: 0 | AH67: 0 | AI67: 0 | AJ67: 0 | AK67: 0 | AL67: 0 | AM67: 0
C68: 뇌심혈관질환 | D68: =SUM(F68,H68,J68,L68,N68) -> 0 | E68: 0 | F68: 0 | G68: 0 | H68: 0 | I68: 0 | J68: 0 | K68: 0 | L68: 0 | M68: 0 | N68: 0 | O68: 0 | P68: =SUM(R68,T68,V68,X68,Z68) -> 0 | Q68: 0 | R68: 0 | S68: 0 | T68: 0 | U68: 0 | V68: 0 | W68: 0 | X68: 0 | Y68: 0 | Z68: 0 | AA68: 0 | AB68: =SUM(AD68,AF68,AH68,AJ68,AL68) -> 0 | AC68: 0 | AD68: 0 | AE68: 0 | AF68: 0 | AG68: 0 | AH68: 0 | AI68: 0 | AJ68: 0 | AK68: 0 | AL68: 0 | AM68: 0
C69: 근골격계질환 | D69: 0 | E69: 0 | F69: 0 | G69: 0 | H69: 0 | I69: 0 | J69: 0 | K69: 0 | L69: 0 | M69: 0 | N69: 0 | O69: 0 | P69: 0 | Q69: 0 | R69: 0 | S69: 0 | T69: 0 | U69: 0 | V69: 0 | W69: 0 | X69: 0 | Y69: 0 | Z69: 0 | AA69: 0 | AB69: 0 | AC69: 0 | AD69: 0 | AE69: 0 | AF69: 0 | AG69: 0 | AH69: 0 | AI69: 0 | AJ69: 0 | AK69: 0 | AL69: 0 | AM69: 0
B70: 전기기계기구·정밀기구·전자제품제조업 | C70: 합계 | D70: 4 | E70: 0 | F70: 3 | G70: 0 | H70: 0 | I70: 0 | J70: 1 | K70: 0 | L70: 0 | M70: 0 | N70: 0 | O70: 0 | P70: 6 | Q70: 0 | R70: 2 | S70: 0 | T70: 2 | U70: 0 | V70: 2 | W70: 0 | X70: 0 | Y70: 0 | Z70: 0 | AA70: 0 | AB70: 7 | AC70: 0 | AD70: 4 | AE70: 0 | AF70: 1 | AG70: 0 | AH70: 1 | AI70: 0 | AJ70: 0 | AK70: 0 | AL70: 1 | AM70: 0
C71: 떨어짐(높이가 있는 곳에서 사람이 떨어짐) | D71: 1 | E71: 0 | F71: 1 | G71: 0 | H71: 0 | I71: 0 | J71: 0 | K71: 0 | L71: 0 | M71: 0 | N71: 0 | O71: 0 | P71: 3 | Q71: 0 | R71: 1 | S71: 0 | T71: 1 | U71: 0 | V71: 1 | W71: 0 | X71: 0 | Y71: 0 | Z71: 0 | AA71: 0 | AB71: 1 | AC71: 0 | AD71: 1 | AE71: 0 | AF71: 0 | AG71: 0 | AH71: 0 | AI71: 0 | AJ71: 0 | AK71: 0 | AL71: 0 | AM71: 0
C72: 넘어짐(사람이 미끄러지거나 넘어짐) | D72: 1 | E72: 0 | F72: 1 | G72: 0 | H72: 0 | I72: 0 | J72: 0 | K72: 0 | L72: 0 | M72: 0 | N72: 0 | O72: 0 | P72: 1 | Q72: 0 | R72: 1 | S72: 0 | T72: 0 | U72: 0 | V72: 0 | W72: 0 | X72: 0 | Y72: 0 | Z72: 0 | AA72: 0 | AB72: 2 | AC72: 0 | AD72: 1 | AE72: 0 | AF72: 0 | AG72: 0 | AH72: 0 | AI72: 0 | AJ72: 0 | AK72: 0 | AL72: 1 | AM72: 0
C73: 부딪힘(물체에 부딪힘) | D73: 0 | E73: 0 | F73: 0 | G73: 0 | H73: 0 | I73: 0 | J73: 0 | K73: 0 | L73: 0 | M73: 0 | N73: 0 | O73: 0 | P73: 1 | Q73: 0 | R73: 0 | S73: 0 | T73: 0 | U73: 0 | V73: 1 | W73: 0 | X73: 0 | Y73: 0 | Z73: 0 | AA73: 0 | AB73: 0 | AC73: 0 | AD73: 0 | AE73: 0 | AF73: 0 | AG73: 0 | AH73: 0 | AI73: 0 | AJ73: 0 | AK73: 0 | AL73: 0 | AM73: 0
C74: 끼임(기계설비에 끼이거나 감김) | D74: 0 | E74: 0 | F74: 0 | G74: 0 | H74: 0 | I74: 0 | J74: 0 | K74: 0 | L74: 0 | M74: 0 | N74: 0 | O74: 0 | P74: 0 | Q74: 0 | R74: 0 | S74: 0 | T74: 0 | U74: 0 | V74: 0 | W74: 0 | X74: 0 | Y74: 0 | Z74: 0 | AA74: 0 | AB74: 1 | AC74: 0 | AD74: 1 | AE74: 0 | AF74: 0 | AG74: 0 | AH74: 0 | AI74: 0 | AJ74: 0 | AK74: 0 | AL74: 0 | AM74: 0
C75: 절단·베임·찔림 | D75: 0 | E75: 0 | F75: 0 | G75: 0 | H75: 0 | I75: 0 | J75: 0 | K75: 0 | L75: 0 | M75: 0 | N75: 0 | O75: 0 | P75: 0 | Q75: 0 | R75: 0 | S75: 0 | T75: 0 | U75: 0 | V75: 0 | W75: 0 | X75: 0 | Y75: 0 | Z75: 0 | AA75: 0 | AB75: 3 | AC75: 0 | AD75: 1 | AE75: 0 | AF75: 1 | AG75: 0 | AH75: 1 | AI75: 0 | AJ75: 0 | AK75: 0 | AL75: 0 | AM75: 0
C76: 불균형 및 무리한 동작 | D76: 0 | E76: 0 | F76: 0 | G76: 0 | H76: 0 | I76: 0 | J76: 0 | K76: 0 | L76: 0 | M76: 0 | N76: 0 | O76: 0 | P76: 1 | Q76: 0 | R76: 0 | S76: 0 | T76: 1 | U76: 0 | V76: 0 | W76: 0 | X76: 0 | Y76: 0 | Z76: 0 | AA76: 0 | AB76: 0 | AC76: 0 | AD76: 0 | AE76: 0 | AF76: 0 | AG76: 0 | AH76: 0 | AI76: 0 | AJ76: 0 | AK76: 0 | AL76: 0 | AM76: 0
C77: 이상온도 접촉 | D77: 2 | E77: 0 | F77: 1 | G77: 0 | H77: 0 | I77: 0 | J77: 1 | K77: 0 | L77: 0 | M77: 0 | N77: 0 | O77: 0 | P77: 0 | Q77: 0 | R77: 0 | S77: 0 | T77: 0 | U77: 0 | V77: 0 | W77: 0 | X77: 0 | Y77: 0 | Z77: 0 | AA77: 0 | AB77: 0 | AC77: 0 | AD77: 0 | AE77: 0 | AF77: 0 | AG77: 0 | AH77: 0 | AI77: 0 | AJ77: 0 | AK77: 0 | AL77: 0 | AM77: 0
C78: 뇌심혈관질환 | D78: 0 | E78: 0 | F78: 0 | G78: 0 | H78: 0 | I78: 0 | J78: 0 | K78: 0 | L78: 0 | M78: 0 | N78: 0 | O78: 0 | P78: 0 | Q78: 0 | R78: 0 | S78: 0 | T78: 0 | U78: 0 | V78: 0 | W78: 0 | X78: 0 | Y78: 0 | Z78: 0 | AA78: 0 | AB78: 0 | AC78: 0 | AD78: 0 | AE78: 0 | AF78: 0 | AG78: 0 | AH78: 0 | AI78: 0 | AJ78: 0 | AK78: 0 | AL78: 0 | AM78: 0
C79: 근골격계질환 | D79: 0 | E79: 0 | F79: 0 | G79: 0 | H79: 0 | I79: 0 | J79: 0 | K79: 0 | L79: 0 | M79: 0 | N79: 0 | O79: 0 | P79: 0 | Q79: 0 | R79: 0 | S79: 0 | T79: 0 | U79: 0 | V79: 0 | W79: 0 | X79: 0 | Y79: 0 | Z79: 0 | AA79: 0 | AB79: 0 | AC79: 0 | AD79: 0 | AE79: 0 | AF79: 0 | AG79: 0 | AH79: 0 | AI79: 0 | AJ79: 0 | AK79: 0 | AL79: 0 | AM79: 0
B80: 수제품및기타제품제조업 | C80: 합계 | D80: 9 | E80: 0 | F80: 6 | G80: 0 | H80: 1 | I80: 0 | J80: 0 | K80: 0 | L80: 0 | M80: 0 | N80: 2 | O80: 0 | P80: 11 | Q80: 0 | R80: 7 | S80: 0 | T80: 2 | U80: 0 | V80: 1 | W80: 0 | X80: 1 | Y80: 0 | Z80: 0 | AA80: 0 | AB80: 12 | AC80: 0 | AD80: 6 | AE80: 0 | AF80: 3 | AG80: 0 | AH80: 0 | AI80: 0 | AJ80: 1 | AK80: 0 | AL80: 2 | AM80: 0
C81: 떨어짐(높이가 있는 곳에서 사람이 떨어짐) | D81: 0 | E81: 0 | F81: 0 | G81: 0 | H81: 0 | I81: 0 | J81: 0 | K81: 0 | L81: 0 | M81: 0 | N81: 0 | O81: 0 | P81: 1 | Q81: 0 | R81: 0 | S81: 0 | T81: 1 | U81: 0 | V81: 0 | W81: 0 | X81: 0 | Y81: 0 | Z81: 0 | AA81: 0 | AB81: 1 | AC81: 0 | AD81: 0 | AE81: 0 | AF81: 0 | AG81: 0 | AH81: 0 | AI81: 0 | AJ81: 0 | AK81: 0 | AL81: 1 | AM81: 0
C82: 넘어짐(사람이 미끄러지거나 넘어짐) | D82: 2 | E82: 0 | F82: 1 | G82: 0 | H82: 1 | I82: 0 | J82: 0 | K82: 0 | L82: 0 | M82: 0 | N82: 0 | O82: 0 | P82: 1 | Q82: 0 | R82: 1 | S82: 0 | T82: 0 | U82: 0 | V82: 0 | W82: 0 | X82: 0 | Y82: 0 | Z82: 0 | AA82: 0 | AB82: 3 | AC82: 0 | AD82: 1 | AE82: 0 | AF82: 1 | AG82: 0 | AH82: 0 | AI82: 0 | AJ82: 0 | AK82: 0 | AL82: 1 | AM82: 0
C83: 깔림·뒤집힘(물체의 쓰러짐이나 뒤집힘) | D83: 1 | E83: 0 | F83: 1 | G83: 0 | H83: 0 | I83: 0 | J83: 0 | K83: 0 | L83: 0 | M83: 0 | N83: 0 | O83: 0 | P83: 0 | Q83: 0 | R83: 0 | S83: 0 | T83: 0 | U83: 0 | V83: 0 | W83: 0 | X83: 0 | Y83: 0 | Z83: 0 | AA83: 0 | AB83: 0 | AC83: 0 | AD83: 0 | AE83: 0 | AF83: 0 | AG83: 0 | AH83: 0 | AI83: 0 | AJ83: 0 | AK83: 0 | AL83: 0 | AM83: 0
C84: 부딪힘(물체에 부딪힘) | D84: 0 | E84: 0 | F84: 0 | G84: 0 | H84: 0 | I84: 0 | J84: 0 | K84: 0 | L84: 0 | M84: 0 | N84: 0 | O84: 0 | P84: 1 | Q84: 0 | R84: 1 | S84: 0 | T84: 0 | U84: 0 | V84: 0 | W84: 0 | X84: 0 | Y84: 0 | Z84: 0 | AA84: 0 | AB84: 3 | AC84: 0 | AD84: 2 | AE84: 0 | AF84: 0 | AG84: 0 | AH84: 0 | AI84: 0 | AJ84: 1 | AK84: 0 | AL84: 0 | AM84: 0
C85: 물체에 맞음(날아오거나 떨어진 물체에 맞음) | D85: 0 | E85: 0 | F85: 0 | G85: 0 | H85: 0 | I85: 0 | J85: 0 | K85: 0 | L85: 0 | M85: 0 | N85: 0 | O85: 0 | P85: 1 | Q85: 0 | R85: 1 | S85: 0 | T85: 0 | U85: 0 | V85: 0 | W85: 0 | X85: 0 | Y85: 0 | Z85: 0 | AA85: 0 | AB85: 1 | AC85: 0 | AD85: 0 | AE85: 0 | AF85: 1 | AG85: 0 | AH85: 0 | AI85: 0 | AJ85: 0 | AK85: 0 | AL85: 0 | AM85: 0
C86: 끼임(기계설비에 끼이거나 감김) | D86: 4 | E86: 0 | F86: 2 | G86: 0 | H86: 0 | I86: 0 | J86: 0 | K86: 0 | L86: 0 | M86: 0 | N86: 2 | O86: 0 | P86: 6 | Q86: 0 | R86: 3 | S86: 0 | T86: 1 | U86: 0 | V86: 1 | W86: 0 | X86: 1 | Y86: 0 | Z86: 0 | AA86: 0 | AB86: 3 | AC86: 0 | AD86: 2 | AE86: 0 | AF86: 1 | AG86: 0 | AH86: 0 | AI86: 0 | AJ86: 0 | AK86: 0 | AL86: 0 | AM86: 0
C87: 절단·베임·찔림 | D87: 2 | E87: 0 | F87: 2 | G87: 0 | H87: 0 | I87: 0 | J87: 0 | K87: 0 | L87: 0 | M87: 0 | N87: 0 | O87: 0 | P87: 1 | Q87: 0 | R87: 1 | S87: 0 | T87: 0 | U87: 0 | V87: 0 | W87: 0 | X87: 0 | Y87: 0 | Z87: 0 | AA87: 0 | AB87: 1 | AC87: 0 | AD87: 1 | AE87: 0 | AF87: 0 | AG87: 0 | AH87: 0 | AI87: 0 | AJ87: 0 | AK87: 0 | AL87: 0 | AM87: 0
C88: 화학적인자 | D88: 0 | E88: 0 | F88: 0 | G88: 0 | H88: 0 | I88: 0 | J88: 0 | K88: 0 | L88: 0 | M88: 0 | N88: 0 | O88: 0 | P88: 0 | Q88: 0 | R88: 0 | S88: 0 | T88: 0 | U88: 0 | V88: 0 | W88: 0 | X88: 0 | Y88: 0 | Z88: 0 | AA88: 0 | AB88: 0 | AC88: 0 | AD88: 0 | AE88: 0 | AF88: 0 | AG88: 0 | AH88: 0 | AI88: 0 | AJ88: 0 | AK88: 0 | AL88: 0 | AM88: 0
C89: 뇌심혈관질환 | D89: 0 | E89: 0 | F89: 0 | G89: 0 | H89: 0 | I89: 0 | J89: 0 | K89: 0 | L89: 0 | M89: 0 | N89: 0 | O89: 0 | P89: 0 | Q89: 0 | R89: 0 | S89: 0 | T89: 0 | U89: 0 | V89: 0 | W89: 0 | X89: 0 | Y89: 0 | Z89: 0 | AA89: 0 | AB89: 0 | AC89: 0 | AD89: 0 | AE89: 0 | AF89: 0 | AG89: 0 | AH89: 0 | AI89: 0 | AJ89: 0 | AK89: 0 | AL89: 0 | AM89: 0
C90: 근골격계질환 | D90: 0 | E90: 0 | F90: 0 | G90: 0 | H90: 0 | I90: 0 | J90: 0 | K90: 0 | L90: 0 | M90: 0 | N90: 0 | O90: 0 | P90: 0 | Q90: 0 | R90: 0 | S90: 0 | T90: 0 | U90: 0 | V90: 0 | W90: 0 | X90: 0 | Y90: 0 | Z90: 0 | AA90: 0 | AB90: 0 | AC90: 0 | AD90: 0 | AE90: 0 | AF90: 0 | AG90: 0 | AH90: 0 | AI90: 0 | AJ90: 0 | AK90: 0 | AL90: 0 | AM90: 0
C91: 작업관련성질환 기타 | D91: 0 | E91: 0 | F91: 0 | G91: 0 | H91: 0 | I91: 0 | J91: 0 | K91: 0 | L91: 0 | M91: 0 | N91: 0 | O91: 0 | P91: 0 | Q91: 0 | R91: 0 | S91: 0 | T91: 0 | U91: 0 | V91: 0 | W91: 0 | X91: 0 | Y91: 0 | Z91: 0 | AA91: 0 | AB91: 0 | AC91: 0 | AD91: 0 | AE91: 0 | AF91: 0 | AG91: 0 | AH91: 0 | AI91: 0 | AJ91: 0 | AK91: 0 | AL91: 0 | AM91: 0
A92: 서울강남 | B92: 합계 | D92: 19 | E92: 0 | F92: 5 | G92: 0 | H92: 3 | I92: 0 | J92: 7 | K92: 0 | L92: 1 | M92: 0 | N92: 3 | O92: 0 | P92: 19 | Q92: 1 | R92: 5 | S92: 1 | T92: 1 | U92: 0 | V92: 8 | W92: 0 | X92: 3 | Y92: 0 | Z92: 2 | AA92: 0 | AB92: 17 | AC92: 0 | AD92: 6 | AE92: 0 | AF92: 0 | AG92: 0 | AH92: 3 | AI92: 0 | AJ92: 3 | AK92: 0 | AL92: 5 | AM92: 0
B93: 식료품제조업 | C93: 합계 | D93: 3 | E93: 0 | F93: 0 | G93: 0 | H93: 1 | I93: 0 | J93: 2 | K93: 0 | L93: 0 | M93: 0 | N93: 0 | O93: 0 | P93: 5 | Q93: 0 | R93: 1 | S93: 0 | T93: 0 | U93: 0 | V93: 1 | W93: 0 | X93: 2 | Y93: 0 | Z93: 1 | AA93: 0 | AB93: 5 | AC93: 0 | AD93: 2 | AE93: 0 | AF93: 0 | AG93: 0 | AH93: 0 | AI93: 0 | AJ93: 0 | AK93: 0 | AL93: 3 | AM93: 0
C94: 떨어짐(높이가 있는 곳에서 사람이 떨어짐) | D94: 0 | E94: 0 | F94: 0 | G94: 0 | H94: 0 | I94: 0 | J94: 0 | K94: 0 | L94: 0 | M94: 0 | N94: 0 | O94: 0 | P94: 1 | Q94: 0 | R94: 0 | S94: 0 | T94: 0 | U94: 0 | V94: 0 | W94: 0 | X94: 1 | Y94: 0 | Z94: 0 | AA94: 0 | AB94: 0 | AC94: 0 | AD94: 0 | AE94: 0 | AF94: 0 | AG94: 0 | AH94: 0 | AI94: 0 | AJ94: 0 | AK94: 0 | AL94: 0 | AM94: 0
C95: 넘어짐(사람이 미끄러지거나 넘어짐) | D95: 0 | E95: 0 | F95: 0 | G95: 0 | H95: 0 | I95: 0 | J95: 0 | K95: 0 | L95: 0 | M95: 0 | N95: 0 | O95: 0 | P95: 1 | Q95: 0 | R95: 0 | S95: 0 | T95: 0 | U95: 0 | V95: 1 | W95: 0 | X95: 0 | Y95: 0 | Z95: 0 | AA95: 0 | AB95: 0 | AC95: 0 | AD95: 0 | AE95: 0 | AF95: 0 | AG95: 0 | AH95: 0 | AI95: 0 | AJ95: 0 | AK95: 0 | AL95: 0 | AM95: 0
C96: 깔림·뒤집힘(물체의 쓰러짐이나 뒤집힘) | D96: 0 | E96: 0 | F96: 0 | G96: 0 | H96: 0 | I96: 0 | J96: 0 | K96: 0 | L96: 0 | M96: 0 | N96: 0 | O96: 0 | P96: 0 | Q96: 0 | R96: 0 | S96: 0 | T96: 0 | U96: 0 | V96: 0 | W96: 0 | X96: 0 | Y96: 0 | Z96: 0 | AA96: 0 | AB96: 1 | AC96: 0 | AD96: 1 | AE96: 0 | AF96: 0 | AG96: 0 | AH96: 0 | AI96: 0 | AJ96: 0 | AK96: 0 | AL96: 0 | AM96: 0
C97: 물체에 맞음(날아오거나 떨어진 물체에 맞음) | D97: 1 | E97: 0 | F97: 0 | G97: 0 | H97: 0 | I97: 0 | J97: 1 | K97: 0 | L97: 0 | M97: 0 | N97: 0 | O97: 0 | P97: 0 | Q97: 0 | R97: 0 | S97: 0 | T97: 0 | U97: 0 | V97: 0 | W97: 0 | X97: 0 | Y97: 0 | Z97: 0 | AA97: 0 | AB97: 0 | AC97: 0 | AD97: 0 | AE97: 0 | AF97: 0 | AG97: 0 | AH97: 0 | AI97: 0 | AJ97: 0 | AK97: 0 | AL97: 0 | AM97: 0
C98: 절단·베임·찔림 | D98: 0 | E98: 0 | F98: 0 | G98: 0 | H98: 0 | I98: 0 | J98: 0 | K98: 0 | L98: 0 | M98: 0 | N98: 0 | O98: 0 | P98: 2 | Q98: 0 | R98: 0 | S98: 0 | T98: 0 | U98: 0 | V98: 0 | W98: 0 | X98: 1 | Y98: 0 | Z98: 1 | AA98: 0 | AB98: 2 | AC98: 0 | AD98: 0 | AE98: 0 | AF98: 0 | AG98: 0 | AH98: 0 | AI98: 0 | AJ98: 0 | AK98: 0 | AL98: 2 | AM98: 0
C99: 불균형 및 무리한 동작 | D99: 0 | E99: 0 | F99: 0 | G99: 0 | H99: 0 | I99: 0 | J99: 0 | K99: 0 | L99: 0 | M99: 0 | N99: 0 | O99: 0 | P99: 1 | Q99: 0 | R99: 1 | S99: 0 | T99: 0 | U99: 0 | V99: 0 | W99: 0 | X99: 0 | Y99: 0 | Z99: 0 | AA99: 0 | AB99: 1 | AC99: 0 | AD99: 1 | AE99: 0 | AF99: 0 | AG99: 0 | AH99: 0 | AI99: 0 | AJ99: 0 | AK99: 0 | AL99: 0 | AM99: 0
C100: 이상온도 접촉 | D100: 2 | E100: 0 | F100: 0 | G100: 0 | H100: 1 | I100: 0 | J100: 1 | K100: 0 | L100: 0 | M100: 0 | N100: 0 | O100: 0 | P100: 0 | Q100: 0 | R100: 0 | S100: 0 | T100: 0 | U100: 0 | V100: 0 | W100: 0 | X100: 0 | Y100: 0 | Z100: 0 | AA100: 0 | AB100: 1 | AC100: 0 | AD100: 0 | AE100: 0 | AF100: 0 | AG100: 0 | AH100: 0 | AI100: 0 | AJ100: 0 | AK100: 0 | AL100: 1 | AM100: 0
C101: 생물학적인자 | D101: 0 | E101: 0 | F101: 0 | G101: 0 | H101: 0 | I101: 0 | J101: 0 | K101: 0 | L101: 0 | M101: 0 | N101: 0 | O101: 0 | P101: 0 | Q101: 0 | R101: 0 | S101: 0 | T101: 0 | U101: 0 | V101: 0 | W101: 0 | X101: 0 | Y101: 0 | Z101: 0 | AA101: 0 | AB101: 0 | AC101: 0 | AD101: 0 | AE101: 0 | AF101: 0 | AG101: 0 | AH101: 0 | AI101: 0 | AJ101: 0 | AK101: 0 | AL101: 0 | AM101: 0
C102: 뇌심혈관질환 | D102: 0 | E102: 0 | F102: 0 | G102: 0 | H102: 0 | I102: 0 | J102: 0 | K102: 0 | L102: 0 | M102: 0 | N102: 0 | O102: 0 | P102: 0 | Q102: 0 | R102: 0 | S102: 0 | T102: 0 | U102: 0 | V102: 0 | W102: 0 | X102: 0 | Y102: 0 | Z102: 0 | AA102: 0 | AB102: 0 | AC102: 0 | AD102: 0 | AE102: 0 | AF102: 0 | AG102: 0 | AH102: 0 | AI102: 0 | AJ102: 0 | AK102: 0 | AL102: 0 | AM102: 0
C103: 근골격계질환 | D103: 0 | E103: 0 | F103: 0 | G103: 0 | H103: 0 | I103: 0 | J103: 0 | K103: 0 | L103: 0 | M103: 0 | N103: 0 | O103: 0 | P103: 0 | Q103: 0 | R103: 0 | S103: 0 | T103: 0 | U103: 0 | V103: 0 | W103: 0 | X103: 0 | Y103: 0 | Z103: 0 | AA103: 0 | AB103: 0 | AC103: 0 | AD103: 0 | AE103: 0 | AF103: 0 | AG103: 0 | AH103: 0 | AI103: 0 | AJ103: 0 | AK103: 0 | AL103: 0 | AM103: 0
B104: 섬유및섬유제품제조업 | C104: 합계 | D104: 2 | E104: 0 | F104: 0 | G104: 0 | H104: 1 | I104: 0 | J104: 1 | K104: 0 | L104: 0 | M104: 0 | N104: 0 | O104: 0 | P104: 1 | Q104: 0 | R104: 0 | S104: 0 | T104: 1 | U104: 0 | V104: 0 | W104: 0 | X104: 0 | Y104: 0 | Z104: 0 | AA104: 0 | AB104: 2 | AC104: 0 | AD104: 0 | AE104: 0 | AF104: 0 | AG104: 0 | AH104: 1 | AI104: 0 | AJ104: 0 | AK104: 0 | AL104: 1 | AM104: 0
C105: 떨어짐(높이가 있는 곳에서 사람이 떨어짐) | D105: 1 | E105: 0 | F105: 0 | G105: 0 | H105: 1 | I105: 0 | J105: 0 | K105: 0 | L105: 0 | M105: 0 | N105: 0 | O105: 0 | P105: 0 | Q105: 0 | R105: 0 | S105: 0 | T105: 0 | U105: 0 | V105: 0 | W105: 0 | X105: 0 | Y105: 0 | Z105: 0 | AA105: 0 | AB105: 0 | AC105: 0 | AD105: 0 | AE105: 0 | AF105: 0 | AG105: 0 | AH105: 0 | AI105: 0 | AJ105: 0 | AK105: 0 | AL105: 0 | AM105: 0
C106: 넘어짐(사람이 미끄러지거나 넘어짐) | D106: 0 | E106: 0 | F106: 0 | G106: 0 | H106: 0 | I106: 0 | J106: 0 | K106: 0 | L106: 0 | M106: 0 | N106: 0 | O106: 0 | P106: 1 | Q106: 0 | R106: 0 | S106: 0 | T106: 1 | U106: 0 | V106: 0 | W106: 0 | X106: 0 | Y106: 0 | Z106: 0 | AA106: 0 | AB106: 1 | AC106: 0 | AD106: 0 | AE106: 0 | AF106: 0 | AG106: 0 | AH106: 1 | AI106: 0 | AJ106: 0 | AK106: 0 | AL106: 0 | AM106: 0
C107: 절단·베임·찔림 | D107: 1 | E107: 0 | F107: 0 | G107: 0 | H107: 0 | I107: 0 | J107: 1 | K107: 0 | L107: 0 | M107: 0 | N107: 0 | O107: 0 | P107: 0 | Q107: 0 | R107: 0 | S107: 0 | T107: 0 | U107: 0 | V107: 0 | W107: 0 | X107: 0 | Y107: 0 | Z107: 0 | AA107: 0 | AB107: 1 | AC107: 0 | AD107: 0 | AE107: 0 | AF107: 0 | AG107: 0 | AH107: 0 | AI107: 0 | AJ107: 0 | AK107: 0 | AL107: 1 | AM107: 0
B108: 목재및종이제품제조업 | C108: 합계 | D108: 2 | E108: 0 | F108: 2 | G108: 0 | H108: 0 | I108: 0 | J108: 0 | K108: 0 | L108: 0 | M108: 0 | N108: 0 | O108: 0 | P108: 1 | Q108: 0 | R108: 0 | S108: 0 | T108: 0 | U108: 0 | V108: 1 | W108: 0 | X108: 0 | Y108: 0 | Z108: 0 | AA108: 0 | AB108: 2 | AC108: 0 | AD108: 0 | AE108: 0 | AF108: 0 | AG108: 0 | AH108: 0 | AI108: 0 | AJ108: 1 | AK108: 0 | AL108: 1 | AM108: 0
C109: 넘어짐(사람이 미끄러지거나 넘어짐) | D109: 0 | E109: 0 | F109: 0 | G109: 0 | H109: 0 | I109: 0 | J109: 0 | K109: 0 | L109: 0 | M109: 0 | N109: 0 | O109: 0 | P109: 0 | Q109: 0 | R109: 0 | S109: 0 | T109: 0 | U109: 0 | V109: 0 | W109: 0 | X109: 0 | Y109: 0 | Z109: 0 | AA109: 0 | AB109: 1 | AC109: 0 | AD109: 0 | AE109: 0 | AF109: 0 | AG109: 0 | AH109: 0 | AI109: 0 | AJ109: 1 | AK109: 0 | AL109: 0 | AM109: 0
C110: 깔림·뒤집힘(물체의 쓰러짐이나 뒤집힘) | D110: 0 | E110: 0 | F110: 0 | G110: 0 | H110: 0 | I110: 0 | J110: 0 | K110: 0 | L110: 0 | M110: 0 | N110: 0 | O110: 0 | P110: 0 | Q110: 0 | R110: 0 | S110: 0 | T110: 0 | U110: 0 | V110: 0 | W110: 0 | X110: 0 | Y110: 0 | Z110: 0 | AA110: 0 | AB110: 1 | AC110: 0 | AD110: 0 | AE110: 0 | AF110: 0 | AG110: 0 | AH110: 0 | AI110: 0 | AJ110: 0 | AK110: 0 | AL110: 1 | AM110: 0
C111: 절단·베임·찔림 | D111: 2 | E111: 0 | F111: 2 | G111: 0 | H111: 0 | I111: 0 | J111: 0 | K111: 0 | L111: 0 | M111: 0 | N111: 0 | O111: 0 | P111: 1 | Q111: 0 | R111: 0 | S111: 0 | T111: 0 | U111: 0 | V111: 1 | W111: 0 | X111: 0 | Y111: 0 | Z111: 0 | AA111: 0 | AB111: 0 | AC111: 0 | AD111: 0 | AE111: 0 | AF111: 0 | AG111: 0 | AH111: 0 | AI111: 0 | AJ111: 0 | AK111: 0 | AL111: 0 | AM111: 0
B112: 출판·인쇄·제본업 | C112: 합계 | D112: 1 | E112: 0 | F112: 0 | G112: 0 | H112: 1 | I112: 0 | J112: 0 | K112: 0 | L112: 0 | M112: 0 | N112: 0 | O112: 0 | P112: 4 | Q112: 0 | R112: 1 | S112: 0 | T112: 0 | U112: 0 | V112: 2 | W112: 0 | X112: 0 | Y112: 0 | Z112: 1 | AA112: 0 | AB112: 2 | AC112: 0 | AD112: 1 | AE112: 0 | AF112: 0 | AG112: 0 | AH112: 1 | AI112: 0 | AJ112: 0 | AK112: 0 | AL112: 0 | AM112: 0
C113: 떨어짐(높이가 있는 곳에서 사람이 떨어짐) | D113: 0 | E113: 0 | F113: 0 | G113: 0 | H113: 0 | I113: 0 | J113: 0 | K113: 0 | L113: 0 | M113: 0 | N113: 0 | O113: 0 | P113: 0 | Q113: 0 | R113: 0 | S113: 0 | T113: 0 | U113: 0 | V113: 0 | W113: 0 | X113: 0 | Y113: 0 | Z113: 0 | AA113: 0 | AB113: 1 | AC113: 0 | AD113: 1 | AE113: 0 | AF113: 0 | AG113: 0 | AH113: 0 | AI113: 0 | AJ113: 0 | AK113: 0 | AL113: 0 | AM113: 0
C114: 넘어짐(사람이 미끄러지거나 넘어짐) | D114: 0 | E114: 0 | F114: 0 | G114: 0 | H114: 0 | I114: 0 | J114: 0 | K114: 0 | L114: 0 | M114: 0 | N114: 0 | O114: 0 | P114: 2 | Q114: 0 | R114: 0 | S114: 0 | T114: 0 | U114: 0 | V114: 2 | W114: 0 | X114: 0 | Y114: 0 | Z114: 0 | AA114: 0 | AB114: 1 | AC114: 0 | AD114: 0 | AE114: 0 | AF114: 0 | AG114: 0 | AH114: 1 | AI114: 0 | AJ114: 0 | AK114: 0 | AL114: 0 | AM114: 0
C115: 부딪힘(물체에 부딪힘) | D115: 1 | E115: 0 | F115: 0 | G115: 0 | H115: 1 | I115: 0 | J115: 0 | K115: 0 | L115: 0 | M115: 0 | N115: 0 | O115: 0 | P115: 1 | Q115: 0 | R115: 0 | S115: 0 | T115: 0 | U115: 0 | V115: 0 | W115: 0 | X115: 0 | Y115: 0 | Z115: 1 | AA115: 0 | AB115: 0 | AC115: 0 | AD115: 0 | AE115: 0 | AF115: 0 | AG115: 0 | AH115: 0 | AI115: 0 | AJ115: 0 | AK115: 0 | AL115: 0 | AM115: 0
C116: 체육행사 등의 사고 | D116: 0 | E116: 0 | F116: 0 | G116: 0 | H116: 0 | I116: 0 | J116: 0 | K116: 0 | L116: 0 | M116: 0 | N116: 0 | O116: 0 | P116: 1 | Q116: 0 | R116: 1 | S116: 0 | T116: 0 | U116: 0 | V116: 0 | W116: 0 | X116: 0 | Y116: 0 | Z116: 0 | AA116: 0 | AB116: 0 | AC116: 0 | AD116: 0 | AE116: 0 | AF116: 0 | AG116: 0 | AH116: 0 | AI116: 0 | AJ116: 0 | AK116: 0 | AL116: 0 | AM116: 0
B117: 화학및고무제품제조업 | C117: 합계 | D117: 0 | E117: 0 | F117: 0 | G117: 0 | H117: 0 | I117: 0 | J117: 0 | K117: 0 | L117: 0 | M117: 0 | N117: 0 | O117: 0 | P117: 0 | Q117: 0 | R117: 0 | S117: 0 | T117: 0 | U117: 0 | V117: 0 | W117: 0 | X117: 0 | Y117: 0 | Z117: 0 | AA117: 0 | AB117: 1 | AC117: 0 | AD117: 0 | AE117: 0 | AF117: 0 | AG117: 0 | AH117: 0 | AI117: 0 | AJ117: 1 | AK117: 0 | AL117: 0 | AM117: 0
C118: 넘어짐(사람이 미끄러지거나 넘어짐) | D118: 0 | E118: 0 | F118: 0 | G118: 0 | H118: 0 | I118: 0 | J118: 0 | K118: 0 | L118: 0 | M118: 0 | N118: 0 | O118: 0 | P118: 0 | Q118: 0 | R118: 0 | S118: 0 | T118: 0 | U118: 0 | V118: 0 | W118: 0 | X118: 0 | Y118: 0 | Z118: 0 | AA118: 0 | AB118: 1 | AC118: 0 | AD118: 0 | AE118: 0 | AF118: 0 | AG118: 0 | AH118: 0 | AI118: 0 | AJ118: 1 | AK118: 0 | AL118: 0 | AM118: 0
B119: 의약품·화장품·연탄·석유제품제조업 | C119: 합계 | D119: 0 | E119: 0 | F119: 0 | G119: 0 | H119: 0 | I119: 0 | J119: 0 | K119: 0 | L119: 0 | M119: 0 | N119: 0 | O119: 0 | P119: 0 | Q119: 0 | R119: 0 | S119: 0 | T119: 0 | U119: 0 | V119: 0 | W119: 0 | X119: 0 | Y119: 0 | Z119: 0 | AA119: 0 | AB119: 1 | AC119: 0 | AD119: 0 | AE119: 0 | AF119: 0 | AG119: 0 | AH119: 0 | AI119: 0 | AJ119: 1 | AK119: 0 | AL119: 0 | AM119: 0
C120: 넘어짐(사람이 미끄러지거나 넘어짐) | D120: 0 | E120: 0 | F120: 0 | G120: 0 | H120: 0 | I120: 0 | J120: 0 | K120: 0 | L120: 0 | M120: 0 | N120: 0 | O120: 0 | P120: 0 | Q120: 0 | R120: 0 | S120: 0 | T120: 0 | U120: 0 | V120: 0 | W120: 0 | X120: 0 | Y120: 0 | Z120: 0 | AA120: 0 | AB120: 1 | AC120: 0 | AD120: 0 | AE120: 0 | AF120: 0 | AG120: 0 | AH120: 0 | AI120: 0 | AJ120: 1 | AK120: 0 | AL120: 0 | AM120: 0
B121: 기계기구·금속·비금속광물제품제조업 | C121: 합계 | D121: 9 | E121: 0 | F121: 3 | G121: 0 | H121: 0 | I121: 0 | J121: 4 | K121: 0 | L121: 1 | M121: 0 | N121: 1 | O121: 0 | P121: 6 | Q121: 1 | R121: 3 | S121: 1 | T121: 0 | U121: 0 | V121: 3 | W121: 0 | X121: 0 | Y121: 0 | Z121: 0 | AA121: 0 | AB121: 1 | AC121: 0 | AD121: 1 | AE121: 0 | AF121: 0 | AG121: 0 | AH121: 0 | AI121: 0 | AJ121: 0 | AK121: 0 | AL121: 0 | AM121: 0
C122: 떨어짐(높이가 있는 곳에서 사람이 떨어짐) | D122: 0 | E122: 0 | F122: 0 | G122: 0 | H122: 0 | I122: 0 | J122: 0 | K122: 0 | L122: 0 | M122: 0 | N122: 0 | O122: 0 | P122: 1 | Q122: 0 | R122: 0 | S122: 0 | T122: 0 | U122: 0 | V122: 1 | W122: 0 | X122: 0 | Y122: 0 | Z122: 0 | AA122: 0 | AB122: 0 | AC122: 0 | AD122: 0 | AE122: 0 | AF122: 0 | AG122: 0 | AH122: 0 | AI122: 0 | AJ122: 0 | AK122: 0 | AL122: 0 | AM122: 0
C123: 넘어짐(사람이 미끄러지거나 넘어짐) | D123: 3 | E123: 0 | F123: 2 | G123: 0 | H123: 0 | I123: 0 | J123: 0 | K123: 0 | L123: 0 | M123: 0 | N123: 1 | O123: 0 | P123: 0 | Q123: 0 | R123: 0 | S123: 0 | T123: 0 | U123: 0 | V123: 0 | W123: 0 | X123: 0 | Y123: 0 | Z123: 0 | AA123: 0 | AB123: 0 | AC123: 0 | AD123: 0 | AE123: 0 | AF123: 0 | AG123: 0 | AH123: 0 | AI123: 0 | AJ123: 0 | AK123: 0 | AL123: 0 | AM123: 0
C124: 부딪힘(물체에 부딪힘) | D124: 0 | E124: 0 | F124: 0 | G124: 0 | H124: 0 | I124: 0 | J124: 0 | K124: 0 | L124: 0 | M124: 0 | N124: 0 | O124: 0 | P124: 1 | Q124: 0 | R124: 0 | S124: 0 | T124: 0 | U124: 0 | V124: 1 | W124: 0 | X124: 0 | Y124: 0 | Z124: 0 | AA124: 0 | AB124: 0 | AC124: 0 | AD124: 0 | AE124: 0 | AF124: 0 | AG124: 0 | AH124: 0 | AI124: 0 | AJ124: 0 | AK124: 0 | AL124: 0 | AM124: 0
C125: 물체에 맞음(날아오거나 떨어진 물체에 맞음) | D125: 0 | E125: 0 | F125: 0 | G125: 0 | H125: 0 | I125: 0 | J125: 0 | K125: 0 | L125: 0 | M125: 0 | N125: 0 | O125: 0 | P125: 1 | Q125: 1 | R125: 1 | S125: 1 | T125: 0 | U125: 0 | V125: 0 | W125: 0 | X125: 0 | Y125: 0 | Z125: 0 | AA125: 0 | AB125: 0 | AC125: 0 | AD125: 0 | AE125: 0 | AF125: 0 | AG125: 0 | AH125: 0 | AI125: 0 | AJ125: 0 | AK125: 0 | AL125: 0 | AM125: 0
C126: 끼임(기계설비에 끼이거나 감김) | D126: 2 | E126: 0 | F126: 0 | G126: 0 | H126: 0 | I126: 0 | J126: 2 | K126: 0 | L126: 0 | M126: 0 | N126: 0 | O126: 0 | P126: 1 | Q126: 0 | R126: 0 | S126: 0 | T126: 0 | U126: 0 | V126: 1 | W126: 0 | X126: 0 | Y126: 0 | Z126: 0 | AA126: 0 | AB126: 1 | AC126: 0 | AD126: 1 | AE126: 0 | AF126: 0 | AG126: 0 | AH126: 0 | AI126: 0 | AJ126: 0 | AK126: 0 | AL126: 0 | AM126: 0
C127: 절단·베임·찔림 | D127: 1 | E127: 0 | F127: 0 | G127: 0 | H127: 0 | I127: 0 | J127: 0 | K127: 0 | L127: 1 | M127: 0 | N127: 0 | O127: 0 | P127: 2 | Q127: 0 | R127: 2 | S127: 0 | T127: 0 | U127: 0 | V127: 0 | W127: 0 | X127: 0 | Y127: 0 | Z127: 0 | AA127: 0 | AB127: 0 | AC127: 0 | AD127: 0 | AE127: 0 | AF127: 0 | AG127: 0 | AH127: 0 | AI127: 0 | AJ127: 0 | AK127: 0 | AL127: 0 | AM127: 0
C128: 불균형 및 무리한 동작 | D128: 2 | E128: 0 | F128: 0 | G128: 0 | H128: 0 | I128: 0 | J128: 2 | K128: 0 | L128: 0 | M128: 0 | N128: 0 | O128: 0 | P128: 0 | Q128: 0 | R128: 0 | S128: 0 | T128: 0 | U128: 0 | V128: 0 | W128: 0 | X128: 0 | Y128: 0 | Z128: 0 | AA128: 0 | AB128: 0 | AC128: 0 | AD128: 0 | AE128: 0 | AF128: 0 | AG128: 0 | AH128: 0 | AI128: 0 | AJ128: 0 | AK128: 0 | AL128: 0 | AM128: 0
C129: 이상온도 접촉 | D129: 1 | E129: 0 | F129: 1 | G129: 0 | H129: 0 | I129: 0 | J129: 0 | K129: 0 | L129: 0 | M129: 0 | N129: 0 | O129: 0 | P129: 0 | Q129: 0 | R129: 0 | S129: 0 | T129: 0 | U129: 0 | V129: 0 | W129: 0 | X129: 0 | Y129: 0 | Z129: 0 | AA129: 0 | AB129: 0 | AC129: 0 | AD129: 0 | AE129: 0 | AF129: 0 | AG129: 0 | AH129: 0 | AI129: 0 | AJ129: 0 | AK129: 0 | AL129: 0 | AM129: 0
C130: 뇌심혈관질환 | D130: 0 | E130: 0 | F130: 0 | G130: 0 | H130: 0 | I130: 0 | J130: 0 | K130: 0 | L130: 0 | M130: 0 | N130: 0 | O130: 0 | P130: 0 | Q130: 0 | R130: 0 | S130: 0 | T130: 0 | U130: 0 | V130: 0 | W130: 0 | X130: 0 | Y130: 0 | Z130: 0 | AA130: 0 | AB130: 0 | AC130: 0 | AD130: 0 | AE130: 0 | AF130: 0 | AG130: 0 | AH130: 0 | AI130: 0 | AJ130: 0 | AK130: 0 | AL130: 0 | AM130: 0
C131: 근골격계질환 | D131: 0 | E131: 0 | F131: 0 | G131: 0 | H131: 0 | I131: 0 | J131: 0 | K131: 0 | L131: 0 | M131: 0 | N131: 0 | O131: 0 | P131: 0 | Q131: 0 | R131: 0 | S131: 0 | T131: 0 | U131: 0 | V131: 0 | W131: 0 | X131: 0 | Y131: 0 | Z131: 0 | AA131: 0 | AB131: 0 | AC131: 0 | AD131: 0 | AE131: 0 | AF131: 0 | AG131: 0 | AH131: 0 | AI131: 0 | AJ131: 0 | AK131: 0 | AL131: 0 | AM131: 0
B132: 전기기계기구·정밀기구·전자제품제조업 | C132: 합계 | D132: =SUM(F132,H132,J132,L132,N132) -> 2 | E132: 0 | F132: 0 | G132: 0 | H132: 0 | I132: 0 | J132: 0 | K132: 0 | L132: 0 | M132: 0 | N132: 2 | O132: 0 | P132: =SUM(R132,T132,V132,X132,Z132) -> 2 | Q132: 0 | R132: 0 | S132: 0 | T132: 0 | U132: 0 | V132: 1 | W132: 0 | X132: 1 | Y132: 0 | Z132: 0 | AA132: 0 | AB132: =SUM(AD132,AF132,AH132,AJ132,AL132) -> 1 | AC132: 0 | AD132: 0 | AE132: 0 | AF132: 0 | AG132: 0 | AH132: 1 | AI132: 0 | AJ132: 0 | AK132: 0 | AL132: 0 | AM132: 0
C133: 넘어짐(사람이 미끄러지거나 넘어짐) | D133: 1 | E133: 0 | F133: 0 | G133: 0 | H133: 0 | I133: 0 | J133: 0 | K133: 0 | L133: 0 | M133: 0 | N133: 1 | O133: 0 | P133: 2 | Q133: 0 | R133: 0 | S133: 0 | T133: 0 | U133: 0 | V133: 1 | W133: 0 | X133: 1 | Y133: 0 | Z133: 0 | AA133: 0 | AB133: 1 | AC133: 0 | AD133: 0 | AE133: 0 | AF133: 0 | AG133: 0 | AH133: 1 | AI133: 0 | AJ133: 0 | AK133: 0 | AL133: 0 | AM133: 0
C134: 끼임(기계설비에 끼이거나 감김) | D134: 1 | E134: 0 | F134: 0 | G134: 0 | H134: 0 | I134: 0 | J134: 0 | K134: 0 | L134: 0 | M134: 0 | N134: 1 | O134: 0 | P134: 0 | Q134: 0 | R134: 0 | S134: 0 | T134: 0 | U134: 0 | V134: 0 | W134: 0 | X134: 0 | Y134: 0 | Z134: 0 | AA134: 0 | AB134: 0 | AC134: 0 | AD134: 0 | AE134: 0 | AF134: 0 | AG134: 0 | AH134: 0 | AI134: 0 | AJ134: 0 | AK134: 0 | AL134: 0 | AM134: 0
B135: 수제품및기타제품제조업 | C135: 합계 | D135: 0 | E135: 0 | F135: 0 | G135: 0 | H135: 0 | I135: 0 | J135: 0 | K135: 0 | L135: 0 | M135: 0 | N135: 0 | O135: 0 | P135: 0 | Q135: 0 | R135: 0 | S135: 0 | T135: 0 | U135: 0 | V135: 0 | W135: 0 | X135: 0 | Y135: 0 | Z135: 0 | AA135: 0 | AB135: 2 | AC135: 0 | AD135: 2 | AE135: 0 | AF135: 0 | AG135: 0 | AH135: 0 | AI135: 0 | AJ135: 0 | AK135: 0 | AL135: 0 | AM135: 0
C136: 떨어짐(높이가 있는 곳에서 사람이 떨어짐) | D136: 0 | E136: 0 | F136: 0 | G136: 0 | H136: 0 | I136: 0 | J136: 0 | K136: 0 | L136: 0 | M136: 0 | N136: 0 | O136: 0 | P136: 0 | Q136: 0 | R136: 0 | S136: 0 | T136: 0 | U136: 0 | V136: 0 | W136: 0 | X136: 0 | Y136: 0 | Z136: 0 | AA136: 0 | AB136: 1 | AC136: 0 | AD136: 1 | AE136: 0 | AF136: 0 | AG136: 0 | AH136: 0 | AI136: 0 | AJ136: 0 | AK136: 0 | AL136: 0 | AM136: 0
C137: 끼임(기계설비에 끼이거나 감김) | D137: 0 | E137: 0 | F137: 0 | G137: 0 | H137: 0 | I137: 0 | J137: 0 | K137: 0 | L137: 0 | M137: 0 | N137: 0 | O137: 0 | P137: 0 | Q137: 0 | R137: 0 | S137: 0 | T137: 0 | U137: 0 | V137: 0 | W137: 0 | X137: 0 | Y137: 0 | Z137: 0 | AA137: 0 | AB137: 1 | AC137: 0 | AD137: 1 | AE137: 0 | AF137: 0 | AG137: 0 | AH137: 0 | AI137: 0 | AJ137: 0 | AK137: 0 | AL137: 0 | AM137: 0
C138: 화학적인자 | D138: 0 | E138: 0 | F138: 0 | G138: 0 | H138: 0 | I138: 0 | J138: 0 | K138: 0 | L138: 0 | M138: 0 | N138: 0 | O138: 0 | P138: 0 | Q138: 0 | R138: 0 | S138: 0 | T138: 0 | U138: 0 | V138: 0 | W138: 0 | X138: 0 | Y138: 0 | Z138: 0 | AA138: 0 | AB138: 0 | AC138: 0 | AD138: 0 | AE138: 0 | AF138: 0 | AG138: 0 | AH138: 0 | AI138: 0 | AJ138: 0 | AK138: 0 | AL138: 0 | AM138: 0
C139: 화학적인자 | D139: 0 | E139: 0 | F139: 0 | G139: 0 | H139: 0 | I139: 0 | J139: 0 | K139: 0 | L139: 0 | M139: 0 | N139: 0 | O139: 0 | P139: 0 | Q139: 0 | R139: 0 | S139: 0 | T139: 0 | U139: 0 | V139: 0 | W139: 0 | X139: 0 | Y139: 0 | Z139: 0 | AA139: 0 | AB139: 0 | AC139: 0 | AD139: 0 | AE139: 0 | AF139: 0 | AG139: 0 | AH139: 0 | AI139: 0 | AJ139: 0 | AK139: 0 | AL139: 0 | AM139: 0
C140: 근골격계질환 | D140: 0 | E140: 0 | F140: 0 | G140: 0 | H140: 0 | I140: 0 | J140: 0 | K140: 0 | L140: 0 | M140: 0 | N140: 0 | O140: 0 | P140: 0 | Q140: 0 | R140: 0 | S140: 0 | T140: 0 | U140: 0 | V140: 0 | W140: 0 | X140: 0 | Y140: 0 | Z140: 0 | AA140: 0 | AB140: 0 | AC140: 0 | AD140: 0 | AE140: 0 | AF140: 0 | AG140: 0 | AH140: 0 | AI140: 0 | AJ140: 0 | AK140: 0 | AL140: 0 | AM140: 0
A141: 서울동부 | B141: 합계 | D141: 102 | E141: 0 | F141: 49 | G141: 0 | H141: 27 | I141: 0 | J141: 11 | K141: 0 | L141: 6 | M141: 0 | N141: 9 | O141: 0 | P141: 118 | Q141: 0 | R141: 48 | S141: 0 | T141: 26 | U141: 0 | V141: 24 | W141: 0 | X141: 10 | Y141: 0 | Z141: 10 | AA141: 0 | AB141: 89 | AC141: 0 | AD141: 47 | AE141: 0 | AF141: 14 | AG141: 0 | AH141: 16 | AI141: 0 | AJ141: 9 | AK141: 0 | AL141: 3 | AM141: 0
B142: 식료품제조업 | C142: 합계 | D142: 37 | E142: 0 | F142: 15 | G142: 0 | H142: 11 | I142: 0 | J142: 3 | K142: 0 | L142: 2 | M142: 0 | N142: 6 | O142: 0 | P142: 30 | Q142: 0 | R142: 12 | S142: 0 | T142: 9 | U142: 0 | V142: 9 | W142: 0 | X142: 0 | Y142: 0 | Z142: 0 | AA142: 0 | AB142: 30 | AC142: 0 | AD142: 16 | AE142: 0 | AF142: 6 | AG142: 0 | AH142: 7 | AI142: 0 | AJ142: 1 | AK142: 0 | AL142: 0 | AM142: 0
C143: 떨어짐(높이가 있는 곳에서 사람이 떨어짐) | D143: 1 | E143: 0 | F143: 0 | G143: 0 | H143: 1 | I143: 0 | J143: 0 | K143: 0 | L143: 0 | M143: 0 | N143: 0 | O143: 0 | P143: 0 | Q143: 0 | R143: 0 | S143: 0 | T143: 0 | U143: 0 | V143: 0 | W143: 0 | X143: 0 | Y143: 0 | Z143: 0 | AA143: 0 | AB143: 1 | AC143: 0 | AD143: 0 | AE143: 0 | AF143: 0 | AG143: 0 | AH143: 1 | AI143: 0 | AJ143: 0 | AK143: 0 | AL143: 0 | AM143: 0
C144: 넘어짐(사람이 미끄러지거나 넘어짐) | D144: 8 | E144: 0 | F144: 5 | G144: 0 | H144: 3 | I144: 0 | J144: 0 | K144: 0 | L144: 0 | M144: 0 | N144: 0 | O144: 0 | P144: 8 | Q144: 0 | R144: 4 | S144: 0 | T144: 1 | U144: 0 | V144: 3 | W144: 0 | X144: 0 | Y144: 0 | Z144: 0 | AA144: 0 | AB144: 8 | AC144: 0 | AD144: 3 | AE144: 0 | AF144: 5 | AG144: 0 | AH144: 0 | AI144: 0 | AJ144: 0 | AK144: 0 | AL144: 0 | AM144: 0
C145: 깔림·뒤집힘(물체의 쓰러짐이나 뒤집힘) | D145: 1 | E145: 0 | F145: 1 | G145: 0 | H145: 0 | I145: 0 | J145: 0 | K145: 0 | L145: 0 | M145: 0 | N145: 0 | O145: 0 | P145: 1 | Q145: 0 | R145: 1 | S145: 0 | T145: 0 | U145: 0 | V145: 0 | W145: 0 | X145: 0 | Y145: 0 | Z145: 0 | AA145: 0 | AB145: 1 | AC145: 0 | AD145: 0 | AE145: 0 | AF145: 0 | AG145: 0 | AH145: 1 | AI145: 0 | AJ145: 0 | AK145: 0 | AL145: 0 | AM145: 0
C146: 부딪힘(물체에 부딪힘) | D146: 1 | E146: 0 | F146: 0 | G146: 0 | H146: 0 | I146: 0 | J146: 0 | K146: 0 | L146: 0 | M146: 0 | N146: 1 | O146: 0 | P146: 4 | Q146: 0 | R146: 1 | S146: 0 | T146: 2 | U146: 0 | V146: 1 | W146: 0 | X146: 0 | Y146: 0 | Z146: 0 | AA146: 0 | AB146: 1 | AC146: 0 | AD146: 0 | AE146: 0 | AF146: 0 | AG146: 0 | AH146: 1 | AI146: 0 | AJ146: 0 | AK146: 0 | AL146: 0 | AM146: 0
C147: 물체에 맞음(날아오거나 떨어진 물체에 맞음) | D147: 0 | E147: 0 | F147: 0 | G147: 0 | H147: 0 | I147: 0 | J147: 0 | K147: 0 | L147: 0 | M147: 0 | N147: 0 | O147: 0 | P147: 0 | Q147: 0 | R147: 0 | S147: 0 | T147: 0 | U147: 0 | V147: 0 | W147: 0 | X147: 0 | Y147: 0 | Z147: 0 | AA147: 0 | AB147: 3 | AC147: 0 | AD147: 3 | AE147: 0 | AF147: 0 | AG147: 0 | AH147: 0 | AI147: 0 | AJ147: 0 | AK147: 0 | AL147: 0 | AM147: 0
C148: 끼임(기계설비에 끼이거나 감김) | D148: 7 | E148: 0 | F148: 1 | G148: 0 | H148: 0 | I148: 0 | J148: 2 | K148: 0 | L148: 0 | M148: 0 | N148: 4 | O148: 0 | P148: 2 | Q148: 0 | R148: 2 | S148: 0 | T148: 0 | U148: 0 | V148: 0 | W148: 0 | X148: 0 | Y148: 0 | Z148: 0 | AA148: 0 | AB148: 4 | AC148: 0 | AD148: 3 | AE148: 0 | AF148: 0 | AG148: 0 | AH148: 1 | AI148: 0 | AJ148: 0 | AK148: 0 | AL148: 0 | AM148: 0
C149: 절단·베임·찔림 | D149: 13 | E149: 0 | F149: 4 | G149: 0 | H149: 6 | I149: 0 | J149: 1 | K149: 0 | L149: 1 | M149: 0 | N149: 1 | O149: 0 | P149: 9 | Q149: 0 | R149: 2 | S149: 0 | T149: 3 | U149: 0 | V149: 4 | W149: 0 | X149: 0 | Y149: 0 | Z149: 0 | AA149: 0 | AB149: 9 | AC149: 0 | AD149: 6 | AE149: 0 | AF149: 1 | AG149: 0 | AH149: 2 | AI149: 0 | AJ149: 0 | AK149: 0 | AL149: 0 | AM149: 0
C150: 폭발·파열 | D150: 1 | E150: 0 | F150: 1 | G150: 0 | H150: 0 | I150: 0 | J150: 0 | K150: 0 | L150: 0 | M150: 0 | N150: 0 | O150: 0 | P150: 0 | Q150: 0 | R150: 0 | S150: 0 | T150: 0 | U150: 0 | V150: 0 | W150: 0 | X150: 0 | Y150: 0 | Z150: 0 | AA150: 0 | AB150: 0 | AC150: 0 | AD150: 0 | AE150: 0 | AF150: 0 | AG150: 0 | AH150: 0 | AI150: 0 | AJ150: 0 | AK150: 0 | AL150: 0 | AM150: 0
C151: 불균형 및 무리한 동작 | D151: 3 | E151: 0 | F151: 2 | G151: 0 | H151: 0 | I151: 0 | J151: 0 | K151: 0 | L151: 1 | M151: 0 | N151: 0 | O151: 0 | P151: 3 | Q151: 0 | R151: 1 | S151: 0 | T151: 2 | U151: 0 | V151: 0 | W151: 0 | X151: 0 | Y151: 0 | Z151: 0 | AA151: 0 | AB151: 0 | AC151: 0 | AD151: 0 | AE151: 0 | AF151: 0 | AG151: 0 | AH151: 0 | AI151: 0 | AJ151: 0 | AK151: 0 | AL151: 0 | AM151: 0
C152: 이상온도 접촉 | D152: 2 | E152: 0 | F152: 1 | G152: 0 | H152: 1 | I152: 0 | J152: 0 | K152: 0 | L152: 0 | M152: 0 | N152: 0 | O152: 0 | P152: 2 | Q152: 0 | R152: 0 | S152: 0 | T152: 1 | U152: 0 | V152: 1 | W152: 0 | X152: 0 | Y152: 0 | Z152: 0 | AA152: 0 | AB152: 1 | AC152: 0 | AD152: 0 | AE152: 0 | AF152: 0 | AG152: 0 | AH152: 0 | AI152: 0 | AJ152: 1 | AK152: 0 | AL152: 0 | AM152: 0
C153: 체육행사 등의 사고 | D153: 0 | E153: 0 | F153: 0 | G153: 0 | H153: 0 | I153: 0 | J153: 0 | K153: 0 | L153: 0 | M153: 0 | N153: 0 | O153: 0 | P153: 0 | Q153: 0 | R153: 0 | S153: 0 | T153: 0 | U153: 0 | V153: 0 | W153: 0 | X153: 0 | Y153: 0 | Z153: 0 | AA153: 0 | AB153: 2 | AC153: 0 | AD153: 1 | AE153: 0 | AF153: 0 | AG153: 0 | AH153: 1 | AI153: 0 | AJ153: 0 | AK153: 0 | AL153: 0 | AM153: 0
C154: 동물상해 | D154: 0 | E154: 0 | F154: 0 | G154: 0 | H154: 0 | I154: 0 | J154: 0 | K154: 0 | L154: 0 | M154: 0 | N154: 0 | O154: 0 | P154: 1 | Q154: 0 | R154: 1 | S154: 0 | T154: 0 | U154: 0 | V154: 0 | W154: 0 | X154: 0 | Y154: 0 | Z154: 0 | AA154: 0 | AB154: 0 | AC154: 0 | AD154: 0 | AE154: 0 | AF154: 0 | AG154: 0 | AH154: 0 | AI154: 0 | AJ154: 0 | AK154: 0 | AL154: 0 | AM154: 0
C155: 뇌심혈관질환 | D155: 0 | E155: 0 | F155: 0 | G155: 0 | H155: 0 | I155: 0 | J155: 0 | K155: 0 | L155: 0 | M155: 0 | N155: 0 | O155: 0 | P155: 0 | Q155: 0 | R155: 0 | S155: 0 | T155: 0 | U155: 0 | V155: 0 | W155: 0 | X155: 0 | Y155: 0 | Z155: 0 | AA155: 0 | AB155: 0 | AC155: 0 | AD155: 0 | AE155: 0 | AF155: 0 | AG155: 0 | AH155: 0 | AI155: 0 | AJ155: 0 | AK155: 0 | AL155: 0 | AM155: 0
C156: 근골격계질환 | D156: 0 | E156: 0 | F156: 0 | G156: 0 | H156: 0 | I156: 0 | J156: 0 | K156: 0 | L156: 0 | M156: 0 | N156: 0 | O156: 0 | P156: 0 | Q156: 0 | R156: 0 | S156: 0 | T156: 0 | U156: 0 | V156: 0 | W156: 0 | X156: 0 | Y156: 0 | Z156: 0 | AA156: 0 | AB156: 0 | AC156: 0 | AD156: 0 | AE156: 0 | AF156: 0 | AG156: 0 | AH156: 0 | AI156: 0 | AJ156: 0 | AK156: 0 | AL156: 0 | AM156: 0
B157: 섬유및섬유제품제조업 | C157: 합계 | D157: 9 | E157: 0 | F157: 6 | G157: 0 | H157: 2 | I157: 0 | J157: 0 | K157: 0 | L157: 1 | M157: 0 | N157: 0 | O157: 0 | P157: 12 | Q157: 0 | R157: 9 | S157: 0 | T157: 2 | U157: 0 | V157: 1 | W157: 0 | X157: 0 | Y157: 0 | Z157: 0 | AA157: 0 | AB157: 9 | AC157: 0 | AD157: 7 | AE157: 0 | AF157: 1 | AG157: 0 | AH157: 1 | AI157: 0 | AJ157: 0 | AK157: 0 | AL157: 0 | AM157: 0
C158: 넘어짐(사람이 미끄러지거나 넘어짐) | D158: 2 | E158: 0 | F158: 0 | G158: 0 | H158: 1 | I158: 0 | J158: 0 | K158: 0 | L158: 1 | M158: 0 | N158: 0 | O158: 0 | P158: 4 | Q158: 0 | R158: 2 | S158: 0 | T158: 1 | U158: 0 | V158: 1 | W158: 0 | X158: 0 | Y158: 0 | Z158: 0 | AA158: 0 | AB158: 2 | AC158: 0 | AD158: 1 | AE158: 0 | AF158: 1 | AG158: 0 | AH158: 0 | AI158: 0 | AJ158: 0 | AK158: 0 | AL158: 0 | AM158: 0
C159: 부딪힘(물체에 부딪힘) | D159: 1 | E159: 0 | F159: 0 | G159: 0 | H159: 1 | I159: 0 | J159: 0 | K159: 0 | L159: 0 | M159: 0 | N159: 0 | O159: 0 | P159: 0 | Q159: 0 | R159: 0 | S159: 0 | T159: 0 | U159: 0 | V159: 0 | W159: 0 | X159: 0 | Y159: 0 | Z159: 0 | AA159: 0 | AB159: 0 | AC159: 0 | AD159: 0 | AE159: 0 | AF159: 0 | AG159: 0 | AH159: 0 | AI159: 0 | AJ159: 0 | AK159: 0 | AL159: 0 | AM159: 0
C160: 물체에 맞음(날아오거나 떨어진 물체에 맞음) | D160: 1 | E160: 0 | F160: 1 | G160: 0 | H160: 0 | I160: 0 | J160: 0 | K160: 0 | L160: 0 | M160: 0 | N160: 0 | O160: 0 | P160: 0 | Q160: 0 | R160: 0 | S160: 0 | T160: 0 | U160: 0 | V160: 0 | W160: 0 | X160: 0 | Y160: 0 | Z160: 0 | AA160: 0 | AB160: 0 | AC160: 0 | AD160: 0 | AE160: 0 | AF160: 0 | AG160: 0 | AH160: 0 | AI160: 0 | AJ160: 0 | AK160: 0 | AL160: 0 | AM160: 0
C161: 끼임(기계설비에 끼이거나 감김) | D161: 3 | E161: 0 | F161: 3 | G161: 0 | H161: 0 | I161: 0 | J161: 0 | K161: 0 | L161: 0 | M161: 0 | N161: 0 | O161: 0 | P161: 5 | Q161: 0 | R161: 4 | S161: 0 | T161: 1 | U161: 0 | V161: 0 | W161: 0 | X161: 0 | Y161: 0 | Z161: 0 | AA161: 0 | AB161: 1 | AC161: 0 | AD161: 1 | AE161: 0 | AF161: 0 | AG161: 0 | AH161: 0 | AI161: 0 | AJ161: 0 | AK161: 0 | AL161: 0 | AM161: 0
C162: 절단·베임·찔림 | D162: 1 | E162: 0 | F162: 1 | G162: 0 | H162: 0 | I162: 0 | J162: 0 | K162: 0 | L162: 0 | M162: 0 | N162: 0 | O162: 0 | P162: 2 | Q162: 0 | R162: 2 | S162: 0 | T162: 0 | U162: 0 | V162: 0 | W162: 0 | X162: 0 | Y162: 0 | Z162: 0 | AA162: 0 | AB162: 5 | AC162: 0 | AD162: 4 | AE162: 0 | AF162: 0 | AG162: 0 | AH162: 1 | AI162: 0 | AJ162: 0 | AK162: 0 | AL162: 0 | AM162: 0
C163: 불균형 및 무리한 동작 | D163: 1 | E163: 0 | F163: 1 | G163: 0 | H163: 0 | I163: 0 | J163: 0 | K163: 0 | L163: 0 | M163: 0 | N163: 0 | O163: 0 | P163: 0 | Q163: 0 | R163: 0 | S163: 0 | T163: 0 | U163: 0 | V163: 0 | W163: 0 | X163: 0 | Y163: 0 | Z163: 0 | AA163: 0 | AB163: 0 | AC163: 0 | AD163: 0 | AE163: 0 | AF163: 0 | AG163: 0 | AH163: 0 | AI163: 0 | AJ163: 0 | AK163: 0 | AL163: 0 | AM163: 0
C164: 사업장외 교통사고 | D164: 0 | E164: 0 | F164: 0 | G164: 0 | H164: 0 | I164: 0 | J164: 0 | K164: 0 | L164: 0 | M164: 0 | N164: 0 | O164: 0 | P164: 1 | Q164: 0 | R164: 1 | S164: 0 | T164: 0 | U164: 0 | V164: 0 | W164: 0 | X164: 0 | Y164: 0 | Z164: 0 | AA164: 0 | AB164: 1 | AC164: 0 | AD164: 1 | AE164: 0 | AF164: 0 | AG164: 0 | AH164: 0 | AI164: 0 | AJ164: 0 | AK164: 0 | AL164: 0 | AM164: 0
C165: 뇌심혈관질환 | D165: 0 | E165: 0 | F165: 0 | G165: 0 | H165: 0 | I165: 0 | J165: 0 | K165: 0 | L165: 0 | M165: 0 | N165: 0 | O165: 0 | P165: 0 | Q165: 0 | R165: 0 | S165: 0 | T165: 0 | U165: 0 | V165: 0 | W165: 0 | X165: 0 | Y165: 0 | Z165: 0 | AA165: 0 | AB165: 0 | AC165: 0 | AD165: 0 | AE165: 0 | AF165: 0 | AG165: 0 | AH165: 0 | AI165: 0 | AJ165: 0 | AK165: 0 | AL165: 0 | AM165: 0
C166: 근골격계질환 | D166: 0 | E166: 0 | F166: 0 | G166: 0 | H166: 0 | I166: 0 | J166: 0 | K166: 0 | L166: 0 | M166: 0 | N166: 0 | O166: 0 | P166: 0 | Q166: 0 | R166: 0 | S166: 0 | T166: 0 | U166: 0 | V166: 0 | W166: 0 | X166: 0 | Y166: 0 | Z166: 0 | AA166: 0 | AB166: 0 | AC166: 0 | AD166: 0 | AE166: 0 | AF166: 0 | AG166: 0 | AH166: 0 | AI166: 0 | AJ166: 0 | AK166: 0 | AL166: 0 | AM166: 0
B167: 목재및종이제품제조업 | C167: 합계 | D167: 2 | E167: 0 | F167: 1 | G167: 0 | H167: 1 | I167: 0 | J167: 0 | K167: 0 | L167: 0 | M167: 0 | N167: 0 | O167: 0 | P167: 1 | Q167: 0 | R167: 1 | S167: 0 | T167: 0 | U167: 0 | V167: 0 | W167: 0 | X167: 0 | Y167: 0 | Z167: 0 | AA167: 0 | AB167: 3 | AC167: 0 | AD167: 1 | AE167: 0 | AF167: 0 | AG167: 0 | AH167: 1 | AI167: 0 | AJ167: 1 | AK167: 0 | AL167: 0 | AM167: 0
C168: 넘어짐(사람이 미끄러지거나 넘어짐) | D168: 1 | E168: 0 | F168: 0 | G168: 0 | H168: 1 | I168: 0 | J168: 0 | K168: 0 | L168: 0 | M168: 0 | N168: 0 | O168: 0 | P168: 0 | Q168: 0 | R168: 0 | S168: 0 | T168: 0 | U168: 0 | V168: 0 | W168: 0 | X168: 0 | Y168: 0 | Z168: 0 | AA168: 0 | AB168: 1 | AC168: 0 | AD168: 0 | AE168: 0 | AF168: 0 | AG168: 0 | AH168: 0 | AI168: 0 | AJ168: 1 | AK168: 0 | AL168: 0 | AM168: 0
C169: 부딪힘(물체에 부딪힘) | D169: 0 | E169: 0 | F169: 0 | G169: 0 | H169: 0 | I169: 0 | J169: 0 | K169: 0 | L169: 0 | M169: 0 | N169: 0 | O169: 0 | P169: 0 | Q169: 0 | R169: 0 | S169: 0 | T169: 0 | U169: 0 | V169: 0 | W169: 0 | X169: 0 | Y169: 0 | Z169: 0 | AA169: 0 | AB169: 1 | AC169: 0 | AD169: 1 | AE169: 0 | AF169: 0 | AG169: 0 | AH169: 0 | AI169: 0 | AJ169: 0 | AK169: 0 | AL169: 0 | AM169: 0
C170: 절단·베임·찔림 | D170: 1 | E170: 0 | F170: 1 | G170: 0 | H170: 0 | I170: 0 | J170: 0 | K170: 0 | L170: 0 | M170: 0 | N170: 0 | O170: 0 | P170: 1 | Q170: 0 | R170: 1 | S170: 0 | T170: 0 | U170: 0 | V170: 0 | W170: 0 | X170: 0 | Y170: 0 | Z170: 0 | AA170: 0 | AB170: 0 | AC170: 0 | AD170: 0 | AE170: 0 | AF170: 0 | AG170: 0 | AH170: 0 | AI170: 0 | AJ170: 0 | AK170: 0 | AL170: 0 | AM170: 0
C171: 화재 | D171: 0 | E171: 0 | F171: 0 | G171: 0 | H171: 0 | I171: 0 | J171: 0 | K171: 0 | L171: 0 | M171: 0 | N171: 0 | O171: 0 | P171: 0 | Q171: 0 | R171: 0 | S171: 0 | T171: 0 | U171: 0 | V171: 0 | W171: 0 | X171: 0 | Y171: 0 | Z171: 0 | AA171: 0 | AB171: 1 | AC171: 0 | AD171: 0 | AE171: 0 | AF171: 0 | AG171: 0 | AH171: 1 | AI171: 0 | AJ171: 0 | AK171: 0 | AL171: 0 | AM171: 0
C172: 뇌심혈관질환 | D172: 0 | E172: 0 | F172: 0 | G172: 0 | H172: 0 | I172: 0 | J172: 0 | K172: 0 | L172: 0 | M172: 0 | N172: 0 | O172: 0 | P172: 0 | Q172: 0 | R172: 0 | S172: 0 | T172: 0 | U172: 0 | V172: 0 | W172: 0 | X172: 0 | Y172: 0 | Z172: 0 | AA172: 0 | AB172: 0 | AC172: 0 | AD172: 0 | AE172: 0 | AF172: 0 | AG172: 0 | AH172: 0 | AI172: 0 | AJ172: 0 | AK172: 0 | AL172: 0 | AM172: 0
B173: 출판·인쇄·제본업 | C173: 합계 | D173: 14 | E173: 0 | F173: 6 | G173: 0 | H173: 2 | I173: 0 | J173: 4 | K173: 0 | L173: 1 | M173: 0 | N173: 1 | O173: 0 | P173: 13 | Q173: 0 | R173: 0 | S173: 0 | T173: 3 | U173: 0 | V173: 5 | W173: 0 | X173: 4 | Y173: 0 | Z173: 1 | AA173: 0 | AB173: 11 | AC173: 0 | AD173: 3 | AE173: 0 | AF173: 2 | AG173: 0 | AH173: 1 | AI173: 0 | AJ173: 4 | AK173: 0 | AL173: 1 | AM173: 0
C174: 떨어짐(높이가 있는 곳에서 사람이 떨어짐) | D174: 0 | E174: 0 | F174: 0 | G174: 0 | H174: 0 | I174: 0 | J174: 0 | K174: 0 | L174: 0 | M174: 0 | N174: 0 | O174: 0 | P174: 1 | Q174: 0 | R174: 0 | S174: 0 | T174: 0 | U174: 0 | V174: 1 | W174: 0 | X174: 0 | Y174: 0 | Z174: 0 | AA174: 0 | AB174: 0 | AC174: 0 | AD174: 0 | AE174: 0 | AF174: 0 | AG174: 0 | AH174: 0 | AI174: 0 | AJ174: 0 | AK174: 0 | AL174: 0 | AM174: 0
C175: 넘어짐(사람이 미끄러지거나 넘어짐) | D175: 3 | E175: 0 | F175: 2 | G175: 0 | H175: 1 | I175: 0 | J175: 0 | K175: 0 | L175: 0 | M175: 0 | N175: 0 | O175: 0 | P175: 3 | Q175: 0 | R175: 0 | S175: 0 | T175: 1 | U175: 0 | V175: 1 | W175: 0 | X175: 0 | Y175: 0 | Z175: 1 | AA175: 0 | AB175: 4 | AC175: 0 | AD175: 1 | AE175: 0 | AF175: 0 | AG175: 0 | AH175: 1 | AI175: 0 | AJ175: 2 | AK175: 0 | AL175: 0 | AM175: 0
C176: 부딪힘(물체에 부딪힘) | D176: 1 | E176: 0 | F176: 0 | G176: 0 | H176: 0 | I176: 0 | J176: 1 | K176: 0 | L176: 0 | M176: 0 | N176: 0 | O176: 0 | P176: 1 | Q176: 0 | R176: 0 | S176: 0 | T176: 0 | U176: 0 | V176: 1 | W176: 0 | X176: 0 | Y176: 0 | Z176: 0 | AA176: 0 | AB176: 0 | AC176: 0 | AD176: 0 | AE176: 0 | AF176: 0 | AG176: 0 | AH176: 0 | AI176: 0 | AJ176: 0 | AK176: 0 | AL176: 0 | AM176: 0
C177: 끼임(기계설비에 끼이거나 감김) | D177: 6 | E177: 0 | F177: 3 | G177: 0 | H177: 0 | I177: 0 | J177: 2 | K177: 0 | L177: 1 | M177: 0 | N177: 0 | O177: 0 | P177: 4 | Q177: 0 | R177: 0 | S177: 0 | T177: 1 | U177: 0 | V177: 1 | W177: 0 | X177: 2 | Y177: 0 | Z177: 0 | AA177: 0 | AB177: 5 | AC177: 0 | AD177: 2 | AE177: 0 | AF177: 0 | AG177: 0 | AH177: 0 | AI177: 0 | AJ177: 2 | AK177: 0 | AL177: 1 | AM177: 0
C178: 절단·베임·찔림 | D178: 3 | E178: 0 | F178: 1 | G178: 0 | H178: 1 | I178: 0 | J178: 0 | K178: 0 | L178: 0 | M178: 0 | N178: 1 | O178: 0 | P178: 2 | Q178: 0 | R178: 0 | S178: 0 | T178: 0 | U178: 0 | V178: 1 | W178: 0 | X178: 1 | Y178: 0 | Z178: 0 | AA178: 0 | AB178: 2 | AC178: 0 | AD178: 0 | AE178: 0 | AF178: 2 | AG178: 0 | AH178: 0 | AI178: 0 | AJ178: 0 | AK178: 0 | AL178: 0 | AM178: 0
C179: 이상온도 접촉 | D179: 1 | E179: 0 | F179: 0 | G179: 0 | H179: 0 | I179: 0 | J179: 1 | K179: 0 | L179: 0 | M179: 0 | N179: 0 | O179: 0 | P179: 1 | Q179: 0 | R179: 0 | S179: 0 | T179: 1 | U179: 0 | V179: 0 | W179: 0 | X179: 0 | Y179: 0 | Z179: 0 | AA179: 0 | AB179: 0 | AC179: 0 | AD179: 0 | AE179: 0 | AF179: 0 | AG179: 0 | AH179: 0 | AI179: 0 | AJ179: 0 | AK179: 0 | AL179: 0 | AM179: 0
C180: 사업장외 교통사고 | D180: 0 | E180: 0 | F180: 0 | G180: 0 | H180: 0 | I180: 0 | J180: 0 | K180: 0 | L180: 0 | M180: 0 | N180: 0 | O180: 0 | P180: 1 | Q180: 0 | R180: 0 | S180: 0 | T180: 0 | U180: 0 | V180: 0 | W180: 0 | X180: 1 | Y180: 0 | Z180: 0 | AA180: 0 | AB180: 0 | AC180: 0 | AD180: 0 | AE180: 0 | AF180: 0 | AG180: 0 | AH180: 0 | AI180: 0 | AJ180: 0 | AK180: 0 | AL180: 0 | AM180: 0
C181: 뇌심혈관질환 | D181: 0 | E181: 0 | F181: 0 | G181: 0 | H181: 0 | I181: 0 | J181: 0 | K181: 0 | L181: 0 | M181: 0 | N181: 0 | O181: 0 | P181: 0 | Q181: 0 | R181: 0 | S181: 0 | T181: 0 | U181: 0 | V181: 0 | W181: 0 | X181: 0 | Y181: 0 | Z181: 0 | AA181: 0 | AB181: 0 | AC181: 0 | AD181: 0 | AE181: 0 | AF181: 0 | AG181: 0 | AH181: 0 | AI181: 0 | AJ181: 0 | AK181: 0 | AL181: 0 | AM181: 0
C182: 근골격계질환 | D182: 0 | E182: 0 | F182: 0 | G182: 0 | H182: 0 | I182: 0 | J182: 0 | K182: 0 | L182: 0 | M182: 0 | N182: 0 | O182: 0 | P182: 0 | Q182: 0 | R182: 0 | S182: 0 | T182: 0 | U182: 0 | V182: 0 | W182: 0 | X182: 0 | Y182: 0 | Z182: 0 | AA182: 0 | AB182: 0 | AC182: 0 | AD182: 0 | AE182: 0 | AF182: 0 | AG182: 0 | AH182: 0 | AI182: 0 | AJ182: 0 | AK182: 0 | AL182: 0 | AM182: 0
B183: 화학및고무제품제조업 | C183: 합계 | D183: 4 | E183: 0 | F183: 2 | G183: 0 | H183: 1 | I183: 0 | J183: 1 | K183: 0 | L183: 0 | M183: 0 | N183: 0 | O183: 0 | P183: 2 | Q183: 0 | R183: 2 | S183: 0 | T183: 0 | U183: 0 | V183: 0 | W183: 0 | X183: 0 | Y183: 0 | Z183: 0 | AA183: 0 | AB183: 3 | AC183: 0 | AD183: 2 | AE183: 0 | AF183: 1 | AG183: 0 | AH183: 0 | AI183: 0 | AJ183: 0 | AK183: 0 | AL183: 0 | AM183: 0
C184: 넘어짐(사람이 미끄러지거나 넘어짐) | D184: 0 | E184: 0 | F184: 0 | G184: 0 | H184: 0 | I184: 0 | J184: 0 | K184: 0 | L184: 0 | M184: 0 | N184: 0 | O184: 0 | P184: 0 | Q184: 0 | R184: 0 | S184: 0 | T184: 0 | U184: 0 | V184: 0 | W184: 0 | X184: 0 | Y184: 0 | Z184: 0 | AA184: 0 | AB184: 1 | AC184: 0 | AD184: 1 | AE184: 0 | AF184: 0 | AG184: 0 | AH184: 0 | AI184: 0 | AJ184: 0 | AK184: 0 | AL184: 0 | AM184: 0
C185: 끼임(기계설비에 끼이거나 감김) | D185: 3 | E185: 0 | F185: 1 | G185: 0 | H185: 1 | I185: 0 | J185: 1 | K185: 0 | L185: 0 | M185: 0 | N185: 0 | O185: 0 | P185: 0 | Q185: 0 | R185: 0 | S185: 0 | T185: 0 | U185: 0 | V185: 0 | W185: 0 | X185: 0 | Y185: 0 | Z185: 0 | AA185: 0 | AB185: 1 | AC185: 0 | AD185: 0 | AE185: 0 | AF185: 1 | AG185: 0 | AH185: 0 | AI185: 0 | AJ185: 0 | AK185: 0 | AL185: 0 | AM185: 0
C186: 절단·베임·찔림 | D186: 1 | E186: 0 | F186: 1 | G186: 0 | H186: 0 | I186: 0 | J186: 0 | K186: 0 | L186: 0 | M186: 0 | N186: 0 | O186: 0 | P186: 2 | Q186: 0 | R186: 2 | S186: 0 | T186: 0 | U186: 0 | V186: 0 | W186: 0 | X186: 0 | Y186: 0 | Z186: 0 | AA186: 0 | AB186: 1 | AC186: 0 | AD186: 1 | AE186: 0 | AF186: 0 | AG186: 0 | AH186: 0 | AI186: 0 | AJ186: 0 | AK186: 0 | AL186: 0 | AM186: 0
C187: 화학적인자 | D187: 0 | E187: 0 | F187: 0 | G187: 0 | H187: 0 | I187: 0 | J187: 0 | K187: 0 | L187: 0 | M187: 0 | N187: 0 | O187: 0 | P187: 0 | Q187: 0 | R187: 0 | S187: 0 | T187: 0 | U187: 0 | V187: 0 | W187: 0 | X187: 0 | Y187: 0 | Z187: 0 | AA187: 0 | AB187: 0 | AC187: 0 | AD187: 0 | AE187: 0 | AF187: 0 | AG187: 0 | AH187: 0 | AI187: 0 | AJ187: 0 | AK187: 0 | AL187: 0 | AM187: 0
C188: 작업관련성질환 기타 | D188: 0 | E188: 0 | F188: 0 | G188: 0 | H188: 0 | I188: 0 | J188: 0 | K188: 0 | L188: 0 | M188: 0 | N188: 0 | O188: 0 | P188: 0 | Q188: 0 | R188: 0 | S188: 0 | T188: 0 | U188: 0 | V188: 0 | W188: 0 | X188: 0 | Y188: 0 | Z188: 0 | AA188: 0 | AB188: 0 | AC188: 0 | AD188: 0 | AE188: 0 | AF188: 0 | AG188: 0 | AH188: 0 | AI188: 0 | AJ188: 0 | AK188: 0 | AL188: 0 | AM188: 0
B189: 기계기구·금속·비금속광물제품제조업 | C189: 합계 | D189: 25 | E189: 0 | F189: 15 | G189: 0 | H189: 5 | I189: 0 | J189: 3 | K189: 0 | L189: 2 | M189: 0 | N189: 0 | O189: 0 | P189: 30 | Q189: 0 | R189: 10 | S189: 0 | T189: 4 | U189: 0 | V189: 7 | W189: 0 | X189: 2 | Y189: 0 | Z189: 7 | AA189: 0 | AB189: 20 | AC189: 0 | AD189: 7 | AE189: 0 | AF189: 4 | AG189: 0 | AH189: 5 | AI189: 0 | AJ189: 2 | AK189: 0 | AL189: 2 | AM189: 0
C190: 떨어짐(높이가 있는 곳에서 사람이 떨어짐) | D190: 1 | E190: 0 | F190: 1 | G190: 0 | H190: 0 | I190: 0 | J190: 0 | K190: 0 | L190: 0 | M190: 0 | N190: 0 | O190: 0 | P190: 7 | Q190: 0 | R190: 1 | S190: 0 | T190: 1 | U190: 0 | V190: 3 | W190: 0 | X190: 1 | Y190: 0 | Z190: 1 | AA190: 0 | AB190: 4 | AC190: 0 | AD190: 2 | AE190: 0 | AF190: 2 | AG190: 0 | AH190: 0 | AI190: 0 | AJ190: 0 | AK190: 0 | AL190: 0 | AM190: 0
C191: 넘어짐(사람이 미끄러지거나 넘어짐) | D191: 2 | E191: 0 | F191: 0 | G191: 0 | H191: 1 | I191: 0 | J191: 1 | K191: 0 | L191: 0 | M191: 0 | N191: 0 | O191: 0 | P191: 6 | Q191: 0 | R191: 1 | S191: 0 | T191: 1 | U191: 0 | V191: 1 | W191: 0 | X191: 1 | Y191: 0 | Z191: 2 | AA191: 0 | AB191: 4 | AC191: 0 | AD191: 1 | AE191: 0 | AF191: 0 | AG191: 0 | AH191: 2 | AI191: 0 | AJ191: 1 | AK191: 0 | AL191: 0 | AM191: 0
C192: 깔림·뒤집힘(물체의 쓰러짐이나 뒤집힘) | D192: 0 | E192: 0 | F192: 0 | G192: 0 | H192: 0 | I192: 0 | J192: 0 | K192: 0 | L192: 0 | M192: 0 | N192: 0 | O192: 0 | P192: 1 | Q192: 0 | R192: 0 | S192: 0 | T192: 0 | U192: 0 | V192: 1 | W192: 0 | X192: 0 | Y192: 0 | Z192: 0 | AA192: 0 | AB192: 1 | AC192: 0 | AD192: 0 | AE192: 0 | AF192: 0 | AG192: 0 | AH192: 1 | AI192: 0 | AJ192: 0 | AK192: 0 | AL192: 0 | AM192: 0
C193: 부딪힘(물체에 부딪힘) | D193: 4 | E193: 0 | F193: 3 | G193: 0 | H193: 0 | I193: 0 | J193: 0 | K193: 0 | L193: 1 | M193: 0 | N193: 0 | O193: 0 | P193: 1 | Q193: 0 | R193: 0 | S193: 0 | T193: 0 | U193: 0 | V193: 0 | W193: 0 | X193: 0 | Y193: 0 | Z193: 1 | AA193: 0 | AB193: 2 | AC193: 0 | AD193: 1 | AE193: 0 | AF193: 1 | AG193: 0 | AH193: 0 | AI193: 0 | AJ193: 0 | AK193: 0 | AL193: 0 | AM193: 0
C194: 물체에 맞음(날아오거나 떨어진 물체에 맞음) | D194: 2 | E194: 0 | F194: 1 | G194: 0 | H194: 1 | I194: 0 | J194: 0 | K194: 0 | L194: 0 | M194: 0 | N194: 0 | O194: 0 | P194: 2 | Q194: 0 | R194: 2 | S194: 0 | T194: 0 | U194: 0 | V194: 0 | W194: 0 | X194: 0 | Y194: 0 | Z194: 0 | AA194: 0 | AB194: 1 | AC194: 0 | AD194: 0 | AE194: 0 | AF194: 0 | AG194: 0 | AH194: 1 | AI194: 0 | AJ194: 0 | AK194: 0 | AL194: 0 | AM194: 0
C195: 끼임(기계설비에 끼이거나 감김) | D195: 8 | E195: 0 | F195: 5 | G195: 0 | H195: 1 | I195: 0 | J195: 1 | K195: 0 | L195: 1 | M195: 0 | N195: 0 | O195: 0 | P195: 6 | Q195: 0 | R195: 3 | S195: 0 | T195: 2 | U195: 0 | V195: 0 | W195: 0 | X195: 0 | Y195: 0 | Z195: 1 | AA195: 0 | AB195: 6 | AC195: 0 | AD195: 3 | AE195: 0 | AF195: 0 | AG195: 0 | AH195: 0 | AI195: 0 | AJ195: 1 | AK195: 0 | AL195: 2 | AM195: 0
C196: 절단·베임·찔림 | D196: =SUM(F196,H196,J196,L196,N196) -> 6 | E196: 0 | F196: 5 | G196: 0 | H196: 1 | I196: 0 | J196: 0 | K196: 0 | L196: 0 | M196: 0 | N196: 0 | O196: 0 | P196: =SUM(R196,T196,V196,X196,Z196) -> 3 | Q196: 0 | R196: 1 | S196: 0 | T196: 0 | U196: 0 | V196: 1 | W196: 0 | X196: 0 | Y196: 0 | Z196: 1 | AA196: 0 | AB196: =SUM(AD196,AF196,AH196,AJ196,AL196) -> 1 | AC196: 0 | AD196: 0 | AE196: 0 | AF196: 0 | AG196: 0 | AH196: 1 | AI196: 0 | AJ196: 0 | AK196: 0 | AL196: 0 | AM196: 0
C197: 화재 | D197: 1 | E197: 0 | F197: 0 | G197: 0 | H197: 0 | I197: 0 | J197: 1 | K197: 0 | L197: 0 | M197: 0 | N197: 0 | O197: 0 | P197: 0 | Q197: 0 | R197: 0 | S197: 0 | T197: 0 | U197: 0 | V197: 0 | W197: 0 | X197: 0 | Y197: 0 | Z197: 0 | AA197: 0 | AB197: 1 | AC197: 0 | AD197: 0 | AE197: 0 | AF197: 1 | AG197: 0 | AH197: 0 | AI197: 0 | AJ197: 0 | AK197: 0 | AL197: 0 | AM197: 0
C198: 불균형 및 무리한 동작 | D198: 1 | E198: 0 | F198: 0 | G198: 0 | H198: 1 | I198: 0 | J198: 0 | K198: 0 | L198: 0 | M198: 0 | N198: 0 | O198: 0 | P198: 2 | Q198: 0 | R198: 1 | S198: 0 | T198: 0 | U198: 0 | V198: 0 | W198: 0 | X198: 0 | Y198: 0 | Z198: 1 | AA198: 0 | AB198: 0 | AC198: 0 | AD198: 0 | AE198: 0 | AF198: 0 | AG198: 0 | AH198: 0 | AI198: 0 | AJ198: 0 | AK198: 0 | AL198: 0 | AM198: 0
C199: 사업장외 교통사고 | D199: 0 | E199: 0 | F199: 0 | G199: 0 | H199: 0 | I199: 0 | J199: 0 | K199: 0 | L199: 0 | M199: 0 | N199: 0 | O199: 0 | P199: 2 | Q199: 0 | R199: 1 | S199: 0 | T199: 0 | U199: 0 | V199: 1 | W199: 0 | X199: 0 | Y199: 0 | Z199: 0 | AA199: 0 | AB199: 0 | AC199: 0 | AD199: 0 | AE199: 0 | AF199: 0 | AG199: 0 | AH199: 0 | AI199: 0 | AJ199: 0 | AK199: 0 | AL199: 0 | AM199: 0
C200: 물리적인자 | D200: 0 | E200: 0 | F200: 0 | G200: 0 | H200: 0 | I200: 0 | J200: 0 | K200: 0 | L200: 0 | M200: 0 | N200: 0 | O200: 0 | P200: 0 | Q200: 0 | R200: 0 | S200: 0 | T200: 0 | U200: 0 | V200: 0 | W200: 0 | X200: 0 | Y200: 0 | Z200: 0 | AA200: 0 | AB200: 0 | AC200: 0 | AD200: 0 | AE200: 0 | AF200: 0 | AG200: 0 | AH200: 0 | AI200: 0 | AJ200: 0 | AK200: 0 | AL200: 0 | AM200: 0
... 679 more rows

Sheet 부산권역
A1: 고용지청 | B1: 업종 | C1: 기준년도 | D1: 2021년 | P1: 2022년 | AB1: 2023년 11월
C2: 규모 | D2: 규모별 합계 | F2: 5인 미만 | H2: 5인 ~ 9인 | J2: 10인 ~ 19인 | L2: 20인 ~ 29인 | N2: 30인 ~ 49인 | P2: 규모별 합계 | R2: 5인 미만 | T2: 5인 ~ 9인 | V2: 10인 ~ 19인 | X2: 20인 ~ 29인 | Z2: 30인 ~ 49인 | AB2: 규모별 합계 | AD2: 5인 미만 | AF2: 5인 ~ 9인 | AH2: 10인 ~ 19인 | AJ2: 20인 ~ 29인 | AL2: 30인 ~ 49인
C3: 발생형태 | D3: 사고재해자수 합계 | E3: 사고사망자수 합계 | F3: 사고재해자수 | G3: 사고사망자수 | H3: 사고재해자수 | I3: 사고사망자수 | J3: 사고재해자수 | K3: 사고사망자수 | L3: 사고재해자수 | M3: 사고사망자수 | N3: 사고재해자수 | O3: 사고사망자수 | P3: 사고재해자수 합계 | Q3: 사고사망자수 합계 | R3: 사고재해자수 | S3: 사고사망자수 | T3: 사고재해자수 | U3: 사고사망자수 | V3: 사고재해자수 | W3: 사고사망자수 | X3: 사고재해자수 | Y3: 사고사망자수 | Z3: 사고재해자수 | AA3: 사고사망자수 | AB3: 사고재해자수 합계 | AC3: 사고사망자수 합계 | AD3: 사고재해자수 | AE3: 사고사망자수 | AF3: 사고재해자수 | AG3: 사고사망자수 | AH3: 사고재해자수 | AI3: 사고사망자수 | AJ3: 사고재해자수 | AK3: 사고사망자수 | AL3: 사고재해자수 | AM3: 사고사망자수
A4: 부 산 청 | B4: 합계 | D4: =SUM(F4,H4,J4,L4,N4) -> 453 | E4: 7 | F4: 138 | G4: 3 | H4: 86 | I4: 1 | J4: 108 | K4: 2 | L4: 59 | M4: 1 | N4: 62 | O4: 0 | P4: =SUM(R4,T4,V4,X4,Z4) -> 366 | Q4: 4 | R4: 138 | S4: 2 | T4: 61 | U4: 0 | V4: 80 | W4: 2 | X4: 43 | Y4: 0 | Z4: 44 | AA4: 0 | AB4: =SUM(AD4,AF4,AH4,AJ4,AL4) -> 334 | AC4: 1 | AD4: 112 | AE4: 0 | AF4: 61 | AG4: 1 | AH4: 75 | AI4: 0 | AJ4: 47 | AK4: 0 | AL4: 39 | AM4: 0
B5: 식료품제조업 | C5: 합계 | D5: 78 | E5: 1 | F5: 10 | G5: 0 | H5: 13 | I5: 0 | J5: 29 | K5: 1 | L5: 12 | M5: 0 | N5: 14 | O5: 0 | P5: 78 | Q5: 0 | R5: 12 | S5: 0 | T5: 12 | U5: 0 | V5: 27 | W5: 0 | X5: 13 | Y5: 0 | Z5: 14 | AA5: 0 | AB5: 59 | AC5: 0 | AD5: 10 | AE5: 0 | AF5: 10 | AG5: 0 | AH5: 18 | AI5: 0 | AJ5: 10 | AK5: 0 | AL5: 11 | AM5: 0
C6: 떨어짐(높이가 있는 곳에서 사람이 떨어짐) | D6: 4 | E6: 0 | F6: 0 | G6: 0 | H6: 1 | I6: 0 | J6: 0 | K6: 0 | L6: 2 | M6: 0 | N6: 1 | O6: 0 | P6: 2 | Q6: 0 | R6: 0 | S6: 0 | T6: 0 | U6: 0 | V6: 1 | W6: 0 | X6: 1 | Y6: 0 | Z6: 0 | AA6: 0 | AB6: 3 | AC6: 0 | AD6: 1 | AE6: 0 | AF6: 1 | AG6: 0 | AH6: 0 | AI6: 0 | AJ6: 1 | AK6: 0 | AL6: 0 | AM6: 0
C7: 넘어짐(사람이 미끄러지거나 넘어짐) | D7: 25 | E7: 0 | F7: 3 | G7: 0 | H7: 2 | I7: 0 | J7: 11 | K7: 0 | L7: 4 | M7: 0 | N7: 5 | O7: 0 | P7: 25 | Q7: 0 | R7: 4 | S7: 0 | T7: 3 | U7: 0 | V7: 5 | W7: 0 | X7: 5 | Y7: 0 | Z7: 8 | AA7: 0 | AB7: 14 | AC7: 0 | AD7: 2 | AE7: 0 | AF7: 2 | AG7: 0 | AH7: 3 | AI7: 0 | AJ7: 2 | AK7: 0 | AL7: 5 | AM7: 0
C8: 깔림·뒤집힘(물체의 쓰러짐이나 뒤집힘) | D8: 1 | E8: 0 | F8: 0 | G8: 0 | H8: 0 | I8: 0 | J8: 1 | K8: 0 | L8: 0 | M8: 0 | N8: 0 | O8: 0 | P8: 0 | Q8: 0 | R8: 0 | S8: 0 | T8: 0 | U8: 0 | V8: 0 | W8: 0 | X8: 0 | Y8: 0 | Z8: 0 | AA8: 0 | AB8: 0 | AC8: 0 | AD8: 0 | AE8: 0 | AF8: 0 | AG8: 0 | AH8: 0 | AI8: 0 | AJ8: 0 | AK8: 0 | AL8: 0 | AM8: 0
C9: 부딪힘(물체에 부딪힘) | D9: 5 | E9: 0 | F9: 0 | G9: 0 | H9: 2 | I9: 0 | J9: 2 | K9: 0 | L9: 0 | M9: 0 | N9: 1 | O9: 0 | P9: 3 | Q9: 0 | R9: 1 | S9: 0 | T9: 0 | U9: 0 | V9: 1 | W9: 0 | X9: 1 | Y9: 0 | Z9: 0 | AA9: 0 | AB9: 7 | AC9: 0 | AD9: 1 | AE9: 0 | AF9: 2 | AG9: 0 | AH9: 3 | AI9: 0 | AJ9: 1 | AK9: 0 | AL9: 0 | AM9: 0
C10: 물체에 맞음(날아오거나 떨어진 물체에 맞음) | D10: 2 | E10: 0 | F10: 0 | G10: 0 | H10: 0 | I10: 0 | J10: 2 | K10: 0 | L10: 0 | M10: 0 | N10: 0 | O10: 0 | P10: 4 | Q10: 0 | R10: 1 | S10: 0 | T10: 0 | U10: 0 | V10: 2 | W10: 0 | X10: 1 | Y10: 0 | Z10: 0 | AA10: 0 | AB10: 3 | AC10: 0 | AD10: 0 | AE10: 0 | AF10: 0 | AG10: 0 | AH10: 3 | AI10: 0 | AJ10: 0 | AK10: 0 | AL10: 0 | AM10: 0
C11: 끼임(기계설비에 끼이거나 감김) | D11: 14 | E11: 0 | F11: 2 | G11: 0 | H11: 6 | I11: 0 | J11: 2 | K11: 0 | L11: 2 | M11: 0 | N11: 2 | O11: 0 | P11: 23 | Q11: 0 | R11: 3 | S11: 0 | T11: 4 | U11: 0 | V11: 10 | W11: 0 | X11: 4 | Y11: 0 | Z11: 2 | AA11: 0 | AB11: 16 | AC11: 0 | AD11: 2 | AE11: 0 | AF11: 2 | AG11: 0 | AH11: 5 | AI11: 0 | AJ11: 4 | AK11: 0 | AL11: 3 | AM11: 0
C12: 절단·베임·찔림 | D12: 20 | E12: 0 | F12: 2 | G12: 0 | H12: 2 | I12: 0 | J12: 10 | K12: 0 | L12: 3 | M12: 0 | N12: 3 | O12: 0 | P12: 13 | Q12: 0 | R12: 1 | S12: 0 | T12: 4 | U12: 0 | V12: 6 | W12: 0 | X12: 1 | Y12: 0 | Z12: 1 | AA12: 0 | AB12: 13 | AC12: 0 | AD12: 1 | AE12: 0 | AF12: 3 | AG12: 0 | AH12: 4 | AI12: 0 | AJ12: 2 | AK12: 0 | AL12: 3 | AM12: 0
C13: 화재 | D13: 1 | E13: 1 | F13: 0 | G13: 0 | H13: 0 | I13: 0 | J13: 1 | K13: 1 | L13: 0 | M13: 0 | N13: 0 | O13: 0 | P13: 0 | Q13: 0 | R13: 0 | S13: 0 | T13: 0 | U13: 0 | V13: 0 | W13: 0 | X13: 0 | Y13: 0 | Z13: 0 | AA13: 0 | AB13: 0 | AC13: 0 | AD13: 0 | AE13: 0 | AF13: 0 | AG13: 0 | AH13: 0 | AI13: 0 | AJ13: 0 | AK13: 0 | AL13: 0 | AM13: 0
C14: 불균형 및 무리한 동작 | D14: 1 | E14: 0 | F14: 0 | G14: 0 | H14: 0 | I14: 0 | J14: 0 | K14: 0 | L14: 0 | M14: 0 | N14: 1 | O14: 0 | P14: 3 | Q14: 0 | R14: 0 | S14: 0 | T14: 0 | U14: 0 | V14: 1 | W14: 0 | X14: 0 | Y14: 0 | Z14: 2 | AA14: 0 | AB14: 1 | AC14: 0 | AD14: 1 | AE14: 0 | AF14: 0 | AG14: 0 | AH14: 0 | AI14: 0 | AJ14: 0 | AK14: 0 | AL14: 0 | AM14: 0
C15: 이상온도 접촉 | D15: 3 | E15: 0 | F15: 1 | G15: 0 | H15: 0 | I15: 0 | J15: 0 | K15: 0 | L15: 1 | M15: 0 | N15: 1 | O15: 0 | P15: 3 | Q15: 0 | R15: 1 | S15: 0 | T15: 1 | U15: 0 | V15: 1 | W15: 0 | X15: 0 | Y15: 0 | Z15: 0 | AA15: 0 | AB15: 2 | AC15: 0 | AD15: 2 | AE15: 0 | AF15: 0 | AG15: 0 | AH15: 0 | AI15: 0 | AJ15: 0 | AK15: 0 | AL15: 0 | AM15: 0
C16: 화학물질누출·접촉 | D16: 1 | E16: 0 | F16: 1 | G16: 0 | H16: 0 | I16: 0 | J16: 0 | K16: 0 | L16: 0 | M16: 0 | N16: 0 | O16: 0 | P16: 0 | Q16: 0 | R16: 0 | S16: 0 | T16: 0 | U16: 0 | V16: 0 | W16: 0 | X16: 0 | Y16: 0 | Z16: 0 | AA16: 0 | AB16: 0 | AC16: 0 | AD16: 0 | AE16: 0 | AF16: 0 | AG16: 0 | AH16: 0 | AI16: 0 | AJ16: 0 | AK16: 0 | AL16: 0 | AM16: 0
C17: 사업장외 교통사고 | D17: 1 | E17: 0 | F17: 1 | G17: 0 | H17: 0 | I17: 0 | J17: 0 | K17: 0 | L17: 0 | M17: 0 | N17: 0 | O17: 0 | P17: 0 | Q17: 0 | R17: 0 | S17: 0 | T17: 0 | U17: 0 | V17: 0 | W17: 0 | X17: 0 | Y17: 0 | Z17: 0 | AA17: 0 | AB17: 0 | AC17: 0 | AD17: 0 | AE17: 0 | AF17: 0 | AG17: 0 | AH17: 0 | AI17: 0 | AJ17: 0 | AK17: 0 | AL17: 0 | AM17: 0
C18: 체육행사 등의 사고 | D18: 0 | E18: 0 | F18: 0 | G18: 0 | H18: 0 | I18: 0 | J18: 0 | K18: 0 | L18: 0 | M18: 0 | N18: 0 | O18: 0 | P18: 1 | Q18: 0 | R18: 0 | S18: 0 | T18: 0 | U18: 0 | V18: 0 | W18: 0 | X18: 0 | Y18: 0 | Z18: 1 | AA18: 0 | AB18: 0 | AC18: 0 | AD18: 0 | AE18: 0 | AF18: 0 | AG18: 0 | AH18: 0 | AI18: 0 | AJ18: 0 | AK18: 0 | AL18: 0 | AM18: 0
C19: 동물상해 | D19: 0 | E19: 0 | F19: 0 | G19: 0 | H19: 0 | I19: 0 | J19: 0 | K19: 0 | L19: 0 | M19: 0 | N19: 0 | O19: 0 | P19: 1 | Q19: 0 | R19: 1 | S19: 0 | T19: 0 | U19: 0 | V19: 0 | W19: 0 | X19: 0 | Y19: 0 | Z19: 0 | AA19: 0 | AB19: 0 | AC19: 0 | AD19: 0 | AE19: 0 | AF19: 0 | AG19: 0 | AH19: 0 | AI19: 0 | AJ19: 0 | AK19: 0 | AL19: 0 | AM19: 0
C20: 물리적인자 | D20: 0 | E20: 0 | F20: 0 | G20: 0 | H20: 0 | I20: 0 | J20: 0 | K20: 0 | L20: 0 | M20: 0 | N20: 0 | O20: 0 | P20: 0 | Q20: 0 | R20: 0 | S20: 0 | T20: 0 | U20: 0 | V20: 0 | W20: 0 | X20: 0 | Y20: 0 | Z20: 0 | AA20: 0 | AB20: 0 | AC20: 0 | AD20: 0 | AE20: 0 | AF20: 0 | AG20: 0 | AH20: 0 | AI20: 0 | AJ20: 0 | AK20: 0 | AL20: 0 | AM20: 0
C21: 뇌심혈관질환 | D21: 0 | E21: 0 | F21: 0 | G21: 0 | H21: 0 | I21: 0 | J21: 0 | K21: 0 | L21: 0 | M21: 0 | N21: 0 | O21: 0 | P21: 0 | Q21: 0 | R21: 0 | S21: 0 | T21: 0 | U21: 0 | V21: 0 | W21: 0 | X21: 0 | Y21: 0 | Z21: 0 | AA21: 0 | AB21: 0 | AC21: 0 | AD21: 0 | AE21: 0 | AF21: 0 | AG21: 0 | AH21: 0 | AI21: 0 | AJ21: 0 | AK21: 0 | AL21: 0 | AM21: 0
C22: 근골격계질환 | D22: 0 | E22: 0 | F22: 0 | G22: 0 | H22: 0 | I22: 0 | J22: 0 | K22: 0 | L22: 0 | M22: 0 | N22: 0 | O22: 0 | P22: 0 | Q22: 0 | R22: 0 | S22: 0 | T22: 0 | U22: 0 | V22: 0 | W22: 0 | X22: 0 | Y22: 0 | Z22: 0 | AA22: 0 | AB22: 0 | AC22: 0 | AD22: 0 | AE22: 0 | AF22: 0 | AG22: 0 | AH22: 0 | AI22: 0 | AJ22: 0 | AK22: 0 | AL22: 0 | AM22: 0
B23: 섬유및섬유제품제조업 | C23: 합계 | D23: 20 | E23: 1 | F23: 2 | G23: 0 | H23: 5 | I23: 0 | J23: 4 | K23: 1 | L23: 3 | M23: 0 | N23: 6 | O23: 0 | P23: 11 | Q23: 0 | R23: 4 | S23: 0 | T23: 0 | U23: 0 | V23: 1 | W23: 0 | X23: 1 | Y23: 0 | Z23: 5 | AA23: 0 | AB23: 16 | AC23: 0 | AD23: 4 | AE23: 0 | AF23: 4 | AG23: 0 | AH23: 1 | AI23: 0 | AJ23: 2 | AK23: 0 | AL23: 5 | AM23: 0
C24: 떨어짐(높이가 있는 곳에서 사람이 떨어짐) | D24: 2 | E24: 0 | F24: 1 | G24: 0 | H24: 0 | I24: 0 | J24: 1 | K24: 0 | L24: 0 | M24: 0 | N24: 0 | O24: 0 | P24: 2 | Q24: 0 | R24: 1 | S24: 0 | T24: 0 | U24: 0 | V24: 0 | W24: 0 | X24: 0 | Y24: 0 | Z24: 1 | AA24: 0 | AB24: 2 | AC24: 0 | AD24: 0 | AE24: 0 | AF24: 0 | AG24: 0 | AH24: 1 | AI24: 0 | AJ24: 1 | AK24: 0 | AL24: 0 | AM24: 0
C25: 넘어짐(사람이 미끄러지거나 넘어짐) | D25: 3 | E25: 0 | F25: 0 | G25: 0 | H25: 0 | I25: 0 | J25: 0 | K25: 0 | L25: 2 | M25: 0 | N25: 1 | O25: 0 | P25: 1 | Q25: 0 | R25: 0 | S25: 0 | T25: 0 | U25: 0 | V25: 0 | W25: 0 | X25: 1 | Y25: 0 | Z25: 0 | AA25: 0 | AB25: 5 | AC25: 0 | AD25: 2 | AE25: 0 | AF25: 3 | AG25: 0 | AH25: 0 | AI25: 0 | AJ25: 0 | AK25: 0 | AL25: 0 | AM25: 0
C26: 깔림·뒤집힘(물체의 쓰러짐이나 뒤집힘) | D26: 1 | E26: 0 | F26: 0 | G26: 0 | H26: 0 | I26: 0 | J26: 0 | K26: 0 | L26: 0 | M26: 0 | N26: 1 | O26: 0 | P26: 0 | Q26: 0 | R26: 0 | S26: 0 | T26: 0 | U26: 0 | V26: 0 | W26: 0 | X26: 0 | Y26: 0 | Z26: 0 | AA26: 0 | AB26: 1 | AC26: 0 | AD26: 1 | AE26: 0 | AF26: 0 | AG26: 0 | AH26: 0 | AI26: 0 | AJ26: 0 | AK26: 0 | AL26: 0 | AM26: 0
C27: 부딪힘(물체에 부딪힘) | D27: 2 | E27: 0 | F27: 0 | G27: 0 | H27: 1 | I27: 0 | J27: 0 | K27: 0 | L27: 0 | M27: 0 | N27: 1 | O27: 0 | P27: 0 | Q27: 0 | R27: 0 | S27: 0 | T27: 0 | U27: 0 | V27: 0 | W27: 0 | X27: 0 | Y27: 0 | Z27: 0 | AA27: 0 | AB27: 5 | AC27: 0 | AD27: 0 | AE27: 0 | AF27: 1 | AG27: 0 | AH27: 0 | AI27: 0 | AJ27: 1 | AK27: 0 | AL27: 3 | AM27: 0
C28: 물체에 맞음(날아오거나 떨어진 물체에 맞음) | D28: 1 | E28: 0 | F28: 0 | G28: 0 | H28: 0 | I28: 0 | J28: 0 | K28: 0 | L28: 1 | M28: 0 | N28: 0 | O28: 0 | P28: 2 | Q28: 0 | R28: 0 | S28: 0 | T28: 0 | U28: 0 | V28: 0 | W28: 0 | X28: 0 | Y28: 0 | Z28: 2 | AA28: 0 | AB28: 0 | AC28: 0 | AD28: 0 | AE28: 0 | AF28: 0 | AG28: 0 | AH28: 0 | AI28: 0 | AJ28: 0 | AK28: 0 | AL28: 0 | AM28: 0
C29: 끼임(기계설비에 끼이거나 감김) | D29: 7 | E29: 1 | F29: 0 | G29: 0 | H29: 3 | I29: 0 | J29: 2 | K29: 1 | L29: 0 | M29: 0 | N29: 2 | O29: 0 | P29: 2 | Q29: 0 | R29: 2 | S29: 0 | T29: 0 | U29: 0 | V29: 0 | W29: 0 | X29: 0 | Y29: 0 | Z29: 0 | AA29: 0 | AB29: 1 | AC29: 0 | AD29: 1 | AE29: 0 | AF29: 0 | AG29: 0 | AH29: 0 | AI29: 0 | AJ29: 0 | AK29: 0 | AL29: 0 | AM29: 0
C30: 절단·베임·찔림 | D30: 2 | E30: 0 | F30: 1 | G30: 0 | H30: 1 | I30: 0 | J30: 0 | K30: 0 | L30: 0 | M30: 0 | N30: 0 | O30: 0 | P30: 1 | Q30: 0 | R30: 0 | S30: 0 | T30: 0 | U30: 0 | V30: 1 | W30: 0 | X30: 0 | Y30: 0 | Z30: 0 | AA30: 0 | AB30: 0 | AC30: 0 | AD30: 0 | AE30: 0 | AF30: 0 | AG30: 0 | AH30: 0 | AI30: 0 | AJ30: 0 | AK30: 0 | AL30: 0 | AM30: 0
C31: 이상온도 접촉 | D31: 2 | E31: 0 | F31: 0 | G31: 0 | H31: 0 | I31: 0 | J31: 1 | K31: 0 | L31: 0 | M31: 0 | N31: 1 | O31: 0 | P31: 1 | Q31: 0 | R31: 1 | S31: 0 | T31: 0 | U31: 0 | V31: 0 | W31: 0 | X31: 0 | Y31: 0 | Z31: 0 | AA31: 0 | AB31: 1 | AC31: 0 | AD31: 0 | AE31: 0 | AF31: 0 | AG31: 0 | AH31: 0 | AI31: 0 | AJ31: 0 | AK31: 0 | AL31: 1 | AM31: 0
C32: 화학물질누출·접촉 | D32: 0 | E32: 0 | F32: 0 | G32: 0 | H32: 0 | I32: 0 | J32: 0 | K32: 0 | L32: 0 | M32: 0 | N32: 0 | O32: 0 | P32: 1 | Q32: 0 | R32: 0 | S32: 0 | T32: 0 | U32: 0 | V32: 0 | W32: 0 | X32: 0 | Y32: 0 | Z32: 1 | AA32: 0 | AB32: 1 | AC32: 0 | AD32: 0 | AE32: 0 | AF32: 0 | AG32: 0 | AH32: 0 | AI32: 0 | AJ32: 0 | AK32: 0 | AL32: 1 | AM32: 0
C33: 체육행사 등의 사고 | D33: 0 | E33: 0 | F33: 0 | G33: 0 | H33: 0 | I33: 0 | J33: 0 | K33: 0 | L33: 0 | M33: 0 | N33: 0 | O33: 0 | P33: 1 | Q33: 0 | R33: 0 | S33: 0 | T33: 0 | U33: 0 | V33: 0 | W33: 0 | X33: 0 | Y33: 0 | Z33: 1 | AA33: 0 | AB33: 0 | AC33: 0 | AD33: 0 | AE33: 0 | AF33: 0 | AG33: 0 | AH33: 0 | AI33: 0 | AJ33: 0 | AK33: 0 | AL33: 0 | AM33: 0
C34: 물리적인자 | D34: 0 | E34: 0 | F34: 0 | G34: 0 | H34: 0 | I34: 0 | J34: 0 | K34: 0 | L34: 0 | M34: 0 | N34: 0 | O34: 0 | P34: 0 | Q34: 0 | R34: 0 | S34: 0 | T34: 0 | U34: 0 | V34: 0 | W34: 0 | X34: 0 | Y34: 0 | Z34: 0 | AA34: 0 | AB34: 0 | AC34: 0 | AD34: 0 | AE34: 0 | AF34: 0 | AG34: 0 | AH34: 0 | AI34: 0 | AJ34: 0 | AK34: 0 | AL34: 0 | AM34: 0
C35: 화학적인자 | D35: 0 | E35: 0 | F35: 0 | G35: 0 | H35: 0 | I35: 0 | J35: 0 | K35: 0 | L35: 0 | M35: 0 | N35: 0 | O35: 0 | P35: 0 | Q35: 0 | R35: 0 | S35: 0 | T35: 0 | U35: 0 | V35: 0 | W35: 0 | X35: 0 | Y35: 0 | Z35: 0 | AA35: 0 | AB35: 0 | AC35: 0 | AD35: 0 | AE35: 0 | AF35: 0 | AG35: 0 | AH35: 0 | AI35: 0 | AJ35: 0 | AK35: 0 | AL35: 0 | AM35: 0
C36: 뇌심혈관질환 | D36: 0 | E36: 0 | F36: 0 | G36: 0 | H36: 0 | I36: 0 | J36: 0 | K36: 0 | L36: 0 | M36: 0 | N36: 0 | O36: 0 | P36: 0 | Q36: 0 | R36: 0 | S36: 0 | T36: 0 | U36: 0 | V36: 0 | W36: 0 | X36: 0 | Y36: 0 | Z36: 0 | AA36: 0 | AB36: 0 | AC36: 0 | AD36: 0 | AE36: 0 | AF36: 0 | AG36: 0 | AH36: 0 | AI36: 0 | AJ36: 0 | AK36: 0 | AL36: 0 | AM36: 0
C37: 근골격계질환 | D37: 0 | E37: 0 | F37: 0 | G37: 0 | H37: 0 | I37: 0 | J37: 0 | K37: 0 | L37: 0 | M37: 0 | N37: 0 | O37: 0 | P37: 0 | Q37: 0 | R37: 0 | S37: 0 | T37: 0 | U37: 0 | V37: 0 | W37: 0 | X37: 0 | Y37: 0 | Z37: 0 | AA37: 0 | AB37: 0 | AC37: 0 | AD37: 0 | AE37: 0 | AF37: 0 | AG37: 0 | AH37: 0 | AI37: 0 | AJ37: 0 | AK37: 0 | AL37: 0 | AM37: 0
B38: 목재및종이제품제조업 | C38: 합계 | D38: 17 | E38: 0 | F38: 8 | G38: 0 | H38: 6 | I38: 0 | J38: 2 | K38: 0 | L38: 1 | M38: 0 | N38: 0 | O38: 0 | P38: 8 | Q38: 0 | R38: 5 | S38: 0 | T38: 1 | U38: 0 | V38: 2 | W38: 0 | X38: 0 | Y38: 0 | Z38: 0 | AA38: 0 | AB38: 18 | AC38: 0 | AD38: 8 | AE38: 0 | AF38: 6 | AG38: 0 | AH38: 1 | AI38: 0 | AJ38: 2 | AK38: 0 | AL38: 1 | AM38: 0
C39: 떨어짐(높이가 있는 곳에서 사람이 떨어짐) | D39: 1 | E39: 0 | F39: 0 | G39: 0 | H39: 0 | I39: 0 | J39: 0 | K39: 0 | L39: 1 | M39: 0 | N39: 0 | O39: 0 | P39: 0 | Q39: 0 | R39: 0 | S39: 0 | T39: 0 | U39: 0 | V39: 0 | W39: 0 | X39: 0 | Y39: 0 | Z39: 0 | AA39: 0 | AB39: 0 | AC39: 0 | AD39: 0 | AE39: 0 | AF39: 0 | AG39: 0 | AH39: 0 | AI39: 0 | AJ39: 0 | AK39: 0 | AL39: 0 | AM39: 0
C40: 넘어짐(사람이 미끄러지거나 넘어짐) | D40: 1 | E40: 0 | F40: 0 | G40: 0 | H40: 1 | I40: 0 | J40: 0 | K40: 0 | L40: 0 | M40: 0 | N40: 0 | O40: 0 | P40: 1 | Q40: 0 | R40: 0 | S40: 0 | T40: 0 | U40: 0 | V40: 1 | W40: 0 | X40: 0 | Y40: 0 | Z40: 0 | AA40: 0 | AB40: 1 | AC40: 0 | AD40: 1 | AE40: 0 | AF40: 0 | AG40: 0 | AH40: 0 | AI40: 0 | AJ40: 0 | AK40: 0 | AL40: 0 | AM40: 0
C41: 부딪힘(물체에 부딪힘) | D41: 0 | E41: 0 | F41: 0 | G41: 0 | H41: 0 | I41: 0 | J41: 0 | K41: 0 | L41: 0 | M41: 0 | N41: 0 | O41: 0 | P41: 0 | Q41: 0 | R41: 0 | S41: 0 | T41: 0 | U41: 0 | V41: 0 | W41: 0 | X41: 0 | Y41: 0 | Z41: 0 | AA41: 0 | AB41: 1 | AC41: 0 | AD41: 1 | AE41: 0 | AF41: 0 | AG41: 0 | AH41: 0 | AI41: 0 | AJ41: 0 | AK41: 0 | AL41: 0 | AM41: 0
C42: 물체에 맞음(날아오거나 떨어진 물체에 맞음) | D42: 3 | E42: 0 | F42: 2 | G42: 0 | H42: 1 | I42: 0 | J42: 0 | K42: 0 | L42: 0 | M42: 0 | N42: 0 | O42: 0 | P42: 1 | Q42: 0 | R42: 1 | S42: 0 | T42: 0 | U42: 0 | V42: 0 | W42: 0 | X42: 0 | Y42: 0 | Z42: 0 | AA42: 0 | AB42: 4 | AC42: 0 | AD42: 1 | AE42: 0 | AF42: 2 | AG42: 0 | AH42: 0 | AI42: 0 | AJ42: 1 | AK42: 0 | AL42: 0 | AM42: 0
C43: 무너짐(건축물이나 쌓여진 물체가 무너짐) | D43: 1 | E43: 0 | F43: 0 | G43: 0 | H43: 1 | I43: 0 | J43: 0 | K43: 0 | L43: 0 | M43: 0 | N43: 0 | O43: 0 | P43: 0 | Q43: 0 | R43: 0 | S43: 0 | T43: 0 | U43: 0 | V43: 0 | W43: 0 | X43: 0 | Y43: 0 | Z43: 0 | AA43: 0 | AB43: 1 | AC43: 0 | AD43: 1 | AE43: 0 | AF43: 0 | AG43: 0 | AH43: 0 | AI43: 0 | AJ43: 0 | AK43: 0 | AL43: 0 | AM43: 0
C44: 끼임(기계설비에 끼이거나 감김) | D44: 6 | E44: 0 | F44: 3 | G44: 0 | H44: 1 | I44: 0 | J44: 2 | K44: 0 | L44: 0 | M44: 0 | N44: 0 | O44: 0 | P44: 2 | Q44: 0 | R44: 2 | S44: 0 | T44: 0 | U44: 0 | V44: 0 | W44: 0 | X44: 0 | Y44: 0 | Z44: 0 | AA44: 0 | AB44: 6 | AC44: 0 | AD44: 2 | AE44: 0 | AF44: 2 | AG44: 0 | AH44: 0 | AI44: 0 | AJ44: 1 | AK44: 0 | AL44: 1 | AM44: 0
C45: 절단·베임·찔림 | D45: 5 | E45: 0 | F45: 3 | G45: 0 | H45: 2 | I45: 0 | J45: 0 | K45: 0 | L45: 0 | M45: 0 | N45: 0 | O45: 0 | P45: 4 | Q45: 0 | R45: 2 | S45: 0 | T45: 1 | U45: 0 | V45: 1 | W45: 0 | X45: 0 | Y45: 0 | Z45: 0 | AA45: 0 | AB45: 5 | AC45: 0 | AD45: 2 | AE45: 0 | AF45: 2 | AG45: 0 | AH45: 1 | AI45: 0 | AJ45: 0 | AK45: 0 | AL45: 0 | AM45: 0
C46: 물리적인자 | D46: 0 | E46: 0 | F46: 0 | G46: 0 | H46: 0 | I46: 0 | J46: 0 | K46: 0 | L46: 0 | M46: 0 | N46: 0 | O46: 0 | P46: 0 | Q46: 0 | R46: 0 | S46: 0 | T46: 0 | U46: 0 | V46: 0 | W46: 0 | X46: 0 | Y46: 0 | Z46: 0 | AA46: 0 | AB46: 0 | AC46: 0 | AD46: 0 | AE46: 0 | AF46: 0 | AG46: 0 | AH46: 0 | AI46: 0 | AJ46: 0 | AK46: 0 | AL46: 0 | AM46: 0
C47: 화학적인자 | D47: 0 | E47: 0 | F47: 0 | G47: 0 | H47: 0 | I47: 0 | J47: 0 | K47: 0 | L47: 0 | M47: 0 | N47: 0 | O47: 0 | P47: 0 | Q47: 0 | R47: 0 | S47: 0 | T47: 0 | U47: 0 | V47: 0 | W47: 0 | X47: 0 | Y47: 0 | Z47: 0 | AA47: 0 | AB47: 0 | AC47: 0 | AD47: 0 | AE47: 0 | AF47: 0 | AG47: 0 | AH47: 0 | AI47: 0 | AJ47: 0 | AK47: 0 | AL47: 0 | AM47: 0
C48: 근골격계질환 | D48: 0 | E48: 0 | F48: 0 | G48: 0 | H48: 0 | I48: 0 | J48: 0 | K48: 0 | L48: 0 | M48: 0 | N48: 0 | O48: 0 | P48: 0 | Q48: 0 | R48: 0 | S48: 0 | T48: 0 | U48: 0 | V48: 0 | W48: 0 | X48: 0 | Y48: 0 | Z48: 0 | AA48: 0 | AB48: 0 | AC48: 0 | AD48: 0 | AE48: 0 | AF48: 0 | AG48: 0 | AH48: 0 | AI48: 0 | AJ48: 0 | AK48: 0 | AL48: 0 | AM48: 0
B49: 출판·인쇄·제본업 | C49: 합계 | D49: 3 | E49: 0 | F49: 2 | G49: 0 | H49: 0 | I49: 0 | J49: 0 | K49: 0 | L49: 0 | M49: 0 | N49: 1 | O49: 0 | P49: 4 | Q49: 0 | R49: 3 | S49: 0 | T49: 1 | U49: 0 | V49: 0 | W49: 0 | X49: 0 | Y49: 0 | Z49: 0 | AA49: 0 | AB49: 5 | AC49: 0 | AD49: 3 | AE49: 0 | AF49: 1 | AG49: 0 | AH49: 0 | AI49: 0 | AJ49: 1 | AK49: 0 | AL49: 0 | AM49: 0
C50: 떨어짐(높이가 있는 곳에서 사람이 떨어짐) | D50: 0 | E50: 0 | F50: 0 | G50: 0 | H50: 0 | I50: 0 | J50: 0 | K50: 0 | L50: 0 | M50: 0 | N50: 0 | O50: 0 | P50: 0 | Q50: 0 | R50: 0 | S50: 0 | T50: 0 | U50: 0 | V50: 0 | W50: 0 | X50: 0 | Y50: 0 | Z50: 0 | AA50: 0 | AB50: 1 | AC50: 0 | AD50: 1 | AE50: 0 | AF50: 0 | AG50: 0 | AH50: 0 | AI50: 0 | AJ50: 0 | AK50: 0 | AL50: 0 | AM50: 0
C51: 부딪힘(물체에 부딪힘) | D51: 0 | E51: 0 | F51: 0 | G51: 0 | H51: 0 | I51: 0 | J51: 0 | K51: 0 | L51: 0 | M51: 0 | N51: 0 | O51: 0 | P51: 1 | Q51: 0 | R51: 0 | S51: 0 | T51: 1 | U51: 0 | V51: 0 | W51: 0 | X51: 0 | Y51: 0 | Z51: 0 | AA51: 0 | AB51: 0 | AC51: 0 | AD51: 0 | AE51: 0 | AF51: 0 | AG51: 0 | AH51: 0 | AI51: 0 | AJ51: 0 | AK51: 0 | AL51: 0 | AM51: 0
C52: 물체에 맞음(날아오거나 떨어진 물체에 맞음) | D52: 1 | E52: 0 | F52: 0 | G52: 0 | H52: 0 | I52: 0 | J52: 0 | K52: 0 | L52: 0 | M52: 0 | N52: 1 | O52: 0 | P52: 0 | Q52: 0 | R52: 0 | S52: 0 | T52: 0 | U52: 0 | V52: 0 | W52: 0 | X52: 0 | Y52: 0 | Z52: 0 | AA52: 0 | AB52: 0 | AC52: 0 | AD52: 0 | AE52: 0 | AF52: 0 | AG52: 0 | AH52: 0 | AI52: 0 | AJ52: 0 | AK52: 0 | AL52: 0 | AM52: 0
C53: 끼임(기계설비에 끼이거나 감김) | D53: 0 | E53: 0 | F53: 0 | G53: 0 | H53: 0 | I53: 0 | J53: 0 | K53: 0 | L53: 0 | M53: 0 | N53: 0 | O53: 0 | P53: 3 | Q53: 0 | R53: 3 | S53: 0 | T53: 0 | U53: 0 | V53: 0 | W53: 0 | X53: 0 | Y53: 0 | Z53: 0 | AA53: 0 | AB53: 2 | AC53: 0 | AD53: 2 | AE53: 0 | AF53: 0 | AG53: 0 | AH53: 0 | AI53: 0 | AJ53: 0 | AK53: 0 | AL53: 0 | AM53: 0
C54: 절단·베임·찔림 | D54: 1 | E54: 0 | F54: 1 | G54: 0 | H54: 0 | I54: 0 | J54: 0 | K54: 0 | L54: 0 | M54: 0 | N54: 0 | O54: 0 | P54: 0 | Q54: 0 | R54: 0 | S54: 0 | T54: 0 | U54: 0 | V54: 0 | W54: 0 | X54: 0 | Y54: 0 | Z54: 0 | AA54: 0 | AB54: 1 | AC54: 0 | AD54: 0 | AE54: 0 | AF54: 0 | AG54: 0 | AH54: 0 | AI54: 0 | AJ54: 1 | AK54: 0 | AL54: 0 | AM54: 0
C55: 불균형 및 무리한 동작 | D55: 0 | E55: 0 | F55: 0 | G55: 0 | H55: 0 | I55: 0 | J55: 0 | K55: 0 | L55: 0 | M55: 0 | N55: 0 | O55: 0 | P55: 0 | Q55: 0 | R55: 0 | S55: 0 | T55: 0 | U55: 0 | V55: 0 | W55: 0 | X55: 0 | Y55: 0 | Z55: 0 | AA55: 0 | AB55: 1 | AC55: 0 | AD55: 0 | AE55: 0 | AF55: 1 | AG55: 0 | AH55: 0 | AI55: 0 | AJ55: 0 | AK55: 0 | AL55: 0 | AM55: 0
C56: 사업장외 교통사고 | D56: 1 | E56: 0 | F56: 1 | G56: 0 | H56: 0 | I56: 0 | J56: 0 | K56: 0 | L56: 0 | M56: 0 | N56: 0 | O56: 0 | P56: 0 | Q56: 0 | R56: 0 | S56: 0 | T56: 0 | U56: 0 | V56: 0 | W56: 0 | X56: 0 | Y56: 0 | Z56: 0 | AA56: 0 | AB56: 0 | AC56: 0 | AD56: 0 | AE56: 0 | AF56: 0 | AG56: 0 | AH56: 0 | AI56: 0 | AJ56: 0 | AK56: 0 | AL56: 0 | AM56: 0
C57: 근골격계질환 | D57: 0 | E57: 0 | F57: 0 | G57: 0 | H57: 0 | I57: 0 | J57: 0 | K57: 0 | L57: 0 | M57: 0 | N57: 0 | O57: 0 | P57: 0 | Q57: 0 | R57: 0 | S57: 0 | T57: 0 | U57: 0 | V57: 0 | W57: 0 | X57: 0 | Y57: 0 | Z57: 0 | AA57: 0 | AB57: 0 | AC57: 0 | AD57: 0 | AE57: 0 | AF57: 0 | AG57: 0 | AH57: 0 | AI57: 0 | AJ57: 0 | AK57: 0 | AL57: 0 | AM57: 0
B58: 화학및고무제품제조업 | C58: 합계 | D58: 14 | E58: 0 | F58: 4 | G58: 0 | H58: 2 | I58: 0 | J58: 4 | K58: 0 | L58: 0 | M58: 0 | N58: 4 | O58: 0 | P58: 16 | Q58: 0 | R58: 3 | S58: 0 | T58: 5 | U58: 0 | V58: 3 | W58: 0 | X58: 2 | Y58: 0 | Z58: 3 | AA58: 0 | AB58: 21 | AC58: 0 | AD58: 5 | AE58: 0 | AF58: 0 | AG58: 0 | AH58: 6 | AI58: 0 | AJ58: 1 | AK58: 0 | AL58: 9 | AM58: 0
C59: 떨어짐(높이가 있는 곳에서 사람이 떨어짐) | D59: 2 | E59: 0 | F59: 2 | G59: 0 | H59: 0 | I59: 0 | J59: 0 | K59: 0 | L59: 0 | M59: 0 | N59: 0 | O59: 0 | P59: 0 | Q59: 0 | R59: 0 | S59: 0 | T59: 0 | U59: 0 | V59: 0 | W59: 0 | X59: 0 | Y59: 0 | Z59: 0 | AA59: 0 | AB59: 0 | AC59: 0 | AD59: 0 | AE59: 0 | AF59: 0 | AG59: 0 | AH59: 0 | AI59: 0 | AJ59: 0 | AK59: 0 | AL59: 0 | AM59: 0
C60: 넘어짐(사람이 미끄러지거나 넘어짐) | D60: 1 | E60: 0 | F60: 0 | G60: 0 | H60: 0 | I60: 0 | J60: 0 | K60: 0 | L60: 0 | M60: 0 | N60: 1 | O60: 0 | P60: 3 | Q60: 0 | R60: 0 | S60: 0 | T60: 1 | U60: 0 | V60: 0 | W60: 0 | X60: 0 | Y60: 0 | Z60: 2 | AA60: 0 | AB60: 2 | AC60: 0 | AD60: 1 | AE60: 0 | AF60: 0 | AG60: 0 | AH60: 0 | AI60: 0 | AJ60: 0 | AK60: 0 | AL60: 1 | AM60: 0
C61: 깔림·뒤집힘(물체의 쓰러짐이나 뒤집힘) | D61: 0 | E61: 0 | F61: 0 | G61: 0 | H61: 0 | I61: 0 | J61: 0 | K61: 0 | L61: 0 | M61: 0 | N61: 0 | O61: 0 | P61: 0 | Q61: 0 | R61: 0 | S61: 0 | T61: 0 | U61: 0 | V61: 0 | W61: 0 | X61: 0 | Y61: 0 | Z61: 0 | AA61: 0 | AB61: 1 | AC61: 0 | AD61: 0 | AE61: 0 | AF61: 0 | AG61: 0 | AH61: 1 | AI61: 0 | AJ61: 0 | AK61: 0 | AL61: 0 | AM61: 0
C62: 부딪힘(물체에 부딪힘) | D62: 0 | E62: 0 | F62: 0 | G62: 0 | H62: 0 | I62: 0 | J62: 0 | K62: 0 | L62: 0 | M62: 0 | N62: 0 | O62: 0 | P62: 1 | Q62: 0 | R62: 0 | S62: 0 | T62: 0 | U62: 0 | V62: 1 | W62: 0 | X62: 0 | Y62: 0 | Z62: 0 | AA62: 0 | AB62: 0 | AC62: 0 | AD62: 0 | AE62: 0 | AF62: 0 | AG62: 0 | AH62: 0 | AI62: 0 | AJ62: 0 | AK62: 0 | AL62: 0 | AM62: 0
C63: 물체에 맞음(날아오거나 떨어진 물체에 맞음) | D63: 0 | E63: 0 | F63: 0 | G63: 0 | H63: 0 | I63: 0 | J63: 0 | K63: 0 | L63: 0 | M63: 0 | N63: 0 | O63: 0 | P63: 1 | Q63: 0 | R63: 1 | S63: 0 | T63: 0 | U63: 0 | V63: 0 | W63: 0 | X63: 0 | Y63: 0 | Z63: 0 | AA63: 0 | AB63: 1 | AC63: 0 | AD63: 1 | AE63: 0 | AF63: 0 | AG63: 0 | AH63: 0 | AI63: 0 | AJ63: 0 | AK63: 0 | AL63: 0 | AM63: 0
C64: 무너짐(건축물이나 쌓여진 물체가 무너짐) | D64: 1 | E64: 0 | F64: 0 | G64: 0 | H64: 0 | I64: 0 | J64: 1 | K64: 0 | L64: 0 | M64: 0 | N64: 0 | O64: 0 | P64: 1 | Q64: 0 | R64: 0 | S64: 0 | T64: 1 | U64: 0 | V64: 0 | W64: 0 | X64: 0 | Y64: 0 | Z64: 0 | AA64: 0 | AB64: 1 | AC64: 0 | AD64: 0 | AE64: 0 | AF64: 0 | AG64: 0 | AH64: 0 | AI64: 0 | AJ64: 0 | AK64: 0 | AL64: 1 | AM64: 0
C65: 끼임(기계설비에 끼이거나 감김) | D65: 5 | E65: 0 | F65: 1 | G65: 0 | H65: 0 | I65: 0 | J65: 2 | K65: 0 | L65: 0 | M65: 0 | N65: 2 | O65: 0 | P65: 6 | Q65: 0 | R65: 1 | S65: 0 | T65: 2 | U65: 0 | V65: 1 | W65: 0 | X65: 1 | Y65: 0 | Z65: 1 | AA65: 0 | AB65: 12 | AC65: 0 | AD65: 3 | AE65: 0 | AF65: 0 | AG65: 0 | AH65: 3 | AI65: 0 | AJ65: 1 | AK65: 0 | AL65: 5 | AM65: 0
C66: 절단·베임·찔림 | D66: 2 | E66: 0 | F66: 0 | G66: 0 | H66: 1 | I66: 0 | J66: 1 | K66: 0 | L66: 0 | M66: 0 | N66: 0 | O66: 0 | P66: 0 | Q66: 0 | R66: 0 | S66: 0 | T66: 0 | U66: 0 | V66: 0 | W66: 0 | X66: 0 | Y66: 0 | Z66: 0 | AA66: 0 | AB66: 4 | AC66: 0 | AD66: 0 | AE66: 0 | AF66: 0 | AG66: 0 | AH66: 2 | AI66: 0 | AJ66: 0 | AK66: 0 | AL66: 2 | AM66: 0
C67: 감전 | D67: 2 | E67: 0 | F67: 0 | G67: 0 | H67: 1 | I67: 0 | J67: 0 | K67: 0 | L67: 0 | M67: 0 | N67: 1 | O67: 0 | P67: 0 | Q67: 0 | R67: 0 | S67: 0 | T67: 0 | U67: 0 | V67: 0 | W67: 0 | X67: 0 | Y67: 0 | Z67: 0 | AA67: 0 | AB67: 0 | AC67: 0 | AD67: 0 | AE67: 0 | AF67: 0 | AG67: 0 | AH67: 0 | AI67: 0 | AJ67: 0 | AK67: 0 | AL67: 0 | AM67: 0
C68: 화재 | D68: =SUM(F68,H68,J68,L68,N68) -> 1 | E68: 0 | F68: 1 | G68: 0 | H68: 0 | I68: 0 | J68: 0 | K68: 0 | L68: 0 | M68: 0 | N68: 0 | O68: 0 | P68: =SUM(R68,T68,V68,X68,Z68) -> 0 | Q68: 0 | R68: 0 | S68: 0 | T68: 0 | U68: 0 | V68: 0 | W68: 0 | X68: 0 | Y68: 0 | Z68: 0 | AA68: 0 | AB68: =SUM(AD68,AF68,AH68,AJ68,AL68) -> 0 | AC68: 0 | AD68: 0 | AE68: 0 | AF68: 0 | AG68: 0 | AH68: 0 | AI68: 0 | AJ68: 0 | AK68: 0 | AL68: 0 | AM68: 0
C69: 불균형 및 무리한 동작 | D69: 0 | E69: 0 | F69: 0 | G69: 0 | H69: 0 | I69: 0 | J69: 0 | K69: 0 | L69: 0 | M69: 0 | N69: 0 | O69: 0 | P69: 1 | Q69: 0 | R69: 0 | S69: 0 | T69: 0 | U69: 0 | V69: 0 | W69: 0 | X69: 1 | Y69: 0 | Z69: 0 | AA69: 0 | AB69: 0 | AC69: 0 | AD69: 0 | AE69: 0 | AF69: 0 | AG69: 0 | AH69: 0 | AI69: 0 | AJ69: 0 | AK69: 0 | AL69: 0 | AM69: 0
C70: 이상온도 접촉 | D70: 0 | E70: 0 | F70: 0 | G70: 0 | H70: 0 | I70: 0 | J70: 0 | K70: 0 | L70: 0 | M70: 0 | N70: 0 | O70: 0 | P70: 2 | Q70: 0 | R70: 0 | S70: 0 | T70: 1 | U70: 0 | V70: 1 | W70: 0 | X70: 0 | Y70: 0 | Z70: 0 | AA70: 0 | AB70: 0 | AC70: 0 | AD70: 0 | AE70: 0 | AF70: 0 | AG70: 0 | AH70: 0 | AI70: 0 | AJ70: 0 | AK70: 0 | AL70: 0 | AM70: 0
C71: 사업장외 교통사고 | D71: 0 | E71: 0 | F71: 0 | G71: 0 | H71: 0 | I71: 0 | J71: 0 | K71: 0 | L71: 0 | M71: 0 | N71: 0 | O71: 0 | P71: 1 | Q71: 0 | R71: 1 | S71: 0 | T71: 0 | U71: 0 | V71: 0 | W71: 0 | X71: 0 | Y71: 0 | Z71: 0 | AA71: 0 | AB71: 0 | AC71: 0 | AD71: 0 | AE71: 0 | AF71: 0 | AG71: 0 | AH71: 0 | AI71: 0 | AJ71: 0 | AK71: 0 | AL71: 0 | AM71: 0
C72: 물리적인자 | D72: 0 | E72: 0 | F72: 0 | G72: 0 | H72: 0 | I72: 0 | J72: 0 | K72: 0 | L72: 0 | M72: 0 | N72: 0 | O72: 0 | P72: 0 | Q72: 0 | R72: 0 | S72: 0 | T72: 0 | U72: 0 | V72: 0 | W72: 0 | X72: 0 | Y72: 0 | Z72: 0 | AA72: 0 | AB72: 0 | AC72: 0 | AD72: 0 | AE72: 0 | AF72: 0 | AG72: 0 | AH72: 0 | AI72: 0 | AJ72: 0 | AK72: 0 | AL72: 0 | AM72: 0
C73: 뇌심혈관질환 | D73: 0 | E73: 0 | F73: 0 | G73: 0 | H73: 0 | I73: 0 | J73: 0 | K73: 0 | L73: 0 | M73: 0 | N73: 0 | O73: 0 | P73: 0 | Q73: 0 | R73: 0 | S73: 0 | T73: 0 | U73: 0 | V73: 0 | W73: 0 | X73: 0 | Y73: 0 | Z73: 0 | AA73: 0 | AB73: 0 | AC73: 0 | AD73: 0 | AE73: 0 | AF73: 0 | AG73: 0 | AH73: 0 | AI73: 0 | AJ73: 0 | AK73: 0 | AL73: 0 | AM73: 0
C74: 근골격계질환 | D74: 0 | E74: 0 | F74: 0 | G74: 0 | H74: 0 | I74: 0 | J74: 0 | K74: 0 | L74: 0 | M74: 0 | N74: 0 | O74: 0 | P74: 0 | Q74: 0 | R74: 0 | S74: 0 | T74: 0 | U74: 0 | V74: 0 | W74: 0 | X74: 0 | Y74: 0 | Z74: 0 | AA74: 0 | AB74: 0 | AC74: 0 | AD74: 0 | AE74: 0 | AF74: 0 | AG74: 0 | AH74: 0 | AI74: 0 | AJ74: 0 | AK74: 0 | AL74: 0 | AM74: 0
B75: 의약품·화장품·연탄·석유제품제조업 | C75: 합계 | D75: 1 | E75: 0 | F75: 0 | G75: 0 | H75: 0 | I75: 0 | J75: 0 | K75: 0 | L75: 0 | M75: 0 | N75: 1 | O75: 0 | P75: 1 | Q75: 0 | R75: 0 | S75: 0 | T75: 1 | U75: 0 | V75: 0 | W75: 0 | X75: 0 | Y75: 0 | Z75: 0 | AA75: 0 | AB75: 0 | AC75: 0 | AD75: 0 | AE75: 0 | AF75: 0 | AG75: 0 | AH75: 0 | AI75: 0 | AJ75: 0 | AK75: 0 | AL75: 0 | AM75: 0
C76: 절단·베임·찔림 | D76: 1 | E76: 0 | F76: 0 | G76: 0 | H76: 0 | I76: 0 | J76: 0 | K76: 0 | L76: 0 | M76: 0 | N76: 1 | O76: 0 | P76: 0 | Q76: 0 | R76: 0 | S76: 0 | T76: 0 | U76: 0 | V76: 0 | W76: 0 | X76: 0 | Y76: 0 | Z76: 0 | AA76: 0 | AB76: 0 | AC76: 0 | AD76: 0 | AE76: 0 | AF76: 0 | AG76: 0 | AH76: 0 | AI76: 0 | AJ76: 0 | AK76: 0 | AL76: 0 | AM76: 0
C77: 동물상해 | D77: 0 | E77: 0 | F77: 0 | G77: 0 | H77: 0 | I77: 0 | J77: 0 | K77: 0 | L77: 0 | M77: 0 | N77: 0 | O77: 0 | P77: 1 | Q77: 0 | R77: 0 | S77: 0 | T77: 1 | U77: 0 | V77: 0 | W77: 0 | X77: 0 | Y77: 0 | Z77: 0 | AA77: 0 | AB77: 0 | AC77: 0 | AD77: 0 | AE77: 0 | AF77: 0 | AG77: 0 | AH77: 0 | AI77: 0 | AJ77: 0 | AK77: 0 | AL77: 0 | AM77: 0
C78: 화학적인자 | D78: 0 | E78: 0 | F78: 0 | G78: 0 | H78: 0 | I78: 0 | J78: 0 | K78: 0 | L78: 0 | M78: 0 | N78: 0 | O78: 0 | P78: 0 | Q78: 0 | R78: 0 | S78: 0 | T78: 0 | U78: 0 | V78: 0 | W78: 0 | X78: 0 | Y78: 0 | Z78: 0 | AA78: 0 | AB78: 0 | AC78: 0 | AD78: 0 | AE78: 0 | AF78: 0 | AG78: 0 | AH78: 0 | AI78: 0 | AJ78: 0 | AK78: 0 | AL78: 0 | AM78: 0
B79: 기계기구·금속·비금속광물제품제조업 | C79: 합계 | D79: 128 | E79: 1 | F79: 25 | G79: 0 | H79: 21 | I79: 0 | J79: 34 | K79: 0 | L79: 24 | M79: 1 | N79: 24 | O79: 0 | P79: 86 | Q79: 2 | R79: 29 | S79: 0 | T79: 9 | U79: 0 | V79: 23 | W79: 2 | X79: 14 | Y79: 0 | Z79: 11 | AA79: 0 | AB79: 98 | AC79: 0 | AD79: 33 | AE79: 0 | AF79: 11 | AG79: 0 | AH79: 25 | AI79: 0 | AJ79: 18 | AK79: 0 | AL79: 11 | AM79: 0
C80: 떨어짐(높이가 있는 곳에서 사람이 떨어짐) | D80: 17 | E80: 0 | F80: 1 | G80: 0 | H80: 3 | I80: 0 | J80: 5 | K80: 0 | L80: 5 | M80: 0 | N80: 3 | O80: 0 | P80: 11 | Q80: 2 | R80: 3 | S80: 0 | T80: 0 | U80: 0 | V80: 4 | W80: 2 | X80: 2 | Y80: 0 | Z80: 2 | AA80: 0 | AB80: 10 | AC80: 0 | AD80: 1 | AE80: 0 | AF80: 3 | AG80: 0 | AH80: 1 | AI80: 0 | AJ80: 2 | AK80: 0 | AL80: 3 | AM80: 0
C81: 넘어짐(사람이 미끄러지거나 넘어짐) | D81: 21 | E81: 0 | F81: 4 | G81: 0 | H81: 4 | I81: 0 | J81: 4 | K81: 0 | L81: 3 | M81: 0 | N81: 6 | O81: 0 | P81: 11 | Q81: 0 | R81: 2 | S81: 0 | T81: 2 | U81: 0 | V81: 2 | W81: 0 | X81: 2 | Y81: 0 | Z81: 3 | AA81: 0 | AB81: 13 | AC81: 0 | AD81: 5 | AE81: 0 | AF81: 2 | AG81: 0 | AH81: 2 | AI81: 0 | AJ81: 3 | AK81: 0 | AL81: 1 | AM81: 0
C82: 깔림·뒤집힘(물체의 쓰러짐이나 뒤집힘) | D82: 4 | E82: 0 | F82: 1 | G82: 0 | H82: 0 | I82: 0 | J82: 2 | K82: 0 | L82: 0 | M82: 0 | N82: 1 | O82: 0 | P82: 4 | Q82: 0 | R82: 0 | S82: 0 | T82: 0 | U82: 0 | V82: 2 | W82: 0 | X82: 2 | Y82: 0 | Z82: 0 | AA82: 0 | AB82: 3 | AC82: 0 | AD82: 2 | AE82: 0 | AF82: 0 | AG82: 0 | AH82: 1 | AI82: 0 | AJ82: 0 | AK82: 0 | AL82: 0 | AM82: 0
C83: 부딪힘(물체에 부딪힘) | D83: 12 | E83: 0 | F83: 2 | G83: 0 | H83: 3 | I83: 0 | J83: 3 | K83: 0 | L83: 2 | M83: 0 | N83: 2 | O83: 0 | P83: 14 | Q83: 0 | R83: 4 | S83: 0 | T83: 3 | U83: 0 | V83: 4 | W83: 0 | X83: 1 | Y83: 0 | Z83: 2 | AA83: 0 | AB83: 14 | AC83: 0 | AD83: 5 | AE83: 0 | AF83: 0 | AG83: 0 | AH83: 4 | AI83: 0 | AJ83: 4 | AK83: 0 | AL83: 1 | AM83: 0
C84: 물체에 맞음(날아오거나 떨어진 물체에 맞음) | D84: 10 | E84: 1 | F84: 3 | G84: 0 | H84: 1 | I84: 0 | J84: 2 | K84: 0 | L84: 3 | M84: 1 | N84: 1 | O84: 0 | P84: 6 | Q84: 0 | R84: 4 | S84: 0 | T84: 0 | U84: 0 | V84: 1 | W84: 0 | X84: 0 | Y84: 0 | Z84: 1 | AA84: 0 | AB84: 9 | AC84: 0 | AD84: 4 | AE84: 0 | AF84: 1 | AG84: 0 | AH84: 2 | AI84: 0 | AJ84: 2 | AK84: 0 | AL84: 0 | AM84: 0
C85: 무너짐(건축물이나 쌓여진 물체가 무너짐) | D85: 1 | E85: 0 | F85: 0 | G85: 0 | H85: 0 | I85: 0 | J85: 0 | K85: 0 | L85: 1 | M85: 0 | N85: 0 | O85: 0 | P85: 0 | Q85: 0 | R85: 0 | S85: 0 | T85: 0 | U85: 0 | V85: 0 | W85: 0 | X85: 0 | Y85: 0 | Z85: 0 | AA85: 0 | AB85: 0 | AC85: 0 | AD85: 0 | AE85: 0 | AF85: 0 | AG85: 0 | AH85: 0 | AI85: 0 | AJ85: 0 | AK85: 0 | AL85: 0 | AM85: 0
C86: 끼임(기계설비에 끼이거나 감김) | D86: 36 | E86: 0 | F86: 8 | G86: 0 | H86: 4 | I86: 0 | J86: 9 | K86: 0 | L86: 8 | M86: 0 | N86: 7 | O86: 0 | P86: 22 | Q86: 0 | R86: 7 | S86: 0 | T86: 2 | U86: 0 | V86: 6 | W86: 0 | X86: 4 | Y86: 0 | Z86: 3 | AA86: 0 | AB86: 21 | AC86: 0 | AD86: 7 | AE86: 0 | AF86: 2 | AG86: 0 | AH86: 5 | AI86: 0 | AJ86: 5 | AK86: 0 | AL86: 2 | AM86: 0
C87: 절단·베임·찔림 | D87: 5 | E87: 0 | F87: 0 | G87: 0 | H87: 3 | I87: 0 | J87: 2 | K87: 0 | L87: 0 | M87: 0 | N87: 0 | O87: 0 | P87: 8 | Q87: 0 | R87: 5 | S87: 0 | T87: 2 | U87: 0 | V87: 0 | W87: 0 | X87: 1 | Y87: 0 | Z87: 0 | AA87: 0 | AB87: 4 | AC87: 0 | AD87: 1 | AE87: 0 | AF87: 2 | AG87: 0 | AH87: 1 | AI87: 0 | AJ87: 0 | AK87: 0 | AL87: 0 | AM87: 0
C88: 폭발·파열 | D88: 0 | E88: 0 | F88: 0 | G88: 0 | H88: 0 | I88: 0 | J88: 0 | K88: 0 | L88: 0 | M88: 0 | N88: 0 | O88: 0 | P88: 0 | Q88: 0 | R88: 0 | S88: 0 | T88: 0 | U88: 0 | V88: 0 | W88: 0 | X88: 0 | Y88: 0 | Z88: 0 | AA88: 0 | AB88: 2 | AC88: 0 | AD88: 2 | AE88: 0 | AF88: 0 | AG88: 0 | AH88: 0 | AI88: 0 | AJ88: 0 | AK88: 0 | AL88: 0 | AM88: 0
C89: 화재 | D89: 2 | E89: 0 | F89: 0 | G89: 0 | H89: 0 | I89: 0 | J89: 0 | K89: 0 | L89: 2 | M89: 0 | N89: 0 | O89: 0 | P89: 0 | Q89: 0 | R89: 0 | S89: 0 | T89: 0 | U89: 0 | V89: 0 | W89: 0 | X89: 0 | Y89: 0 | Z89: 0 | AA89: 0 | AB89: 0 | AC89: 0 | AD89: 0 | AE89: 0 | AF89: 0 | AG89: 0 | AH89: 0 | AI89: 0 | AJ89: 0 | AK89: 0 | AL89: 0 | AM89: 0
C90: 불균형 및 무리한 동작 | D90: 7 | E90: 0 | F90: 4 | G90: 0 | H90: 1 | I90: 0 | J90: 1 | K90: 0 | L90: 0 | M90: 0 | N90: 1 | O90: 0 | P90: 3 | Q90: 0 | R90: 1 | S90: 0 | T90: 0 | U90: 0 | V90: 1 | W90: 0 | X90: 1 | Y90: 0 | Z90: 0 | AA90: 0 | AB90: 6 | AC90: 0 | AD90: 3 | AE90: 0 | AF90: 1 | AG90: 0 | AH90: 0 | AI90: 0 | AJ90: 1 | AK90: 0 | AL90: 1 | AM90: 0
C91: 이상온도 접촉 | D91: 9 | E91: 0 | F91: 1 | G91: 0 | H91: 1 | I91: 0 | J91: 6 | K91: 0 | L91: 0 | M91: 0 | N91: 1 | O91: 0 | P91: 4 | Q91: 0 | R91: 1 | S91: 0 | T91: 0 | U91: 0 | V91: 2 | W91: 0 | X91: 1 | Y91: 0 | Z91: 0 | AA91: 0 | AB91: 10 | AC91: 0 | AD91: 3 | AE91: 0 | AF91: 0 | AG91: 0 | AH91: 5 | AI91: 0 | AJ91: 1 | AK91: 0 | AL91: 1 | AM91: 0
C92: 화학물질누출·접촉 | D92: 2 | E92: 0 | F92: 1 | G92: 0 | H92: 0 | I92: 0 | J92: 0 | K92: 0 | L92: 0 | M92: 0 | N92: 1 | O92: 0 | P92: 2 | Q92: 0 | R92: 1 | S92: 0 | T92: 0 | U92: 0 | V92: 1 | W92: 0 | X92: 0 | Y92: 0 | Z92: 0 | AA92: 0 | AB92: 5 | AC92: 0 | AD92: 0 | AE92: 0 | AF92: 0 | AG92: 0 | AH92: 3 | AI92: 0 | AJ92: 0 | AK92: 0 | AL92: 2 | AM92: 0
C93: 사업장외 교통사고 | D93: 1 | E93: 0 | F93: 0 | G93: 0 | H93: 1 | I93: 0 | J93: 0 | K93: 0 | L93: 0 | M93: 0 | N93: 0 | O93: 0 | P93: 1 | Q93: 0 | R93: 1 | S93: 0 | T93: 0 | U93: 0 | V93: 0 | W93: 0 | X93: 0 | Y93: 0 | Z93: 0 | AA93: 0 | AB93: 0 | AC93: 0 | AD93: 0 | AE93: 0 | AF93: 0 | AG93: 0 | AH93: 0 | AI93: 0 | AJ93: 0 | AK93: 0 | AL93: 0 | AM93: 0
C94: 체육행사 등의 사고 | D94: 0 | E94: 0 | F94: 0 | G94: 0 | H94: 0 | I94: 0 | J94: 0 | K94: 0 | L94: 0 | M94: 0 | N94: 0 | O94: 0 | P94: 0 | Q94: 0 | R94: 0 | S94: 0 | T94: 0 | U94: 0 | V94: 0 | W94: 0 | X94: 0 | Y94: 0 | Z94: 0 | AA94: 0 | AB94: 1 | AC94: 0 | AD94: 0 | AE94: 0 | AF94: 0 | AG94: 0 | AH94: 1 | AI94: 0 | AJ94: 0 | AK94: 0 | AL94: 0 | AM94: 0
C95: 물리적인자 | D95: 0 | E95: 0 | F95: 0 | G95: 0 | H95: 0 | I95: 0 | J95: 0 | K95: 0 | L95: 0 | M95: 0 | N95: 0 | O95: 0 | P95: 0 | Q95: 0 | R95: 0 | S95: 0 | T95: 0 | U95: 0 | V95: 0 | W95: 0 | X95: 0 | Y95: 0 | Z95: 0 | AA95: 0 | AB95: 0 | AC95: 0 | AD95: 0 | AE95: 0 | AF95: 0 | AG95: 0 | AH95: 0 | AI95: 0 | AJ95: 0 | AK95: 0 | AL95: 0 | AM95: 0
C96: 화학적인자 | D96: 0 | E96: 0 | F96: 0 | G96: 0 | H96: 0 | I96: 0 | J96: 0 | K96: 0 | L96: 0 | M96: 0 | N96: 0 | O96: 0 | P96: 0 | Q96: 0 | R96: 0 | S96: 0 | T96: 0 | U96: 0 | V96: 0 | W96: 0 | X96: 0 | Y96: 0 | Z96: 0 | AA96: 0 | AB96: 0 | AC96: 0 | AD96: 0 | AE96: 0 | AF96: 0 | AG96: 0 | AH96: 0 | AI96: 0 | AJ96: 0 | AK96: 0 | AL96: 0 | AM96: 0
C97: 직업병기타 | D97: 0 | E97: 0 | F97: 0 | G97: 0 | H97: 0 | I97: 0 | J97: 0 | K97: 0 | L97: 0 | M97: 0 | N97: 0 | O97: 0 | P97: 0 | Q97: 0 | R97: 0 | S97: 0 | T97: 0 | U97: 0 | V97: 0 | W97: 0 | X97: 0 | Y97: 0 | Z97: 0 | AA97: 0 | AB97: 0 | AC97: 0 | AD97: 0 | AE97: 0 | AF97: 0 | AG97: 0 | AH97: 0 | AI97: 0 | AJ97: 0 | AK97: 0 | AL97: 0 | AM97: 0
C98: 화학적인자 | D98: 0 | E98: 0 | F98: 0 | G98: 0 | H98: 0 | I98: 0 | J98: 0 | K98: 0 | L98: 0 | M98: 0 | N98: 0 | O98: 0 | P98: 0 | Q98: 0 | R98: 0 | S98: 0 | T98: 0 | U98: 0 | V98: 0 | W98: 0 | X98: 0 | Y98: 0 | Z98: 0 | AA98: 0 | AB98: 0 | AC98: 0 | AD98: 0 | AE98: 0 | AF98: 0 | AG98: 0 | AH98: 0 | AI98: 0 | AJ98: 0 | AK98: 0 | AL98: 0 | AM98: 0
C99: 근골격계질환 | D99: 0 | E99: 0 | F99: 0 | G99: 0 | H99: 0 | I99: 0 | J99: 0 | K99: 0 | L99: 0 | M99: 0 | N99: 0 | O99: 0 | P99: 0 | Q99: 0 | R99: 0 | S99: 0 | T99: 0 | U99: 0 | V99: 0 | W99: 0 | X99: 0 | Y99: 0 | Z99: 0 | AA99: 0 | AB99: 0 | AC99: 0 | AD99: 0 | AE99: 0 | AF99: 0 | AG99: 0 | AH99: 0 | AI99: 0 | AJ99: 0 | AK99: 0 | AL99: 0 | AM99: 0
C100: 작업관련성질환 기타 | D100: 0 | E100: 0 | F100: 0 | G100: 0 | H100: 0 | I100: 0 | J100: 0 | K100: 0 | L100: 0 | M100: 0 | N100: 0 | O100: 0 | P100: 0 | Q100: 0 | R100: 0 | S100: 0 | T100: 0 | U100: 0 | V100: 0 | W100: 0 | X100: 0 | Y100: 0 | Z100: 0 | AA100: 0 | AB100: 0 | AC100: 0 | AD100: 0 | AE100: 0 | AF100: 0 | AG100: 0 | AH100: 0 | AI100: 0 | AJ100: 0 | AK100: 0 | AL100: 0 | AM100: 0
C101: 분류불능 | D101: 1 | E101: 0 | F101: 0 | G101: 0 | H101: 0 | I101: 0 | J101: 0 | K101: 0 | L101: 0 | M101: 0 | N101: 1 | O101: 0 | P101: 0 | Q101: 0 | R101: 0 | S101: 0 | T101: 0 | U101: 0 | V101: 0 | W101: 0 | X101: 0 | Y101: 0 | Z101: 0 | AA101: 0 | AB101: 0 | AC101: 0 | AD101: 0 | AE101: 0 | AF101: 0 | AG101: 0 | AH101: 0 | AI101: 0 | AJ101: 0 | AK101: 0 | AL101: 0 | AM101: 0
B102: 금속제련업 | C102: 합계 | D102: 0 | E102: 0 | F102: 0 | G102: 0 | H102: 0 | I102: 0 | J102: 0 | K102: 0 | L102: 0 | M102: 0 | N102: 0 | O102: 0 | P102: 0 | Q102: 0 | R102: 0 | S102: 0 | T102: 0 | U102: 0 | V102: 0 | W102: 0 | X102: 0 | Y102: 0 | Z102: 0 | AA102: 0 | AB102: 0 | AC102: 0 | AD102: 0 | AE102: 0 | AF102: 0 | AG102: 0 | AH102: 0 | AI102: 0 | AJ102: 0 | AK102: 0 | AL102: 0 | AM102: 0
C103: 근골격계질환 | D103: 0 | E103: 0 | F103: 0 | G103: 0 | H103: 0 | I103: 0 | J103: 0 | K103: 0 | L103: 0 | M103: 0 | N103: 0 | O103: 0 | P103: 0 | Q103: 0 | R103: 0 | S103: 0 | T103: 0 | U103: 0 | V103: 0 | W103: 0 | X103: 0 | Y103: 0 | Z103: 0 | AA103: 0 | AB103: 0 | AC103: 0 | AD103: 0 | AE103: 0 | AF103: 0 | AG103: 0 | AH103: 0 | AI103: 0 | AJ103: 0 | AK103: 0 | AL103: 0 | AM103: 0
B104: 전기기계기구·정밀기구·전자제품제조업 | C104: 합계 | D104: 17 | E104: 1 | F104: 10 | G104: 1 | H104: 2 | I104: 0 | J104: 2 | K104: 0 | L104: 1 | M104: 0 | N104: 2 | O104: 0 | P104: 12 | Q104: 0 | R104: 3 | S104: 0 | T104: 5 | U104: 0 | V104: 4 | W104: 0 | X104: 0 | Y104: 0 | Z104: 0 | AA104: 0 | AB104: 4 | AC104: 0 | AD104: 2 | AE104: 0 | AF104: 2 | AG104: 0 | AH104: 0 | AI104: 0 | AJ104: 0 | AK104: 0 | AL104: 0 | AM104: 0
C105: 떨어짐(높이가 있는 곳에서 사람이 떨어짐) | D105: 2 | E105: 1 | F105: 2 | G105: 1 | H105: 0 | I105: 0 | J105: 0 | K105: 0 | L105: 0 | M105: 0 | N105: 0 | O105: 0 | P105: 0 | Q105: 0 | R105: 0 | S105: 0 | T105: 0 | U105: 0 | V105: 0 | W105: 0 | X105: 0 | Y105: 0 | Z105: 0 | AA105: 0 | AB105: 1 | AC105: 0 | AD105: 1 | AE105: 0 | AF105: 0 | AG105: 0 | AH105: 0 | AI105: 0 | AJ105: 0 | AK105: 0 | AL105: 0 | AM105: 0
C106: 넘어짐(사람이 미끄러지거나 넘어짐) | D106: 1 | E106: 0 | F106: 0 | G106: 0 | H106: 0 | I106: 0 | J106: 0 | K106: 0 | L106: 0 | M106: 0 | N106: 1 | O106: 0 | P106: 1 | Q106: 0 | R106: 0 | S106: 0 | T106: 1 | U106: 0 | V106: 0 | W106: 0 | X106: 0 | Y106: 0 | Z106: 0 | AA106: 0 | AB106: 0 | AC106: 0 | AD106: 0 | AE106: 0 | AF106: 0 | AG106: 0 | AH106: 0 | AI106: 0 | AJ106: 0 | AK106: 0 | AL106: 0 | AM106: 0
C107: 깔림·뒤집힘(물체의 쓰러짐이나 뒤집힘) | D107: 1 | E107: 0 | F107: 1 | G107: 0 | H107: 0 | I107: 0 | J107: 0 | K107: 0 | L107: 0 | M107: 0 | N107: 0 | O107: 0 | P107: 1 | Q107: 0 | R107: 0 | S107: 0 | T107: 1 | U107: 0 | V107: 0 | W107: 0 | X107: 0 | Y107: 0 | Z107: 0 | AA107: 0 | AB107: 0 | AC107: 0 | AD107: 0 | AE107: 0 | AF107: 0 | AG107: 0 | AH107: 0 | AI107: 0 | AJ107: 0 | AK107: 0 | AL107: 0 | AM107: 0
C108: 부딪힘(물체에 부딪힘) | D108: 3 | E108: 0 | F108: 2 | G108: 0 | H108: 0 | I108: 0 | J108: 1 | K108: 0 | L108: 0 | M108: 0 | N108: 0 | O108: 0 | P108: 0 | Q108: 0 | R108: 0 | S108: 0 | T108: 0 | U108: 0 | V108: 0 | W108: 0 | X108: 0 | Y108: 0 | Z108: 0 | AA108: 0 | AB108: 0 | AC108: 0 | AD108: 0 | AE108: 0 | AF108: 0 | AG108: 0 | AH108: 0 | AI108: 0 | AJ108: 0 | AK108: 0 | AL108: 0 | AM108: 0
C109: 물체에 맞음(날아오거나 떨어진 물체에 맞음) | D109: 3 | E109: 0 | F109: 2 | G109: 0 | H109: 0 | I109: 0 | J109: 0 | K109: 0 | L109: 0 | M109: 0 | N109: 1 | O109: 0 | P109: 0 | Q109: 0 | R109: 0 | S109: 0 | T109: 0 | U109: 0 | V109: 0 | W109: 0 | X109: 0 | Y109: 0 | Z109: 0 | AA109: 0 | AB109: 0 | AC109: 0 | AD109: 0 | AE109: 0 | AF109: 0 | AG109: 0 | AH109: 0 | AI109: 0 | AJ109: 0 | AK109: 0 | AL109: 0 | AM109: 0
C110: 끼임(기계설비에 끼이거나 감김) | D110: 2 | E110: 0 | F110: 0 | G110: 0 | H110: 1 | I110: 0 | J110: 0 | K110: 0 | L110: 1 | M110: 0 | N110: 0 | O110: 0 | P110: 7 | Q110: 0 | R110: 2 | S110: 0 | T110: 1 | U110: 0 | V110: 4 | W110: 0 | X110: 0 | Y110: 0 | Z110: 0 | AA110: 0 | AB110: 1 | AC110: 0 | AD110: 0 | AE110: 0 | AF110: 1 | AG110: 0 | AH110: 0 | AI110: 0 | AJ110: 0 | AK110: 0 | AL110: 0 | AM110: 0
C111: 절단·베임·찔림 | D111: 1 | E111: 0 | F111: 0 | G111: 0 | H111: 0 | I111: 0 | J111: 1 | K111: 0 | L111: 0 | M111: 0 | N111: 0 | O111: 0 | P111: 2 | Q111: 0 | R111: 1 | S111: 0 | T111: 1 | U111: 0 | V111: 0 | W111: 0 | X111: 0 | Y111: 0 | Z111: 0 | AA111: 0 | AB111: 0 | AC111: 0 | AD111: 0 | AE111: 0 | AF111: 0 | AG111: 0 | AH111: 0 | AI111: 0 | AJ111: 0 | AK111: 0 | AL111: 0 | AM111: 0
C112: 감전 | D112: 1 | E112: 0 | F112: 1 | G112: 0 | H112: 0 | I112: 0 | J112: 0 | K112: 0 | L112: 0 | M112: 0 | N112: 0 | O112: 0 | P112: 0 | Q112: 0 | R112: 0 | S112: 0 | T112: 0 | U112: 0 | V112: 0 | W112: 0 | X112: 0 | Y112: 0 | Z112: 0 | AA112: 0 | AB112: 0 | AC112: 0 | AD112: 0 | AE112: 0 | AF112: 0 | AG112: 0 | AH112: 0 | AI112: 0 | AJ112: 0 | AK112: 0 | AL112: 0 | AM112: 0
C113: 불균형 및 무리한 동작 | D113: 0 | E113: 0 | F113: 0 | G113: 0 | H113: 0 | I113: 0 | J113: 0 | K113: 0 | L113: 0 | M113: 0 | N113: 0 | O113: 0 | P113: 1 | Q113: 0 | R113: 0 | S113: 0 | T113: 1 | U113: 0 | V113: 0 | W113: 0 | X113: 0 | Y113: 0 | Z113: 0 | AA113: 0 | AB113: 0 | AC113: 0 | AD113: 0 | AE113: 0 | AF113: 0 | AG113: 0 | AH113: 0 | AI113: 0 | AJ113: 0 | AK113: 0 | AL113: 0 | AM113: 0
C114: 이상온도 접촉 | D114: 0 | E114: 0 | F114: 0 | G114: 0 | H114: 0 | I114: 0 | J114: 0 | K114: 0 | L114: 0 | M114: 0 | N114: 0 | O114: 0 | P114: 0 | Q114: 0 | R114: 0 | S114: 0 | T114: 0 | U114: 0 | V114: 0 | W114: 0 | X114: 0 | Y114: 0 | Z114: 0 | AA114: 0 | AB114: 2 | AC114: 0 | AD114: 1 | AE114: 0 | AF114: 1 | AG114: 0 | AH114: 0 | AI114: 0 | AJ114: 0 | AK114: 0 | AL114: 0 | AM114: 0
C115: 사업장외 교통사고 | D115: 1 | E115: 0 | F115: 1 | G115: 0 | H115: 0 | I115: 0 | J115: 0 | K115: 0 | L115: 0 | M115: 0 | N115: 0 | O115: 0 | P115: 0 | Q115: 0 | R115: 0 | S115: 0 | T115: 0 | U115: 0 | V115: 0 | W115: 0 | X115: 0 | Y115: 0 | Z115: 0 | AA115: 0 | AB115: 0 | AC115: 0 | AD115: 0 | AE115: 0 | AF115: 0 | AG115: 0 | AH115: 0 | AI115: 0 | AJ115: 0 | AK115: 0 | AL115: 0 | AM115: 0
C116: 해상항공 교통사고 | D116: 1 | E116: 0 | F116: 1 | G116: 0 | H116: 0 | I116: 0 | J116: 0 | K116: 0 | L116: 0 | M116: 0 | N116: 0 | O116: 0 | P116: 0 | Q116: 0 | R116: 0 | S116: 0 | T116: 0 | U116: 0 | V116: 0 | W116: 0 | X116: 0 | Y116: 0 | Z116: 0 | AA116: 0 | AB116: 0 | AC116: 0 | AD116: 0 | AE116: 0 | AF116: 0 | AG116: 0 | AH116: 0 | AI116: 0 | AJ116: 0 | AK116: 0 | AL116: 0 | AM116: 0
C117: 기타 | D117: 1 | E117: 0 | F117: 0 | G117: 0 | H117: 1 | I117: 0 | J117: 0 | K117: 0 | L117: 0 | M117: 0 | N117: 0 | O117: 0 | P117: 0 | Q117: 0 | R117: 0 | S117: 0 | T117: 0 | U117: 0 | V117: 0 | W117: 0 | X117: 0 | Y117: 0 | Z117: 0 | AA117: 0 | AB117: 0 | AC117: 0 | AD117: 0 | AE117: 0 | AF117: 0 | AG117: 0 | AH117: 0 | AI117: 0 | AJ117: 0 | AK117: 0 | AL117: 0 | AM117: 0
C118: 근골격계질환 | D118: 0 | E118: 0 | F118: 0 | G118: 0 | H118: 0 | I118: 0 | J118: 0 | K118: 0 | L118: 0 | M118: 0 | N118: 0 | O118: 0 | P118: 0 | Q118: 0 | R118: 0 | S118: 0 | T118: 0 | U118: 0 | V118: 0 | W118: 0 | X118: 0 | Y118: 0 | Z118: 0 | AA118: 0 | AB118: 0 | AC118: 0 | AD118: 0 | AE118: 0 | AF118: 0 | AG118: 0 | AH118: 0 | AI118: 0 | AJ118: 0 | AK118: 0 | AL118: 0 | AM118: 0
B119: 선박건조및수리업 | C119: 합계 | D119: 154 | E119: 3 | F119: 67 | G119: 2 | H119: 34 | I119: 1 | J119: 31 | K119: 0 | L119: 13 | M119: 0 | N119: 9 | O119: 0 | P119: 131 | Q119: 2 | R119: 72 | S119: 2 | T119: 25 | U119: 0 | V119: 15 | W119: 0 | X119: 10 | Y119: 0 | Z119: 9 | AA119: 0 | AB119: 96 | AC119: 1 | AD119: 43 | AE119: 0 | AF119: 24 | AG119: 1 | AH119: 15 | AI119: 0 | AJ119: 12 | AK119: 0 | AL119: 2 | AM119: 0
C120: 떨어짐(높이가 있는 곳에서 사람이 떨어짐) | D120: 24 | E120: 1 | F120: 9 | G120: 1 | H120: 6 | I120: 0 | J120: 5 | K120: 0 | L120: 3 | M120: 0 | N120: 1 | O120: 0 | P120: 18 | Q120: 1 | R120: 12 | S120: 1 | T120: 1 | U120: 0 | V120: 0 | W120: 0 | X120: 3 | Y120: 0 | Z120: 2 | AA120: 0 | AB120: 23 | AC120: 1 | AD120: 12 | AE120: 0 | AF120: 5 | AG120: 1 | AH120: 1 | AI120: 0 | AJ120: 5 | AK120: 0 | AL120: 0 | AM120: 0
C121: 넘어짐(사람이 미끄러지거나 넘어짐) | D121: 34 | E121: 0 | F121: 14 | G121: 0 | H121: 9 | I121: 0 | J121: 7 | K121: 0 | L121: 4 | M121: 0 | N121: 0 | O121: 0 | P121: 30 | Q121: 0 | R121: 18 | S121: 0 | T121: 4 | U121: 0 | V121: 5 | W121: 0 | X121: 2 | Y121: 0 | Z121: 1 | AA121: 0 | AB121: 17 | AC121: 0 | AD121: 9 | AE121: 0 | AF121: 5 | AG121: 0 | AH121: 2 | AI121: 0 | AJ121: 0 | AK121: 0 | AL121: 1 | AM121: 0
C122: 깔림·뒤집힘(물체의 쓰러짐이나 뒤집힘) | D122: 4 | E122: 0 | F122: 1 | G122: 0 | H122: 1 | I122: 0 | J122: 0 | K122: 0 | L122: 2 | M122: 0 | N122: 0 | O122: 0 | P122: 3 | Q122: 0 | R122: 3 | S122: 0 | T122: 0 | U122: 0 | V122: 0 | W122: 0 | X122: 0 | Y122: 0 | Z122: 0 | AA122: 0 | AB122: 5 | AC122: 0 | AD122: 1 | AE122: 0 | AF122: 1 | AG122: 0 | AH122: 2 | AI122: 0 | AJ122: 1 | AK122: 0 | AL122: 0 | AM122: 0
C123: 부딪힘(물체에 부딪힘) | D123: 14 | E123: 0 | F123: 6 | G123: 0 | H123: 4 | I123: 0 | J123: 3 | K123: 0 | L123: 1 | M123: 0 | N123: 0 | O123: 0 | P123: 20 | Q123: 0 | R123: 10 | S123: 0 | T123: 6 | U123: 0 | V123: 2 | W123: 0 | X123: 1 | Y123: 0 | Z123: 1 | AA123: 0 | AB123: 8 | AC123: 0 | AD123: 5 | AE123: 0 | AF123: 1 | AG123: 0 | AH123: 2 | AI123: 0 | AJ123: 0 | AK123: 0 | AL123: 0 | AM123: 0
C124: 물체에 맞음(날아오거나 떨어진 물체에 맞음) | D124: 20 | E124: 0 | F124: 12 | G124: 0 | H124: 3 | I124: 0 | J124: 3 | K124: 0 | L124: 1 | M124: 0 | N124: 1 | O124: 0 | P124: 14 | Q124: 0 | R124: 5 | S124: 0 | T124: 3 | U124: 0 | V124: 3 | W124: 0 | X124: 1 | Y124: 0 | Z124: 2 | AA124: 0 | AB124: 16 | AC124: 0 | AD124: 7 | AE124: 0 | AF124: 5 | AG124: 0 | AH124: 1 | AI124: 0 | AJ124: 3 | AK124: 0 | AL124: 0 | AM124: 0
C125: 끼임(기계설비에 끼이거나 감김) | D125: 24 | E125: 0 | F125: 10 | G125: 0 | H125: 6 | I125: 0 | J125: 5 | K125: 0 | L125: 1 | M125: 0 | N125: 2 | O125: 0 | P125: 19 | Q125: 0 | R125: 8 | S125: 0 | T125: 6 | U125: 0 | V125: 3 | W125: 0 | X125: 1 | Y125: 0 | Z125: 1 | AA125: 0 | AB125: 8 | AC125: 0 | AD125: 4 | AE125: 0 | AF125: 2 | AG125: 0 | AH125: 1 | AI125: 0 | AJ125: 1 | AK125: 0 | AL125: 0 | AM125: 0
C126: 절단·베임·찔림 | D126: 6 | E126: 0 | F126: 3 | G126: 0 | H126: 0 | I126: 0 | J126: 2 | K126: 0 | L126: 0 | M126: 0 | N126: 1 | O126: 0 | P126: 8 | Q126: 0 | R126: 4 | S126: 0 | T126: 1 | U126: 0 | V126: 1 | W126: 0 | X126: 1 | Y126: 0 | Z126: 1 | AA126: 0 | AB126: 6 | AC126: 0 | AD126: 1 | AE126: 0 | AF126: 1 | AG126: 0 | AH126: 3 | AI126: 0 | AJ126: 1 | AK126: 0 | AL126: 0 | AM126: 0
C127: 감전 | D127: 1 | E127: 0 | F127: 1 | G127: 0 | H127: 0 | I127: 0 | J127: 0 | K127: 0 | L127: 0 | M127: 0 | N127: 0 | O127: 0 | P127: 2 | Q127: 0 | R127: 1 | S127: 0 | T127: 1 | U127: 0 | V127: 0 | W127: 0 | X127: 0 | Y127: 0 | Z127: 0 | AA127: 0 | AB127: 0 | AC127: 0 | AD127: 0 | AE127: 0 | AF127: 0 | AG127: 0 | AH127: 0 | AI127: 0 | AJ127: 0 | AK127: 0 | AL127: 0 | AM127: 0
C128: 폭발·파열 | D128: 1 | E128: 0 | F128: 0 | G128: 0 | H128: 0 | I128: 0 | J128: 1 | K128: 0 | L128: 0 | M128: 0 | N128: 0 | O128: 0 | P128: 2 | Q128: 0 | R128: 2 | S128: 0 | T128: 0 | U128: 0 | V128: 0 | W128: 0 | X128: 0 | Y128: 0 | Z128: 0 | AA128: 0 | AB128: 3 | AC128: 0 | AD128: 1 | AE128: 0 | AF128: 0 | AG128: 0 | AH128: 1 | AI128: 0 | AJ128: 0 | AK128: 0 | AL128: 1 | AM128: 0
C129: 화재 | D129: 1 | E129: 0 | F129: 1 | G129: 0 | H129: 0 | I129: 0 | J129: 0 | K129: 0 | L129: 0 | M129: 0 | N129: 0 | O129: 0 | P129: 1 | Q129: 0 | R129: 1 | S129: 0 | T129: 0 | U129: 0 | V129: 0 | W129: 0 | X129: 0 | Y129: 0 | Z129: 0 | AA129: 0 | AB129: 1 | AC129: 0 | AD129: 1 | AE129: 0 | AF129: 0 | AG129: 0 | AH129: 0 | AI129: 0 | AJ129: 0 | AK129: 0 | AL129: 0 | AM129: 0
C130: 불균형 및 무리한 동작 | D130: 7 | E130: 0 | F130: 3 | G130: 0 | H130: 1 | I130: 0 | J130: 1 | K130: 0 | L130: 0 | M130: 0 | N130: 2 | O130: 0 | P130: 6 | Q130: 0 | R130: 2 | S130: 0 | T130: 2 | U130: 0 | V130: 1 | W130: 0 | X130: 1 | Y130: 0 | Z130: 0 | AA130: 0 | AB130: 2 | AC130: 0 | AD130: 0 | AE130: 0 | AF130: 1 | AG130: 0 | AH130: 1 | AI130: 0 | AJ130: 0 | AK130: 0 | AL130: 0 | AM130: 0
C131: 이상온도 접촉 | D131: 13 | E131: 0 | F131: 5 | G131: 0 | H131: 3 | I131: 0 | J131: 3 | K131: 0 | L131: 1 | M131: 0 | N131: 1 | O131: 0 | P131: 6 | Q131: 0 | R131: 5 | S131: 0 | T131: 0 | U131: 0 | V131: 0 | W131: 0 | X131: 0 | Y131: 0 | Z131: 1 | AA131: 0 | AB131: 6 | AC131: 0 | AD131: 2 | AE131: 0 | AF131: 2 | AG131: 0 | AH131: 1 | AI131: 0 | AJ131: 1 | AK131: 0 | AL131: 0 | AM131: 0
C132: 산소결핍 | D132: =SUM(F132,H132,J132,L132,N132) -> 2 | E132: 2 | F132: 1 | G132: 1 | H132: 1 | I132: 1 | J132: 0 | K132: 0 | L132: 0 | M132: 0 | N132: 0 | O132: 0 | P132: =SUM(R132,T132,V132,X132,Z132) -> 0 | Q132: 0 | R132: 0 | S132: 0 | T132: 0 | U132: 0 | V132: 0 | W132: 0 | X132: 0 | Y132: 0 | Z132: 0 | AA132: 0 | AB132: =SUM(AD132,AF132,AH132,AJ132,AL132) -> 0 | AC132: 0 | AD132: 0 | AE132: 0 | AF132: 0 | AG132: 0 | AH132: 0 | AI132: 0 | AJ132: 0 | AK132: 0 | AL132: 0 | AM132: 0
C133: 빠짐·익사 | D133: 0 | E133: 0 | F133: 0 | G133: 0 | H133: 0 | I133: 0 | J133: 0 | K133: 0 | L133: 0 | M133: 0 | N133: 0 | O133: 0 | P133: 1 | Q133: 1 | R133: 1 | S133: 1 | T133: 0 | U133: 0 | V133: 0 | W133: 0 | X133: 0 | Y133: 0 | Z133: 0 | AA133: 0 | AB133: 0 | AC133: 0 | AD133: 0 | AE133: 0 | AF133: 0 | AG133: 0 | AH133: 0 | AI133: 0 | AJ133: 0 | AK133: 0 | AL133: 0 | AM133: 0
C134: 사업장외 교통사고 | D134: 3 | E134: 0 | F134: 1 | G134: 0 | H134: 0 | I134: 0 | J134: 1 | K134: 0 | L134: 0 | M134: 0 | N134: 1 | O134: 0 | P134: 1 | Q134: 0 | R134: 0 | S134: 0 | T134: 1 | U134: 0 | V134: 0 | W134: 0 | X134: 0 | Y134: 0 | Z134: 0 | AA134: 0 | AB134: 1 | AC134: 0 | AD134: 0 | AE134: 0 | AF134: 1 | AG134: 0 | AH134: 0 | AI134: 0 | AJ134: 0 | AK134: 0 | AL134: 0 | AM134: 0
C135: 물리적인자 | D135: 0 | E135: 0 | F135: 0 | G135: 0 | H135: 0 | I135: 0 | J135: 0 | K135: 0 | L135: 0 | M135: 0 | N135: 0 | O135: 0 | P135: 0 | Q135: 0 | R135: 0 | S135: 0 | T135: 0 | U135: 0 | V135: 0 | W135: 0 | X135: 0 | Y135: 0 | Z135: 0 | AA135: 0 | AB135: 0 | AC135: 0 | AD135: 0 | AE135: 0 | AF135: 0 | AG135: 0 | AH135: 0 | AI135: 0 | AJ135: 0 | AK135: 0 | AL135: 0 | AM135: 0
C136: 화학적인자 | D136: 0 | E136: 0 | F136: 0 | G136: 0 | H136: 0 | I136: 0 | J136: 0 | K136: 0 | L136: 0 | M136: 0 | N136: 0 | O136: 0 | P136: 0 | Q136: 0 | R136: 0 | S136: 0 | T136: 0 | U136: 0 | V136: 0 | W136: 0 | X136: 0 | Y136: 0 | Z136: 0 | AA136: 0 | AB136: 0 | AC136: 0 | AD136: 0 | AE136: 0 | AF136: 0 | AG136: 0 | AH136: 0 | AI136: 0 | AJ136: 0 | AK136: 0 | AL136: 0 | AM136: 0
C137: 직업병기타 | D137: 0 | E137: 0 | F137: 0 | G137: 0 | H137: 0 | I137: 0 | J137: 0 | K137: 0 | L137: 0 | M137: 0 | N137: 0 | O137: 0 | P137: 0 | Q137: 0 | R137: 0 | S137: 0 | T137: 0 | U137: 0 | V137: 0 | W137: 0 | X137: 0 | Y137: 0 | Z137: 0 | AA137: 0 | AB137: 0 | AC137: 0 | AD137: 0 | AE137: 0 | AF137: 0 | AG137: 0 | AH137: 0 | AI137: 0 | AJ137: 0 | AK137: 0 | AL137: 0 | AM137: 0
C138: 화학적인자 | D138: 0 | E138: 0 | F138: 0 | G138: 0 | H138: 0 | I138: 0 | J138: 0 | K138: 0 | L138: 0 | M138: 0 | N138: 0 | O138: 0 | P138: 0 | Q138: 0 | R138: 0 | S138: 0 | T138: 0 | U138: 0 | V138: 0 | W138: 0 | X138: 0 | Y138: 0 | Z138: 0 | AA138: 0 | AB138: 0 | AC138: 0 | AD138: 0 | AE138: 0 | AF138: 0 | AG138: 0 | AH138: 0 | AI138: 0 | AJ138: 0 | AK138: 0 | AL138: 0 | AM138: 0
C139: 뇌심혈관질환 | D139: 0 | E139: 0 | F139: 0 | G139: 0 | H139: 0 | I139: 0 | J139: 0 | K139: 0 | L139: 0 | M139: 0 | N139: 0 | O139: 0 | P139: 0 | Q139: 0 | R139: 0 | S139: 0 | T139: 0 | U139: 0 | V139: 0 | W139: 0 | X139: 0 | Y139: 0 | Z139: 0 | AA139: 0 | AB139: 0 | AC139: 0 | AD139: 0 | AE139: 0 | AF139: 0 | AG139: 0 | AH139: 0 | AI139: 0 | AJ139: 0 | AK139: 0 | AL139: 0 | AM139: 0
C140: 근골격계질환 | D140: 0 | E140: 0 | F140: 0 | G140: 0 | H140: 0 | I140: 0 | J140: 0 | K140: 0 | L140: 0 | M140: 0 | N140: 0 | O140: 0 | P140: 0 | Q140: 0 | R140: 0 | S140: 0 | T140: 0 | U140: 0 | V140: 0 | W140: 0 | X140: 0 | Y140: 0 | Z140: 0 | AA140: 0 | AB140: 0 | AC140: 0 | AD140: 0 | AE140: 0 | AF140: 0 | AG140: 0 | AH140: 0 | AI140: 0 | AJ140: 0 | AK140: 0 | AL140: 0 | AM140: 0
C141: 작업관련성질환 기타 | D141: 0 | E141: 0 | F141: 0 | G141: 0 | H141: 0 | I141: 0 | J141: 0 | K141: 0 | L141: 0 | M141: 0 | N141: 0 | O141: 0 | P141: 0 | Q141: 0 | R141: 0 | S141: 0 | T141: 0 | U141: 0 | V141: 0 | W141: 0 | X141: 0 | Y141: 0 | Z141: 0 | AA141: 0 | AB141: 0 | AC141: 0 | AD141: 0 | AE141: 0 | AF141: 0 | AG141: 0 | AH141: 0 | AI141: 0 | AJ141: 0 | AK141: 0 | AL141: 0 | AM141: 0
B142: 수제품및기타제품제조업 | C142: 합계 | D142: 21 | E142: 0 | F142: 10 | G142: 0 | H142: 3 | I142: 0 | J142: 2 | K142: 0 | L142: 5 | M142: 0 | N142: 1 | O142: 0 | P142: 19 | Q142: 0 | R142: 7 | S142: 0 | T142: 2 | U142: 0 | V142: 5 | W142: 0 | X142: 3 | Y142: 0 | Z142: 2 | AA142: 0 | AB142: 17 | AC142: 0 | AD142: 4 | AE142: 0 | AF142: 3 | AG142: 0 | AH142: 9 | AI142: 0 | AJ142: 1 | AK142: 0 | AL142: 0 | AM142: 0
C143: 떨어짐(높이가 있는 곳에서 사람이 떨어짐) | D143: 3 | E143: 0 | F143: 0 | G143: 0 | H143: 1 | I143: 0 | J143: 0 | K143: 0 | L143: 1 | M143: 0 | N143: 1 | O143: 0 | P143: 2 | Q143: 0 | R143: 1 | S143: 0 | T143: 0 | U143: 0 | V143: 0 | W143: 0 | X143: 1 | Y143: 0 | Z143: 0 | AA143: 0 | AB143: 1 | AC143: 0 | AD143: 0 | AE143: 0 | AF143: 0 | AG143: 0 | AH143: 1 | AI143: 0 | AJ143: 0 | AK143: 0 | AL143: 0 | AM143: 0
C144: 넘어짐(사람이 미끄러지거나 넘어짐) | D144: 2 | E144: 0 | F144: 0 | G144: 0 | H144: 0 | I144: 0 | J144: 1 | K144: 0 | L144: 1 | M144: 0 | N144: 0 | O144: 0 | P144: 4 | Q144: 0 | R144: 0 | S144: 0 | T144: 0 | U144: 0 | V144: 2 | W144: 0 | X144: 0 | Y144: 0 | Z144: 2 | AA144: 0 | AB144: 6 | AC144: 0 | AD144: 1 | AE144: 0 | AF144: 1 | AG144: 0 | AH144: 3 | AI144: 0 | AJ144: 1 | AK144: 0 | AL144: 0 | AM144: 0
C145: 부딪힘(물체에 부딪힘) | D145: 0 | E145: 0 | F145: 0 | G145: 0 | H145: 0 | I145: 0 | J145: 0 | K145: 0 | L145: 0 | M145: 0 | N145: 0 | O145: 0 | P145: 1 | Q145: 0 | R145: 0 | S145: 0 | T145: 0 | U145: 0 | V145: 0 | W145: 0 | X145: 1 | Y145: 0 | Z145: 0 | AA145: 0 | AB145: 1 | AC145: 0 | AD145: 0 | AE145: 0 | AF145: 0 | AG145: 0 | AH145: 1 | AI145: 0 | AJ145: 0 | AK145: 0 | AL145: 0 | AM145: 0
C146: 물체에 맞음(날아오거나 떨어진 물체에 맞음) | D146: 5 | E146: 0 | F146: 1 | G146: 0 | H146: 1 | I146: 0 | J146: 0 | K146: 0 | L146: 3 | M146: 0 | N146: 0 | O146: 0 | P146: 3 | Q146: 0 | R146: 2 | S146: 0 | T146: 0 | U146: 0 | V146: 1 | W146: 0 | X146: 0 | Y146: 0 | Z146: 0 | AA146: 0 | AB146: 0 | AC146: 0 | AD146: 0 | AE146: 0 | AF146: 0 | AG146: 0 | AH146: 0 | AI146: 0 | AJ146: 0 | AK146: 0 | AL146: 0 | AM146: 0
C147: 끼임(기계설비에 끼이거나 감김) | D147: 3 | E147: 0 | F147: 3 | G147: 0 | H147: 0 | I147: 0 | J147: 0 | K147: 0 | L147: 0 | M147: 0 | N147: 0 | O147: 0 | P147: 4 | Q147: 0 | R147: 2 | S147: 0 | T147: 1 | U147: 0 | V147: 1 | W147: 0 | X147: 0 | Y147: 0 | Z147: 0 | AA147: 0 | AB147: 7 | AC147: 0 | AD147: 2 | AE147: 0 | AF147: 1 | AG147: 0 | AH147: 4 | AI147: 0 | AJ147: 0 | AK147: 0 | AL147: 0 | AM147: 0
C148: 절단·베임·찔림 | D148: 4 | E148: 0 | F148: 3 | G148: 0 | H148: 1 | I148: 0 | J148: 0 | K148: 0 | L148: 0 | M148: 0 | N148: 0 | O148: 0 | P148: 2 | Q148: 0 | R148: 1 | S148: 0 | T148: 1 | U148: 0 | V148: 0 | W148: 0 | X148: 0 | Y148: 0 | Z148: 0 | AA148: 0 | AB148: 0 | AC148: 0 | AD148: 0 | AE148: 0 | AF148: 0 | AG148: 0 | AH148: 0 | AI148: 0 | AJ148: 0 | AK148: 0 | AL148: 0 | AM148: 0
C149: 감전 | D149: 1 | E149: 0 | F149: 1 | G149: 0 | H149: 0 | I149: 0 | J149: 0 | K149: 0 | L149: 0 | M149: 0 | N149: 0 | O149: 0 | P149: 0 | Q149: 0 | R149: 0 | S149: 0 | T149: 0 | U149: 0 | V149: 0 | W149: 0 | X149: 0 | Y149: 0 | Z149: 0 | AA149: 0 | AB149: 0 | AC149: 0 | AD149: 0 | AE149: 0 | AF149: 0 | AG149: 0 | AH149: 0 | AI149: 0 | AJ149: 0 | AK149: 0 | AL149: 0 | AM149: 0
C150: 불균형 및 무리한 동작 | D150: 1 | E150: 0 | F150: 1 | G150: 0 | H150: 0 | I150: 0 | J150: 0 | K150: 0 | L150: 0 | M150: 0 | N150: 0 | O150: 0 | P150: 3 | Q150: 0 | R150: 1 | S150: 0 | T150: 0 | U150: 0 | V150: 1 | W150: 0 | X150: 1 | Y150: 0 | Z150: 0 | AA150: 0 | AB150: 1 | AC150: 0 | AD150: 0 | AE150: 0 | AF150: 1 | AG150: 0 | AH150: 0 | AI150: 0 | AJ150: 0 | AK150: 0 | AL150: 0 | AM150: 0
C151: 이상온도 접촉 | D151: 1 | E151: 0 | F151: 1 | G151: 0 | H151: 0 | I151: 0 | J151: 0 | K151: 0 | L151: 0 | M151: 0 | N151: 0 | O151: 0 | P151: 0 | Q151: 0 | R151: 0 | S151: 0 | T151: 0 | U151: 0 | V151: 0 | W151: 0 | X151: 0 | Y151: 0 | Z151: 0 | AA151: 0 | AB151: 1 | AC151: 0 | AD151: 1 | AE151: 0 | AF151: 0 | AG151: 0 | AH151: 0 | AI151: 0 | AJ151: 0 | AK151: 0 | AL151: 0 | AM151: 0
C152: 사업장외 교통사고 | D152: 1 | E152: 0 | F152: 0 | G152: 0 | H152: 0 | I152: 0 | J152: 1 | K152: 0 | L152: 0 | M152: 0 | N152: 0 | O152: 0 | P152: 0 | Q152: 0 | R152: 0 | S152: 0 | T152: 0 | U152: 0 | V152: 0 | W152: 0 | X152: 0 | Y152: 0 | Z152: 0 | AA152: 0 | AB152: 0 | AC152: 0 | AD152: 0 | AE152: 0 | AF152: 0 | AG152: 0 | AH152: 0 | AI152: 0 | AJ152: 0 | AK152: 0 | AL152: 0 | AM152: 0
C153: 물리적인자 | D153: 0 | E153: 0 | F153: 0 | G153: 0 | H153: 0 | I153: 0 | J153: 0 | K153: 0 | L153: 0 | M153: 0 | N153: 0 | O153: 0 | P153: 0 | Q153: 0 | R153: 0 | S153: 0 | T153: 0 | U153: 0 | V153: 0 | W153: 0 | X153: 0 | Y153: 0 | Z153: 0 | AA153: 0 | AB153: 0 | AC153: 0 | AD153: 0 | AE153: 0 | AF153: 0 | AG153: 0 | AH153: 0 | AI153: 0 | AJ153: 0 | AK153: 0 | AL153: 0 | AM153: 0
C154: 직업병기타 | D154: 0 | E154: 0 | F154: 0 | G154: 0 | H154: 0 | I154: 0 | J154: 0 | K154: 0 | L154: 0 | M154: 0 | N154: 0 | O154: 0 | P154: 0 | Q154: 0 | R154: 0 | S154: 0 | T154: 0 | U154: 0 | V154: 0 | W154: 0 | X154: 0 | Y154: 0 | Z154: 0 | AA154: 0 | AB154: 0 | AC154: 0 | AD154: 0 | AE154: 0 | AF154: 0 | AG154: 0 | AH154: 0 | AI154: 0 | AJ154: 0 | AK154: 0 | AL154: 0 | AM154: 0
C155: 근골격계질환 | D155: 0 | E155: 0 | F155: 0 | G155: 0 | H155: 0 | I155: 0 | J155: 0 | K155: 0 | L155: 0 | M155: 0 | N155: 0 | O155: 0 | P155: 0 | Q155: 0 | R155: 0 | S155: 0 | T155: 0 | U155: 0 | V155: 0 | W155: 0 | X155: 0 | Y155: 0 | Z155: 0 | AA155: 0 | AB155: 0 | AC155: 0 | AD155: 0 | AE155: 0 | AF155: 0 | AG155: 0 | AH155: 0 | AI155: 0 | AJ155: 0 | AK155: 0 | AL155: 0 | AM155: 0
A156: 부산동부 | B156: 합계 | D156: 149 | E156: 1 | F156: 39 | G156: 0 | H156: 37 | I156: 1 | J156: 33 | K156: 0 | L156: 22 | M156: 0 | N156: 18 | O156: 0 | P156: 140 | Q156: 1 | R156: 42 | S156: 0 | T156: 35 | U156: 1 | V156: 33 | W156: 0 | X156: 13 | Y156: 0 | Z156: 17 | AA156: 0 | AB156: 136 | AC156: 0 | AD156: 26 | AE156: 0 | AF156: 28 | AG156: 0 | AH156: 42 | AI156: 0 | AJ156: 19 | AK156: 0 | AL156: 21 | AM156: 0
B157: 식료품제조업 | C157: 합계 | D157: 27 | E157: 0 | F157: 6 | G157: 0 | H157: 9 | I157: 0 | J157: 7 | K157: 0 | L157: 5 | M157: 0 | N157: 0 | O157: 0 | P157: 29 | Q157: 1 | R157: 7 | S157: 0 | T157: 9 | U157: 1 | V157: 8 | W157: 0 | X157: 5 | Y157: 0 | Z157: 0 | AA157: 0 | AB157: 37 | AC157: 0 | AD157: 3 | AE157: 0 | AF157: 8 | AG157: 0 | AH157: 11 | AI157: 0 | AJ157: 9 | AK157: 0 | AL157: 6 | AM157: 0
C158: 떨어짐(높이가 있는 곳에서 사람이 떨어짐) | D158: 1 | E158: 0 | F158: 0 | G158: 0 | H158: 0 | I158: 0 | J158: 1 | K158: 0 | L158: 0 | M158: 0 | N158: 0 | O158: 0 | P158: 1 | Q158: 0 | R158: 0 | S158: 0 | T158: 0 | U158: 0 | V158: 1 | W158: 0 | X158: 0 | Y158: 0 | Z158: 0 | AA158: 0 | AB158: 1 | AC158: 0 | AD158: 0 | AE158: 0 | AF158: 0 | AG158: 0 | AH158: 1 | AI158: 0 | AJ158: 0 | AK158: 0 | AL158: 0 | AM158: 0
C159: 넘어짐(사람이 미끄러지거나 넘어짐) | D159: 4 | E159: 0 | F159: 2 | G159: 0 | H159: 1 | I159: 0 | J159: 1 | K159: 0 | L159: 0 | M159: 0 | N159: 0 | O159: 0 | P159: 9 | Q159: 0 | R159: 3 | S159: 0 | T159: 4 | U159: 0 | V159: 2 | W159: 0 | X159: 0 | Y159: 0 | Z159: 0 | AA159: 0 | AB159: 8 | AC159: 0 | AD159: 1 | AE159: 0 | AF159: 3 | AG159: 0 | AH159: 0 | AI159: 0 | AJ159: 2 | AK159: 0 | AL159: 2 | AM159: 0
C160: 깔림·뒤집힘(물체의 쓰러짐이나 뒤집힘) | D160: 0 | E160: 0 | F160: 0 | G160: 0 | H160: 0 | I160: 0 | J160: 0 | K160: 0 | L160: 0 | M160: 0 | N160: 0 | O160: 0 | P160: 0 | Q160: 0 | R160: 0 | S160: 0 | T160: 0 | U160: 0 | V160: 0 | W160: 0 | X160: 0 | Y160: 0 | Z160: 0 | AA160: 0 | AB160: 2 | AC160: 0 | AD160: 0 | AE160: 0 | AF160: 1 | AG160: 0 | AH160: 0 | AI160: 0 | AJ160: 1 | AK160: 0 | AL160: 0 | AM160: 0
C161: 부딪힘(물체에 부딪힘) | D161: 0 | E161: 0 | F161: 0 | G161: 0 | H161: 0 | I161: 0 | J161: 0 | K161: 0 | L161: 0 | M161: 0 | N161: 0 | O161: 0 | P161: 1 | Q161: 0 | R161: 0 | S161: 0 | T161: 0 | U161: 0 | V161: 0 | W161: 0 | X161: 1 | Y161: 0 | Z161: 0 | AA161: 0 | AB161: 1 | AC161: 0 | AD161: 0 | AE161: 0 | AF161: 0 | AG161: 0 | AH161: 0 | AI161: 0 | AJ161: 1 | AK161: 0 | AL161: 0 | AM161: 0
C162: 물체에 맞음(날아오거나 떨어진 물체에 맞음) | D162: 1 | E162: 0 | F162: 0 | G162: 0 | H162: 1 | I162: 0 | J162: 0 | K162: 0 | L162: 0 | M162: 0 | N162: 0 | O162: 0 | P162: 1 | Q162: 0 | R162: 0 | S162: 0 | T162: 0 | U162: 0 | V162: 1 | W162: 0 | X162: 0 | Y162: 0 | Z162: 0 | AA162: 0 | AB162: 0 | AC162: 0 | AD162: 0 | AE162: 0 | AF162: 0 | AG162: 0 | AH162: 0 | AI162: 0 | AJ162: 0 | AK162: 0 | AL162: 0 | AM162: 0
C163: 끼임(기계설비에 끼이거나 감김) | D163: 9 | E163: 0 | F163: 1 | G163: 0 | H163: 2 | I163: 0 | J163: 2 | K163: 0 | L163: 4 | M163: 0 | N163: 0 | O163: 0 | P163: 8 | Q163: 0 | R163: 3 | S163: 0 | T163: 1 | U163: 0 | V163: 3 | W163: 0 | X163: 1 | Y163: 0 | Z163: 0 | AA163: 0 | AB163: 10 | AC163: 0 | AD163: 1 | AE163: 0 | AF163: 2 | AG163: 0 | AH163: 3 | AI163: 0 | AJ163: 2 | AK163: 0 | AL163: 2 | AM163: 0
C164: 절단·베임·찔림 | D164: 8 | E164: 0 | F164: 3 | G164: 0 | H164: 1 | I164: 0 | J164: 3 | K164: 0 | L164: 1 | M164: 0 | N164: 0 | O164: 0 | P164: 5 | Q164: 0 | R164: 1 | S164: 0 | T164: 0 | U164: 0 | V164: 1 | W164: 0 | X164: 3 | Y164: 0 | Z164: 0 | AA164: 0 | AB164: 9 | AC164: 0 | AD164: 1 | AE164: 0 | AF164: 1 | AG164: 0 | AH164: 4 | AI164: 0 | AJ164: 2 | AK164: 0 | AL164: 1 | AM164: 0
C165: 불균형 및 무리한 동작 | D165: 2 | E165: 0 | F165: 0 | G165: 0 | H165: 2 | I165: 0 | J165: 0 | K165: 0 | L165: 0 | M165: 0 | N165: 0 | O165: 0 | P165: 2 | Q165: 0 | R165: 0 | S165: 0 | T165: 2 | U165: 0 | V165: 0 | W165: 0 | X165: 0 | Y165: 0 | Z165: 0 | AA165: 0 | AB165: 1 | AC165: 0 | AD165: 0 | AE165: 0 | AF165: 0 | AG165: 0 | AH165: 0 | AI165: 0 | AJ165: 0 | AK165: 0 | AL165: 1 | AM165: 0
C166: 이상온도 접촉 | D166: 2 | E166: 0 | F166: 0 | G166: 0 | H166: 2 | I166: 0 | J166: 0 | K166: 0 | L166: 0 | M166: 0 | N166: 0 | O166: 0 | P166: 1 | Q166: 0 | R166: 0 | S166: 0 | T166: 1 | U166: 0 | V166: 0 | W166: 0 | X166: 0 | Y166: 0 | Z166: 0 | AA166: 0 | AB166: 5 | AC166: 0 | AD166: 0 | AE166: 0 | AF166: 1 | AG166: 0 | AH166: 3 | AI166: 0 | AJ166: 1 | AK166: 0 | AL166: 0 | AM166: 0
C167: 화학물질누출·접촉 | D167: 0 | E167: 0 | F167: 0 | G167: 0 | H167: 0 | I167: 0 | J167: 0 | K167: 0 | L167: 0 | M167: 0 | N167: 0 | O167: 0 | P167: 1 | Q167: 1 | R167: 0 | S167: 0 | T167: 1 | U167: 1 | V167: 0 | W167: 0 | X167: 0 | Y167: 0 | Z167: 0 | AA167: 0 | AB167: 0 | AC167: 0 | AD167: 0 | AE167: 0 | AF167: 0 | AG167: 0 | AH167: 0 | AI167: 0 | AJ167: 0 | AK167: 0 | AL167: 0 | AM167: 0
C168: 근골격계질환 | D168: 0 | E168: 0 | F168: 0 | G168: 0 | H168: 0 | I168: 0 | J168: 0 | K168: 0 | L168: 0 | M168: 0 | N168: 0 | O168: 0 | P168: 0 | Q168: 0 | R168: 0 | S168: 0 | T168: 0 | U168: 0 | V168: 0 | W168: 0 | X168: 0 | Y168: 0 | Z168: 0 | AA168: 0 | AB168: 0 | AC168: 0 | AD168: 0 | AE168: 0 | AF168: 0 | AG168: 0 | AH168: 0 | AI168: 0 | AJ168: 0 | AK168: 0 | AL168: 0 | AM168: 0
B169: 섬유및섬유제품제조업 | C169: 합계 | D169: 7 | E169: 0 | F169: 4 | G169: 0 | H169: 1 | I169: 0 | J169: 0 | K169: 0 | L169: 1 | M169: 0 | N169: 1 | O169: 0 | P169: 7 | Q169: 0 | R169: 2 | S169: 0 | T169: 3 | U169: 0 | V169: 1 | W169: 0 | X169: 1 | Y169: 0 | Z169: 0 | AA169: 0 | AB169: 10 | AC169: 0 | AD169: 2 | AE169: 0 | AF169: 3 | AG169: 0 | AH169: 4 | AI169: 0 | AJ169: 1 | AK169: 0 | AL169: 0 | AM169: 0
C170: 떨어짐(높이가 있는 곳에서 사람이 떨어짐) | D170: 2 | E170: 0 | F170: 1 | G170: 0 | H170: 0 | I170: 0 | J170: 0 | K170: 0 | L170: 0 | M170: 0 | N170: 1 | O170: 0 | P170: 0 | Q170: 0 | R170: 0 | S170: 0 | T170: 0 | U170: 0 | V170: 0 | W170: 0 | X170: 0 | Y170: 0 | Z170: 0 | AA170: 0 | AB170: 0 | AC170: 0 | AD170: 0 | AE170: 0 | AF170: 0 | AG170: 0 | AH170: 0 | AI170: 0 | AJ170: 0 | AK170: 0 | AL170: 0 | AM170: 0
C171: 넘어짐(사람이 미끄러지거나 넘어짐) | D171: 0 | E171: 0 | F171: 0 | G171: 0 | H171: 0 | I171: 0 | J171: 0 | K171: 0 | L171: 0 | M171: 0 | N171: 0 | O171: 0 | P171: 3 | Q171: 0 | R171: 2 | S171: 0 | T171: 1 | U171: 0 | V171: 0 | W171: 0 | X171: 0 | Y171: 0 | Z171: 0 | AA171: 0 | AB171: 2 | AC171: 0 | AD171: 0 | AE171: 0 | AF171: 2 | AG171: 0 | AH171: 0 | AI171: 0 | AJ171: 0 | AK171: 0 | AL171: 0 | AM171: 0
C172: 부딪힘(물체에 부딪힘) | D172: 0 | E172: 0 | F172: 0 | G172: 0 | H172: 0 | I172: 0 | J172: 0 | K172: 0 | L172: 0 | M172: 0 | N172: 0 | O172: 0 | P172: 1 | Q172: 0 | R172: 0 | S172: 0 | T172: 1 | U172: 0 | V172: 0 | W172: 0 | X172: 0 | Y172: 0 | Z172: 0 | AA172: 0 | AB172: 2 | AC172: 0 | AD172: 1 | AE172: 0 | AF172: 0 | AG172: 0 | AH172: 1 | AI172: 0 | AJ172: 0 | AK172: 0 | AL172: 0 | AM172: 0
C173: 물체에 맞음(날아오거나 떨어진 물체에 맞음) | D173: 1 | E173: 0 | F173: 1 | G173: 0 | H173: 0 | I173: 0 | J173: 0 | K173: 0 | L173: 0 | M173: 0 | N173: 0 | O173: 0 | P173: 0 | Q173: 0 | R173: 0 | S173: 0 | T173: 0 | U173: 0 | V173: 0 | W173: 0 | X173: 0 | Y173: 0 | Z173: 0 | AA173: 0 | AB173: 1 | AC173: 0 | AD173: 0 | AE173: 0 | AF173: 0 | AG173: 0 | AH173: 1 | AI173: 0 | AJ173: 0 | AK173: 0 | AL173: 0 | AM173: 0
C174: 끼임(기계설비에 끼이거나 감김) | D174: 1 | E174: 0 | F174: 1 | G174: 0 | H174: 0 | I174: 0 | J174: 0 | K174: 0 | L174: 0 | M174: 0 | N174: 0 | O174: 0 | P174: 2 | Q174: 0 | R174: 0 | S174: 0 | T174: 0 | U174: 0 | V174: 1 | W174: 0 | X174: 1 | Y174: 0 | Z174: 0 | AA174: 0 | AB174: 3 | AC174: 0 | AD174: 1 | AE174: 0 | AF174: 0 | AG174: 0 | AH174: 1 | AI174: 0 | AJ174: 1 | AK174: 0 | AL174: 0 | AM174: 0
C175: 절단·베임·찔림 | D175: 1 | E175: 0 | F175: 0 | G175: 0 | H175: 1 | I175: 0 | J175: 0 | K175: 0 | L175: 0 | M175: 0 | N175: 0 | O175: 0 | P175: 1 | Q175: 0 | R175: 0 | S175: 0 | T175: 1 | U175: 0 | V175: 0 | W175: 0 | X175: 0 | Y175: 0 | Z175: 0 | AA175: 0 | AB175: 0 | AC175: 0 | AD175: 0 | AE175: 0 | AF175: 0 | AG175: 0 | AH175: 0 | AI175: 0 | AJ175: 0 | AK175: 0 | AL175: 0 | AM175: 0
C176: 불균형 및 무리한 동작 | D176: 1 | E176: 0 | F176: 1 | G176: 0 | H176: 0 | I176: 0 | J176: 0 | K176: 0 | L176: 0 | M176: 0 | N176: 0 | O176: 0 | P176: 0 | Q176: 0 | R176: 0 | S176: 0 | T176: 0 | U176: 0 | V176: 0 | W176: 0 | X176: 0 | Y176: 0 | Z176: 0 | AA176: 0 | AB176: 1 | AC176: 0 | AD176: 0 | AE176: 0 | AF176: 1 | AG176: 0 | AH176: 0 | AI176: 0 | AJ176: 0 | AK176: 0 | AL176: 0 | AM176: 0
C177: 이상온도 접촉 | D177: 1 | E177: 0 | F177: 0 | G177: 0 | H177: 0 | I177: 0 | J177: 0 | K177: 0 | L177: 1 | M177: 0 | N177: 0 | O177: 0 | P177: 0 | Q177: 0 | R177: 0 | S177: 0 | T177: 0 | U177: 0 | V177: 0 | W177: 0 | X177: 0 | Y177: 0 | Z177: 0 | AA177: 0 | AB177: 0 | AC177: 0 | AD177: 0 | AE177: 0 | AF177: 0 | AG177: 0 | AH177: 0 | AI177: 0 | AJ177: 0 | AK177: 0 | AL177: 0 | AM177: 0
C178: 기타 | D178: 0 | E178: 0 | F178: 0 | G178: 0 | H178: 0 | I178: 0 | J178: 0 | K178: 0 | L178: 0 | M178: 0 | N178: 0 | O178: 0 | P178: 0 | Q178: 0 | R178: 0 | S178: 0 | T178: 0 | U178: 0 | V178: 0 | W178: 0 | X178: 0 | Y178: 0 | Z178: 0 | AA178: 0 | AB178: 1 | AC178: 0 | AD178: 0 | AE178: 0 | AF178: 0 | AG178: 0 | AH178: 1 | AI178: 0 | AJ178: 0 | AK178: 0 | AL178: 0 | AM178: 0
C179: 물리적인자 | D179: 0 | E179: 0 | F179: 0 | G179: 0 | H179: 0 | I179: 0 | J179: 0 | K179: 0 | L179: 0 | M179: 0 | N179: 0 | O179: 0 | P179: 0 | Q179: 0 | R179: 0 | S179: 0 | T179: 0 | U179: 0 | V179: 0 | W179: 0 | X179: 0 | Y179: 0 | Z179: 0 | AA179: 0 | AB179: 0 | AC179: 0 | AD179: 0 | AE179: 0 | AF179: 0 | AG179: 0 | AH179: 0 | AI179: 0 | AJ179: 0 | AK179: 0 | AL179: 0 | AM179: 0
C180: 근골격계질환 | D180: 0 | E180: 0 | F180: 0 | G180: 0 | H180: 0 | I180: 0 | J180: 0 | K180: 0 | L180: 0 | M180: 0 | N180: 0 | O180: 0 | P180: 0 | Q180: 0 | R180: 0 | S180: 0 | T180: 0 | U180: 0 | V180: 0 | W180: 0 | X180: 0 | Y180: 0 | Z180: 0 | AA180: 0 | AB180: 0 | AC180: 0 | AD180: 0 | AE180: 0 | AF180: 0 | AG180: 0 | AH180: 0 | AI180: 0 | AJ180: 0 | AK180: 0 | AL180: 0 | AM180: 0
B181: 목재및종이제품제조업 | C181: 합계 | D181: 9 | E181: 0 | F181: 7 | G181: 0 | H181: 1 | I181: 0 | J181: 1 | K181: 0 | L181: 0 | M181: 0 | N181: 0 | O181: 0 | P181: 6 | Q181: 0 | R181: 3 | S181: 0 | T181: 1 | U181: 0 | V181: 1 | W181: 0 | X181: 1 | Y181: 0 | Z181: 0 | AA181: 0 | AB181: 10 | AC181: 0 | AD181: 4 | AE181: 0 | AF181: 4 | AG181: 0 | AH181: 1 | AI181: 0 | AJ181: 1 | AK181: 0 | AL181: 0 | AM181: 0
C182: 떨어짐(높이가 있는 곳에서 사람이 떨어짐) | D182: 1 | E182: 0 | F182: 1 | G182: 0 | H182: 0 | I182: 0 | J182: 0 | K182: 0 | L182: 0 | M182: 0 | N182: 0 | O182: 0 | P182: 1 | Q182: 0 | R182: 0 | S182: 0 | T182: 1 | U182: 0 | V182: 0 | W182: 0 | X182: 0 | Y182: 0 | Z182: 0 | AA182: 0 | AB182: 0 | AC182: 0 | AD182: 0 | AE182: 0 | AF182: 0 | AG182: 0 | AH182: 0 | AI182: 0 | AJ182: 0 | AK182: 0 | AL182: 0 | AM182: 0
C183: 넘어짐(사람이 미끄러지거나 넘어짐) | D183: 1 | E183: 0 | F183: 1 | G183: 0 | H183: 0 | I183: 0 | J183: 0 | K183: 0 | L183: 0 | M183: 0 | N183: 0 | O183: 0 | P183: 0 | Q183: 0 | R183: 0 | S183: 0 | T183: 0 | U183: 0 | V183: 0 | W183: 0 | X183: 0 | Y183: 0 | Z183: 0 | AA183: 0 | AB183: 1 | AC183: 0 | AD183: 1 | AE183: 0 | AF183: 0 | AG183: 0 | AH183: 0 | AI183: 0 | AJ183: 0 | AK183: 0 | AL183: 0 | AM183: 0
C184: 깔림·뒤집힘(물체의 쓰러짐이나 뒤집힘) | D184: 1 | E184: 0 | F184: 1 | G184: 0 | H184: 0 | I184: 0 | J184: 0 | K184: 0 | L184: 0 | M184: 0 | N184: 0 | O184: 0 | P184: 0 | Q184: 0 | R184: 0 | S184: 0 | T184: 0 | U184: 0 | V184: 0 | W184: 0 | X184: 0 | Y184: 0 | Z184: 0 | AA184: 0 | AB184: 0 | AC184: 0 | AD184: 0 | AE184: 0 | AF184: 0 | AG184: 0 | AH184: 0 | AI184: 0 | AJ184: 0 | AK184: 0 | AL184: 0 | AM184: 0
C185: 부딪힘(물체에 부딪힘) | D185: 0 | E185: 0 | F185: 0 | G185: 0 | H185: 0 | I185: 0 | J185: 0 | K185: 0 | L185: 0 | M185: 0 | N185: 0 | O185: 0 | P185: 0 | Q185: 0 | R185: 0 | S185: 0 | T185: 0 | U185: 0 | V185: 0 | W185: 0 | X185: 0 | Y185: 0 | Z185: 0 | AA185: 0 | AB185: 1 | AC185: 0 | AD185: 0 | AE185: 0 | AF185: 1 | AG185: 0 | AH185: 0 | AI185: 0 | AJ185: 0 | AK185: 0 | AL185: 0 | AM185: 0
C186: 물체에 맞음(날아오거나 떨어진 물체에 맞음) | D186: 0 | E186: 0 | F186: 0 | G186: 0 | H186: 0 | I186: 0 | J186: 0 | K186: 0 | L186: 0 | M186: 0 | N186: 0 | O186: 0 | P186: 1 | Q186: 0 | R186: 1 | S186: 0 | T186: 0 | U186: 0 | V186: 0 | W186: 0 | X186: 0 | Y186: 0 | Z186: 0 | AA186: 0 | AB186: 0 | AC186: 0 | AD186: 0 | AE186: 0 | AF186: 0 | AG186: 0 | AH186: 0 | AI186: 0 | AJ186: 0 | AK186: 0 | AL186: 0 | AM186: 0
C187: 끼임(기계설비에 끼이거나 감김) | D187: 2 | E187: 0 | F187: 1 | G187: 0 | H187: 0 | I187: 0 | J187: 1 | K187: 0 | L187: 0 | M187: 0 | N187: 0 | O187: 0 | P187: 1 | Q187: 0 | R187: 0 | S187: 0 | T187: 0 | U187: 0 | V187: 0 | W187: 0 | X187: 1 | Y187: 0 | Z187: 0 | AA187: 0 | AB187: 3 | AC187: 0 | AD187: 1 | AE187: 0 | AF187: 1 | AG187: 0 | AH187: 1 | AI187: 0 | AJ187: 0 | AK187: 0 | AL187: 0 | AM187: 0
C188: 절단·베임·찔림 | D188: 4 | E188: 0 | F188: 3 | G188: 0 | H188: 1 | I188: 0 | J188: 0 | K188: 0 | L188: 0 | M188: 0 | N188: 0 | O188: 0 | P188: 2 | Q188: 0 | R188: 2 | S188: 0 | T188: 0 | U188: 0 | V188: 0 | W188: 0 | X188: 0 | Y188: 0 | Z188: 0 | AA188: 0 | AB188: 5 | AC188: 0 | AD188: 2 | AE188: 0 | AF188: 2 | AG188: 0 | AH188: 0 | AI188: 0 | AJ188: 1 | AK188: 0 | AL188: 0 | AM188: 0
C189: 사업장외 교통사고 | D189: 0 | E189: 0 | F189: 0 | G189: 0 | H189: 0 | I189: 0 | J189: 0 | K189: 0 | L189: 0 | M189: 0 | N189: 0 | O189: 0 | P189: 1 | Q189: 0 | R189: 0 | S189: 0 | T189: 0 | U189: 0 | V189: 1 | W189: 0 | X189: 0 | Y189: 0 | Z189: 0 | AA189: 0 | AB189: 0 | AC189: 0 | AD189: 0 | AE189: 0 | AF189: 0 | AG189: 0 | AH189: 0 | AI189: 0 | AJ189: 0 | AK189: 0 | AL189: 0 | AM189: 0
B190: 출판·인쇄·제본업 | C190: 합계 | D190: 0 | E190: 0 | F190: 0 | G190: 0 | H190: 0 | I190: 0 | J190: 0 | K190: 0 | L190: 0 | M190: 0 | N190: 0 | O190: 0 | P190: 1 | Q190: 0 | R190: 0 | S190: 0 | T190: 0 | U190: 0 | V190: 0 | W190: 0 | X190: 1 | Y190: 0 | Z190: 0 | AA190: 0 | AB190: 1 | AC190: 0 | AD190: 0 | AE190: 0 | AF190: 0 | AG190: 0 | AH190: 1 | AI190: 0 | AJ190: 0 | AK190: 0 | AL190: 0 | AM190: 0
C191: 넘어짐(사람이 미끄러지거나 넘어짐) | D191: 0 | E191: 0 | F191: 0 | G191: 0 | H191: 0 | I191: 0 | J191: 0 | K191: 0 | L191: 0 | M191: 0 | N191: 0 | O191: 0 | P191: 1 | Q191: 0 | R191: 0 | S191: 0 | T191: 0 | U191: 0 | V191: 0 | W191: 0 | X191: 1 | Y191: 0 | Z191: 0 | AA191: 0 | AB191: 0 | AC191: 0 | AD191: 0 | AE191: 0 | AF191: 0 | AG191: 0 | AH191: 0 | AI191: 0 | AJ191: 0 | AK191: 0 | AL191: 0 | AM191: 0
C192: 이상온도 접촉 | D192: 0 | E192: 0 | F192: 0 | G192: 0 | H192: 0 | I192: 0 | J192: 0 | K192: 0 | L192: 0 | M192: 0 | N192: 0 | O192: 0 | P192: 0 | Q192: 0 | R192: 0 | S192: 0 | T192: 0 | U192: 0 | V192: 0 | W192: 0 | X192: 0 | Y192: 0 | Z192: 0 | AA192: 0 | AB192: 1 | AC192: 0 | AD192: 0 | AE192: 0 | AF192: 0 | AG192: 0 | AH192: 1 | AI192: 0 | AJ192: 0 | AK192: 0 | AL192: 0 | AM192: 0
B193: 화학및고무제품제조업 | C193: 합계 | D193: 11 | E193: 0 | F193: 4 | G193: 0 | H193: 1 | I193: 0 | J193: 2 | K193: 0 | L193: 1 | M193: 0 | N193: 3 | O193: 0 | P193: 13 | Q193: 0 | R193: 4 | S193: 0 | T193: 1 | U193: 0 | V193: 4 | W193: 0 | X193: 0 | Y193: 0 | Z193: 4 | AA193: 0 | AB193: 10 | AC193: 0 | AD193: 0 | AE193: 0 | AF193: 0 | AG193: 0 | AH193: 5 | AI193: 0 | AJ193: 2 | AK193: 0 | AL193: 3 | AM193: 0
C194: 떨어짐(높이가 있는 곳에서 사람이 떨어짐) | D194: 4 | E194: 0 | F194: 1 | G194: 0 | H194: 0 | I194: 0 | J194: 0 | K194: 0 | L194: 1 | M194: 0 | N194: 2 | O194: 0 | P194: 1 | Q194: 0 | R194: 0 | S194: 0 | T194: 0 | U194: 0 | V194: 0 | W194: 0 | X194: 0 | Y194: 0 | Z194: 1 | AA194: 0 | AB194: 2 | AC194: 0 | AD194: 0 | AE194: 0 | AF194: 0 | AG194: 0 | AH194: 1 | AI194: 0 | AJ194: 1 | AK194: 0 | AL194: 0 | AM194: 0
C195: 넘어짐(사람이 미끄러지거나 넘어짐) | D195: 0 | E195: 0 | F195: 0 | G195: 0 | H195: 0 | I195: 0 | J195: 0 | K195: 0 | L195: 0 | M195: 0 | N195: 0 | O195: 0 | P195: 0 | Q195: 0 | R195: 0 | S195: 0 | T195: 0 | U195: 0 | V195: 0 | W195: 0 | X195: 0 | Y195: 0 | Z195: 0 | AA195: 0 | AB195: 2 | AC195: 0 | AD195: 0 | AE195: 0 | AF195: 0 | AG195: 0 | AH195: 1 | AI195: 0 | AJ195: 1 | AK195: 0 | AL195: 0 | AM195: 0
C196: 부딪힘(물체에 부딪힘) | D196: =SUM(F196,H196,J196,L196,N196) -> 1 | E196: 0 | F196: 0 | G196: 0 | H196: 0 | I196: 0 | J196: 1 | K196: 0 | L196: 0 | M196: 0 | N196: 0 | O196: 0 | P196: =SUM(R196,T196,V196,X196,Z196) -> 4 | Q196: 0 | R196: 1 | S196: 0 | T196: 0 | U196: 0 | V196: 1 | W196: 0 | X196: 0 | Y196: 0 | Z196: 2 | AA196: 0 | AB196: =SUM(AD196,AF196,AH196,AJ196,AL196) -> 1 | AC196: 0 | AD196: 0 | AE196: 0 | AF196: 0 | AG196: 0 | AH196: 0 | AI196: 0 | AJ196: 0 | AK196: 0 | AL196: 1 | AM196: 0
C197: 끼임(기계설비에 끼이거나 감김) | D197: 4 | E197: 0 | F197: 2 | G197: 0 | H197: 1 | I197: 0 | J197: 0 | K197: 0 | L197: 0 | M197: 0 | N197: 1 | O197: 0 | P197: 7 | Q197: 0 | R197: 2 | S197: 0 | T197: 1 | U197: 0 | V197: 3 | W197: 0 | X197: 0 | Y197: 0 | Z197: 1 | AA197: 0 | AB197: 3 | AC197: 0 | AD197: 0 | AE197: 0 | AF197: 0 | AG197: 0 | AH197: 2 | AI197: 0 | AJ197: 0 | AK197: 0 | AL197: 1 | AM197: 0
C198: 절단·베임·찔림 | D198: 2 | E198: 0 | F198: 1 | G198: 0 | H198: 0 | I198: 0 | J198: 1 | K198: 0 | L198: 0 | M198: 0 | N198: 0 | O198: 0 | P198: 0 | Q198: 0 | R198: 0 | S198: 0 | T198: 0 | U198: 0 | V198: 0 | W198: 0 | X198: 0 | Y198: 0 | Z198: 0 | AA198: 0 | AB198: 0 | AC198: 0 | AD198: 0 | AE198: 0 | AF198: 0 | AG198: 0 | AH198: 0 | AI198: 0 | AJ198: 0 | AK198: 0 | AL198: 0 | AM198: 0
C199: 불균형 및 무리한 동작 | D199: 0 | E199: 0 | F199: 0 | G199: 0 | H199: 0 | I199: 0 | J199: 0 | K199: 0 | L199: 0 | M199: 0 | N199: 0 | O199: 0 | P199: 1 | Q199: 0 | R199: 1 | S199: 0 | T199: 0 | U199: 0 | V199: 0 | W199: 0 | X199: 0 | Y199: 0 | Z199: 0 | AA199: 0 | AB199: 0 | AC199: 0 | AD199: 0 | AE199: 0 | AF199: 0 | AG199: 0 | AH199: 0 | AI199: 0 | AJ199: 0 | AK199: 0 | AL199: 0 | AM199: 0
C200: 화학물질누출·접촉 | D200: 0 | E200: 0 | F200: 0 | G200: 0 | H200: 0 | I200: 0 | J200: 0 | K200: 0 | L200: 0 | M200: 0 | N200: 0 | O200: 0 | P200: 0 | Q200: 0 | R200: 0 | S200: 0 | T200: 0 | U200: 0 | V200: 0 | W200: 0 | X200: 0 | Y200: 0 | Z200: 0 | AA200: 0 | AB200: 1 | AC200: 0 | AD200: 0 | AE200: 0 | AF200: 0 | AG200: 0 | AH200: 0 | AI200: 0 | AJ200: 0 | AK200: 0 | AL200: 1 | AM200: 0
... 825 more rows

Sheet 광주권역
A1: 고용지청 | B1: 업종 | C1: 기준년도 | D1: 2021년 | P1: 2022년 | AB1: 2023년 11월
C2: 규모 | D2: 규모별 합계 | F2: 5인 미만 | H2: 5인 ~ 9인 | J2: 10인 ~ 19인 | L2: 20인 ~ 29인 | N2: 30인 ~ 49인 | P2: 규모별 합계 | R2: 5인 미만 | T2: 5인 ~ 9인 | V2: 10인 ~ 19인 | X2: 20인 ~ 29인 | Z2: 30인 ~ 49인 | AB2: 규모별 합계 | AD2: 5인 미만 | AF2: 5인 ~ 9인 | AH2: 10인 ~ 19인 | AJ2: 20인 ~ 29인 | AL2: 30인 ~ 49인
C3: 발생형태 | D3: 사고재해자수 합계 | E3: 사고사망자수 합계 | F3: 사고재해자수 | G3: 사고사망자수 | H3: 사고재해자수 | I3: 사고사망자수 | J3: 사고재해자수 | K3: 사고사망자수 | L3: 사고재해자수 | M3: 사고사망자수 | N3: 사고재해자수 | O3: 사고사망자수 | P3: 사고재해자수 합계 | Q3: 사고사망자수 합계 | R3: 사고재해자수 | S3: 사고사망자수 | T3: 사고재해자수 | U3: 사고사망자수 | V3: 사고재해자수 | W3: 사고사망자수 | X3: 사고재해자수 | Y3: 사고사망자수 | Z3: 사고재해자수 | AA3: 사고사망자수 | AB3: 사고재해자수 합계 | AC3: 사고사망자수 합계 | AD3: 사고재해자수 | AE3: 사고사망자수 | AF3: 사고재해자수 | AG3: 사고사망자수 | AH3: 사고재해자수 | AI3: 사고사망자수 | AJ3: 사고재해자수 | AK3: 사고사망자수 | AL3: 사고재해자수 | AM3: 사고사망자수
A4: 광 주 청 | B4: 합계 | D4: =SUM(F4,H4,J4,L4,N4) -> 499 | E4: 5 | F4: 149 | G4: 2 | H4: 101 | I4: 1 | J4: 110 | K4: 1 | L4: 77 | M4: 0 | N4: 62 | O4: 1 | P4: =SUM(R4,T4,V4,X4,Z4) -> 453 | Q4: 3 | R4: 157 | S4: 2 | T4: 73 | U4: 0 | V4: 110 | W4: 0 | X4: 48 | Y4: 0 | Z4: 65 | AA4: 1 | AB4: =SUM(AD4,AF4,AH4,AJ4,AL4) -> 457 | AC4: 6 | AD4: 134 | AE4: 1 | AF4: 102 | AG4: 2 | AH4: 105 | AI4: 1 | AJ4: 70 | AK4: 1 | AL4: 46 | AM4: 1
B5: 식료품제조업 | C5: 합계 | D5: 85 | E5: 0 | F5: 16 | G5: 0 | H5: 20 | I5: 0 | J5: 21 | K5: 0 | L5: 15 | M5: 0 | N5: 13 | O5: 0 | P5: 81 | Q5: 0 | R5: 20 | S5: 0 | T5: 9 | U5: 0 | V5: 23 | W5: 0 | X5: 8 | Y5: 0 | Z5: 21 | AA5: 0 | AB5: 79 | AC5: 2 | AD5: 22 | AE5: 0 | AF5: 16 | AG5: 1 | AH5: 20 | AI5: 0 | AJ5: 11 | AK5: 0 | AL5: 10 | AM5: 1
C6: 떨어짐(높이가 있는 곳에서 사람이 떨어짐) | D6: 8 | E6: 0 | F6: 1 | G6: 0 | H6: 1 | I6: 0 | J6: 3 | K6: 0 | L6: 2 | M6: 0 | N6: 1 | O6: 0 | P6: 5 | Q6: 0 | R6: 1 | S6: 0 | T6: 2 | U6: 0 | V6: 0 | W6: 0 | X6: 1 | Y6: 0 | Z6: 1 | AA6: 0 | AB6: 8 | AC6: 2 | AD6: 2 | AE6: 0 | AF6: 1 | AG6: 1 | AH6: 2 | AI6: 0 | AJ6: 2 | AK6: 0 | AL6: 1 | AM6: 1
C7: 넘어짐(사람이 미끄러지거나 넘어짐) | D7: 25 | E7: 0 | F7: 5 | G7: 0 | H7: 7 | I7: 0 | J7: 3 | K7: 0 | L7: 5 | M7: 0 | N7: 5 | O7: 0 | P7: 15 | Q7: 0 | R7: 2 | S7: 0 | T7: 1 | U7: 0 | V7: 5 | W7: 0 | X7: 2 | Y7: 0 | Z7: 5 | AA7: 0 | AB7: 12 | AC7: 0 | AD7: 2 | AE7: 0 | AF7: 2 | AG7: 0 | AH7: 3 | AI7: 0 | AJ7: 2 | AK7: 0 | AL7: 3 | AM7: 0
C8: 깔림·뒤집힘(물체의 쓰러짐이나 뒤집힘) | D8: 2 | E8: 0 | F8: 0 | G8: 0 | H8: 0 | I8: 0 | J8: 1 | K8: 0 | L8: 0 | M8: 0 | N8: 1 | O8: 0 | P8: 0 | Q8: 0 | R8: 0 | S8: 0 | T8: 0 | U8: 0 | V8: 0 | W8: 0 | X8: 0 | Y8: 0 | Z8: 0 | AA8: 0 | AB8: 0 | AC8: 0 | AD8: 0 | AE8: 0 | AF8: 0 | AG8: 0 | AH8: 0 | AI8: 0 | AJ8: 0 | AK8: 0 | AL8: 0 | AM8: 0
C9: 부딪힘(물체에 부딪힘) | D9: 3 | E9: 0 | F9: 0 | G9: 0 | H9: 2 | I9: 0 | J9: 0 | K9: 0 | L9: 1 | M9: 0 | N9: 0 | O9: 0 | P9: 3 | Q9: 0 | R9: 1 | S9: 0 | T9: 0 | U9: 0 | V9: 2 | W9: 0 | X9: 0 | Y9: 0 | Z9: 0 | AA9: 0 | AB9: 6 | AC9: 0 | AD9: 2 | AE9: 0 | AF9: 1 | AG9: 0 | AH9: 3 | AI9: 0 | AJ9: 0 | AK9: 0 | AL9: 0 | AM9: 0
C10: 물체에 맞음(날아오거나 떨어진 물체에 맞음) | D10: 4 | E10: 0 | F10: 1 | G10: 0 | H10: 2 | I10: 0 | J10: 1 | K10: 0 | L10: 0 | M10: 0 | N10: 0 | O10: 0 | P10: 5 | Q10: 0 | R10: 2 | S10: 0 | T10: 0 | U10: 0 | V10: 1 | W10: 0 | X10: 2 | Y10: 0 | Z10: 0 | AA10: 0 | AB10: 5 | AC10: 0 | AD10: 1 | AE10: 0 | AF10: 0 | AG10: 0 | AH10: 1 | AI10: 0 | AJ10: 1 | AK10: 0 | AL10: 2 | AM10: 0
C11: 끼임(기계설비에 끼이거나 감김) | D11: 17 | E11: 0 | F11: 3 | G11: 0 | H11: 5 | I11: 0 | J11: 8 | K11: 0 | L11: 0 | M11: 0 | N11: 1 | O11: 0 | P11: 26 | Q11: 0 | R11: 9 | S11: 0 | T11: 1 | U11: 0 | V11: 6 | W11: 0 | X11: 2 | Y11: 0 | Z11: 8 | AA11: 0 | AB11: 22 | AC11: 0 | AD11: 8 | AE11: 0 | AF11: 6 | AG11: 0 | AH11: 3 | AI11: 0 | AJ11: 3 | AK11: 0 | AL11: 2 | AM11: 0
C12: 절단·베임·찔림 | D12: 17 | E12: 0 | F12: 2 | G12: 0 | H12: 3 | I12: 0 | J12: 2 | K12: 0 | L12: 6 | M12: 0 | N12: 4 | O12: 0 | P12: 19 | Q12: 0 | R12: 4 | S12: 0 | T12: 4 | U12: 0 | V12: 6 | W12: 0 | X12: 1 | Y12: 0 | Z12: 4 | AA12: 0 | AB12: 16 | AC12: 0 | AD12: 4 | AE12: 0 | AF12: 3 | AG12: 0 | AH12: 5 | AI12: 0 | AJ12: 3 | AK12: 0 | AL12: 1 | AM12: 0
C13: 감전 | D13: 0 | E13: 0 | F13: 0 | G13: 0 | H13: 0 | I13: 0 | J13: 0 | K13: 0 | L13: 0 | M13: 0 | N13: 0 | O13: 0 | P13: 1 | Q13: 0 | R13: 0 | S13: 0 | T13: 0 | U13: 0 | V13: 0 | W13: 0 | X13: 0 | Y13: 0 | Z13: 1 | AA13: 0 | AB13: 1 | AC13: 0 | AD13: 0 | AE13: 0 | AF13: 1 | AG13: 0 | AH13: 0 | AI13: 0 | AJ13: 0 | AK13: 0 | AL13: 0 | AM13: 0
C14: 불균형 및 무리한 동작 | D14: 1 | E14: 0 | F14: 1 | G14: 0 | H14: 0 | I14: 0 | J14: 0 | K14: 0 | L14: 0 | M14: 0 | N14: 0 | O14: 0 | P14: 4 | Q14: 0 | R14: 0 | S14: 0 | T14: 1 | U14: 0 | V14: 2 | W14: 0 | X14: 0 | Y14: 0 | Z14: 1 | AA14: 0 | AB14: 5 | AC14: 0 | AD14: 1 | AE14: 0 | AF14: 1 | AG14: 0 | AH14: 3 | AI14: 0 | AJ14: 0 | AK14: 0 | AL14: 0 | AM14: 0
C15: 이상온도 접촉 | D15: 6 | E15: 0 | F15: 2 | G15: 0 | H15: 0 | I15: 0 | J15: 2 | K15: 0 | L15: 1 | M15: 0 | N15: 1 | O15: 0 | P15: 2 | Q15: 0 | R15: 1 | S15: 0 | T15: 0 | U15: 0 | V15: 1 | W15: 0 | X15: 0 | Y15: 0 | Z15: 0 | AA15: 0 | AB15: 3 | AC15: 0 | AD15: 1 | AE15: 0 | AF15: 1 | AG15: 0 | AH15: 0 | AI15: 0 | AJ15: 0 | AK15: 0 | AL15: 1 | AM15: 0
C16: 사업장외 교통사고 | D16: 2 | E16: 0 | F16: 1 | G16: 0 | H16: 0 | I16: 0 | J16: 1 | K16: 0 | L16: 0 | M16: 0 | N16: 0 | O16: 0 | P16: 0 | Q16: 0 | R16: 0 | S16: 0 | T16: 0 | U16: 0 | V16: 0 | W16: 0 | X16: 0 | Y16: 0 | Z16: 0 | AA16: 0 | AB16: 1 | AC16: 0 | AD16: 1 | AE16: 0 | AF16: 0 | AG16: 0 | AH16: 0 | AI16: 0 | AJ16: 0 | AK16: 0 | AL16: 0 | AM16: 0
C17: 동물상해 | D17: 0 | E17: 0 | F17: 0 | G17: 0 | H17: 0 | I17: 0 | J17: 0 | K17: 0 | L17: 0 | M17: 0 | N17: 0 | O17: 0 | P17: 1 | Q17: 0 | R17: 0 | S17: 0 | T17: 0 | U17: 0 | V17: 0 | W17: 0 | X17: 0 | Y17: 0 | Z17: 1 | AA17: 0 | AB17: 0 | AC17: 0 | AD17: 0 | AE17: 0 | AF17: 0 | AG17: 0 | AH17: 0 | AI17: 0 | AJ17: 0 | AK17: 0 | AL17: 0 | AM17: 0
C18: 물리적인자 | D18: 0 | E18: 0 | F18: 0 | G18: 0 | H18: 0 | I18: 0 | J18: 0 | K18: 0 | L18: 0 | M18: 0 | N18: 0 | O18: 0 | P18: 0 | Q18: 0 | R18: 0 | S18: 0 | T18: 0 | U18: 0 | V18: 0 | W18: 0 | X18: 0 | Y18: 0 | Z18: 0 | AA18: 0 | AB18: 0 | AC18: 0 | AD18: 0 | AE18: 0 | AF18: 0 | AG18: 0 | AH18: 0 | AI18: 0 | AJ18: 0 | AK18: 0 | AL18: 0 | AM18: 0
C19: 화학적인자 | D19: 0 | E19: 0 | F19: 0 | G19: 0 | H19: 0 | I19: 0 | J19: 0 | K19: 0 | L19: 0 | M19: 0 | N19: 0 | O19: 0 | P19: 0 | Q19: 0 | R19: 0 | S19: 0 | T19: 0 | U19: 0 | V19: 0 | W19: 0 | X19: 0 | Y19: 0 | Z19: 0 | AA19: 0 | AB19: 0 | AC19: 0 | AD19: 0 | AE19: 0 | AF19: 0 | AG19: 0 | AH19: 0 | AI19: 0 | AJ19: 0 | AK19: 0 | AL19: 0 | AM19: 0
C20: 뇌심혈관질환 | D20: 0 | E20: 0 | F20: 0 | G20: 0 | H20: 0 | I20: 0 | J20: 0 | K20: 0 | L20: 0 | M20: 0 | N20: 0 | O20: 0 | P20: 0 | Q20: 0 | R20: 0 | S20: 0 | T20: 0 | U20: 0 | V20: 0 | W20: 0 | X20: 0 | Y20: 0 | Z20: 0 | AA20: 0 | AB20: 0 | AC20: 0 | AD20: 0 | AE20: 0 | AF20: 0 | AG20: 0 | AH20: 0 | AI20: 0 | AJ20: 0 | AK20: 0 | AL20: 0 | AM20: 0
C21: 근골격계질환 | D21: 0 | E21: 0 | F21: 0 | G21: 0 | H21: 0 | I21: 0 | J21: 0 | K21: 0 | L21: 0 | M21: 0 | N21: 0 | O21: 0 | P21: 0 | Q21: 0 | R21: 0 | S21: 0 | T21: 0 | U21: 0 | V21: 0 | W21: 0 | X21: 0 | Y21: 0 | Z21: 0 | AA21: 0 | AB21: 0 | AC21: 0 | AD21: 0 | AE21: 0 | AF21: 0 | AG21: 0 | AH21: 0 | AI21: 0 | AJ21: 0 | AK21: 0 | AL21: 0 | AM21: 0
B22: 섬유및섬유제품제조업 | C22: 합계 | D22: 7 | E22: 0 | F22: 0 | G22: 0 | H22: 2 | I22: 0 | J22: 1 | K22: 0 | L22: 3 | M22: 0 | N22: 1 | O22: 0 | P22: 8 | Q22: 0 | R22: 1 | S22: 0 | T22: 3 | U22: 0 | V22: 2 | W22: 0 | X22: 2 | Y22: 0 | Z22: 0 | AA22: 0 | AB22: 7 | AC22: 0 | AD22: 4 | AE22: 0 | AF22: 2 | AG22: 0 | AH22: 0 | AI22: 0 | AJ22: 1 | AK22: 0 | AL22: 0 | AM22: 0
C23: 떨어짐(높이가 있는 곳에서 사람이 떨어짐) | D23: 2 | E23: 0 | F23: 0 | G23: 0 | H23: 1 | I23: 0 | J23: 0 | K23: 0 | L23: 1 | M23: 0 | N23: 0 | O23: 0 | P23: 3 | Q23: 0 | R23: 1 | S23: 0 | T23: 1 | U23: 0 | V23: 0 | W23: 0 | X23: 1 | Y23: 0 | Z23: 0 | AA23: 0 | AB23: 3 | AC23: 0 | AD23: 2 | AE23: 0 | AF23: 1 | AG23: 0 | AH23: 0 | AI23: 0 | AJ23: 0 | AK23: 0 | AL23: 0 | AM23: 0
C24: 넘어짐(사람이 미끄러지거나 넘어짐) | D24: 1 | E24: 0 | F24: 0 | G24: 0 | H24: 0 | I24: 0 | J24: 1 | K24: 0 | L24: 0 | M24: 0 | N24: 0 | O24: 0 | P24: 1 | Q24: 0 | R24: 0 | S24: 0 | T24: 0 | U24: 0 | V24: 1 | W24: 0 | X24: 0 | Y24: 0 | Z24: 0 | AA24: 0 | AB24: 0 | AC24: 0 | AD24: 0 | AE24: 0 | AF24: 0 | AG24: 0 | AH24: 0 | AI24: 0 | AJ24: 0 | AK24: 0 | AL24: 0 | AM24: 0
C25: 깔림·뒤집힘(물체의 쓰러짐이나 뒤집힘) | D25: 0 | E25: 0 | F25: 0 | G25: 0 | H25: 0 | I25: 0 | J25: 0 | K25: 0 | L25: 0 | M25: 0 | N25: 0 | O25: 0 | P25: 1 | Q25: 0 | R25: 0 | S25: 0 | T25: 1 | U25: 0 | V25: 0 | W25: 0 | X25: 0 | Y25: 0 | Z25: 0 | AA25: 0 | AB25: 0 | AC25: 0 | AD25: 0 | AE25: 0 | AF25: 0 | AG25: 0 | AH25: 0 | AI25: 0 | AJ25: 0 | AK25: 0 | AL25: 0 | AM25: 0
C26: 부딪힘(물체에 부딪힘) | D26: 0 | E26: 0 | F26: 0 | G26: 0 | H26: 0 | I26: 0 | J26: 0 | K26: 0 | L26: 0 | M26: 0 | N26: 0 | O26: 0 | P26: 0 | Q26: 0 | R26: 0 | S26: 0 | T26: 0 | U26: 0 | V26: 0 | W26: 0 | X26: 0 | Y26: 0 | Z26: 0 | AA26: 0 | AB26: 1 | AC26: 0 | AD26: 1 | AE26: 0 | AF26: 0 | AG26: 0 | AH26: 0 | AI26: 0 | AJ26: 0 | AK26: 0 | AL26: 0 | AM26: 0
C27: 끼임(기계설비에 끼이거나 감김) | D27: 3 | E27: 0 | F27: 0 | G27: 0 | H27: 1 | I27: 0 | J27: 0 | K27: 0 | L27: 2 | M27: 0 | N27: 0 | O27: 0 | P27: 3 | Q27: 0 | R27: 0 | S27: 0 | T27: 1 | U27: 0 | V27: 1 | W27: 0 | X27: 1 | Y27: 0 | Z27: 0 | AA27: 0 | AB27: 0 | AC27: 0 | AD27: 0 | AE27: 0 | AF27: 0 | AG27: 0 | AH27: 0 | AI27: 0 | AJ27: 0 | AK27: 0 | AL27: 0 | AM27: 0
C28: 절단·베임·찔림 | D28: 1 | E28: 0 | F28: 0 | G28: 0 | H28: 0 | I28: 0 | J28: 0 | K28: 0 | L28: 0 | M28: 0 | N28: 1 | O28: 0 | P28: 0 | Q28: 0 | R28: 0 | S28: 0 | T28: 0 | U28: 0 | V28: 0 | W28: 0 | X28: 0 | Y28: 0 | Z28: 0 | AA28: 0 | AB28: 2 | AC28: 0 | AD28: 1 | AE28: 0 | AF28: 0 | AG28: 0 | AH28: 0 | AI28: 0 | AJ28: 1 | AK28: 0 | AL28: 0 | AM28: 0
C29: 사업장외 교통사고 | D29: 0 | E29: 0 | F29: 0 | G29: 0 | H29: 0 | I29: 0 | J29: 0 | K29: 0 | L29: 0 | M29: 0 | N29: 0 | O29: 0 | P29: 0 | Q29: 0 | R29: 0 | S29: 0 | T29: 0 | U29: 0 | V29: 0 | W29: 0 | X29: 0 | Y29: 0 | Z29: 0 | AA29: 0 | AB29: 1 | AC29: 0 | AD29: 0 | AE29: 0 | AF29: 1 | AG29: 0 | AH29: 0 | AI29: 0 | AJ29: 0 | AK29: 0 | AL29: 0 | AM29: 0
C30: 물리적인자 | D30: 0 | E30: 0 | F30: 0 | G30: 0 | H30: 0 | I30: 0 | J30: 0 | K30: 0 | L30: 0 | M30: 0 | N30: 0 | O30: 0 | P30: 0 | Q30: 0 | R30: 0 | S30: 0 | T30: 0 | U30: 0 | V30: 0 | W30: 0 | X30: 0 | Y30: 0 | Z30: 0 | AA30: 0 | AB30: 0 | AC30: 0 | AD30: 0 | AE30: 0 | AF30: 0 | AG30: 0 | AH30: 0 | AI30: 0 | AJ30: 0 | AK30: 0 | AL30: 0 | AM30: 0
C31: 뇌심혈관질환 | D31: 0 | E31: 0 | F31: 0 | G31: 0 | H31: 0 | I31: 0 | J31: 0 | K31: 0 | L31: 0 | M31: 0 | N31: 0 | O31: 0 | P31: 0 | Q31: 0 | R31: 0 | S31: 0 | T31: 0 | U31: 0 | V31: 0 | W31: 0 | X31: 0 | Y31: 0 | Z31: 0 | AA31: 0 | AB31: 0 | AC31: 0 | AD31: 0 | AE31: 0 | AF31: 0 | AG31: 0 | AH31: 0 | AI31: 0 | AJ31: 0 | AK31: 0 | AL31: 0 | AM31: 0
C32: 근골격계질환 | D32: 0 | E32: 0 | F32: 0 | G32: 0 | H32: 0 | I32: 0 | J32: 0 | K32: 0 | L32: 0 | M32: 0 | N32: 0 | O32: 0 | P32: 0 | Q32: 0 | R32: 0 | S32: 0 | T32: 0 | U32: 0 | V32: 0 | W32: 0 | X32: 0 | Y32: 0 | Z32: 0 | AA32: 0 | AB32: 0 | AC32: 0 | AD32: 0 | AE32: 0 | AF32: 0 | AG32: 0 | AH32: 0 | AI32: 0 | AJ32: 0 | AK32: 0 | AL32: 0 | AM32: 0
B33: 목재및종이제품제조업 | C33: 합계 | D33: 37 | E33: 0 | F33: 15 | G33: 0 | H33: 8 | I33: 0 | J33: 6 | K33: 0 | L33: 6 | M33: 0 | N33: 2 | O33: 0 | P33: 30 | Q33: 0 | R33: 14 | S33: 0 | T33: 8 | U33: 0 | V33: 2 | W33: 0 | X33: 3 | Y33: 0 | Z33: 3 | AA33: 0 | AB33: 25 | AC33: 1 | AD33: 17 | AE33: 1 | AF33: 2 | AG33: 0 | AH33: 4 | AI33: 0 | AJ33: 2 | AK33: 0 | AL33: 0 | AM33: 0
C34: 떨어짐(높이가 있는 곳에서 사람이 떨어짐) | D34: 3 | E34: 0 | F34: 1 | G34: 0 | H34: 2 | I34: 0 | J34: 0 | K34: 0 | L34: 0 | M34: 0 | N34: 0 | O34: 0 | P34: 4 | Q34: 0 | R34: 2 | S34: 0 | T34: 1 | U34: 0 | V34: 0 | W34: 0 | X34: 1 | Y34: 0 | Z34: 0 | AA34: 0 | AB34: 4 | AC34: 0 | AD34: 3 | AE34: 0 | AF34: 0 | AG34: 0 | AH34: 1 | AI34: 0 | AJ34: 0 | AK34: 0 | AL34: 0 | AM34: 0
C35: 넘어짐(사람이 미끄러지거나 넘어짐) | D35: 4 | E35: 0 | F35: 0 | G35: 0 | H35: 1 | I35: 0 | J35: 1 | K35: 0 | L35: 1 | M35: 0 | N35: 1 | O35: 0 | P35: 3 | Q35: 0 | R35: 3 | S35: 0 | T35: 0 | U35: 0 | V35: 0 | W35: 0 | X35: 0 | Y35: 0 | Z35: 0 | AA35: 0 | AB35: 4 | AC35: 0 | AD35: 4 | AE35: 0 | AF35: 0 | AG35: 0 | AH35: 0 | AI35: 0 | AJ35: 0 | AK35: 0 | AL35: 0 | AM35: 0
C36: 깔림·뒤집힘(물체의 쓰러짐이나 뒤집힘) | D36: 1 | E36: 0 | F36: 1 | G36: 0 | H36: 0 | I36: 0 | J36: 0 | K36: 0 | L36: 0 | M36: 0 | N36: 0 | O36: 0 | P36: 0 | Q36: 0 | R36: 0 | S36: 0 | T36: 0 | U36: 0 | V36: 0 | W36: 0 | X36: 0 | Y36: 0 | Z36: 0 | AA36: 0 | AB36: 2 | AC36: 1 | AD36: 1 | AE36: 1 | AF36: 1 | AG36: 0 | AH36: 0 | AI36: 0 | AJ36: 0 | AK36: 0 | AL36: 0 | AM36: 0
C37: 부딪힘(물체에 부딪힘) | D37: 3 | E37: 0 | F37: 1 | G37: 0 | H37: 1 | I37: 0 | J37: 1 | K37: 0 | L37: 0 | M37: 0 | N37: 0 | O37: 0 | P37: 2 | Q37: 0 | R37: 1 | S37: 0 | T37: 0 | U37: 0 | V37: 1 | W37: 0 | X37: 0 | Y37: 0 | Z37: 0 | AA37: 0 | AB37: 0 | AC37: 0 | AD37: 0 | AE37: 0 | AF37: 0 | AG37: 0 | AH37: 0 | AI37: 0 | AJ37: 0 | AK37: 0 | AL37: 0 | AM37: 0
C38: 물체에 맞음(날아오거나 떨어진 물체에 맞음) | D38: 5 | E38: 0 | F38: 3 | G38: 0 | H38: 1 | I38: 0 | J38: 0 | K38: 0 | L38: 1 | M38: 0 | N38: 0 | O38: 0 | P38: 2 | Q38: 0 | R38: 0 | S38: 0 | T38: 1 | U38: 0 | V38: 0 | W38: 0 | X38: 0 | Y38: 0 | Z38: 1 | AA38: 0 | AB38: 3 | AC38: 0 | AD38: 2 | AE38: 0 | AF38: 0 | AG38: 0 | AH38: 0 | AI38: 0 | AJ38: 1 | AK38: 0 | AL38: 0 | AM38: 0
C39: 무너짐(건축물이나 쌓여진 물체가 무너짐) | D39: 0 | E39: 0 | F39: 0 | G39: 0 | H39: 0 | I39: 0 | J39: 0 | K39: 0 | L39: 0 | M39: 0 | N39: 0 | O39: 0 | P39: 1 | Q39: 0 | R39: 1 | S39: 0 | T39: 0 | U39: 0 | V39: 0 | W39: 0 | X39: 0 | Y39: 0 | Z39: 0 | AA39: 0 | AB39: 1 | AC39: 0 | AD39: 1 | AE39: 0 | AF39: 0 | AG39: 0 | AH39: 0 | AI39: 0 | AJ39: 0 | AK39: 0 | AL39: 0 | AM39: 0
C40: 끼임(기계설비에 끼이거나 감김) | D40: 10 | E40: 0 | F40: 3 | G40: 0 | H40: 2 | I40: 0 | J40: 2 | K40: 0 | L40: 3 | M40: 0 | N40: 0 | O40: 0 | P40: 6 | Q40: 0 | R40: 2 | S40: 0 | T40: 2 | U40: 0 | V40: 0 | W40: 0 | X40: 2 | Y40: 0 | Z40: 0 | AA40: 0 | AB40: 4 | AC40: 0 | AD40: 2 | AE40: 0 | AF40: 1 | AG40: 0 | AH40: 1 | AI40: 0 | AJ40: 0 | AK40: 0 | AL40: 0 | AM40: 0
C41: 절단·베임·찔림 | D41: 10 | E41: 0 | F41: 6 | G41: 0 | H41: 1 | I41: 0 | J41: 1 | K41: 0 | L41: 1 | M41: 0 | N41: 1 | O41: 0 | P41: 11 | Q41: 0 | R41: 5 | S41: 0 | T41: 4 | U41: 0 | V41: 0 | W41: 0 | X41: 0 | Y41: 0 | Z41: 2 | AA41: 0 | AB41: 3 | AC41: 0 | AD41: 3 | AE41: 0 | AF41: 0 | AG41: 0 | AH41: 0 | AI41: 0 | AJ41: 0 | AK41: 0 | AL41: 0 | AM41: 0
C42: 폭발·파열 | D42: 0 | E42: 0 | F42: 0 | G42: 0 | H42: 0 | I42: 0 | J42: 0 | K42: 0 | L42: 0 | M42: 0 | N42: 0 | O42: 0 | P42: 0 | Q42: 0 | R42: 0 | S42: 0 | T42: 0 | U42: 0 | V42: 0 | W42: 0 | X42: 0 | Y42: 0 | Z42: 0 | AA42: 0 | AB42: 1 | AC42: 0 | AD42: 0 | AE42: 0 | AF42: 0 | AG42: 0 | AH42: 1 | AI42: 0 | AJ42: 0 | AK42: 0 | AL42: 0 | AM42: 0
C43: 불균형 및 무리한 동작 | D43: 1 | E43: 0 | F43: 0 | G43: 0 | H43: 0 | I43: 0 | J43: 1 | K43: 0 | L43: 0 | M43: 0 | N43: 0 | O43: 0 | P43: 1 | Q43: 0 | R43: 0 | S43: 0 | T43: 0 | U43: 0 | V43: 1 | W43: 0 | X43: 0 | Y43: 0 | Z43: 0 | AA43: 0 | AB43: 1 | AC43: 0 | AD43: 1 | AE43: 0 | AF43: 0 | AG43: 0 | AH43: 0 | AI43: 0 | AJ43: 0 | AK43: 0 | AL43: 0 | AM43: 0
C44: 이상온도 접촉 | D44: 0 | E44: 0 | F44: 0 | G44: 0 | H44: 0 | I44: 0 | J44: 0 | K44: 0 | L44: 0 | M44: 0 | N44: 0 | O44: 0 | P44: 0 | Q44: 0 | R44: 0 | S44: 0 | T44: 0 | U44: 0 | V44: 0 | W44: 0 | X44: 0 | Y44: 0 | Z44: 0 | AA44: 0 | AB44: 1 | AC44: 0 | AD44: 0 | AE44: 0 | AF44: 0 | AG44: 0 | AH44: 0 | AI44: 0 | AJ44: 1 | AK44: 0 | AL44: 0 | AM44: 0
C45: 사업장외 교통사고 | D45: 0 | E45: 0 | F45: 0 | G45: 0 | H45: 0 | I45: 0 | J45: 0 | K45: 0 | L45: 0 | M45: 0 | N45: 0 | O45: 0 | P45: 0 | Q45: 0 | R45: 0 | S45: 0 | T45: 0 | U45: 0 | V45: 0 | W45: 0 | X45: 0 | Y45: 0 | Z45: 0 | AA45: 0 | AB45: 1 | AC45: 0 | AD45: 0 | AE45: 0 | AF45: 0 | AG45: 0 | AH45: 1 | AI45: 0 | AJ45: 0 | AK45: 0 | AL45: 0 | AM45: 0
C46: 물리적인자 | D46: 0 | E46: 0 | F46: 0 | G46: 0 | H46: 0 | I46: 0 | J46: 0 | K46: 0 | L46: 0 | M46: 0 | N46: 0 | O46: 0 | P46: 0 | Q46: 0 | R46: 0 | S46: 0 | T46: 0 | U46: 0 | V46: 0 | W46: 0 | X46: 0 | Y46: 0 | Z46: 0 | AA46: 0 | AB46: 0 | AC46: 0 | AD46: 0 | AE46: 0 | AF46: 0 | AG46: 0 | AH46: 0 | AI46: 0 | AJ46: 0 | AK46: 0 | AL46: 0 | AM46: 0
C47: 근골격계질환 | D47: 0 | E47: 0 | F47: 0 | G47: 0 | H47: 0 | I47: 0 | J47: 0 | K47: 0 | L47: 0 | M47: 0 | N47: 0 | O47: 0 | P47: 0 | Q47: 0 | R47: 0 | S47: 0 | T47: 0 | U47: 0 | V47: 0 | W47: 0 | X47: 0 | Y47: 0 | Z47: 0 | AA47: 0 | AB47: 0 | AC47: 0 | AD47: 0 | AE47: 0 | AF47: 0 | AG47: 0 | AH47: 0 | AI47: 0 | AJ47: 0 | AK47: 0 | AL47: 0 | AM47: 0
B48: 출판·인쇄·제본업 | C48: 합계 | D48: 5 | E48: 0 | F48: 1 | G48: 0 | H48: 1 | I48: 0 | J48: 3 | K48: 0 | L48: 0 | M48: 0 | N48: 0 | O48: 0 | P48: 4 | Q48: 0 | R48: 2 | S48: 0 | T48: 1 | U48: 0 | V48: 0 | W48: 0 | X48: 1 | Y48: 0 | Z48: 0 | AA48: 0 | AB48: 0 | AC48: 0 | AD48: 0 | AE48: 0 | AF48: 0 | AG48: 0 | AH48: 0 | AI48: 0 | AJ48: 0 | AK48: 0 | AL48: 0 | AM48: 0
C49: 넘어짐(사람이 미끄러지거나 넘어짐) | D49: =SUM(F49,H49,J49,L49,N49) -> 1 | E49: 0 | F49: 0 | G49: 0 | H49: 0 | I49: 0 | J49: 1 | K49: 0 | L49: 0 | M49: 0 | N49: 0 | O49: 0 | P49: =SUM(R49,T49,V49,X49,Z49) -> 0 | Q49: 0 | R49: 0 | S49: 0 | T49: 0 | U49: 0 | V49: 0 | W49: 0 | X49: 0 | Y49: 0 | Z49: 0 | AA49: 0 | AB49: =SUM(AD49,AF49,AH49,AJ49,AL49) -> 0 | AC49: 0 | AD49: 0 | AE49: 0 | AF49: 0 | AG49: 0 | AH49: 0 | AI49: 0 | AJ49: 0 | AK49: 0 | AL49: 0 | AM49: 0
C50: 부딪힘(물체에 부딪힘) | D50: 0 | E50: 0 | F50: 0 | G50: 0 | H50: 0 | I50: 0 | J50: 0 | K50: 0 | L50: 0 | M50: 0 | N50: 0 | O50: 0 | P50: 1 | Q50: 0 | R50: 1 | S50: 0 | T50: 0 | U50: 0 | V50: 0 | W50: 0 | X50: 0 | Y50: 0 | Z50: 0 | AA50: 0 | AB50: 0 | AC50: 0 | AD50: 0 | AE50: 0 | AF50: 0 | AG50: 0 | AH50: 0 | AI50: 0 | AJ50: 0 | AK50: 0 | AL50: 0 | AM50: 0
C51: 물체에 맞음(날아오거나 떨어진 물체에 맞음) | D51: 0 | E51: 0 | F51: 0 | G51: 0 | H51: 0 | I51: 0 | J51: 0 | K51: 0 | L51: 0 | M51: 0 | N51: 0 | O51: 0 | P51: 2 | Q51: 0 | R51: 1 | S51: 0 | T51: 0 | U51: 0 | V51: 0 | W51: 0 | X51: 1 | Y51: 0 | Z51: 0 | AA51: 0 | AB51: 0 | AC51: 0 | AD51: 0 | AE51: 0 | AF51: 0 | AG51: 0 | AH51: 0 | AI51: 0 | AJ51: 0 | AK51: 0 | AL51: 0 | AM51: 0
C52: 끼임(기계설비에 끼이거나 감김) | D52: 1 | E52: 0 | F52: 0 | G52: 0 | H52: 0 | I52: 0 | J52: 1 | K52: 0 | L52: 0 | M52: 0 | N52: 0 | O52: 0 | P52: 0 | Q52: 0 | R52: 0 | S52: 0 | T52: 0 | U52: 0 | V52: 0 | W52: 0 | X52: 0 | Y52: 0 | Z52: 0 | AA52: 0 | AB52: 0 | AC52: 0 | AD52: 0 | AE52: 0 | AF52: 0 | AG52: 0 | AH52: 0 | AI52: 0 | AJ52: 0 | AK52: 0 | AL52: 0 | AM52: 0
C53: 절단·베임·찔림 | D53: 1 | E53: 0 | F53: 1 | G53: 0 | H53: 0 | I53: 0 | J53: 0 | K53: 0 | L53: 0 | M53: 0 | N53: 0 | O53: 0 | P53: 0 | Q53: 0 | R53: 0 | S53: 0 | T53: 0 | U53: 0 | V53: 0 | W53: 0 | X53: 0 | Y53: 0 | Z53: 0 | AA53: 0 | AB53: 0 | AC53: 0 | AD53: 0 | AE53: 0 | AF53: 0 | AG53: 0 | AH53: 0 | AI53: 0 | AJ53: 0 | AK53: 0 | AL53: 0 | AM53: 0
C54: 감전 | D54: 1 | E54: 0 | F54: 0 | G54: 0 | H54: 0 | I54: 0 | J54: 1 | K54: 0 | L54: 0 | M54: 0 | N54: 0 | O54: 0 | P54: 0 | Q54: 0 | R54: 0 | S54: 0 | T54: 0 | U54: 0 | V54: 0 | W54: 0 | X54: 0 | Y54: 0 | Z54: 0 | AA54: 0 | AB54: 0 | AC54: 0 | AD54: 0 | AE54: 0 | AF54: 0 | AG54: 0 | AH54: 0 | AI54: 0 | AJ54: 0 | AK54: 0 | AL54: 0 | AM54: 0
C55: 불균형 및 무리한 동작 | D55: 1 | E55: 0 | F55: 0 | G55: 0 | H55: 1 | I55: 0 | J55: 0 | K55: 0 | L55: 0 | M55: 0 | N55: 0 | O55: 0 | P55: 0 | Q55: 0 | R55: 0 | S55: 0 | T55: 0 | U55: 0 | V55: 0 | W55: 0 | X55: 0 | Y55: 0 | Z55: 0 | AA55: 0 | AB55: 0 | AC55: 0 | AD55: 0 | AE55: 0 | AF55: 0 | AG55: 0 | AH55: 0 | AI55: 0 | AJ55: 0 | AK55: 0 | AL55: 0 | AM55: 0
C56: 사업장외 교통사고 | D56: 0 | E56: 0 | F56: 0 | G56: 0 | H56: 0 | I56: 0 | J56: 0 | K56: 0 | L56: 0 | M56: 0 | N56: 0 | O56: 0 | P56: 1 | Q56: 0 | R56: 0 | S56: 0 | T56: 1 | U56: 0 | V56: 0 | W56: 0 | X56: 0 | Y56: 0 | Z56: 0 | AA56: 0 | AB56: 0 | AC56: 0 | AD56: 0 | AE56: 0 | AF56: 0 | AG56: 0 | AH56: 0 | AI56: 0 | AJ56: 0 | AK56: 0 | AL56: 0 | AM56: 0
C57: 근골격계질환 | D57: 0 | E57: 0 | F57: 0 | G57: 0 | H57: 0 | I57: 0 | J57: 0 | K57: 0 | L57: 0 | M57: 0 | N57: 0 | O57: 0 | P57: 0 | Q57: 0 | R57: 0 | S57: 0 | T57: 0 | U57: 0 | V57: 0 | W57: 0 | X57: 0 | Y57: 0 | Z57: 0 | AA57: 0 | AB57: 0 | AC57: 0 | AD57: 0 | AE57: 0 | AF57: 0 | AG57: 0 | AH57: 0 | AI57: 0 | AJ57: 0 | AK57: 0 | AL57: 0 | AM57: 0
B58: 화학및고무제품제조업 | C58: 합계 | D58: 43 | E58: 3 | F58: 16 | G58: 2 | H58: 8 | I58: 1 | J58: 12 | K58: 0 | L58: 4 | M58: 0 | N58: 3 | O58: 0 | P58: 45 | Q58: 0 | R58: 16 | S58: 0 | T58: 7 | U58: 0 | V58: 10 | W58: 0 | X58: 6 | Y58: 0 | Z58: 6 | AA58: 0 | AB58: 54 | AC58: 0 | AD58: 9 | AE58: 0 | AF58: 18 | AG58: 0 | AH58: 14 | AI58: 0 | AJ58: 10 | AK58: 0 | AL58: 3 | AM58: 0
C59: 떨어짐(높이가 있는 곳에서 사람이 떨어짐) | D59: 12 | E59: 1 | F59: 5 | G59: 0 | H59: 3 | I59: 1 | J59: 2 | K59: 0 | L59: 1 | M59: 0 | N59: 1 | O59: 0 | P59: 7 | Q59: 0 | R59: 2 | S59: 0 | T59: 2 | U59: 0 | V59: 3 | W59: 0 | X59: 0 | Y59: 0 | Z59: 0 | AA59: 0 | AB59: 7 | AC59: 0 | AD59: 1 | AE59: 0 | AF59: 2 | AG59: 0 | AH59: 3 | AI59: 0 | AJ59: 1 | AK59: 0 | AL59: 0 | AM59: 0
C60: 넘어짐(사람이 미끄러지거나 넘어짐) | D60: 6 | E60: 0 | F60: 2 | G60: 0 | H60: 1 | I60: 0 | J60: 2 | K60: 0 | L60: 1 | M60: 0 | N60: 0 | O60: 0 | P60: 3 | Q60: 0 | R60: 2 | S60: 0 | T60: 0 | U60: 0 | V60: 0 | W60: 0 | X60: 0 | Y60: 0 | Z60: 1 | AA60: 0 | AB60: 8 | AC60: 0 | AD60: 0 | AE60: 0 | AF60: 3 | AG60: 0 | AH60: 2 | AI60: 0 | AJ60: 2 | AK60: 0 | AL60: 1 | AM60: 0
C61: 깔림·뒤집힘(물체의 쓰러짐이나 뒤집힘) | D61: 0 | E61: 0 | F61: 0 | G61: 0 | H61: 0 | I61: 0 | J61: 0 | K61: 0 | L61: 0 | M61: 0 | N61: 0 | O61: 0 | P61: 3 | Q61: 0 | R61: 2 | S61: 0 | T61: 0 | U61: 0 | V61: 0 | W61: 0 | X61: 0 | Y61: 0 | Z61: 1 | AA61: 0 | AB61: 1 | AC61: 0 | AD61: 0 | AE61: 0 | AF61: 1 | AG61: 0 | AH61: 0 | AI61: 0 | AJ61: 0 | AK61: 0 | AL61: 0 | AM61: 0
C62: 부딪힘(물체에 부딪힘) | D62: 3 | E62: 0 | F62: 0 | G62: 0 | H62: 0 | I62: 0 | J62: 2 | K62: 0 | L62: 0 | M62: 0 | N62: 1 | O62: 0 | P62: 1 | Q62: 0 | R62: 1 | S62: 0 | T62: 0 | U62: 0 | V62: 0 | W62: 0 | X62: 0 | Y62: 0 | Z62: 0 | AA62: 0 | AB62: 3 | AC62: 0 | AD62: 1 | AE62: 0 | AF62: 2 | AG62: 0 | AH62: 0 | AI62: 0 | AJ62: 0 | AK62: 0 | AL62: 0 | AM62: 0
C63: 물체에 맞음(날아오거나 떨어진 물체에 맞음) | D63: 2 | E63: 0 | F63: 1 | G63: 0 | H63: 0 | I63: 0 | J63: 1 | K63: 0 | L63: 0 | M63: 0 | N63: 0 | O63: 0 | P63: 4 | Q63: 0 | R63: 1 | S63: 0 | T63: 1 | U63: 0 | V63: 0 | W63: 0 | X63: 1 | Y63: 0 | Z63: 1 | AA63: 0 | AB63: 2 | AC63: 0 | AD63: 0 | AE63: 0 | AF63: 2 | AG63: 0 | AH63: 0 | AI63: 0 | AJ63: 0 | AK63: 0 | AL63: 0 | AM63: 0
C64: 끼임(기계설비에 끼이거나 감김) | D64: 7 | E64: 2 | F64: 5 | G64: 2 | H64: 0 | I64: 0 | J64: 2 | K64: 0 | L64: 0 | M64: 0 | N64: 0 | O64: 0 | P64: 14 | Q64: 0 | R64: 4 | S64: 0 | T64: 3 | U64: 0 | V64: 2 | W64: 0 | X64: 3 | Y64: 0 | Z64: 2 | AA64: 0 | AB64: 17 | AC64: 0 | AD64: 1 | AE64: 0 | AF64: 3 | AG64: 0 | AH64: 7 | AI64: 0 | AJ64: 4 | AK64: 0 | AL64: 2 | AM64: 0
C65: 절단·베임·찔림 | D65: 7 | E65: 0 | F65: 3 | G65: 0 | H65: 2 | I65: 0 | J65: 1 | K65: 0 | L65: 1 | M65: 0 | N65: 0 | O65: 0 | P65: 11 | Q65: 0 | R65: 4 | S65: 0 | T65: 1 | U65: 0 | V65: 3 | W65: 0 | X65: 2 | Y65: 0 | Z65: 1 | AA65: 0 | AB65: 7 | AC65: 0 | AD65: 2 | AE65: 0 | AF65: 3 | AG65: 0 | AH65: 0 | AI65: 0 | AJ65: 2 | AK65: 0 | AL65: 0 | AM65: 0
C66: 폭발·파열 | D66: 0 | E66: 0 | F66: 0 | G66: 0 | H66: 0 | I66: 0 | J66: 0 | K66: 0 | L66: 0 | M66: 0 | N66: 0 | O66: 0 | P66: 0 | Q66: 0 | R66: 0 | S66: 0 | T66: 0 | U66: 0 | V66: 0 | W66: 0 | X66: 0 | Y66: 0 | Z66: 0 | AA66: 0 | AB66: 1 | AC66: 0 | AD66: 1 | AE66: 0 | AF66: 0 | AG66: 0 | AH66: 0 | AI66: 0 | AJ66: 0 | AK66: 0 | AL66: 0 | AM66: 0
C67: 불균형 및 무리한 동작 | D67: 2 | E67: 0 | F67: 0 | G67: 0 | H67: 1 | I67: 0 | J67: 1 | K67: 0 | L67: 0 | M67: 0 | N67: 0 | O67: 0 | P67: 0 | Q67: 0 | R67: 0 | S67: 0 | T67: 0 | U67: 0 | V67: 0 | W67: 0 | X67: 0 | Y67: 0 | Z67: 0 | AA67: 0 | AB67: 2 | AC67: 0 | AD67: 1 | AE67: 0 | AF67: 1 | AG67: 0 | AH67: 0 | AI67: 0 | AJ67: 0 | AK67: 0 | AL67: 0 | AM67: 0
C68: 이상온도 접촉 | D68: 2 | E68: 0 | F68: 0 | G68: 0 | H68: 0 | I68: 0 | J68: 1 | K68: 0 | L68: 0 | M68: 0 | N68: 1 | O68: 0 | P68: 2 | Q68: 0 | R68: 0 | S68: 0 | T68: 0 | U68: 0 | V68: 2 | W68: 0 | X68: 0 | Y68: 0 | Z68: 0 | AA68: 0 | AB68: 2 | AC68: 0 | AD68: 1 | AE68: 0 | AF68: 0 | AG68: 0 | AH68: 0 | AI68: 0 | AJ68: 1 | AK68: 0 | AL68: 0 | AM68: 0
C69: 화학물질누출·접촉 | D69: 0 | E69: 0 | F69: 0 | G69: 0 | H69: 0 | I69: 0 | J69: 0 | K69: 0 | L69: 0 | M69: 0 | N69: 0 | O69: 0 | P69: 0 | Q69: 0 | R69: 0 | S69: 0 | T69: 0 | U69: 0 | V69: 0 | W69: 0 | X69: 0 | Y69: 0 | Z69: 0 | AA69: 0 | AB69: 1 | AC69: 0 | AD69: 0 | AE69: 0 | AF69: 1 | AG69: 0 | AH69: 0 | AI69: 0 | AJ69: 0 | AK69: 0 | AL69: 0 | AM69: 0
C70: 사업장외 교통사고 | D70: 2 | E70: 0 | F70: 0 | G70: 0 | H70: 1 | I70: 0 | J70: 0 | K70: 0 | L70: 1 | M70: 0 | N70: 0 | O70: 0 | P70: 0 | Q70: 0 | R70: 0 | S70: 0 | T70: 0 | U70: 0 | V70: 0 | W70: 0 | X70: 0 | Y70: 0 | Z70: 0 | AA70: 0 | AB70: 2 | AC70: 0 | AD70: 0 | AE70: 0 | AF70: 0 | AG70: 0 | AH70: 2 | AI70: 0 | AJ70: 0 | AK70: 0 | AL70: 0 | AM70: 0
C71: 동물상해 | D71: 0 | E71: 0 | F71: 0 | G71: 0 | H71: 0 | I71: 0 | J71: 0 | K71: 0 | L71: 0 | M71: 0 | N71: 0 | O71: 0 | P71: 0 | Q71: 0 | R71: 0 | S71: 0 | T71: 0 | U71: 0 | V71: 0 | W71: 0 | X71: 0 | Y71: 0 | Z71: 0 | AA71: 0 | AB71: 1 | AC71: 0 | AD71: 1 | AE71: 0 | AF71: 0 | AG71: 0 | AH71: 0 | AI71: 0 | AJ71: 0 | AK71: 0 | AL71: 0 | AM71: 0
C72: 물리적인자 | D72: 0 | E72: 0 | F72: 0 | G72: 0 | H72: 0 | I72: 0 | J72: 0 | K72: 0 | L72: 0 | M72: 0 | N72: 0 | O72: 0 | P72: 0 | Q72: 0 | R72: 0 | S72: 0 | T72: 0 | U72: 0 | V72: 0 | W72: 0 | X72: 0 | Y72: 0 | Z72: 0 | AA72: 0 | AB72: 0 | AC72: 0 | AD72: 0 | AE72: 0 | AF72: 0 | AG72: 0 | AH72: 0 | AI72: 0 | AJ72: 0 | AK72: 0 | AL72: 0 | AM72: 0
C73: 화학적인자 | D73: 0 | E73: 0 | F73: 0 | G73: 0 | H73: 0 | I73: 0 | J73: 0 | K73: 0 | L73: 0 | M73: 0 | N73: 0 | O73: 0 | P73: 0 | Q73: 0 | R73: 0 | S73: 0 | T73: 0 | U73: 0 | V73: 0 | W73: 0 | X73: 0 | Y73: 0 | Z73: 0 | AA73: 0 | AB73: 0 | AC73: 0 | AD73: 0 | AE73: 0 | AF73: 0 | AG73: 0 | AH73: 0 | AI73: 0 | AJ73: 0 | AK73: 0 | AL73: 0 | AM73: 0
C74: 뇌심혈관질환 | D74: 0 | E74: 0 | F74: 0 | G74: 0 | H74: 0 | I74: 0 | J74: 0 | K74: 0 | L74: 0 | M74: 0 | N74: 0 | O74: 0 | P74: 0 | Q74: 0 | R74: 0 | S74: 0 | T74: 0 | U74: 0 | V74: 0 | W74: 0 | X74: 0 | Y74: 0 | Z74: 0 | AA74: 0 | AB74: 0 | AC74: 0 | AD74: 0 | AE74: 0 | AF74: 0 | AG74: 0 | AH74: 0 | AI74: 0 | AJ74: 0 | AK74: 0 | AL74: 0 | AM74: 0
C75: 근골격계질환 | D75: 0 | E75: 0 | F75: 0 | G75: 0 | H75: 0 | I75: 0 | J75: 0 | K75: 0 | L75: 0 | M75: 0 | N75: 0 | O75: 0 | P75: 0 | Q75: 0 | R75: 0 | S75: 0 | T75: 0 | U75: 0 | V75: 0 | W75: 0 | X75: 0 | Y75: 0 | Z75: 0 | AA75: 0 | AB75: 0 | AC75: 0 | AD75: 0 | AE75: 0 | AF75: 0 | AG75: 0 | AH75: 0 | AI75: 0 | AJ75: 0 | AK75: 0 | AL75: 0 | AM75: 0
C76: 작업관련성질환 기타 | D76: 0 | E76: 0 | F76: 0 | G76: 0 | H76: 0 | I76: 0 | J76: 0 | K76: 0 | L76: 0 | M76: 0 | N76: 0 | O76: 0 | P76: 0 | Q76: 0 | R76: 0 | S76: 0 | T76: 0 | U76: 0 | V76: 0 | W76: 0 | X76: 0 | Y76: 0 | Z76: 0 | AA76: 0 | AB76: 0 | AC76: 0 | AD76: 0 | AE76: 0 | AF76: 0 | AG76: 0 | AH76: 0 | AI76: 0 | AJ76: 0 | AK76: 0 | AL76: 0 | AM76: 0
B77: 의약품·화장품·연탄·석유제품제조업 | C77: 합계 | D77: 3 | E77: 0 | F77: 0 | G77: 0 | H77: 0 | I77: 0 | J77: 1 | K77: 0 | L77: 0 | M77: 0 | N77: 2 | O77: 0 | P77: 1 | Q77: 0 | R77: 0 | S77: 0 | T77: 0 | U77: 0 | V77: 1 | W77: 0 | X77: 0 | Y77: 0 | Z77: 0 | AA77: 0 | AB77: 2 | AC77: 0 | AD77: 0 | AE77: 0 | AF77: 2 | AG77: 0 | AH77: 0 | AI77: 0 | AJ77: 0 | AK77: 0 | AL77: 0 | AM77: 0
C78: 떨어짐(높이가 있는 곳에서 사람이 떨어짐) | D78: 0 | E78: 0 | F78: 0 | G78: 0 | H78: 0 | I78: 0 | J78: 0 | K78: 0 | L78: 0 | M78: 0 | N78: 0 | O78: 0 | P78: 1 | Q78: 0 | R78: 0 | S78: 0 | T78: 0 | U78: 0 | V78: 1 | W78: 0 | X78: 0 | Y78: 0 | Z78: 0 | AA78: 0 | AB78: 0 | AC78: 0 | AD78: 0 | AE78: 0 | AF78: 0 | AG78: 0 | AH78: 0 | AI78: 0 | AJ78: 0 | AK78: 0 | AL78: 0 | AM78: 0
C79: 넘어짐(사람이 미끄러지거나 넘어짐) | D79: 1 | E79: 0 | F79: 0 | G79: 0 | H79: 0 | I79: 0 | J79: 0 | K79: 0 | L79: 0 | M79: 0 | N79: 1 | O79: 0 | P79: 0 | Q79: 0 | R79: 0 | S79: 0 | T79: 0 | U79: 0 | V79: 0 | W79: 0 | X79: 0 | Y79: 0 | Z79: 0 | AA79: 0 | AB79: 0 | AC79: 0 | AD79: 0 | AE79: 0 | AF79: 0 | AG79: 0 | AH79: 0 | AI79: 0 | AJ79: 0 | AK79: 0 | AL79: 0 | AM79: 0
C80: 부딪힘(물체에 부딪힘) | D80: 0 | E80: 0 | F80: 0 | G80: 0 | H80: 0 | I80: 0 | J80: 0 | K80: 0 | L80: 0 | M80: 0 | N80: 0 | O80: 0 | P80: 0 | Q80: 0 | R80: 0 | S80: 0 | T80: 0 | U80: 0 | V80: 0 | W80: 0 | X80: 0 | Y80: 0 | Z80: 0 | AA80: 0 | AB80: 1 | AC80: 0 | AD80: 0 | AE80: 0 | AF80: 1 | AG80: 0 | AH80: 0 | AI80: 0 | AJ80: 0 | AK80: 0 | AL80: 0 | AM80: 0
C81: 절단·베임·찔림 | D81: 1 | E81: 0 | F81: 0 | G81: 0 | H81: 0 | I81: 0 | J81: 1 | K81: 0 | L81: 0 | M81: 0 | N81: 0 | O81: 0 | P81: 0 | Q81: 0 | R81: 0 | S81: 0 | T81: 0 | U81: 0 | V81: 0 | W81: 0 | X81: 0 | Y81: 0 | Z81: 0 | AA81: 0 | AB81: 0 | AC81: 0 | AD81: 0 | AE81: 0 | AF81: 0 | AG81: 0 | AH81: 0 | AI81: 0 | AJ81: 0 | AK81: 0 | AL81: 0 | AM81: 0
C82: 불균형 및 무리한 동작 | D82: 0 | E82: 0 | F82: 0 | G82: 0 | H82: 0 | I82: 0 | J82: 0 | K82: 0 | L82: 0 | M82: 0 | N82: 0 | O82: 0 | P82: 0 | Q82: 0 | R82: 0 | S82: 0 | T82: 0 | U82: 0 | V82: 0 | W82: 0 | X82: 0 | Y82: 0 | Z82: 0 | AA82: 0 | AB82: 1 | AC82: 0 | AD82: 0 | AE82: 0 | AF82: 1 | AG82: 0 | AH82: 0 | AI82: 0 | AJ82: 0 | AK82: 0 | AL82: 0 | AM82: 0
C83: 이상온도 접촉 | D83: 1 | E83: 0 | F83: 0 | G83: 0 | H83: 0 | I83: 0 | J83: 0 | K83: 0 | L83: 0 | M83: 0 | N83: 1 | O83: 0 | P83: 0 | Q83: 0 | R83: 0 | S83: 0 | T83: 0 | U83: 0 | V83: 0 | W83: 0 | X83: 0 | Y83: 0 | Z83: 0 | AA83: 0 | AB83: 0 | AC83: 0 | AD83: 0 | AE83: 0 | AF83: 0 | AG83: 0 | AH83: 0 | AI83: 0 | AJ83: 0 | AK83: 0 | AL83: 0 | AM83: 0
C84: 화학적인자 | D84: 0 | E84: 0 | F84: 0 | G84: 0 | H84: 0 | I84: 0 | J84: 0 | K84: 0 | L84: 0 | M84: 0 | N84: 0 | O84: 0 | P84: 0 | Q84: 0 | R84: 0 | S84: 0 | T84: 0 | U84: 0 | V84: 0 | W84: 0 | X84: 0 | Y84: 0 | Z84: 0 | AA84: 0 | AB84: 0 | AC84: 0 | AD84: 0 | AE84: 0 | AF84: 0 | AG84: 0 | AH84: 0 | AI84: 0 | AJ84: 0 | AK84: 0 | AL84: 0 | AM84: 0
B85: 기계기구·금속·비금속광물제품제조업 | C85: 합계 | D85: 235 | E85: 1 | F85: 76 | G85: 0 | H85: 51 | I85: 0 | J85: 43 | K85: 0 | L85: 37 | M85: 0 | N85: 28 | O85: 1 | P85: 235 | Q85: 3 | R85: 95 | S85: 2 | T85: 35 | U85: 0 | V85: 59 | W85: 0 | X85: 20 | Y85: 0 | Z85: 26 | AA85: 1 | AB85: 232 | AC85: 3 | AD85: 62 | AE85: 0 | AF85: 54 | AG85: 1 | AH85: 56 | AI85: 1 | AJ85: 36 | AK85: 1 | AL85: 24 | AM85: 0
C86: 떨어짐(높이가 있는 곳에서 사람이 떨어짐) | D86: 26 | E86: 0 | F86: 11 | G86: 0 | H86: 4 | I86: 0 | J86: 4 | K86: 0 | L86: 3 | M86: 0 | N86: 4 | O86: 0 | P86: 29 | Q86: 0 | R86: 13 | S86: 0 | T86: 7 | U86: 0 | V86: 7 | W86: 0 | X86: 1 | Y86: 0 | Z86: 1 | AA86: 0 | AB86: 15 | AC86: 2 | AD86: 2 | AE86: 0 | AF86: 7 | AG86: 1 | AH86: 2 | AI86: 0 | AJ86: 4 | AK86: 1 | AL86: 0 | AM86: 0
C87: 넘어짐(사람이 미끄러지거나 넘어짐) | D87: 24 | E87: 0 | F87: 7 | G87: 0 | H87: 5 | I87: 0 | J87: 4 | K87: 0 | L87: 5 | M87: 0 | N87: 3 | O87: 0 | P87: 32 | Q87: 0 | R87: 13 | S87: 0 | T87: 1 | U87: 0 | V87: 11 | W87: 0 | X87: 2 | Y87: 0 | Z87: 5 | AA87: 0 | AB87: 28 | AC87: 0 | AD87: 8 | AE87: 0 | AF87: 5 | AG87: 0 | AH87: 8 | AI87: 0 | AJ87: 6 | AK87: 0 | AL87: 1 | AM87: 0
C88: 깔림·뒤집힘(물체의 쓰러짐이나 뒤집힘) | D88: 7 | E88: 0 | F88: 3 | G88: 0 | H88: 1 | I88: 0 | J88: 2 | K88: 0 | L88: 0 | M88: 0 | N88: 1 | O88: 0 | P88: 7 | Q88: 2 | R88: 3 | S88: 2 | T88: 1 | U88: 0 | V88: 2 | W88: 0 | X88: 0 | Y88: 0 | Z88: 1 | AA88: 0 | AB88: 3 | AC88: 0 | AD88: 1 | AE88: 0 | AF88: 0 | AG88: 0 | AH88: 0 | AI88: 0 | AJ88: 1 | AK88: 0 | AL88: 1 | AM88: 0
C89: 부딪힘(물체에 부딪힘) | D89: 18 | E89: 0 | F89: 5 | G89: 0 | H89: 4 | I89: 0 | J89: 4 | K89: 0 | L89: 3 | M89: 0 | N89: 2 | O89: 0 | P89: 25 | Q89: 0 | R89: 11 | S89: 0 | T89: 1 | U89: 0 | V89: 6 | W89: 0 | X89: 1 | Y89: 0 | Z89: 6 | AA89: 0 | AB89: 33 | AC89: 1 | AD89: 8 | AE89: 0 | AF89: 8 | AG89: 0 | AH89: 7 | AI89: 1 | AJ89: 6 | AK89: 0 | AL89: 4 | AM89: 0
C90: 물체에 맞음(날아오거나 떨어진 물체에 맞음) | D90: 31 | E90: 1 | F90: 14 | G90: 0 | H90: 5 | I90: 0 | J90: 5 | K90: 0 | L90: 3 | M90: 0 | N90: 4 | O90: 1 | P90: 32 | Q90: 0 | R90: 15 | S90: 0 | T90: 6 | U90: 0 | V90: 6 | W90: 0 | X90: 5 | Y90: 0 | Z90: 0 | AA90: 0 | AB90: 34 | AC90: 0 | AD90: 14 | AE90: 0 | AF90: 5 | AG90: 0 | AH90: 8 | AI90: 0 | AJ90: 2 | AK90: 0 | AL90: 5 | AM90: 0
C91: 무너짐(건축물이나 쌓여진 물체가 무너짐) | D91: 3 | E91: 0 | F91: 0 | G91: 0 | H91: 3 | I91: 0 | J91: 0 | K91: 0 | L91: 0 | M91: 0 | N91: 0 | O91: 0 | P91: 0 | Q91: 0 | R91: 0 | S91: 0 | T91: 0 | U91: 0 | V91: 0 | W91: 0 | X91: 0 | Y91: 0 | Z91: 0 | AA91: 0 | AB91: 1 | AC91: 0 | AD91: 0 | AE91: 0 | AF91: 0 | AG91: 0 | AH91: 0 | AI91: 0 | AJ91: 1 | AK91: 0 | AL91: 0 | AM91: 0
C92: 끼임(기계설비에 끼이거나 감김) | D92: 84 | E92: 0 | F92: 21 | G92: 0 | H92: 17 | I92: 0 | J92: 21 | K92: 0 | L92: 16 | M92: 0 | N92: 9 | O92: 0 | P92: 65 | Q92: 1 | R92: 18 | S92: 0 | T92: 12 | U92: 0 | V92: 19 | W92: 0 | X92: 7 | Y92: 0 | Z92: 9 | AA92: 1 | AB92: 76 | AC92: 0 | AD92: 17 | AE92: 0 | AF92: 20 | AG92: 0 | AH92: 22 | AI92: 0 | AJ92: 6 | AK92: 0 | AL92: 11 | AM92: 0
C93: 절단·베임·찔림 | D93: 19 | E93: 0 | F93: 8 | G93: 0 | H93: 6 | I93: 0 | J93: 3 | K93: 0 | L93: 1 | M93: 0 | N93: 1 | O93: 0 | P93: 20 | Q93: 0 | R93: 10 | S93: 0 | T93: 3 | U93: 0 | V93: 5 | W93: 0 | X93: 1 | Y93: 0 | Z93: 1 | AA93: 0 | AB93: 23 | AC93: 0 | AD93: 9 | AE93: 0 | AF93: 3 | AG93: 0 | AH93: 6 | AI93: 0 | AJ93: 4 | AK93: 0 | AL93: 1 | AM93: 0
C94: 감전 | D94: 2 | E94: 0 | F94: 1 | G94: 0 | H94: 1 | I94: 0 | J94: 0 | K94: 0 | L94: 0 | M94: 0 | N94: 0 | O94: 0 | P94: 0 | Q94: 0 | R94: 0 | S94: 0 | T94: 0 | U94: 0 | V94: 0 | W94: 0 | X94: 0 | Y94: 0 | Z94: 0 | AA94: 0 | AB94: 1 | AC94: 0 | AD94: 1 | AE94: 0 | AF94: 0 | AG94: 0 | AH94: 0 | AI94: 0 | AJ94: 0 | AK94: 0 | AL94: 0 | AM94: 0
C95: 폭발·파열 | D95: 0 | E95: 0 | F95: 0 | G95: 0 | H95: 0 | I95: 0 | J95: 0 | K95: 0 | L95: 0 | M95: 0 | N95: 0 | O95: 0 | P95: 2 | Q95: 0 | R95: 1 | S95: 0 | T95: 1 | U95: 0 | V95: 0 | W95: 0 | X95: 0 | Y95: 0 | Z95: 0 | AA95: 0 | AB95: 1 | AC95: 0 | AD95: 0 | AE95: 0 | AF95: 0 | AG95: 0 | AH95: 1 | AI95: 0 | AJ95: 0 | AK95: 0 | AL95: 0 | AM95: 0
C96: 화재 | D96: 0 | E96: 0 | F96: 0 | G96: 0 | H96: 0 | I96: 0 | J96: 0 | K96: 0 | L96: 0 | M96: 0 | N96: 0 | O96: 0 | P96: 1 | Q96: 0 | R96: 0 | S96: 0 | T96: 0 | U96: 0 | V96: 1 | W96: 0 | X96: 0 | Y96: 0 | Z96: 0 | AA96: 0 | AB96: 0 | AC96: 0 | AD96: 0 | AE96: 0 | AF96: 0 | AG96: 0 | AH96: 0 | AI96: 0 | AJ96: 0 | AK96: 0 | AL96: 0 | AM96: 0
C97: 불균형 및 무리한 동작 | D97: 13 | E97: 0 | F97: 5 | G97: 0 | H97: 2 | I97: 0 | J97: 0 | K97: 0 | L97: 3 | M97: 0 | N97: 3 | O97: 0 | P97: 11 | Q97: 0 | R97: 5 | S97: 0 | T97: 2 | U97: 0 | V97: 0 | W97: 0 | X97: 2 | Y97: 0 | Z97: 2 | AA97: 0 | AB97: 12 | AC97: 0 | AD97: 0 | AE97: 0 | AF97: 6 | AG97: 0 | AH97: 1 | AI97: 0 | AJ97: 5 | AK97: 0 | AL97: 0 | AM97: 0
C98: 이상온도 접촉 | D98: 6 | E98: 0 | F98: 1 | G98: 0 | H98: 3 | I98: 0 | J98: 0 | K98: 0 | L98: 1 | M98: 0 | N98: 1 | O98: 0 | P98: 6 | Q98: 0 | R98: 4 | S98: 0 | T98: 0 | U98: 0 | V98: 1 | W98: 0 | X98: 1 | Y98: 0 | Z98: 0 | AA98: 0 | AB98: 4 | AC98: 0 | AD98: 2 | AE98: 0 | AF98: 0 | AG98: 0 | AH98: 0 | AI98: 0 | AJ98: 1 | AK98: 0 | AL98: 1 | AM98: 0
C99: 사업장외 교통사고 | D99: 2 | E99: 0 | F99: 0 | G99: 0 | H99: 0 | I99: 0 | J99: 0 | K99: 0 | L99: 2 | M99: 0 | N99: 0 | O99: 0 | P99: 4 | Q99: 0 | R99: 2 | S99: 0 | T99: 0 | U99: 0 | V99: 1 | W99: 0 | X99: 0 | Y99: 0 | Z99: 1 | AA99: 0 | AB99: 1 | AC99: 0 | AD99: 0 | AE99: 0 | AF99: 0 | AG99: 0 | AH99: 1 | AI99: 0 | AJ99: 0 | AK99: 0 | AL99: 0 | AM99: 0
C100: 체육행사 등의 사고 | D100: 0 | E100: 0 | F100: 0 | G100: 0 | H100: 0 | I100: 0 | J100: 0 | K100: 0 | L100: 0 | M100: 0 | N100: 0 | O100: 0 | P100: 1 | Q100: 0 | R100: 0 | S100: 0 | T100: 1 | U100: 0 | V100: 0 | W100: 0 | X100: 0 | Y100: 0 | Z100: 0 | AA100: 0 | AB100: 0 | AC100: 0 | AD100: 0 | AE100: 0 | AF100: 0 | AG100: 0 | AH100: 0 | AI100: 0 | AJ100: 0 | AK100: 0 | AL100: 0 | AM100: 0
C101: 물리적인자 | D101: 0 | E101: 0 | F101: 0 | G101: 0 | H101: 0 | I101: 0 | J101: 0 | K101: 0 | L101: 0 | M101: 0 | N101: 0 | O101: 0 | P101: 0 | Q101: 0 | R101: 0 | S101: 0 | T101: 0 | U101: 0 | V101: 0 | W101: 0 | X101: 0 | Y101: 0 | Z101: 0 | AA101: 0 | AB101: 0 | AC101: 0 | AD101: 0 | AE101: 0 | AF101: 0 | AG101: 0 | AH101: 0 | AI101: 0 | AJ101: 0 | AK101: 0 | AL101: 0 | AM101: 0
C102: 화학적인자 | D102: 0 | E102: 0 | F102: 0 | G102: 0 | H102: 0 | I102: 0 | J102: 0 | K102: 0 | L102: 0 | M102: 0 | N102: 0 | O102: 0 | P102: 0 | Q102: 0 | R102: 0 | S102: 0 | T102: 0 | U102: 0 | V102: 0 | W102: 0 | X102: 0 | Y102: 0 | Z102: 0 | AA102: 0 | AB102: 0 | AC102: 0 | AD102: 0 | AE102: 0 | AF102: 0 | AG102: 0 | AH102: 0 | AI102: 0 | AJ102: 0 | AK102: 0 | AL102: 0 | AM102: 0
C103: 직업병기타 | D103: 0 | E103: 0 | F103: 0 | G103: 0 | H103: 0 | I103: 0 | J103: 0 | K103: 0 | L103: 0 | M103: 0 | N103: 0 | O103: 0 | P103: 0 | Q103: 0 | R103: 0 | S103: 0 | T103: 0 | U103: 0 | V103: 0 | W103: 0 | X103: 0 | Y103: 0 | Z103: 0 | AA103: 0 | AB103: 0 | AC103: 0 | AD103: 0 | AE103: 0 | AF103: 0 | AG103: 0 | AH103: 0 | AI103: 0 | AJ103: 0 | AK103: 0 | AL103: 0 | AM103: 0
C104: 화학적인자 | D104: 0 | E104: 0 | F104: 0 | G104: 0 | H104: 0 | I104: 0 | J104: 0 | K104: 0 | L104: 0 | M104: 0 | N104: 0 | O104: 0 | P104: 0 | Q104: 0 | R104: 0 | S104: 0 | T104: 0 | U104: 0 | V104: 0 | W104: 0 | X104: 0 | Y104: 0 | Z104: 0 | AA104: 0 | AB104: 0 | AC104: 0 | AD104: 0 | AE104: 0 | AF104: 0 | AG104: 0 | AH104: 0 | AI104: 0 | AJ104: 0 | AK104: 0 | AL104: 0 | AM104: 0
C105: 뇌심혈관질환 | D105: 0 | E105: 0 | F105: 0 | G105: 0 | H105: 0 | I105: 0 | J105: 0 | K105: 0 | L105: 0 | M105: 0 | N105: 0 | O105: 0 | P105: 0 | Q105: 0 | R105: 0 | S105: 0 | T105: 0 | U105: 0 | V105: 0 | W105: 0 | X105: 0 | Y105: 0 | Z105: 0 | AA105: 0 | AB105: 0 | AC105: 0 | AD105: 0 | AE105: 0 | AF105: 0 | AG105: 0 | AH105: 0 | AI105: 0 | AJ105: 0 | AK105: 0 | AL105: 0 | AM105: 0
C106: 근골격계질환 | D106: 0 | E106: 0 | F106: 0 | G106: 0 | H106: 0 | I106: 0 | J106: 0 | K106: 0 | L106: 0 | M106: 0 | N106: 0 | O106: 0 | P106: 0 | Q106: 0 | R106: 0 | S106: 0 | T106: 0 | U106: 0 | V106: 0 | W106: 0 | X106: 0 | Y106: 0 | Z106: 0 | AA106: 0 | AB106: 0 | AC106: 0 | AD106: 0 | AE106: 0 | AF106: 0 | AG106: 0 | AH106: 0 | AI106: 0 | AJ106: 0 | AK106: 0 | AL106: 0 | AM106: 0
C107: 작업관련성질환 기타 | D107: 0 | E107: 0 | F107: 0 | G107: 0 | H107: 0 | I107: 0 | J107: 0 | K107: 0 | L107: 0 | M107: 0 | N107: 0 | O107: 0 | P107: 0 | Q107: 0 | R107: 0 | S107: 0 | T107: 0 | U107: 0 | V107: 0 | W107: 0 | X107: 0 | Y107: 0 | Z107: 0 | AA107: 0 | AB107: 0 | AC107: 0 | AD107: 0 | AE107: 0 | AF107: 0 | AG107: 0 | AH107: 0 | AI107: 0 | AJ107: 0 | AK107: 0 | AL107: 0 | AM107: 0
B108: 금속제련업 | C108: 합계 | D108: 0 | E108: 0 | F108: 0 | G108: 0 | H108: 0 | I108: 0 | J108: 0 | K108: 0 | L108: 0 | M108: 0 | N108: 0 | O108: 0 | P108: 0 | Q108: 0 | R108: 0 | S108: 0 | T108: 0 | U108: 0 | V108: 0 | W108: 0 | X108: 0 | Y108: 0 | Z108: 0 | AA108: 0 | AB108: 1 | AC108: 0 | AD108: 1 | AE108: 0 | AF108: 0 | AG108: 0 | AH108: 0 | AI108: 0 | AJ108: 0 | AK108: 0 | AL108: 0 | AM108: 0
C109: 절단·베임·찔림 | D109: 0 | E109: 0 | F109: 0 | G109: 0 | H109: 0 | I109: 0 | J109: 0 | K109: 0 | L109: 0 | M109: 0 | N109: 0 | O109: 0 | P109: 0 | Q109: 0 | R109: 0 | S109: 0 | T109: 0 | U109: 0 | V109: 0 | W109: 0 | X109: 0 | Y109: 0 | Z109: 0 | AA109: 0 | AB109: 1 | AC109: 0 | AD109: 1 | AE109: 0 | AF109: 0 | AG109: 0 | AH109: 0 | AI109: 0 | AJ109: 0 | AK109: 0 | AL109: 0 | AM109: 0
B110: 전기기계기구·정밀기구·전자제품제조업 | C110: 합계 | D110: 58 | E110: 1 | F110: 16 | G110: 0 | H110: 8 | I110: 0 | J110: 16 | K110: 1 | L110: 8 | M110: 0 | N110: 10 | O110: 0 | P110: 35 | Q110: 0 | R110: 6 | S110: 0 | T110: 8 | U110: 0 | V110: 8 | W110: 0 | X110: 5 | Y110: 0 | Z110: 8 | AA110: 0 | AB110: 37 | AC110: 0 | AD110: 12 | AE110: 0 | AF110: 5 | AG110: 0 | AH110: 6 | AI110: 0 | AJ110: 6 | AK110: 0 | AL110: 8 | AM110: 0
C111: 떨어짐(높이가 있는 곳에서 사람이 떨어짐) | D111: 5 | E111: 0 | F111: 3 | G111: 0 | H111: 1 | I111: 0 | J111: 0 | K111: 0 | L111: 0 | M111: 0 | N111: 1 | O111: 0 | P111: 8 | Q111: 0 | R111: 1 | S111: 0 | T111: 1 | U111: 0 | V111: 2 | W111: 0 | X111: 1 | Y111: 0 | Z111: 3 | AA111: 0 | AB111: 5 | AC111: 0 | AD111: 1 | AE111: 0 | AF111: 1 | AG111: 0 | AH111: 1 | AI111: 0 | AJ111: 0 | AK111: 0 | AL111: 2 | AM111: 0
C112: 넘어짐(사람이 미끄러지거나 넘어짐) | D112: 5 | E112: 0 | F112: 2 | G112: 0 | H112: 1 | I112: 0 | J112: 1 | K112: 0 | L112: 1 | M112: 0 | N112: 0 | O112: 0 | P112: 2 | Q112: 0 | R112: 0 | S112: 0 | T112: 1 | U112: 0 | V112: 0 | W112: 0 | X112: 1 | Y112: 0 | Z112: 0 | AA112: 0 | AB112: 5 | AC112: 0 | AD112: 1 | AE112: 0 | AF112: 3 | AG112: 0 | AH112: 0 | AI112: 0 | AJ112: 1 | AK112: 0 | AL112: 0 | AM112: 0
C113: 깔림·뒤집힘(물체의 쓰러짐이나 뒤집힘) | D113: =SUM(F113,H113,J113,L113,N113) -> 3 | E113: 0 | F113: 0 | G113: 0 | H113: 0 | I113: 0 | J113: 1 | K113: 0 | L113: 0 | M113: 0 | N113: 2 | O113: 0 | P113: =SUM(R113,T113,V113,X113,Z113) -> 1 | Q113: 0 | R113: 1 | S113: 0 | T113: 0 | U113: 0 | V113: 0 | W113: 0 | X113: 0 | Y113: 0 | Z113: 0 | AA113: 0 | AB113: =SUM(AD113,AF113,AH113,AJ113,AL113) -> 0 | AC113: 0 | AD113: 0 | AE113: 0 | AF113: 0 | AG113: 0 | AH113: 0 | AI113: 0 | AJ113: 0 | AK113: 0 | AL113: 0 | AM113: 0
C114: 부딪힘(물체에 부딪힘) | D114: 5 | E114: 0 | F114: 1 | G114: 0 | H114: 1 | I114: 0 | J114: 1 | K114: 0 | L114: 2 | M114: 0 | N114: 0 | O114: 0 | P114: 2 | Q114: 0 | R114: 0 | S114: 0 | T114: 1 | U114: 0 | V114: 1 | W114: 0 | X114: 0 | Y114: 0 | Z114: 0 | AA114: 0 | AB114: 5 | AC114: 0 | AD114: 2 | AE114: 0 | AF114: 0 | AG114: 0 | AH114: 0 | AI114: 0 | AJ114: 1 | AK114: 0 | AL114: 2 | AM114: 0
C115: 물체에 맞음(날아오거나 떨어진 물체에 맞음) | D115: 3 | E115: 0 | F115: 0 | G115: 0 | H115: 0 | I115: 0 | J115: 3 | K115: 0 | L115: 0 | M115: 0 | N115: 0 | O115: 0 | P115: 3 | Q115: 0 | R115: 0 | S115: 0 | T115: 2 | U115: 0 | V115: 0 | W115: 0 | X115: 1 | Y115: 0 | Z115: 0 | AA115: 0 | AB115: 2 | AC115: 0 | AD115: 0 | AE115: 0 | AF115: 1 | AG115: 0 | AH115: 1 | AI115: 0 | AJ115: 0 | AK115: 0 | AL115: 0 | AM115: 0
C116: 무너짐(건축물이나 쌓여진 물체가 무너짐) | D116: 1 | E116: 0 | F116: 0 | G116: 0 | H116: 0 | I116: 0 | J116: 0 | K116: 0 | L116: 0 | M116: 0 | N116: 1 | O116: 0 | P116: 1 | Q116: 0 | R116: 0 | S116: 0 | T116: 0 | U116: 0 | V116: 0 | W116: 0 | X116: 0 | Y116: 0 | Z116: 1 | AA116: 0 | AB116: 0 | AC116: 0 | AD116: 0 | AE116: 0 | AF116: 0 | AG116: 0 | AH116: 0 | AI116: 0 | AJ116: 0 | AK116: 0 | AL116: 0 | AM116: 0
C117: 끼임(기계설비에 끼이거나 감김) | D117: 20 | E117: 1 | F117: 8 | G117: 0 | H117: 1 | I117: 0 | J117: 6 | K117: 1 | L117: 3 | M117: 0 | N117: 2 | O117: 0 | P117: 11 | Q117: 0 | R117: 1 | S117: 0 | T117: 2 | U117: 0 | V117: 3 | W117: 0 | X117: 2 | Y117: 0 | Z117: 3 | AA117: 0 | AB117: 14 | AC117: 0 | AD117: 4 | AE117: 0 | AF117: 0 | AG117: 0 | AH117: 2 | AI117: 0 | AJ117: 4 | AK117: 0 | AL117: 4 | AM117: 0
C118: 절단·베임·찔림 | D118: 7 | E118: 0 | F118: 1 | G118: 0 | H118: 2 | I118: 0 | J118: 3 | K118: 0 | L118: 0 | M118: 0 | N118: 1 | O118: 0 | P118: 3 | Q118: 0 | R118: 3 | S118: 0 | T118: 0 | U118: 0 | V118: 0 | W118: 0 | X118: 0 | Y118: 0 | Z118: 0 | AA118: 0 | AB118: 1 | AC118: 0 | AD118: 1 | AE118: 0 | AF118: 0 | AG118: 0 | AH118: 0 | AI118: 0 | AJ118: 0 | AK118: 0 | AL118: 0 | AM118: 0
C119: 감전 | D119: 1 | E119: 0 | F119: 0 | G119: 0 | H119: 1 | I119: 0 | J119: 0 | K119: 0 | L119: 0 | M119: 0 | N119: 0 | O119: 0 | P119: 1 | Q119: 0 | R119: 0 | S119: 0 | T119: 0 | U119: 0 | V119: 1 | W119: 0 | X119: 0 | Y119: 0 | Z119: 0 | AA119: 0 | AB119: 0 | AC119: 0 | AD119: 0 | AE119: 0 | AF119: 0 | AG119: 0 | AH119: 0 | AI119: 0 | AJ119: 0 | AK119: 0 | AL119: 0 | AM119: 0
C120: 폭발·파열 | D120: 2 | E120: 0 | F120: 0 | G120: 0 | H120: 0 | I120: 0 | J120: 0 | K120: 0 | L120: 1 | M120: 0 | N120: 1 | O120: 0 | P120: 0 | Q120: 0 | R120: 0 | S120: 0 | T120: 0 | U120: 0 | V120: 0 | W120: 0 | X120: 0 | Y120: 0 | Z120: 0 | AA120: 0 | AB120: 0 | AC120: 0 | AD120: 0 | AE120: 0 | AF120: 0 | AG120: 0 | AH120: 0 | AI120: 0 | AJ120: 0 | AK120: 0 | AL120: 0 | AM120: 0
C121: 불균형 및 무리한 동작 | D121: 3 | E121: 0 | F121: 0 | G121: 0 | H121: 1 | I121: 0 | J121: 1 | K121: 0 | L121: 0 | M121: 0 | N121: 1 | O121: 0 | P121: 1 | Q121: 0 | R121: 0 | S121: 0 | T121: 1 | U121: 0 | V121: 0 | W121: 0 | X121: 0 | Y121: 0 | Z121: 0 | AA121: 0 | AB121: 3 | AC121: 0 | AD121: 2 | AE121: 0 | AF121: 0 | AG121: 0 | AH121: 1 | AI121: 0 | AJ121: 0 | AK121: 0 | AL121: 0 | AM121: 0
C122: 이상온도 접촉 | D122: 3 | E122: 0 | F122: 1 | G122: 0 | H122: 0 | I122: 0 | J122: 0 | K122: 0 | L122: 1 | M122: 0 | N122: 1 | O122: 0 | P122: 0 | Q122: 0 | R122: 0 | S122: 0 | T122: 0 | U122: 0 | V122: 0 | W122: 0 | X122: 0 | Y122: 0 | Z122: 0 | AA122: 0 | AB122: 0 | AC122: 0 | AD122: 0 | AE122: 0 | AF122: 0 | AG122: 0 | AH122: 0 | AI122: 0 | AJ122: 0 | AK122: 0 | AL122: 0 | AM122: 0
C123: 사업장외 교통사고 | D123: 0 | E123: 0 | F123: 0 | G123: 0 | H123: 0 | I123: 0 | J123: 0 | K123: 0 | L123: 0 | M123: 0 | N123: 0 | O123: 0 | P123: 1 | Q123: 0 | R123: 0 | S123: 0 | T123: 0 | U123: 0 | V123: 1 | W123: 0 | X123: 0 | Y123: 0 | Z123: 0 | AA123: 0 | AB123: 1 | AC123: 0 | AD123: 0 | AE123: 0 | AF123: 0 | AG123: 0 | AH123: 1 | AI123: 0 | AJ123: 0 | AK123: 0 | AL123: 0 | AM123: 0
C124: 폭력행위 | D124: 0 | E124: 0 | F124: 0 | G124: 0 | H124: 0 | I124: 0 | J124: 0 | K124: 0 | L124: 0 | M124: 0 | N124: 0 | O124: 0 | P124: 1 | Q124: 0 | R124: 0 | S124: 0 | T124: 0 | U124: 0 | V124: 0 | W124: 0 | X124: 0 | Y124: 0 | Z124: 1 | AA124: 0 | AB124: 1 | AC124: 0 | AD124: 1 | AE124: 0 | AF124: 0 | AG124: 0 | AH124: 0 | AI124: 0 | AJ124: 0 | AK124: 0 | AL124: 0 | AM124: 0
C125: 뇌심혈관질환 | D125: 0 | E125: 0 | F125: 0 | G125: 0 | H125: 0 | I125: 0 | J125: 0 | K125: 0 | L125: 0 | M125: 0 | N125: 0 | O125: 0 | P125: 0 | Q125: 0 | R125: 0 | S125: 0 | T125: 0 | U125: 0 | V125: 0 | W125: 0 | X125: 0 | Y125: 0 | Z125: 0 | AA125: 0 | AB125: 0 | AC125: 0 | AD125: 0 | AE125: 0 | AF125: 0 | AG125: 0 | AH125: 0 | AI125: 0 | AJ125: 0 | AK125: 0 | AL125: 0 | AM125: 0
C126: 근골격계질환 | D126: 0 | E126: 0 | F126: 0 | G126: 0 | H126: 0 | I126: 0 | J126: 0 | K126: 0 | L126: 0 | M126: 0 | N126: 0 | O126: 0 | P126: 0 | Q126: 0 | R126: 0 | S126: 0 | T126: 0 | U126: 0 | V126: 0 | W126: 0 | X126: 0 | Y126: 0 | Z126: 0 | AA126: 0 | AB126: 0 | AC126: 0 | AD126: 0 | AE126: 0 | AF126: 0 | AG126: 0 | AH126: 0 | AI126: 0 | AJ126: 0 | AK126: 0 | AL126: 0 | AM126: 0
B127: 수제품및기타제품제조업 | C127: 합계 | D127: 26 | E127: 0 | F127: 9 | G127: 0 | H127: 3 | I127: 0 | J127: 7 | K127: 0 | L127: 4 | M127: 0 | N127: 3 | O127: 0 | P127: 14 | Q127: 0 | R127: 3 | S127: 0 | T127: 2 | U127: 0 | V127: 5 | W127: 0 | X127: 3 | Y127: 0 | Z127: 1 | AA127: 0 | AB127: 20 | AC127: 0 | AD127: 7 | AE127: 0 | AF127: 3 | AG127: 0 | AH127: 5 | AI127: 0 | AJ127: 4 | AK127: 0 | AL127: 1 | AM127: 0
C128: 떨어짐(높이가 있는 곳에서 사람이 떨어짐) | D128: 8 | E128: 0 | F128: 3 | G128: 0 | H128: 1 | I128: 0 | J128: 2 | K128: 0 | L128: 1 | M128: 0 | N128: 1 | O128: 0 | P128: 2 | Q128: 0 | R128: 0 | S128: 0 | T128: 1 | U128: 0 | V128: 1 | W128: 0 | X128: 0 | Y128: 0 | Z128: 0 | AA128: 0 | AB128: 3 | AC128: 0 | AD128: 2 | AE128: 0 | AF128: 0 | AG128: 0 | AH128: 0 | AI128: 0 | AJ128: 1 | AK128: 0 | AL128: 0 | AM128: 0
C129: 넘어짐(사람이 미끄러지거나 넘어짐) | D129: 3 | E129: 0 | F129: 3 | G129: 0 | H129: 0 | I129: 0 | J129: 0 | K129: 0 | L129: 0 | M129: 0 | N129: 0 | O129: 0 | P129: 2 | Q129: 0 | R129: 1 | S129: 0 | T129: 0 | U129: 0 | V129: 0 | W129: 0 | X129: 1 | Y129: 0 | Z129: 0 | AA129: 0 | AB129: 0 | AC129: 0 | AD129: 0 | AE129: 0 | AF129: 0 | AG129: 0 | AH129: 0 | AI129: 0 | AJ129: 0 | AK129: 0 | AL129: 0 | AM129: 0
C130: 깔림·뒤집힘(물체의 쓰러짐이나 뒤집힘) | D130: 1 | E130: 0 | F130: 0 | G130: 0 | H130: 0 | I130: 0 | J130: 1 | K130: 0 | L130: 0 | M130: 0 | N130: 0 | O130: 0 | P130: 0 | Q130: 0 | R130: 0 | S130: 0 | T130: 0 | U130: 0 | V130: 0 | W130: 0 | X130: 0 | Y130: 0 | Z130: 0 | AA130: 0 | AB130: 1 | AC130: 0 | AD130: 1 | AE130: 0 | AF130: 0 | AG130: 0 | AH130: 0 | AI130: 0 | AJ130: 0 | AK130: 0 | AL130: 0 | AM130: 0
C131: 부딪힘(물체에 부딪힘) | D131: 1 | E131: 0 | F131: 0 | G131: 0 | H131: 0 | I131: 0 | J131: 1 | K131: 0 | L131: 0 | M131: 0 | N131: 0 | O131: 0 | P131: 2 | Q131: 0 | R131: 0 | S131: 0 | T131: 1 | U131: 0 | V131: 0 | W131: 0 | X131: 0 | Y131: 0 | Z131: 1 | AA131: 0 | AB131: 0 | AC131: 0 | AD131: 0 | AE131: 0 | AF131: 0 | AG131: 0 | AH131: 0 | AI131: 0 | AJ131: 0 | AK131: 0 | AL131: 0 | AM131: 0
C132: 물체에 맞음(날아오거나 떨어진 물체에 맞음) | D132: 1 | E132: 0 | F132: 0 | G132: 0 | H132: 0 | I132: 0 | J132: 1 | K132: 0 | L132: 0 | M132: 0 | N132: 0 | O132: 0 | P132: 3 | Q132: 0 | R132: 1 | S132: 0 | T132: 0 | U132: 0 | V132: 1 | W132: 0 | X132: 1 | Y132: 0 | Z132: 0 | AA132: 0 | AB132: 4 | AC132: 0 | AD132: 0 | AE132: 0 | AF132: 0 | AG132: 0 | AH132: 2 | AI132: 0 | AJ132: 2 | AK132: 0 | AL132: 0 | AM132: 0
C133: 무너짐(건축물이나 쌓여진 물체가 무너짐) | D133: 0 | E133: 0 | F133: 0 | G133: 0 | H133: 0 | I133: 0 | J133: 0 | K133: 0 | L133: 0 | M133: 0 | N133: 0 | O133: 0 | P133: 0 | Q133: 0 | R133: 0 | S133: 0 | T133: 0 | U133: 0 | V133: 0 | W133: 0 | X133: 0 | Y133: 0 | Z133: 0 | AA133: 0 | AB133: 1 | AC133: 0 | AD133: 1 | AE133: 0 | AF133: 0 | AG133: 0 | AH133: 0 | AI133: 0 | AJ133: 0 | AK133: 0 | AL133: 0 | AM133: 0
C134: 끼임(기계설비에 끼이거나 감김) | D134: 7 | E134: 0 | F134: 2 | G134: 0 | H134: 1 | I134: 0 | J134: 1 | K134: 0 | L134: 1 | M134: 0 | N134: 2 | O134: 0 | P134: 3 | Q134: 0 | R134: 1 | S134: 0 | T134: 0 | U134: 0 | V134: 1 | W134: 0 | X134: 1 | Y134: 0 | Z134: 0 | AA134: 0 | AB134: 4 | AC134: 0 | AD134: 0 | AE134: 0 | AF134: 0 | AG134: 0 | AH134: 2 | AI134: 0 | AJ134: 1 | AK134: 0 | AL134: 1 | AM134: 0
C135: 절단·베임·찔림 | D135: 3 | E135: 0 | F135: 0 | G135: 0 | H135: 1 | I135: 0 | J135: 0 | K135: 0 | L135: 2 | M135: 0 | N135: 0 | O135: 0 | P135: 0 | Q135: 0 | R135: 0 | S135: 0 | T135: 0 | U135: 0 | V135: 0 | W135: 0 | X135: 0 | Y135: 0 | Z135: 0 | AA135: 0 | AB135: 4 | AC135: 0 | AD135: 1 | AE135: 0 | AF135: 2 | AG135: 0 | AH135: 1 | AI135: 0 | AJ135: 0 | AK135: 0 | AL135: 0 | AM135: 0
C136: 폭발·파열 | D136: 0 | E136: 0 | F136: 0 | G136: 0 | H136: 0 | I136: 0 | J136: 0 | K136: 0 | L136: 0 | M136: 0 | N136: 0 | O136: 0 | P136: 0 | Q136: 0 | R136: 0 | S136: 0 | T136: 0 | U136: 0 | V136: 0 | W136: 0 | X136: 0 | Y136: 0 | Z136: 0 | AA136: 0 | AB136: 1 | AC136: 0 | AD136: 1 | AE136: 0 | AF136: 0 | AG136: 0 | AH136: 0 | AI136: 0 | AJ136: 0 | AK136: 0 | AL136: 0 | AM136: 0
C137: 불균형 및 무리한 동작 | D137: 1 | E137: 0 | F137: 0 | G137: 0 | H137: 0 | I137: 0 | J137: 1 | K137: 0 | L137: 0 | M137: 0 | N137: 0 | O137: 0 | P137: 2 | Q137: 0 | R137: 0 | S137: 0 | T137: 0 | U137: 0 | V137: 2 | W137: 0 | X137: 0 | Y137: 0 | Z137: 0 | AA137: 0 | AB137: 2 | AC137: 0 | AD137: 1 | AE137: 0 | AF137: 1 | AG137: 0 | AH137: 0 | AI137: 0 | AJ137: 0 | AK137: 0 | AL137: 0 | AM137: 0
C138: 사업장외 교통사고 | D138: 1 | E138: 0 | F138: 1 | G138: 0 | H138: 0 | I138: 0 | J138: 0 | K138: 0 | L138: 0 | M138: 0 | N138: 0 | O138: 0 | P138: 0 | Q138: 0 | R138: 0 | S138: 0 | T138: 0 | U138: 0 | V138: 0 | W138: 0 | X138: 0 | Y138: 0 | Z138: 0 | AA138: 0 | AB138: 0 | AC138: 0 | AD138: 0 | AE138: 0 | AF138: 0 | AG138: 0 | AH138: 0 | AI138: 0 | AJ138: 0 | AK138: 0 | AL138: 0 | AM138: 0
C139: 생물학적인자 | D139: 0 | E139: 0 | F139: 0 | G139: 0 | H139: 0 | I139: 0 | J139: 0 | K139: 0 | L139: 0 | M139: 0 | N139: 0 | O139: 0 | P139: 0 | Q139: 0 | R139: 0 | S139: 0 | T139: 0 | U139: 0 | V139: 0 | W139: 0 | X139: 0 | Y139: 0 | Z139: 0 | AA139: 0 | AB139: 0 | AC139: 0 | AD139: 0 | AE139: 0 | AF139: 0 | AG139: 0 | AH139: 0 | AI139: 0 | AJ139: 0 | AK139: 0 | AL139: 0 | AM139: 0
C140: 뇌심혈관질환 | D140: 0 | E140: 0 | F140: 0 | G140: 0 | H140: 0 | I140: 0 | J140: 0 | K140: 0 | L140: 0 | M140: 0 | N140: 0 | O140: 0 | P140: 0 | Q140: 0 | R140: 0 | S140: 0 | T140: 0 | U140: 0 | V140: 0 | W140: 0 | X140: 0 | Y140: 0 | Z140: 0 | AA140: 0 | AB140: 0 | AC140: 0 | AD140: 0 | AE140: 0 | AF140: 0 | AG140: 0 | AH140: 0 | AI140: 0 | AJ140: 0 | AK140: 0 | AL140: 0 | AM140: 0
C141: 근골격계질환 | D141: 0 | E141: 0 | F141: 0 | G141: 0 | H141: 0 | I141: 0 | J141: 0 | K141: 0 | L141: 0 | M141: 0 | N141: 0 | O141: 0 | P141: 0 | Q141: 0 | R141: 0 | S141: 0 | T141: 0 | U141: 0 | V141: 0 | W141: 0 | X141: 0 | Y141: 0 | Z141: 0 | AA141: 0 | AB141: 0 | AC141: 0 | AD141: 0 | AE141: 0 | AF141: 0 | AG141: 0 | AH141: 0 | AI141: 0 | AJ141: 0 | AK141: 0 | AL141: 0 | AM141: 0
A142: 전 주 | B142: 합계 | D142: 261 | E142: 1 | F142: 86 | G142: 0 | H142: 67 | I142: 0 | J142: 37 | K142: 1 | L142: 29 | M142: 0 | N142: 42 | O142: 0 | P142: 241 | Q142: 2 | R142: 79 | S142: 2 | T142: 40 | U142: 0 | V142: 44 | W142: 0 | X142: 38 | Y142: 0 | Z142: 40 | AA142: 0 | AB142: 227 | AC142: 3 | AD142: 68 | AE142: 1 | AF142: 47 | AG142: 1 | AH142: 58 | AI142: 0 | AJ142: 27 | AK142: 1 | AL142: 27 | AM142: 0
B143: 식료품제조업 | C143: 합계 | D143: 47 | E143: 0 | F143: 8 | G143: 0 | H143: 15 | I143: 0 | J143: 7 | K143: 0 | L143: 6 | M143: 0 | N143: 11 | O143: 0 | P143: 53 | Q143: 0 | R143: 16 | S143: 0 | T143: 6 | U143: 0 | V143: 12 | W143: 0 | X143: 9 | Y143: 0 | Z143: 10 | AA143: 0 | AB143: 50 | AC143: 1 | AD143: 15 | AE143: 1 | AF143: 10 | AG143: 0 | AH143: 13 | AI143: 0 | AJ143: 6 | AK143: 0 | AL143: 6 | AM143: 0
C144: 떨어짐(높이가 있는 곳에서 사람이 떨어짐) | D144: 4 | E144: 0 | F144: 0 | G144: 0 | H144: 1 | I144: 0 | J144: 0 | K144: 0 | L144: 2 | M144: 0 | N144: 1 | O144: 0 | P144: 6 | Q144: 0 | R144: 2 | S144: 0 | T144: 1 | U144: 0 | V144: 1 | W144: 0 | X144: 1 | Y144: 0 | Z144: 1 | AA144: 0 | AB144: 4 | AC144: 0 | AD144: 2 | AE144: 0 | AF144: 0 | AG144: 0 | AH144: 1 | AI144: 0 | AJ144: 1 | AK144: 0 | AL144: 0 | AM144: 0
C145: 넘어짐(사람이 미끄러지거나 넘어짐) | D145: 16 | E145: 0 | F145: 2 | G145: 0 | H145: 4 | I145: 0 | J145: 5 | K145: 0 | L145: 2 | M145: 0 | N145: 3 | O145: 0 | P145: 7 | Q145: 0 | R145: 1 | S145: 0 | T145: 2 | U145: 0 | V145: 2 | W145: 0 | X145: 0 | Y145: 0 | Z145: 2 | AA145: 0 | AB145: 10 | AC145: 0 | AD145: 3 | AE145: 0 | AF145: 2 | AG145: 0 | AH145: 1 | AI145: 0 | AJ145: 2 | AK145: 0 | AL145: 2 | AM145: 0
C146: 깔림·뒤집힘(물체의 쓰러짐이나 뒤집힘) | D146: 0 | E146: 0 | F146: 0 | G146: 0 | H146: 0 | I146: 0 | J146: 0 | K146: 0 | L146: 0 | M146: 0 | N146: 0 | O146: 0 | P146: 0 | Q146: 0 | R146: 0 | S146: 0 | T146: 0 | U146: 0 | V146: 0 | W146: 0 | X146: 0 | Y146: 0 | Z146: 0 | AA146: 0 | AB146: 2 | AC146: 0 | AD146: 0 | AE146: 0 | AF146: 0 | AG146: 0 | AH146: 1 | AI146: 0 | AJ146: 1 | AK146: 0 | AL146: 0 | AM146: 0
C147: 부딪힘(물체에 부딪힘) | D147: 2 | E147: 0 | F147: 0 | G147: 0 | H147: 0 | I147: 0 | J147: 0 | K147: 0 | L147: 0 | M147: 0 | N147: 2 | O147: 0 | P147: 1 | Q147: 0 | R147: 0 | S147: 0 | T147: 1 | U147: 0 | V147: 0 | W147: 0 | X147: 0 | Y147: 0 | Z147: 0 | AA147: 0 | AB147: 5 | AC147: 0 | AD147: 1 | AE147: 0 | AF147: 2 | AG147: 0 | AH147: 2 | AI147: 0 | AJ147: 0 | AK147: 0 | AL147: 0 | AM147: 0
C148: 물체에 맞음(날아오거나 떨어진 물체에 맞음) | D148: 2 | E148: 0 | F148: 0 | G148: 0 | H148: 0 | I148: 0 | J148: 1 | K148: 0 | L148: 0 | M148: 0 | N148: 1 | O148: 0 | P148: 0 | Q148: 0 | R148: 0 | S148: 0 | T148: 0 | U148: 0 | V148: 0 | W148: 0 | X148: 0 | Y148: 0 | Z148: 0 | AA148: 0 | AB148: 2 | AC148: 0 | AD148: 0 | AE148: 0 | AF148: 0 | AG148: 0 | AH148: 1 | AI148: 0 | AJ148: 1 | AK148: 0 | AL148: 0 | AM148: 0
C149: 끼임(기계설비에 끼이거나 감김) | D149: 6 | E149: 0 | F149: 1 | G149: 0 | H149: 3 | I149: 0 | J149: 0 | K149: 0 | L149: 0 | M149: 0 | N149: 2 | O149: 0 | P149: 20 | Q149: 0 | R149: 7 | S149: 0 | T149: 1 | U149: 0 | V149: 5 | W149: 0 | X149: 4 | Y149: 0 | Z149: 3 | AA149: 0 | AB149: 11 | AC149: 1 | AD149: 4 | AE149: 1 | AF149: 3 | AG149: 0 | AH149: 3 | AI149: 0 | AJ149: 0 | AK149: 0 | AL149: 1 | AM149: 0
C150: 절단·베임·찔림 | D150: 7 | E150: 0 | F150: 4 | G150: 0 | H150: 2 | I150: 0 | J150: 0 | K150: 0 | L150: 1 | M150: 0 | N150: 0 | O150: 0 | P150: 10 | Q150: 0 | R150: 5 | S150: 0 | T150: 0 | U150: 0 | V150: 2 | W150: 0 | X150: 2 | Y150: 0 | Z150: 1 | AA150: 0 | AB150: 9 | AC150: 0 | AD150: 2 | AE150: 0 | AF150: 3 | AG150: 0 | AH150: 3 | AI150: 0 | AJ150: 0 | AK150: 0 | AL150: 1 | AM150: 0
C151: 감전 | D151: 1 | E151: 0 | F151: 0 | G151: 0 | H151: 1 | I151: 0 | J151: 0 | K151: 0 | L151: 0 | M151: 0 | N151: 0 | O151: 0 | P151: 0 | Q151: 0 | R151: 0 | S151: 0 | T151: 0 | U151: 0 | V151: 0 | W151: 0 | X151: 0 | Y151: 0 | Z151: 0 | AA151: 0 | AB151: 0 | AC151: 0 | AD151: 0 | AE151: 0 | AF151: 0 | AG151: 0 | AH151: 0 | AI151: 0 | AJ151: 0 | AK151: 0 | AL151: 0 | AM151: 0
C152: 불균형 및 무리한 동작 | D152: 2 | E152: 0 | F152: 1 | G152: 0 | H152: 1 | I152: 0 | J152: 0 | K152: 0 | L152: 0 | M152: 0 | N152: 0 | O152: 0 | P152: 2 | Q152: 0 | R152: 1 | S152: 0 | T152: 0 | U152: 0 | V152: 1 | W152: 0 | X152: 0 | Y152: 0 | Z152: 0 | AA152: 0 | AB152: 2 | AC152: 0 | AD152: 1 | AE152: 0 | AF152: 0 | AG152: 0 | AH152: 1 | AI152: 0 | AJ152: 0 | AK152: 0 | AL152: 0 | AM152: 0
C153: 이상온도 접촉 | D153: 4 | E153: 0 | F153: 0 | G153: 0 | H153: 3 | I153: 0 | J153: 0 | K153: 0 | L153: 0 | M153: 0 | N153: 1 | O153: 0 | P153: 2 | Q153: 0 | R153: 0 | S153: 0 | T153: 1 | U153: 0 | V153: 1 | W153: 0 | X153: 0 | Y153: 0 | Z153: 0 | AA153: 0 | AB153: 3 | AC153: 0 | AD153: 1 | AE153: 0 | AF153: 0 | AG153: 0 | AH153: 0 | AI153: 0 | AJ153: 1 | AK153: 0 | AL153: 1 | AM153: 0
C154: 화학물질누출·접촉 | D154: 0 | E154: 0 | F154: 0 | G154: 0 | H154: 0 | I154: 0 | J154: 0 | K154: 0 | L154: 0 | M154: 0 | N154: 0 | O154: 0 | P154: 1 | Q154: 0 | R154: 0 | S154: 0 | T154: 0 | U154: 0 | V154: 0 | W154: 0 | X154: 0 | Y154: 0 | Z154: 1 | AA154: 0 | AB154: 0 | AC154: 0 | AD154: 0 | AE154: 0 | AF154: 0 | AG154: 0 | AH154: 0 | AI154: 0 | AJ154: 0 | AK154: 0 | AL154: 0 | AM154: 0
C155: 사업장외 교통사고 | D155: 0 | E155: 0 | F155: 0 | G155: 0 | H155: 0 | I155: 0 | J155: 0 | K155: 0 | L155: 0 | M155: 0 | N155: 0 | O155: 0 | P155: 2 | Q155: 0 | R155: 0 | S155: 0 | T155: 0 | U155: 0 | V155: 0 | W155: 0 | X155: 1 | Y155: 0 | Z155: 1 | AA155: 0 | AB155: 2 | AC155: 0 | AD155: 1 | AE155: 0 | AF155: 0 | AG155: 0 | AH155: 0 | AI155: 0 | AJ155: 0 | AK155: 0 | AL155: 1 | AM155: 0
C156: 폭력행위 | D156: 1 | E156: 0 | F156: 0 | G156: 0 | H156: 0 | I156: 0 | J156: 0 | K156: 0 | L156: 1 | M156: 0 | N156: 0 | O156: 0 | P156: 0 | Q156: 0 | R156: 0 | S156: 0 | T156: 0 | U156: 0 | V156: 0 | W156: 0 | X156: 0 | Y156: 0 | Z156: 0 | AA156: 0 | AB156: 0 | AC156: 0 | AD156: 0 | AE156: 0 | AF156: 0 | AG156: 0 | AH156: 0 | AI156: 0 | AJ156: 0 | AK156: 0 | AL156: 0 | AM156: 0
C157: 동물상해 | D157: 2 | E157: 0 | F157: 0 | G157: 0 | H157: 0 | I157: 0 | J157: 1 | K157: 0 | L157: 0 | M157: 0 | N157: 1 | O157: 0 | P157: 2 | Q157: 0 | R157: 0 | S157: 0 | T157: 0 | U157: 0 | V157: 0 | W157: 0 | X157: 1 | Y157: 0 | Z157: 1 | AA157: 0 | AB157: 0 | AC157: 0 | AD157: 0 | AE157: 0 | AF157: 0 | AG157: 0 | AH157: 0 | AI157: 0 | AJ157: 0 | AK157: 0 | AL157: 0 | AM157: 0
C158: 물리적인자 | D158: 0 | E158: 0 | F158: 0 | G158: 0 | H158: 0 | I158: 0 | J158: 0 | K158: 0 | L158: 0 | M158: 0 | N158: 0 | O158: 0 | P158: 0 | Q158: 0 | R158: 0 | S158: 0 | T158: 0 | U158: 0 | V158: 0 | W158: 0 | X158: 0 | Y158: 0 | Z158: 0 | AA158: 0 | AB158: 0 | AC158: 0 | AD158: 0 | AE158: 0 | AF158: 0 | AG158: 0 | AH158: 0 | AI158: 0 | AJ158: 0 | AK158: 0 | AL158: 0 | AM158: 0
C159: 화학적인자 | D159: 0 | E159: 0 | F159: 0 | G159: 0 | H159: 0 | I159: 0 | J159: 0 | K159: 0 | L159: 0 | M159: 0 | N159: 0 | O159: 0 | P159: 0 | Q159: 0 | R159: 0 | S159: 0 | T159: 0 | U159: 0 | V159: 0 | W159: 0 | X159: 0 | Y159: 0 | Z159: 0 | AA159: 0 | AB159: 0 | AC159: 0 | AD159: 0 | AE159: 0 | AF159: 0 | AG159: 0 | AH159: 0 | AI159: 0 | AJ159: 0 | AK159: 0 | AL159: 0 | AM159: 0
C160: 근골격계질환 | D160: 0 | E160: 0 | F160: 0 | G160: 0 | H160: 0 | I160: 0 | J160: 0 | K160: 0 | L160: 0 | M160: 0 | N160: 0 | O160: 0 | P160: 0 | Q160: 0 | R160: 0 | S160: 0 | T160: 0 | U160: 0 | V160: 0 | W160: 0 | X160: 0 | Y160: 0 | Z160: 0 | AA160: 0 | AB160: 0 | AC160: 0 | AD160: 0 | AE160: 0 | AF160: 0 | AG160: 0 | AH160: 0 | AI160: 0 | AJ160: 0 | AK160: 0 | AL160: 0 | AM160: 0
C161: 작업관련성질환 기타 | D161: 0 | E161: 0 | F161: 0 | G161: 0 | H161: 0 | I161: 0 | J161: 0 | K161: 0 | L161: 0 | M161: 0 | N161: 0 | O161: 0 | P161: 0 | Q161: 0 | R161: 0 | S161: 0 | T161: 0 | U161: 0 | V161: 0 | W161: 0 | X161: 0 | Y161: 0 | Z161: 0 | AA161: 0 | AB161: 0 | AC161: 0 | AD161: 0 | AE161: 0 | AF161: 0 | AG161: 0 | AH161: 0 | AI161: 0 | AJ161: 0 | AK161: 0 | AL161: 0 | AM161: 0
B162: 섬유및섬유제품제조업 | C162: 합계 | D162: 9 | E162: 0 | F162: 0 | G162: 0 | H162: 3 | I162: 0 | J162: 1 | K162: 0 | L162: 1 | M162: 0 | N162: 4 | O162: 0 | P162: 10 | Q162: 1 | R162: 2 | S162: 1 | T162: 2 | U162: 0 | V162: 1 | W162: 0 | X162: 4 | Y162: 0 | Z162: 1 | AA162: 0 | AB162: 9 | AC162: 0 | AD162: 3 | AE162: 0 | AF162: 2 | AG162: 0 | AH162: 0 | AI162: 0 | AJ162: 3 | AK162: 0 | AL162: 1 | AM162: 0
C163: 떨어짐(높이가 있는 곳에서 사람이 떨어짐) | D163: 0 | E163: 0 | F163: 0 | G163: 0 | H163: 0 | I163: 0 | J163: 0 | K163: 0 | L163: 0 | M163: 0 | N163: 0 | O163: 0 | P163: 2 | Q163: 0 | R163: 1 | S163: 0 | T163: 0 | U163: 0 | V163: 0 | W163: 0 | X163: 0 | Y163: 0 | Z163: 1 | AA163: 0 | AB163: 0 | AC163: 0 | AD163: 0 | AE163: 0 | AF163: 0 | AG163: 0 | AH163: 0 | AI163: 0 | AJ163: 0 | AK163: 0 | AL163: 0 | AM163: 0
C164: 넘어짐(사람이 미끄러지거나 넘어짐) | D164: 3 | E164: 0 | F164: 0 | G164: 0 | H164: 1 | I164: 0 | J164: 1 | K164: 0 | L164: 0 | M164: 0 | N164: 1 | O164: 0 | P164: 1 | Q164: 0 | R164: 0 | S164: 0 | T164: 1 | U164: 0 | V164: 0 | W164: 0 | X164: 0 | Y164: 0 | Z164: 0 | AA164: 0 | AB164: 2 | AC164: 0 | AD164: 0 | AE164: 0 | AF164: 1 | AG164: 0 | AH164: 0 | AI164: 0 | AJ164: 1 | AK164: 0 | AL164: 0 | AM164: 0
C165: 깔림·뒤집힘(물체의 쓰러짐이나 뒤집힘) | D165: 0 | E165: 0 | F165: 0 | G165: 0 | H165: 0 | I165: 0 | J165: 0 | K165: 0 | L165: 0 | M165: 0 | N165: 0 | O165: 0 | P165: 0 | Q165: 0 | R165: 0 | S165: 0 | T165: 0 | U165: 0 | V165: 0 | W165: 0 | X165: 0 | Y165: 0 | Z165: 0 | AA165: 0 | AB165: 1 | AC165: 0 | AD165: 1 | AE165: 0 | AF165: 0 | AG165: 0 | AH165: 0 | AI165: 0 | AJ165: 0 | AK165: 0 | AL165: 0 | AM165: 0
C166: 끼임(기계설비에 끼이거나 감김) | D166: 4 | E166: 0 | F166: 0 | G166: 0 | H166: 1 | I166: 0 | J166: 0 | K166: 0 | L166: 0 | M166: 0 | N166: 3 | O166: 0 | P166: 4 | Q166: 1 | R166: 1 | S166: 1 | T166: 1 | U166: 0 | V166: 0 | W166: 0 | X166: 2 | Y166: 0 | Z166: 0 | AA166: 0 | AB166: 3 | AC166: 0 | AD166: 1 | AE166: 0 | AF166: 0 | AG166: 0 | AH166: 0 | AI166: 0 | AJ166: 1 | AK166: 0 | AL166: 1 | AM166: 0
C167: 절단·베임·찔림 | D167: 2 | E167: 0 | F167: 0 | G167: 0 | H167: 1 | I167: 0 | J167: 0 | K167: 0 | L167: 1 | M167: 0 | N167: 0 | O167: 0 | P167: 1 | Q167: 0 | R167: 0 | S167: 0 | T167: 0 | U167: 0 | V167: 0 | W167: 0 | X167: 1 | Y167: 0 | Z167: 0 | AA167: 0 | AB167: 1 | AC167: 0 | AD167: 0 | AE167: 0 | AF167: 0 | AG167: 0 | AH167: 0 | AI167: 0 | AJ167: 1 | AK167: 0 | AL167: 0 | AM167: 0
C168: 불균형 및 무리한 동작 | D168: 0 | E168: 0 | F168: 0 | G168: 0 | H168: 0 | I168: 0 | J168: 0 | K168: 0 | L168: 0 | M168: 0 | N168: 0 | O168: 0 | P168: 0 | Q168: 0 | R168: 0 | S168: 0 | T168: 0 | U168: 0 | V168: 0 | W168: 0 | X168: 0 | Y168: 0 | Z168: 0 | AA168: 0 | AB168: 2 | AC168: 0 | AD168: 1 | AE168: 0 | AF168: 1 | AG168: 0 | AH168: 0 | AI168: 0 | AJ168: 0 | AK168: 0 | AL168: 0 | AM168: 0
C169: 이상온도 접촉 | D169: 0 | E169: 0 | F169: 0 | G169: 0 | H169: 0 | I169: 0 | J169: 0 | K169: 0 | L169: 0 | M169: 0 | N169: 0 | O169: 0 | P169: 2 | Q169: 0 | R169: 0 | S169: 0 | T169: 0 | U169: 0 | V169: 1 | W169: 0 | X169: 1 | Y169: 0 | Z169: 0 | AA169: 0 | AB169: 0 | AC169: 0 | AD169: 0 | AE169: 0 | AF169: 0 | AG169: 0 | AH169: 0 | AI169: 0 | AJ169: 0 | AK169: 0 | AL169: 0 | AM169: 0
C170: 근골격계질환 | D170: 0 | E170: 0 | F170: 0 | G170: 0 | H170: 0 | I170: 0 | J170: 0 | K170: 0 | L170: 0 | M170: 0 | N170: 0 | O170: 0 | P170: 0 | Q170: 0 | R170: 0 | S170: 0 | T170: 0 | U170: 0 | V170: 0 | W170: 0 | X170: 0 | Y170: 0 | Z170: 0 | AA170: 0 | AB170: 0 | AC170: 0 | AD170: 0 | AE170: 0 | AF170: 0 | AG170: 0 | AH170: 0 | AI170: 0 | AJ170: 0 | AK170: 0 | AL170: 0 | AM170: 0
B171: 목재및종이제품제조업 | C171: 합계 | D171: 19 | E171: 0 | F171: 11 | G171: 0 | H171: 4 | I171: 0 | J171: 2 | K171: 0 | L171: 2 | M171: 0 | N171: 0 | O171: 0 | P171: 22 | Q171: 0 | R171: 15 | S171: 0 | T171: 3 | U171: 0 | V171: 3 | W171: 0 | X171: 1 | Y171: 0 | Z171: 0 | AA171: 0 | AB171: 21 | AC171: 0 | AD171: 6 | AE171: 0 | AF171: 7 | AG171: 0 | AH171: 6 | AI171: 0 | AJ171: 1 | AK171: 0 | AL171: 1 | AM171: 0
C172: 떨어짐(높이가 있는 곳에서 사람이 떨어짐) | D172: 0 | E172: 0 | F172: 0 | G172: 0 | H172: 0 | I172: 0 | J172: 0 | K172: 0 | L172: 0 | M172: 0 | N172: 0 | O172: 0 | P172: 3 | Q172: 0 | R172: 1 | S172: 0 | T172: 1 | U172: 0 | V172: 0 | W172: 0 | X172: 1 | Y172: 0 | Z172: 0 | AA172: 0 | AB172: 2 | AC172: 0 | AD172: 1 | AE172: 0 | AF172: 0 | AG172: 0 | AH172: 1 | AI172: 0 | AJ172: 0 | AK172: 0 | AL172: 0 | AM172: 0
C173: 넘어짐(사람이 미끄러지거나 넘어짐) | D173: 5 | E173: 0 | F173: 3 | G173: 0 | H173: 1 | I173: 0 | J173: 1 | K173: 0 | L173: 0 | M173: 0 | N173: 0 | O173: 0 | P173: 1 | Q173: 0 | R173: 1 | S173: 0 | T173: 0 | U173: 0 | V173: 0 | W173: 0 | X173: 0 | Y173: 0 | Z173: 0 | AA173: 0 | AB173: 4 | AC173: 0 | AD173: 1 | AE173: 0 | AF173: 2 | AG173: 0 | AH173: 1 | AI173: 0 | AJ173: 0 | AK173: 0 | AL173: 0 | AM173: 0
C174: 깔림·뒤집힘(물체의 쓰러짐이나 뒤집힘) | D174: 2 | E174: 0 | F174: 1 | G174: 0 | H174: 0 | I174: 0 | J174: 0 | K174: 0 | L174: 1 | M174: 0 | N174: 0 | O174: 0 | P174: 1 | Q174: 0 | R174: 1 | S174: 0 | T174: 0 | U174: 0 | V174: 0 | W174: 0 | X174: 0 | Y174: 0 | Z174: 0 | AA174: 0 | AB174: 0 | AC174: 0 | AD174: 0 | AE174: 0 | AF174: 0 | AG174: 0 | AH174: 0 | AI174: 0 | AJ174: 0 | AK174: 0 | AL174: 0 | AM174: 0
C175: 부딪힘(물체에 부딪힘) | D175: 1 | E175: 0 | F175: 0 | G175: 0 | H175: 1 | I175: 0 | J175: 0 | K175: 0 | L175: 0 | M175: 0 | N175: 0 | O175: 0 | P175: 2 | Q175: 0 | R175: 2 | S175: 0 | T175: 0 | U175: 0 | V175: 0 | W175: 0 | X175: 0 | Y175: 0 | Z175: 0 | AA175: 0 | AB175: 2 | AC175: 0 | AD175: 2 | AE175: 0 | AF175: 0 | AG175: 0 | AH175: 0 | AI175: 0 | AJ175: 0 | AK175: 0 | AL175: 0 | AM175: 0
C176: 물체에 맞음(날아오거나 떨어진 물체에 맞음) | D176: 1 | E176: 0 | F176: 0 | G176: 0 | H176: 1 | I176: 0 | J176: 0 | K176: 0 | L176: 0 | M176: 0 | N176: 0 | O176: 0 | P176: 2 | Q176: 0 | R176: 2 | S176: 0 | T176: 0 | U176: 0 | V176: 0 | W176: 0 | X176: 0 | Y176: 0 | Z176: 0 | AA176: 0 | AB176: 5 | AC176: 0 | AD176: 2 | AE176: 0 | AF176: 2 | AG176: 0 | AH176: 1 | AI176: 0 | AJ176: 0 | AK176: 0 | AL176: 0 | AM176: 0
C177: 끼임(기계설비에 끼이거나 감김) | D177: =SUM(F177,H177,J177,L177,N177) -> 3 | E177: 0 | F177: 0 | G177: 0 | H177: 1 | I177: 0 | J177: 1 | K177: 0 | L177: 1 | M177: 0 | N177: 0 | O177: 0 | P177: =SUM(R177,T177,V177,X177,Z177) -> 8 | Q177: 0 | R177: 4 | S177: 0 | T177: 1 | U177: 0 | V177: 3 | W177: 0 | X177: 0 | Y177: 0 | Z177: 0 | AA177: 0 | AB177: =SUM(AD177,AF177,AH177,AJ177,AL177) -> 4 | AC177: 0 | AD177: 0 | AE177: 0 | AF177: 0 | AG177: 0 | AH177: 2 | AI177: 0 | AJ177: 1 | AK177: 0 | AL177: 1 | AM177: 0
C178: 절단·베임·찔림 | D178: 5 | E178: 0 | F178: 5 | G178: 0 | H178: 0 | I178: 0 | J178: 0 | K178: 0 | L178: 0 | M178: 0 | N178: 0 | O178: 0 | P178: 5 | Q178: 0 | R178: 4 | S178: 0 | T178: 1 | U178: 0 | V178: 0 | W178: 0 | X178: 0 | Y178: 0 | Z178: 0 | AA178: 0 | AB178: 3 | AC178: 0 | AD178: 0 | AE178: 0 | AF178: 2 | AG178: 0 | AH178: 1 | AI178: 0 | AJ178: 0 | AK178: 0 | AL178: 0 | AM178: 0
C179: 불균형 및 무리한 동작 | D179: 1 | E179: 0 | F179: 1 | G179: 0 | H179: 0 | I179: 0 | J179: 0 | K179: 0 | L179: 0 | M179: 0 | N179: 0 | O179: 0 | P179: 0 | Q179: 0 | R179: 0 | S179: 0 | T179: 0 | U179: 0 | V179: 0 | W179: 0 | X179: 0 | Y179: 0 | Z179: 0 | AA179: 0 | AB179: 0 | AC179: 0 | AD179: 0 | AE179: 0 | AF179: 0 | AG179: 0 | AH179: 0 | AI179: 0 | AJ179: 0 | AK179: 0 | AL179: 0 | AM179: 0
C180: 이상온도 접촉 | D180: 0 | E180: 0 | F180: 0 | G180: 0 | H180: 0 | I180: 0 | J180: 0 | K180: 0 | L180: 0 | M180: 0 | N180: 0 | O180: 0 | P180: 0 | Q180: 0 | R180: 0 | S180: 0 | T180: 0 | U180: 0 | V180: 0 | W180: 0 | X180: 0 | Y180: 0 | Z180: 0 | AA180: 0 | AB180: 1 | AC180: 0 | AD180: 0 | AE180: 0 | AF180: 1 | AG180: 0 | AH180: 0 | AI180: 0 | AJ180: 0 | AK180: 0 | AL180: 0 | AM180: 0
C181: 사업장외 교통사고 | D181: 1 | E181: 0 | F181: 1 | G181: 0 | H181: 0 | I181: 0 | J181: 0 | K181: 0 | L181: 0 | M181: 0 | N181: 0 | O181: 0 | P181: 0 | Q181: 0 | R181: 0 | S181: 0 | T181: 0 | U181: 0 | V181: 0 | W181: 0 | X181: 0 | Y181: 0 | Z181: 0 | AA181: 0 | AB181: 0 | AC181: 0 | AD181: 0 | AE181: 0 | AF181: 0 | AG181: 0 | AH181: 0 | AI181: 0 | AJ181: 0 | AK181: 0 | AL181: 0 | AM181: 0
C182: 물리적인자 | D182: 0 | E182: 0 | F182: 0 | G182: 0 | H182: 0 | I182: 0 | J182: 0 | K182: 0 | L182: 0 | M182: 0 | N182: 0 | O182: 0 | P182: 0 | Q182: 0 | R182: 0 | S182: 0 | T182: 0 | U182: 0 | V182: 0 | W182: 0 | X182: 0 | Y182: 0 | Z182: 0 | AA182: 0 | AB182: 0 | AC182: 0 | AD182: 0 | AE182: 0 | AF182: 0 | AG182: 0 | AH182: 0 | AI182: 0 | AJ182: 0 | AK182: 0 | AL182: 0 | AM182: 0
C183: 근골격계질환 | D183: 0 | E183: 0 | F183: 0 | G183: 0 | H183: 0 | I183: 0 | J183: 0 | K183: 0 | L183: 0 | M183: 0 | N183: 0 | O183: 0 | P183: 0 | Q183: 0 | R183: 0 | S183: 0 | T183: 0 | U183: 0 | V183: 0 | W183: 0 | X183: 0 | Y183: 0 | Z183: 0 | AA183: 0 | AB183: 0 | AC183: 0 | AD183: 0 | AE183: 0 | AF183: 0 | AG183: 0 | AH183: 0 | AI183: 0 | AJ183: 0 | AK183: 0 | AL183: 0 | AM183: 0
B184: 출판·인쇄·제본업 | C184: 합계 | D184: 1 | E184: 0 | F184: 1 | G184: 0 | H184: 0 | I184: 0 | J184: 0 | K184: 0 | L184: 0 | M184: 0 | N184: 0 | O184: 0 | P184: 4 | Q184: 0 | R184: 2 | S184: 0 | T184: 0 | U184: 0 | V184: 0 | W184: 0 | X184: 0 | Y184: 0 | Z184: 2 | AA184: 0 | AB184: 5 | AC184: 0 | AD184: 3 | AE184: 0 | AF184: 0 | AG184: 0 | AH184: 1 | AI184: 0 | AJ184: 0 | AK184: 0 | AL184: 1 | AM184: 0
C185: 부딪힘(물체에 부딪힘) | D185: 0 | E185: 0 | F185: 0 | G185: 0 | H185: 0 | I185: 0 | J185: 0 | K185: 0 | L185: 0 | M185: 0 | N185: 0 | O185: 0 | P185: 2 | Q185: 0 | R185: 0 | S185: 0 | T185: 0 | U185: 0 | V185: 0 | W185: 0 | X185: 0 | Y185: 0 | Z185: 2 | AA185: 0 | AB185: 2 | AC185: 0 | AD185: 0 | AE185: 0 | AF185: 0 | AG185: 0 | AH185: 1 | AI185: 0 | AJ185: 0 | AK185: 0 | AL185: 1 | AM185: 0
C186: 끼임(기계설비에 끼이거나 감김) | D186: 0 | E186: 0 | F186: 0 | G186: 0 | H186: 0 | I186: 0 | J186: 0 | K186: 0 | L186: 0 | M186: 0 | N186: 0 | O186: 0 | P186: 2 | Q186: 0 | R186: 2 | S186: 0 | T186: 0 | U186: 0 | V186: 0 | W186: 0 | X186: 0 | Y186: 0 | Z186: 0 | AA186: 0 | AB186: 2 | AC186: 0 | AD186: 2 | AE186: 0 | AF186: 0 | AG186: 0 | AH186: 0 | AI186: 0 | AJ186: 0 | AK186: 0 | AL186: 0 | AM186: 0
C187: 절단·베임·찔림 | D187: 1 | E187: 0 | F187: 1 | G187: 0 | H187: 0 | I187: 0 | J187: 0 | K187: 0 | L187: 0 | M187: 0 | N187: 0 | O187: 0 | P187: 0 | Q187: 0 | R187: 0 | S187: 0 | T187: 0 | U187: 0 | V187: 0 | W187: 0 | X187: 0 | Y187: 0 | Z187: 0 | AA187: 0 | AB187: 1 | AC187: 0 | AD187: 1 | AE187: 0 | AF187: 0 | AG187: 0 | AH187: 0 | AI187: 0 | AJ187: 0 | AK187: 0 | AL187: 0 | AM187: 0
B188: 화학및고무제품제조업 | C188: 합계 | D188: 26 | E188: 0 | F188: 10 | G188: 0 | H188: 5 | I188: 0 | J188: 5 | K188: 0 | L188: 3 | M188: 0 | N188: 3 | O188: 0 | P188: 25 | Q188: 1 | R188: 10 | S188: 1 | T188: 7 | U188: 0 | V188: 4 | W188: 0 | X188: 3 | Y188: 0 | Z188: 1 | AA188: 0 | AB188: 20 | AC188: 0 | AD188: 3 | AE188: 0 | AF188: 9 | AG188: 0 | AH188: 4 | AI188: 0 | AJ188: 1 | AK188: 0 | AL188: 3 | AM188: 0
C189: 떨어짐(높이가 있는 곳에서 사람이 떨어짐) | D189: 6 | E189: 0 | F189: 2 | G189: 0 | H189: 0 | I189: 0 | J189: 2 | K189: 0 | L189: 0 | M189: 0 | N189: 2 | O189: 0 | P189: 5 | Q189: 0 | R189: 3 | S189: 0 | T189: 1 | U189: 0 | V189: 1 | W189: 0 | X189: 0 | Y189: 0 | Z189: 0 | AA189: 0 | AB189: 3 | AC189: 0 | AD189: 1 | AE189: 0 | AF189: 1 | AG189: 0 | AH189: 0 | AI189: 0 | AJ189: 1 | AK189: 0 | AL189: 0 | AM189: 0
C190: 넘어짐(사람이 미끄러지거나 넘어짐) | D190: 1 | E190: 0 | F190: 0 | G190: 0 | H190: 1 | I190: 0 | J190: 0 | K190: 0 | L190: 0 | M190: 0 | N190: 0 | O190: 0 | P190: 3 | Q190: 0 | R190: 0 | S190: 0 | T190: 1 | U190: 0 | V190: 0 | W190: 0 | X190: 1 | Y190: 0 | Z190: 1 | AA190: 0 | AB190: 2 | AC190: 0 | AD190: 0 | AE190: 0 | AF190: 0 | AG190: 0 | AH190: 0 | AI190: 0 | AJ190: 0 | AK190: 0 | AL190: 2 | AM190: 0
C191: 부딪힘(물체에 부딪힘) | D191: 4 | E191: 0 | F191: 1 | G191: 0 | H191: 1 | I191: 0 | J191: 1 | K191: 0 | L191: 1 | M191: 0 | N191: 0 | O191: 0 | P191: 2 | Q191: 0 | R191: 1 | S191: 0 | T191: 1 | U191: 0 | V191: 0 | W191: 0 | X191: 0 | Y191: 0 | Z191: 0 | AA191: 0 | AB191: 3 | AC191: 0 | AD191: 1 | AE191: 0 | AF191: 1 | AG191: 0 | AH191: 0 | AI191: 0 | AJ191: 0 | AK191: 0 | AL191: 1 | AM191: 0
C192: 물체에 맞음(날아오거나 떨어진 물체에 맞음) | D192: 2 | E192: 0 | F192: 2 | G192: 0 | H192: 0 | I192: 0 | J192: 0 | K192: 0 | L192: 0 | M192: 0 | N192: 0 | O192: 0 | P192: 2 | Q192: 0 | R192: 1 | S192: 0 | T192: 0 | U192: 0 | V192: 1 | W192: 0 | X192: 0 | Y192: 0 | Z192: 0 | AA192: 0 | AB192: 5 | AC192: 0 | AD192: 1 | AE192: 0 | AF192: 3 | AG192: 0 | AH192: 1 | AI192: 0 | AJ192: 0 | AK192: 0 | AL192: 0 | AM192: 0
C193: 끼임(기계설비에 끼이거나 감김) | D193: 8 | E193: 0 | F193: 3 | G193: 0 | H193: 1 | I193: 0 | J193: 2 | K193: 0 | L193: 1 | M193: 0 | N193: 1 | O193: 0 | P193: 4 | Q193: 0 | R193: 2 | S193: 0 | T193: 0 | U193: 0 | V193: 2 | W193: 0 | X193: 0 | Y193: 0 | Z193: 0 | AA193: 0 | AB193: 6 | AC193: 0 | AD193: 0 | AE193: 0 | AF193: 3 | AG193: 0 | AH193: 3 | AI193: 0 | AJ193: 0 | AK193: 0 | AL193: 0 | AM193: 0
C194: 절단·베임·찔림 | D194: 3 | E194: 0 | F194: 1 | G194: 0 | H194: 1 | I194: 0 | J194: 0 | K194: 0 | L194: 1 | M194: 0 | N194: 0 | O194: 0 | P194: 3 | Q194: 0 | R194: 2 | S194: 0 | T194: 1 | U194: 0 | V194: 0 | W194: 0 | X194: 0 | Y194: 0 | Z194: 0 | AA194: 0 | AB194: 0 | AC194: 0 | AD194: 0 | AE194: 0 | AF194: 0 | AG194: 0 | AH194: 0 | AI194: 0 | AJ194: 0 | AK194: 0 | AL194: 0 | AM194: 0
C195: 화재 | D195: 0 | E195: 0 | F195: 0 | G195: 0 | H195: 0 | I195: 0 | J195: 0 | K195: 0 | L195: 0 | M195: 0 | N195: 0 | O195: 0 | P195: 0 | Q195: 0 | R195: 0 | S195: 0 | T195: 0 | U195: 0 | V195: 0 | W195: 0 | X195: 0 | Y195: 0 | Z195: 0 | AA195: 0 | AB195: 1 | AC195: 0 | AD195: 0 | AE195: 0 | AF195: 1 | AG195: 0 | AH195: 0 | AI195: 0 | AJ195: 0 | AK195: 0 | AL195: 0 | AM195: 0
C196: 불균형 및 무리한 동작 | D196: 1 | E196: 0 | F196: 0 | G196: 0 | H196: 1 | I196: 0 | J196: 0 | K196: 0 | L196: 0 | M196: 0 | N196: 0 | O196: 0 | P196: 2 | Q196: 0 | R196: 0 | S196: 0 | T196: 2 | U196: 0 | V196: 0 | W196: 0 | X196: 0 | Y196: 0 | Z196: 0 | AA196: 0 | AB196: 0 | AC196: 0 | AD196: 0 | AE196: 0 | AF196: 0 | AG196: 0 | AH196: 0 | AI196: 0 | AJ196: 0 | AK196: 0 | AL196: 0 | AM196: 0
C197: 이상온도 접촉 | D197: 0 | E197: 0 | F197: 0 | G197: 0 | H197: 0 | I197: 0 | J197: 0 | K197: 0 | L197: 0 | M197: 0 | N197: 0 | O197: 0 | P197: 2 | Q197: 0 | R197: 0 | S197: 0 | T197: 0 | U197: 0 | V197: 0 | W197: 0 | X197: 2 | Y197: 0 | Z197: 0 | AA197: 0 | AB197: 0 | AC197: 0 | AD197: 0 | AE197: 0 | AF197: 0 | AG197: 0 | AH197: 0 | AI197: 0 | AJ197: 0 | AK197: 0 | AL197: 0 | AM197: 0
C198: 빠짐·익사 | D198: 0 | E198: 0 | F198: 0 | G198: 0 | H198: 0 | I198: 0 | J198: 0 | K198: 0 | L198: 0 | M198: 0 | N198: 0 | O198: 0 | P198: 1 | Q198: 1 | R198: 1 | S198: 1 | T198: 0 | U198: 0 | V198: 0 | W198: 0 | X198: 0 | Y198: 0 | Z198: 0 | AA198: 0 | AB198: 0 | AC198: 0 | AD198: 0 | AE198: 0 | AF198: 0 | AG198: 0 | AH198: 0 | AI198: 0 | AJ198: 0 | AK198: 0 | AL198: 0 | AM198: 0
C199: 사업장외 교통사고 | D199: 1 | E199: 0 | F199: 1 | G199: 0 | H199: 0 | I199: 0 | J199: 0 | K199: 0 | L199: 0 | M199: 0 | N199: 0 | O199: 0 | P199: 1 | Q199: 0 | R199: 0 | S199: 0 | T199: 1 | U199: 0 | V199: 0 | W199: 0 | X199: 0 | Y199: 0 | Z199: 0 | AA199: 0 | AB199: 0 | AC199: 0 | AD199: 0 | AE199: 0 | AF199: 0 | AG199: 0 | AH199: 0 | AI199: 0 | AJ199: 0 | AK199: 0 | AL199: 0 | AM199: 0
C200: 근골격계질환 | D200: 0 | E200: 0 | F200: 0 | G200: 0 | H200: 0 | I200: 0 | J200: 0 | K200: 0 | L200: 0 | M200: 0 | N200: 0 | O200: 0 | P200: 0 | Q200: 0 | R200: 0 | S200: 0 | T200: 0 | U200: 0 | V200: 0 | W200: 0 | X200: 0 | Y200: 0 | Z200: 0 | AA200: 0 | AB200: 0 | AC200: 0 | AD200: 0 | AE200: 0 | AF200: 0 | AG200: 0 | AH200: 0 | AI200: 0 | AJ200: 0 | AK200: 0 | AL200: 0 | AM200: 0
... 546 more rows

Sheet 대구권역
A1: 고용지청 | B1: 업종 | C1: 기준년도 | D1: 2021년 | P1: 2022년 | AB1: 2023년 11월
C2: 규모 | D2: 규모별 합계 | F2: 5인 미만 | H2: 5인 ~ 9인 | J2: 10인 ~ 19인 | L2: 20인 ~ 29인 | N2: 30인 ~ 49인 | P2: 규모별 합계 | R2: 5인 미만 | T2: 5인 ~ 9인 | V2: 10인 ~ 19인 | X2: 20인 ~ 29인 | Z2: 30인 ~ 49인 | AB2: 규모별 합계 | AD2: 5인 미만 | AF2: 5인 ~ 9인 | AH2: 10인 ~ 19인 | AJ2: 20인 ~ 29인 | AL2: 30인 ~ 49인
C3: 발생형태 | D3: 사고재해자수 합계 | E3: 사고사망자수 합계 | F3: 사고재해자수 | G3: 사고사망자수 | H3: 사고재해자수 | I3: 사고사망자수 | J3: 사고재해자수 | K3: 사고사망자수 | L3: 사고재해자수 | M3: 사고사망자수 | N3: 사고재해자수 | O3: 사고사망자수 | P3: 사고재해자수 합계 | Q3: 사고사망자수 합계 | R3: 사고재해자수 | S3: 사고사망자수 | T3: 사고재해자수 | U3: 사고사망자수 | V3: 사고재해자수 | W3: 사고사망자수 | X3: 사고재해자수 | Y3: 사고사망자수 | Z3: 사고재해자수 | AA3: 사고사망자수 | AB3: 사고재해자수 합계 | AC3: 사고사망자수 합계 | AD3: 사고재해자수 | AE3: 사고사망자수 | AF3: 사고재해자수 | AG3: 사고사망자수 | AH3: 사고재해자수 | AI3: 사고사망자수 | AJ3: 사고재해자수 | AK3: 사고사망자수 | AL3: 사고재해자수 | AM3: 사고사망자수
A4: 대 구 청 | B4: 합계 | D4: =SUM(F4,H4,J4,L4,N4) -> 622 | E4: 3 | F4: 203 | G4: 1 | H4: 139 | I4: 0 | J4: 121 | K4: 2 | L4: 77 | M4: 0 | N4: 82 | O4: 0 | P4: =SUM(R4,T4,V4,X4,Z4) -> 534 | Q4: 4 | R4: 170 | S4: 3 | T4: 122 | U4: 0 | V4: 107 | W4: 0 | X4: 60 | Y4: 0 | Z4: 75 | AA4: 1 | AB4: =SUM(AD4,AF4,AH4,AJ4,AL4) -> 519 | AC4: 1 | AD4: 178 | AE4: 0 | AF4: 114 | AG4: 1 | AH4: 113 | AI4: 0 | AJ4: 65 | AK4: 0 | AL4: 49 | AM4: 0
B5: 식료품제조업 | C5: 합계 | D5: 71 | E5: 0 | F5: 18 | G5: 0 | H5: 14 | I5: 0 | J5: 18 | K5: 0 | L5: 10 | M5: 0 | N5: 11 | O5: 0 | P5: 60 | Q5: 1 | R5: 15 | S5: 1 | T5: 13 | U5: 0 | V5: 14 | W5: 0 | X5: 8 | Y5: 0 | Z5: 10 | AA5: 0 | AB5: 55 | AC5: 0 | AD5: 18 | AE5: 0 | AF5: 13 | AG5: 0 | AH5: 9 | AI5: 0 | AJ5: 10 | AK5: 0 | AL5: 5 | AM5: 0
C6: 떨어짐(높이가 있는 곳에서 사람이 떨어짐) | D6: 0 | E6: 0 | F6: 0 | G6: 0 | H6: 0 | I6: 0 | J6: 0 | K6: 0 | L6: 0 | M6: 0 | N6: 0 | O6: 0 | P6: 5 | Q6: 0 | R6: 1 | S6: 0 | T6: 1 | U6: 0 | V6: 2 | W6: 0 | X6: 0 | Y6: 0 | Z6: 1 | AA6: 0 | AB6: 5 | AC6: 0 | AD6: 1 | AE6: 0 | AF6: 2 | AG6: 0 | AH6: 1 | AI6: 0 | AJ6: 1 | AK6: 0 | AL6: 0 | AM6: 0
C7: 넘어짐(사람이 미끄러지거나 넘어짐) | D7: 11 | E7: 0 | F7: 4 | G7: 0 | H7: 0 | I7: 0 | J7: 4 | K7: 0 | L7: 2 | M7: 0 | N7: 1 | O7: 0 | P7: 12 | Q7: 0 | R7: 3 | S7: 0 | T7: 2 | U7: 0 | V7: 3 | W7: 0 | X7: 1 | Y7: 0 | Z7: 3 | AA7: 0 | AB7: 4 | AC7: 0 | AD7: 1 | AE7: 0 | AF7: 1 | AG7: 0 | AH7: 0 | AI7: 0 | AJ7: 2 | AK7: 0 | AL7: 0 | AM7: 0
C8: 부딪힘(물체에 부딪힘) | D8: 4 | E8: 0 | F8: 0 | G8: 0 | H8: 1 | I8: 0 | J8: 0 | K8: 0 | L8: 1 | M8: 0 | N8: 2 | O8: 0 | P8: 2 | Q8: 0 | R8: 0 | S8: 0 | T8: 1 | U8: 0 | V8: 0 | W8: 0 | X8: 0 | Y8: 0 | Z8: 1 | AA8: 0 | AB8: 5 | AC8: 0 | AD8: 2 | AE8: 0 | AF8: 1 | AG8: 0 | AH8: 1 | AI8: 0 | AJ8: 1 | AK8: 0 | AL8: 0 | AM8: 0
C9: 물체에 맞음(날아오거나 떨어진 물체에 맞음) | D9: 3 | E9: 0 | F9: 0 | G9: 0 | H9: 1 | I9: 0 | J9: 1 | K9: 0 | L9: 0 | M9: 0 | N9: 1 | O9: 0 | P9: 6 | Q9: 0 | R9: 2 | S9: 0 | T9: 2 | U9: 0 | V9: 0 | W9: 0 | X9: 2 | Y9: 0 | Z9: 0 | AA9: 0 | AB9: 3 | AC9: 0 | AD9: 1 | AE9: 0 | AF9: 0 | AG9: 0 | AH9: 0 | AI9: 0 | AJ9: 2 | AK9: 0 | AL9: 0 | AM9: 0
C10: 끼임(기계설비에 끼이거나 감김) | D10: 20 | E10: 0 | F10: 4 | G10: 0 | H10: 6 | I10: 0 | J10: 5 | K10: 0 | L10: 3 | M10: 0 | N10: 2 | O10: 0 | P10: 15 | Q10: 1 | R10: 7 | S10: 1 | T10: 0 | U10: 0 | V10: 2 | W10: 0 | X10: 3 | Y10: 0 | Z10: 3 | AA10: 0 | AB10: 15 | AC10: 0 | AD10: 2 | AE10: 0 | AF10: 2 | AG10: 0 | AH10: 3 | AI10: 0 | AJ10: 4 | AK10: 0 | AL10: 4 | AM10: 0
C11: 절단·베임·찔림 | D11: 22 | E11: 0 | F11: 6 | G11: 0 | H11: 4 | I11: 0 | J11: 5 | K11: 0 | L11: 3 | M11: 0 | N11: 4 | O11: 0 | P11: 12 | Q11: 0 | R11: 2 | S11: 0 | T11: 2 | U11: 0 | V11: 5 | W11: 0 | X11: 2 | Y11: 0 | Z11: 1 | AA11: 0 | AB11: 14 | AC11: 0 | AD11: 6 | AE11: 0 | AF11: 4 | AG11: 0 | AH11: 3 | AI11: 0 | AJ11: 0 | AK11: 0 | AL11: 1 | AM11: 0
C12: 불균형 및 무리한 동작 | D12: 1 | E12: 0 | F12: 1 | G12: 0 | H12: 0 | I12: 0 | J12: 0 | K12: 0 | L12: 0 | M12: 0 | N12: 0 | O12: 0 | P12: 3 | Q12: 0 | R12: 0 | S12: 0 | T12: 3 | U12: 0 | V12: 0 | W12: 0 | X12: 0 | Y12: 0 | Z12: 0 | AA12: 0 | AB12: 4 | AC12: 0 | AD12: 2 | AE12: 0 | AF12: 1 | AG12: 0 | AH12: 1 | AI12: 0 | AJ12: 0 | AK12: 0 | AL12: 0 | AM12: 0
C13: 이상온도 접촉 | D13: 4 | E13: 0 | F13: 2 | G13: 0 | H13: 1 | I13: 0 | J13: 0 | K13: 0 | L13: 1 | M13: 0 | N13: 0 | O13: 0 | P13: 3 | Q13: 0 | R13: 0 | S13: 0 | T13: 2 | U13: 0 | V13: 1 | W13: 0 | X13: 0 | Y13: 0 | Z13: 0 | AA13: 0 | AB13: 3 | AC13: 0 | AD13: 3 | AE13: 0 | AF13: 0 | AG13: 0 | AH13: 0 | AI13: 0 | AJ13: 0 | AK13: 0 | AL13: 0 | AM13: 0
C14: 화학물질누출·접촉 | D14: 2 | E14: 0 | F14: 0 | G14: 0 | H14: 1 | I14: 0 | J14: 0 | K14: 0 | L14: 0 | M14: 0 | N14: 1 | O14: 0 | P14: 0 | Q14: 0 | R14: 0 | S14: 0 | T14: 0 | U14: 0 | V14: 0 | W14: 0 | X14: 0 | Y14: 0 | Z14: 0 | AA14: 0 | AB14: 1 | AC14: 0 | AD14: 0 | AE14: 0 | AF14: 1 | AG14: 0 | AH14: 0 | AI14: 0 | AJ14: 0 | AK14: 0 | AL14: 0 | AM14: 0
C15: 사업장외 교통사고 | D15: 3 | E15: 0 | F15: 1 | G15: 0 | H15: 0 | I15: 0 | J15: 2 | K15: 0 | L15: 0 | M15: 0 | N15: 0 | O15: 0 | P15: 1 | Q15: 0 | R15: 0 | S15: 0 | T15: 0 | U15: 0 | V15: 1 | W15: 0 | X15: 0 | Y15: 0 | Z15: 0 | AA15: 0 | AB15: 1 | AC15: 0 | AD15: 0 | AE15: 0 | AF15: 1 | AG15: 0 | AH15: 0 | AI15: 0 | AJ15: 0 | AK15: 0 | AL15: 0 | AM15: 0
C16: 폭력행위 | D16: 1 | E16: 0 | F16: 0 | G16: 0 | H16: 0 | I16: 0 | J16: 1 | K16: 0 | L16: 0 | M16: 0 | N16: 0 | O16: 0 | P16: 0 | Q16: 0 | R16: 0 | S16: 0 | T16: 0 | U16: 0 | V16: 0 | W16: 0 | X16: 0 | Y16: 0 | Z16: 0 | AA16: 0 | AB16: 0 | AC16: 0 | AD16: 0 | AE16: 0 | AF16: 0 | AG16: 0 | AH16: 0 | AI16: 0 | AJ16: 0 | AK16: 0 | AL16: 0 | AM16: 0
C17: 동물상해 | D17: 0 | E17: 0 | F17: 0 | G17: 0 | H17: 0 | I17: 0 | J17: 0 | K17: 0 | L17: 0 | M17: 0 | N17: 0 | O17: 0 | P17: 1 | Q17: 0 | R17: 0 | S17: 0 | T17: 0 | U17: 0 | V17: 0 | W17: 0 | X17: 0 | Y17: 0 | Z17: 1 | AA17: 0 | AB17: 0 | AC17: 0 | AD17: 0 | AE17: 0 | AF17: 0 | AG17: 0 | AH17: 0 | AI17: 0 | AJ17: 0 | AK17: 0 | AL17: 0 | AM17: 0
C18: 뇌심혈관질환 | D18: 0 | E18: 0 | F18: 0 | G18: 0 | H18: 0 | I18: 0 | J18: 0 | K18: 0 | L18: 0 | M18: 0 | N18: 0 | O18: 0 | P18: 0 | Q18: 0 | R18: 0 | S18: 0 | T18: 0 | U18: 0 | V18: 0 | W18: 0 | X18: 0 | Y18: 0 | Z18: 0 | AA18: 0 | AB18: 0 | AC18: 0 | AD18: 0 | AE18: 0 | AF18: 0 | AG18: 0 | AH18: 0 | AI18: 0 | AJ18: 0 | AK18: 0 | AL18: 0 | AM18: 0
C19: 근골격계질환 | D19: 0 | E19: 0 | F19: 0 | G19: 0 | H19: 0 | I19: 0 | J19: 0 | K19: 0 | L19: 0 | M19: 0 | N19: 0 | O19: 0 | P19: 0 | Q19: 0 | R19: 0 | S19: 0 | T19: 0 | U19: 0 | V19: 0 | W19: 0 | X19: 0 | Y19: 0 | Z19: 0 | AA19: 0 | AB19: 0 | AC19: 0 | AD19: 0 | AE19: 0 | AF19: 0 | AG19: 0 | AH19: 0 | AI19: 0 | AJ19: 0 | AK19: 0 | AL19: 0 | AM19: 0
B20: 섬유및섬유제품제조업 | C20: 합계 | D20: 52 | E20: 0 | F20: 9 | G20: 0 | H20: 12 | I20: 0 | J20: 13 | K20: 0 | L20: 7 | M20: 0 | N20: 11 | O20: 0 | P20: 46 | Q20: 0 | R20: 12 | S20: 0 | T20: 13 | U20: 0 | V20: 12 | W20: 0 | X20: 6 | Y20: 0 | Z20: 3 | AA20: 0 | AB20: 30 | AC20: 0 | AD20: 4 | AE20: 0 | AF20: 5 | AG20: 0 | AH20: 12 | AI20: 0 | AJ20: 4 | AK20: 0 | AL20: 5 | AM20: 0
C21: 떨어짐(높이가 있는 곳에서 사람이 떨어짐) | D21: 6 | E21: 0 | F21: 0 | G21: 0 | H21: 1 | I21: 0 | J21: 3 | K21: 0 | L21: 0 | M21: 0 | N21: 2 | O21: 0 | P21: 8 | Q21: 0 | R21: 2 | S21: 0 | T21: 2 | U21: 0 | V21: 2 | W21: 0 | X21: 2 | Y21: 0 | Z21: 0 | AA21: 0 | AB21: 4 | AC21: 0 | AD21: 0 | AE21: 0 | AF21: 0 | AG21: 0 | AH21: 2 | AI21: 0 | AJ21: 2 | AK21: 0 | AL21: 0 | AM21: 0
C22: 넘어짐(사람이 미끄러지거나 넘어짐) | D22: 8 | E22: 0 | F22: 2 | G22: 0 | H22: 4 | I22: 0 | J22: 0 | K22: 0 | L22: 1 | M22: 0 | N22: 1 | O22: 0 | P22: 7 | Q22: 0 | R22: 1 | S22: 0 | T22: 1 | U22: 0 | V22: 3 | W22: 0 | X22: 2 | Y22: 0 | Z22: 0 | AA22: 0 | AB22: 8 | AC22: 0 | AD22: 0 | AE22: 0 | AF22: 0 | AG22: 0 | AH22: 5 | AI22: 0 | AJ22: 1 | AK22: 0 | AL22: 2 | AM22: 0
C23: 깔림·뒤집힘(물체의 쓰러짐이나 뒤집힘) | D23: 1 | E23: 0 | F23: 0 | G23: 0 | H23: 1 | I23: 0 | J23: 0 | K23: 0 | L23: 0 | M23: 0 | N23: 0 | O23: 0 | P23: 0 | Q23: 0 | R23: 0 | S23: 0 | T23: 0 | U23: 0 | V23: 0 | W23: 0 | X23: 0 | Y23: 0 | Z23: 0 | AA23: 0 | AB23: 0 | AC23: 0 | AD23: 0 | AE23: 0 | AF23: 0 | AG23: 0 | AH23: 0 | AI23: 0 | AJ23: 0 | AK23: 0 | AL23: 0 | AM23: 0
C24: 부딪힘(물체에 부딪힘) | D24: 2 | E24: 0 | F24: 1 | G24: 0 | H24: 0 | I24: 0 | J24: 1 | K24: 0 | L24: 0 | M24: 0 | N24: 0 | O24: 0 | P24: 5 | Q24: 0 | R24: 2 | S24: 0 | T24: 1 | U24: 0 | V24: 1 | W24: 0 | X24: 0 | Y24: 0 | Z24: 1 | AA24: 0 | AB24: 3 | AC24: 0 | AD24: 1 | AE24: 0 | AF24: 2 | AG24: 0 | AH24: 0 | AI24: 0 | AJ24: 0 | AK24: 0 | AL24: 0 | AM24: 0
C25: 물체에 맞음(날아오거나 떨어진 물체에 맞음) | D25: 3 | E25: 0 | F25: 1 | G25: 0 | H25: 1 | I25: 0 | J25: 0 | K25: 0 | L25: 0 | M25: 0 | N25: 1 | O25: 0 | P25: 0 | Q25: 0 | R25: 0 | S25: 0 | T25: 0 | U25: 0 | V25: 0 | W25: 0 | X25: 0 | Y25: 0 | Z25: 0 | AA25: 0 | AB25: 1 | AC25: 0 | AD25: 0 | AE25: 0 | AF25: 1 | AG25: 0 | AH25: 0 | AI25: 0 | AJ25: 0 | AK25: 0 | AL25: 0 | AM25: 0
C26: 끼임(기계설비에 끼이거나 감김) | D26: 20 | E26: 0 | F26: 3 | G26: 0 | H26: 2 | I26: 0 | J26: 7 | K26: 0 | L26: 5 | M26: 0 | N26: 3 | O26: 0 | P26: 14 | Q26: 0 | R26: 5 | S26: 0 | T26: 4 | U26: 0 | V26: 2 | W26: 0 | X26: 1 | Y26: 0 | Z26: 2 | AA26: 0 | AB26: 9 | AC26: 0 | AD26: 2 | AE26: 0 | AF26: 1 | AG26: 0 | AH26: 2 | AI26: 0 | AJ26: 1 | AK26: 0 | AL26: 3 | AM26: 0
C27: 절단·베임·찔림 | D27: 5 | E27: 0 | F27: 1 | G27: 0 | H27: 2 | I27: 0 | J27: 0 | K27: 0 | L27: 1 | M27: 0 | N27: 1 | O27: 0 | P27: 6 | Q27: 0 | R27: 0 | S27: 0 | T27: 3 | U27: 0 | V27: 3 | W27: 0 | X27: 0 | Y27: 0 | Z27: 0 | AA27: 0 | AB27: 2 | AC27: 0 | AD27: 1 | AE27: 0 | AF27: 1 | AG27: 0 | AH27: 0 | AI27: 0 | AJ27: 0 | AK27: 0 | AL27: 0 | AM27: 0
C28: 감전 | D28: 1 | E28: 0 | F28: 1 | G28: 0 | H28: 0 | I28: 0 | J28: 0 | K28: 0 | L28: 0 | M28: 0 | N28: 0 | O28: 0 | P28: 0 | Q28: 0 | R28: 0 | S28: 0 | T28: 0 | U28: 0 | V28: 0 | W28: 0 | X28: 0 | Y28: 0 | Z28: 0 | AA28: 0 | AB28: 0 | AC28: 0 | AD28: 0 | AE28: 0 | AF28: 0 | AG28: 0 | AH28: 0 | AI28: 0 | AJ28: 0 | AK28: 0 | AL28: 0 | AM28: 0
C29: 화재 | D29: 1 | E29: 0 | F29: 0 | G29: 0 | H29: 0 | I29: 0 | J29: 1 | K29: 0 | L29: 0 | M29: 0 | N29: 0 | O29: 0 | P29: 2 | Q29: 0 | R29: 1 | S29: 0 | T29: 0 | U29: 0 | V29: 1 | W29: 0 | X29: 0 | Y29: 0 | Z29: 0 | AA29: 0 | AB29: 1 | AC29: 0 | AD29: 0 | AE29: 0 | AF29: 0 | AG29: 0 | AH29: 1 | AI29: 0 | AJ29: 0 | AK29: 0 | AL29: 0 | AM29: 0
C30: 불균형 및 무리한 동작 | D30: 2 | E30: 0 | F30: 0 | G30: 0 | H30: 1 | I30: 0 | J30: 0 | K30: 0 | L30: 0 | M30: 0 | N30: 1 | O30: 0 | P30: 2 | Q30: 0 | R30: 0 | S30: 0 | T30: 1 | U30: 0 | V30: 0 | W30: 0 | X30: 1 | Y30: 0 | Z30: 0 | AA30: 0 | AB30: 2 | AC30: 0 | AD30: 0 | AE30: 0 | AF30: 0 | AG30: 0 | AH30: 2 | AI30: 0 | AJ30: 0 | AK30: 0 | AL30: 0 | AM30: 0
C31: 이상온도 접촉 | D31: 2 | E31: 0 | F31: 0 | G31: 0 | H31: 0 | I31: 0 | J31: 1 | K31: 0 | L31: 0 | M31: 0 | N31: 1 | O31: 0 | P31: 0 | Q31: 0 | R31: 0 | S31: 0 | T31: 0 | U31: 0 | V31: 0 | W31: 0 | X31: 0 | Y31: 0 | Z31: 0 | AA31: 0 | AB31: 0 | AC31: 0 | AD31: 0 | AE31: 0 | AF31: 0 | AG31: 0 | AH31: 0 | AI31: 0 | AJ31: 0 | AK31: 0 | AL31: 0 | AM31: 0
C32: 화학물질누출·접촉 | D32: 0 | E32: 0 | F32: 0 | G32: 0 | H32: 0 | I32: 0 | J32: 0 | K32: 0 | L32: 0 | M32: 0 | N32: 0 | O32: 0 | P32: 1 | Q32: 0 | R32: 0 | S32: 0 | T32: 1 | U32: 0 | V32: 0 | W32: 0 | X32: 0 | Y32: 0 | Z32: 0 | AA32: 0 | AB32: 0 | AC32: 0 | AD32: 0 | AE32: 0 | AF32: 0 | AG32: 0 | AH32: 0 | AI32: 0 | AJ32: 0 | AK32: 0 | AL32: 0 | AM32: 0
C33: 사업장외 교통사고 | D33: 1 | E33: 0 | F33: 0 | G33: 0 | H33: 0 | I33: 0 | J33: 0 | K33: 0 | L33: 0 | M33: 0 | N33: 1 | O33: 0 | P33: 1 | Q33: 0 | R33: 1 | S33: 0 | T33: 0 | U33: 0 | V33: 0 | W33: 0 | X33: 0 | Y33: 0 | Z33: 0 | AA33: 0 | AB33: 0 | AC33: 0 | AD33: 0 | AE33: 0 | AF33: 0 | AG33: 0 | AH33: 0 | AI33: 0 | AJ33: 0 | AK33: 0 | AL33: 0 | AM33: 0
C34: 물리적인자 | D34: 0 | E34: 0 | F34: 0 | G34: 0 | H34: 0 | I34: 0 | J34: 0 | K34: 0 | L34: 0 | M34: 0 | N34: 0 | O34: 0 | P34: 0 | Q34: 0 | R34: 0 | S34: 0 | T34: 0 | U34: 0 | V34: 0 | W34: 0 | X34: 0 | Y34: 0 | Z34: 0 | AA34: 0 | AB34: 0 | AC34: 0 | AD34: 0 | AE34: 0 | AF34: 0 | AG34: 0 | AH34: 0 | AI34: 0 | AJ34: 0 | AK34: 0 | AL34: 0 | AM34: 0
C35: 뇌심혈관질환 | D35: 0 | E35: 0 | F35: 0 | G35: 0 | H35: 0 | I35: 0 | J35: 0 | K35: 0 | L35: 0 | M35: 0 | N35: 0 | O35: 0 | P35: 0 | Q35: 0 | R35: 0 | S35: 0 | T35: 0 | U35: 0 | V35: 0 | W35: 0 | X35: 0 | Y35: 0 | Z35: 0 | AA35: 0 | AB35: 0 | AC35: 0 | AD35: 0 | AE35: 0 | AF35: 0 | AG35: 0 | AH35: 0 | AI35: 0 | AJ35: 0 | AK35: 0 | AL35: 0 | AM35: 0
C36: 근골격계질환 | D36: 0 | E36: 0 | F36: 0 | G36: 0 | H36: 0 | I36: 0 | J36: 0 | K36: 0 | L36: 0 | M36: 0 | N36: 0 | O36: 0 | P36: 0 | Q36: 0 | R36: 0 | S36: 0 | T36: 0 | U36: 0 | V36: 0 | W36: 0 | X36: 0 | Y36: 0 | Z36: 0 | AA36: 0 | AB36: 0 | AC36: 0 | AD36: 0 | AE36: 0 | AF36: 0 | AG36: 0 | AH36: 0 | AI36: 0 | AJ36: 0 | AK36: 0 | AL36: 0 | AM36: 0
B37: 목재및종이제품제조업 | C37: 합계 | D37: 32 | E37: 0 | F37: 18 | G37: 0 | H37: 6 | I37: 0 | J37: 4 | K37: 0 | L37: 3 | M37: 0 | N37: 1 | O37: 0 | P37: 26 | Q37: 1 | R37: 14 | S37: 0 | T37: 4 | U37: 0 | V37: 2 | W37: 0 | X37: 4 | Y37: 0 | Z37: 2 | AA37: 1 | AB37: 32 | AC37: 0 | AD37: 14 | AE37: 0 | AF37: 7 | AG37: 0 | AH37: 6 | AI37: 0 | AJ37: 2 | AK37: 0 | AL37: 3 | AM37: 0
C38: 떨어짐(높이가 있는 곳에서 사람이 떨어짐) | D38: 0 | E38: 0 | F38: 0 | G38: 0 | H38: 0 | I38: 0 | J38: 0 | K38: 0 | L38: 0 | M38: 0 | N38: 0 | O38: 0 | P38: 1 | Q38: 0 | R38: 1 | S38: 0 | T38: 0 | U38: 0 | V38: 0 | W38: 0 | X38: 0 | Y38: 0 | Z38: 0 | AA38: 0 | AB38: 4 | AC38: 0 | AD38: 3 | AE38: 0 | AF38: 0 | AG38: 0 | AH38: 1 | AI38: 0 | AJ38: 0 | AK38: 0 | AL38: 0 | AM38: 0
C39: 넘어짐(사람이 미끄러지거나 넘어짐) | D39: 2 | E39: 0 | F39: 1 | G39: 0 | H39: 0 | I39: 0 | J39: 1 | K39: 0 | L39: 0 | M39: 0 | N39: 0 | O39: 0 | P39: 1 | Q39: 1 | R39: 0 | S39: 0 | T39: 0 | U39: 0 | V39: 0 | W39: 0 | X39: 0 | Y39: 0 | Z39: 1 | AA39: 1 | AB39: 3 | AC39: 0 | AD39: 1 | AE39: 0 | AF39: 1 | AG39: 0 | AH39: 1 | AI39: 0 | AJ39: 0 | AK39: 0 | AL39: 0 | AM39: 0
C40: 깔림·뒤집힘(물체의 쓰러짐이나 뒤집힘) | D40: 1 | E40: 0 | F40: 1 | G40: 0 | H40: 0 | I40: 0 | J40: 0 | K40: 0 | L40: 0 | M40: 0 | N40: 0 | O40: 0 | P40: 1 | Q40: 0 | R40: 0 | S40: 0 | T40: 1 | U40: 0 | V40: 0 | W40: 0 | X40: 0 | Y40: 0 | Z40: 0 | AA40: 0 | AB40: 0 | AC40: 0 | AD40: 0 | AE40: 0 | AF40: 0 | AG40: 0 | AH40: 0 | AI40: 0 | AJ40: 0 | AK40: 0 | AL40: 0 | AM40: 0
C41: 부딪힘(물체에 부딪힘) | D41: 0 | E41: 0 | F41: 0 | G41: 0 | H41: 0 | I41: 0 | J41: 0 | K41: 0 | L41: 0 | M41: 0 | N41: 0 | O41: 0 | P41: 2 | Q41: 0 | R41: 0 | S41: 0 | T41: 1 | U41: 0 | V41: 0 | W41: 0 | X41: 1 | Y41: 0 | Z41: 0 | AA41: 0 | AB41: 3 | AC41: 0 | AD41: 2 | AE41: 0 | AF41: 1 | AG41: 0 | AH41: 0 | AI41: 0 | AJ41: 0 | AK41: 0 | AL41: 0 | AM41: 0
C42: 물체에 맞음(날아오거나 떨어진 물체에 맞음) | D42: 2 | E42: 0 | F42: 0 | G42: 0 | H42: 2 | I42: 0 | J42: 0 | K42: 0 | L42: 0 | M42: 0 | N42: 0 | O42: 0 | P42: 1 | Q42: 0 | R42: 1 | S42: 0 | T42: 0 | U42: 0 | V42: 0 | W42: 0 | X42: 0 | Y42: 0 | Z42: 0 | AA42: 0 | AB42: 1 | AC42: 0 | AD42: 1 | AE42: 0 | AF42: 0 | AG42: 0 | AH42: 0 | AI42: 0 | AJ42: 0 | AK42: 0 | AL42: 0 | AM42: 0
C43: 무너짐(건축물이나 쌓여진 물체가 무너짐) | D43: 0 | E43: 0 | F43: 0 | G43: 0 | H43: 0 | I43: 0 | J43: 0 | K43: 0 | L43: 0 | M43: 0 | N43: 0 | O43: 0 | P43: 1 | Q43: 0 | R43: 1 | S43: 0 | T43: 0 | U43: 0 | V43: 0 | W43: 0 | X43: 0 | Y43: 0 | Z43: 0 | AA43: 0 | AB43: 0 | AC43: 0 | AD43: 0 | AE43: 0 | AF43: 0 | AG43: 0 | AH43: 0 | AI43: 0 | AJ43: 0 | AK43: 0 | AL43: 0 | AM43: 0
C44: 끼임(기계설비에 끼이거나 감김) | D44: 12 | E44: 0 | F44: 5 | G44: 0 | H44: 1 | I44: 0 | J44: 3 | K44: 0 | L44: 3 | M44: 0 | N44: 0 | O44: 0 | P44: 8 | Q44: 0 | R44: 4 | S44: 0 | T44: 0 | U44: 0 | V44: 1 | W44: 0 | X44: 2 | Y44: 0 | Z44: 1 | AA44: 0 | AB44: 13 | AC44: 0 | AD44: 4 | AE44: 0 | AF44: 2 | AG44: 0 | AH44: 3 | AI44: 0 | AJ44: 2 | AK44: 0 | AL44: 2 | AM44: 0
C45: 절단·베임·찔림 | D45: 13 | E45: 0 | F45: 11 | G45: 0 | H45: 2 | I45: 0 | J45: 0 | K45: 0 | L45: 0 | M45: 0 | N45: 0 | O45: 0 | P45: 9 | Q45: 0 | R45: 6 | S45: 0 | T45: 2 | U45: 0 | V45: 1 | W45: 0 | X45: 0 | Y45: 0 | Z45: 0 | AA45: 0 | AB45: 5 | AC45: 0 | AD45: 2 | AE45: 0 | AF45: 3 | AG45: 0 | AH45: 0 | AI45: 0 | AJ45: 0 | AK45: 0 | AL45: 0 | AM45: 0
C46: 화재 | D46: 0 | E46: 0 | F46: 0 | G46: 0 | H46: 0 | I46: 0 | J46: 0 | K46: 0 | L46: 0 | M46: 0 | N46: 0 | O46: 0 | P46: 0 | Q46: 0 | R46: 0 | S46: 0 | T46: 0 | U46: 0 | V46: 0 | W46: 0 | X46: 0 | Y46: 0 | Z46: 0 | AA46: 0 | AB46: 1 | AC46: 0 | AD46: 1 | AE46: 0 | AF46: 0 | AG46: 0 | AH46: 0 | AI46: 0 | AJ46: 0 | AK46: 0 | AL46: 0 | AM46: 0
C47: 불균형 및 무리한 동작 | D47: 1 | E47: 0 | F47: 0 | G47: 0 | H47: 0 | I47: 0 | J47: 0 | K47: 0 | L47: 0 | M47: 0 | N47: 1 | O47: 0 | P47: 1 | Q47: 0 | R47: 1 | S47: 0 | T47: 0 | U47: 0 | V47: 0 | W47: 0 | X47: 0 | Y47: 0 | Z47: 0 | AA47: 0 | AB47: 1 | AC47: 0 | AD47: 0 | AE47: 0 | AF47: 0 | AG47: 0 | AH47: 1 | AI47: 0 | AJ47: 0 | AK47: 0 | AL47: 0 | AM47: 0
C48: 이상온도 접촉 | D48: 0 | E48: 0 | F48: 0 | G48: 0 | H48: 0 | I48: 0 | J48: 0 | K48: 0 | L48: 0 | M48: 0 | N48: 0 | O48: 0 | P48: 0 | Q48: 0 | R48: 0 | S48: 0 | T48: 0 | U48: 0 | V48: 0 | W48: 0 | X48: 0 | Y48: 0 | Z48: 0 | AA48: 0 | AB48: 1 | AC48: 0 | AD48: 0 | AE48: 0 | AF48: 0 | AG48: 0 | AH48: 0 | AI48: 0 | AJ48: 0 | AK48: 0 | AL48: 1 | AM48: 0
C49: 사업장외 교통사고 | D49: 1 | E49: 0 | F49: 0 | G49: 0 | H49: 1 | I49: 0 | J49: 0 | K49: 0 | L49: 0 | M49: 0 | N49: 0 | O49: 0 | P49: 0 | Q49: 0 | R49: 0 | S49: 0 | T49: 0 | U49: 0 | V49: 0 | W49: 0 | X49: 0 | Y49: 0 | Z49: 0 | AA49: 0 | AB49: 0 | AC49: 0 | AD49: 0 | AE49: 0 | AF49: 0 | AG49: 0 | AH49: 0 | AI49: 0 | AJ49: 0 | AK49: 0 | AL49: 0 | AM49: 0
C50: 체육행사 등의 사고 | D50: 0 | E50: 0 | F50: 0 | G50: 0 | H50: 0 | I50: 0 | J50: 0 | K50: 0 | L50: 0 | M50: 0 | N50: 0 | O50: 0 | P50: 1 | Q50: 0 | R50: 0 | S50: 0 | T50: 0 | U50: 0 | V50: 0 | W50: 0 | X50: 1 | Y50: 0 | Z50: 0 | AA50: 0 | AB50: 0 | AC50: 0 | AD50: 0 | AE50: 0 | AF50: 0 | AG50: 0 | AH50: 0 | AI50: 0 | AJ50: 0 | AK50: 0 | AL50: 0 | AM50: 0
C51: 물리적인자 | D51: 0 | E51: 0 | F51: 0 | G51: 0 | H51: 0 | I51: 0 | J51: 0 | K51: 0 | L51: 0 | M51: 0 | N51: 0 | O51: 0 | P51: 0 | Q51: 0 | R51: 0 | S51: 0 | T51: 0 | U51: 0 | V51: 0 | W51: 0 | X51: 0 | Y51: 0 | Z51: 0 | AA51: 0 | AB51: 0 | AC51: 0 | AD51: 0 | AE51: 0 | AF51: 0 | AG51: 0 | AH51: 0 | AI51: 0 | AJ51: 0 | AK51: 0 | AL51: 0 | AM51: 0
C52: 직업병기타 | D52: 0 | E52: 0 | F52: 0 | G52: 0 | H52: 0 | I52: 0 | J52: 0 | K52: 0 | L52: 0 | M52: 0 | N52: 0 | O52: 0 | P52: 0 | Q52: 0 | R52: 0 | S52: 0 | T52: 0 | U52: 0 | V52: 0 | W52: 0 | X52: 0 | Y52: 0 | Z52: 0 | AA52: 0 | AB52: 0 | AC52: 0 | AD52: 0 | AE52: 0 | AF52: 0 | AG52: 0 | AH52: 0 | AI52: 0 | AJ52: 0 | AK52: 0 | AL52: 0 | AM52: 0
C53: 뇌심혈관질환 | D53: 0 | E53: 0 | F53: 0 | G53: 0 | H53: 0 | I53: 0 | J53: 0 | K53: 0 | L53: 0 | M53: 0 | N53: 0 | O53: 0 | P53: 0 | Q53: 0 | R53: 0 | S53: 0 | T53: 0 | U53: 0 | V53: 0 | W53: 0 | X53: 0 | Y53: 0 | Z53: 0 | AA53: 0 | AB53: 0 | AC53: 0 | AD53: 0 | AE53: 0 | AF53: 0 | AG53: 0 | AH53: 0 | AI53: 0 | AJ53: 0 | AK53: 0 | AL53: 0 | AM53: 0
C54: 근골격계질환 | D54: 0 | E54: 0 | F54: 0 | G54: 0 | H54: 0 | I54: 0 | J54: 0 | K54: 0 | L54: 0 | M54: 0 | N54: 0 | O54: 0 | P54: 0 | Q54: 0 | R54: 0 | S54: 0 | T54: 0 | U54: 0 | V54: 0 | W54: 0 | X54: 0 | Y54: 0 | Z54: 0 | AA54: 0 | AB54: 0 | AC54: 0 | AD54: 0 | AE54: 0 | AF54: 0 | AG54: 0 | AH54: 0 | AI54: 0 | AJ54: 0 | AK54: 0 | AL54: 0 | AM54: 0
B55: 출판·인쇄·제본업 | C55: 합계 | D55: 6 | E55: 0 | F55: 3 | G55: 0 | H55: 1 | I55: 0 | J55: 1 | K55: 0 | L55: 1 | M55: 0 | N55: 0 | O55: 0 | P55: 7 | Q55: 0 | R55: 3 | S55: 0 | T55: 0 | U55: 0 | V55: 2 | W55: 0 | X55: 0 | Y55: 0 | Z55: 2 | AA55: 0 | AB55: 6 | AC55: 0 | AD55: 2 | AE55: 0 | AF55: 2 | AG55: 0 | AH55: 1 | AI55: 0 | AJ55: 1 | AK55: 0 | AL55: 0 | AM55: 0
C56: 떨어짐(높이가 있는 곳에서 사람이 떨어짐) | D56: 1 | E56: 0 | F56: 1 | G56: 0 | H56: 0 | I56: 0 | J56: 0 | K56: 0 | L56: 0 | M56: 0 | N56: 0 | O56: 0 | P56: 0 | Q56: 0 | R56: 0 | S56: 0 | T56: 0 | U56: 0 | V56: 0 | W56: 0 | X56: 0 | Y56: 0 | Z56: 0 | AA56: 0 | AB56: 1 | AC56: 0 | AD56: 0 | AE56: 0 | AF56: 0 | AG56: 0 | AH56: 1 | AI56: 0 | AJ56: 0 | AK56: 0 | AL56: 0 | AM56: 0
C57: 넘어짐(사람이 미끄러지거나 넘어짐) | D57: 0 | E57: 0 | F57: 0 | G57: 0 | H57: 0 | I57: 0 | J57: 0 | K57: 0 | L57: 0 | M57: 0 | N57: 0 | O57: 0 | P57: 1 | Q57: 0 | R57: 1 | S57: 0 | T57: 0 | U57: 0 | V57: 0 | W57: 0 | X57: 0 | Y57: 0 | Z57: 0 | AA57: 0 | AB57: 1 | AC57: 0 | AD57: 1 | AE57: 0 | AF57: 0 | AG57: 0 | AH57: 0 | AI57: 0 | AJ57: 0 | AK57: 0 | AL57: 0 | AM57: 0
C58: 깔림·뒤집힘(물체의 쓰러짐이나 뒤집힘) | D58: 0 | E58: 0 | F58: 0 | G58: 0 | H58: 0 | I58: 0 | J58: 0 | K58: 0 | L58: 0 | M58: 0 | N58: 0 | O58: 0 | P58: 0 | Q58: 0 | R58: 0 | S58: 0 | T58: 0 | U58: 0 | V58: 0 | W58: 0 | X58: 0 | Y58: 0 | Z58: 0 | AA58: 0 | AB58: 1 | AC58: 0 | AD58: 1 | AE58: 0 | AF58: 0 | AG58: 0 | AH58: 0 | AI58: 0 | AJ58: 0 | AK58: 0 | AL58: 0 | AM58: 0
C59: 부딪힘(물체에 부딪힘) | D59: 0 | E59: 0 | F59: 0 | G59: 0 | H59: 0 | I59: 0 | J59: 0 | K59: 0 | L59: 0 | M59: 0 | N59: 0 | O59: 0 | P59: 2 | Q59: 0 | R59: 1 | S59: 0 | T59: 0 | U59: 0 | V59: 1 | W59: 0 | X59: 0 | Y59: 0 | Z59: 0 | AA59: 0 | AB59: 0 | AC59: 0 | AD59: 0 | AE59: 0 | AF59: 0 | AG59: 0 | AH59: 0 | AI59: 0 | AJ59: 0 | AK59: 0 | AL59: 0 | AM59: 0
C60: 물체에 맞음(날아오거나 떨어진 물체에 맞음) | D60: 1 | E60: 0 | F60: 0 | G60: 0 | H60: 1 | I60: 0 | J60: 0 | K60: 0 | L60: 0 | M60: 0 | N60: 0 | O60: 0 | P60: 0 | Q60: 0 | R60: 0 | S60: 0 | T60: 0 | U60: 0 | V60: 0 | W60: 0 | X60: 0 | Y60: 0 | Z60: 0 | AA60: 0 | AB60: 0 | AC60: 0 | AD60: 0 | AE60: 0 | AF60: 0 | AG60: 0 | AH60: 0 | AI60: 0 | AJ60: 0 | AK60: 0 | AL60: 0 | AM60: 0
C61: 끼임(기계설비에 끼이거나 감김) | D61: 3 | E61: 0 | F61: 2 | G61: 0 | H61: 0 | I61: 0 | J61: 1 | K61: 0 | L61: 0 | M61: 0 | N61: 0 | O61: 0 | P61: 3 | Q61: 0 | R61: 1 | S61: 0 | T61: 0 | U61: 0 | V61: 0 | W61: 0 | X61: 0 | Y61: 0 | Z61: 2 | AA61: 0 | AB61: 2 | AC61: 0 | AD61: 0 | AE61: 0 | AF61: 1 | AG61: 0 | AH61: 0 | AI61: 0 | AJ61: 1 | AK61: 0 | AL61: 0 | AM61: 0
C62: 절단·베임·찔림 | D62: 1 | E62: 0 | F62: 0 | G62: 0 | H62: 0 | I62: 0 | J62: 0 | K62: 0 | L62: 1 | M62: 0 | N62: 0 | O62: 0 | P62: 0 | Q62: 0 | R62: 0 | S62: 0 | T62: 0 | U62: 0 | V62: 0 | W62: 0 | X62: 0 | Y62: 0 | Z62: 0 | AA62: 0 | AB62: 1 | AC62: 0 | AD62: 0 | AE62: 0 | AF62: 1 | AG62: 0 | AH62: 0 | AI62: 0 | AJ62: 0 | AK62: 0 | AL62: 0 | AM62: 0
C63: 동물상해 | D63: 0 | E63: 0 | F63: 0 | G63: 0 | H63: 0 | I63: 0 | J63: 0 | K63: 0 | L63: 0 | M63: 0 | N63: 0 | O63: 0 | P63: 1 | Q63: 0 | R63: 0 | S63: 0 | T63: 0 | U63: 0 | V63: 1 | W63: 0 | X63: 0 | Y63: 0 | Z63: 0 | AA63: 0 | AB63: 0 | AC63: 0 | AD63: 0 | AE63: 0 | AF63: 0 | AG63: 0 | AH63: 0 | AI63: 0 | AJ63: 0 | AK63: 0 | AL63: 0 | AM63: 0
C64: 물리적인자 | D64: 0 | E64: 0 | F64: 0 | G64: 0 | H64: 0 | I64: 0 | J64: 0 | K64: 0 | L64: 0 | M64: 0 | N64: 0 | O64: 0 | P64: 0 | Q64: 0 | R64: 0 | S64: 0 | T64: 0 | U64: 0 | V64: 0 | W64: 0 | X64: 0 | Y64: 0 | Z64: 0 | AA64: 0 | AB64: 0 | AC64: 0 | AD64: 0 | AE64: 0 | AF64: 0 | AG64: 0 | AH64: 0 | AI64: 0 | AJ64: 0 | AK64: 0 | AL64: 0 | AM64: 0
C65: 근골격계질환 | D65: 0 | E65: 0 | F65: 0 | G65: 0 | H65: 0 | I65: 0 | J65: 0 | K65: 0 | L65: 0 | M65: 0 | N65: 0 | O65: 0 | P65: 0 | Q65: 0 | R65: 0 | S65: 0 | T65: 0 | U65: 0 | V65: 0 | W65: 0 | X65: 0 | Y65: 0 | Z65: 0 | AA65: 0 | AB65: 0 | AC65: 0 | AD65: 0 | AE65: 0 | AF65: 0 | AG65: 0 | AH65: 0 | AI65: 0 | AJ65: 0 | AK65: 0 | AL65: 0 | AM65: 0
B66: 화학및고무제품제조업 | C66: 합계 | D66: 60 | E66: 0 | F66: 17 | G66: 0 | H66: 8 | I66: 0 | J66: 15 | K66: 0 | L66: 9 | M66: 0 | N66: 11 | O66: 0 | P66: 51 | Q66: 0 | R66: 13 | S66: 0 | T66: 12 | U66: 0 | V66: 10 | W66: 0 | X66: 9 | Y66: 0 | Z66: 7 | AA66: 0 | AB66: 51 | AC66: 0 | AD66: 12 | AE66: 0 | AF66: 11 | AG66: 0 | AH66: 17 | AI66: 0 | AJ66: 6 | AK66: 0 | AL66: 5 | AM66: 0
C67: 떨어짐(높이가 있는 곳에서 사람이 떨어짐) | D67: 6 | E67: 0 | F67: 2 | G67: 0 | H67: 1 | I67: 0 | J67: 2 | K67: 0 | L67: 1 | M67: 0 | N67: 0 | O67: 0 | P67: 3 | Q67: 0 | R67: 0 | S67: 0 | T67: 2 | U67: 0 | V67: 1 | W67: 0 | X67: 0 | Y67: 0 | Z67: 0 | AA67: 0 | AB67: 10 | AC67: 0 | AD67: 6 | AE67: 0 | AF67: 2 | AG67: 0 | AH67: 2 | AI67: 0 | AJ67: 0 | AK67: 0 | AL67: 0 | AM67: 0
C68: 넘어짐(사람이 미끄러지거나 넘어짐) | D68: =SUM(F68,H68,J68,L68,N68) -> 4 | E68: 0 | F68: 0 | G68: 0 | H68: 2 | I68: 0 | J68: 2 | K68: 0 | L68: 0 | M68: 0 | N68: 0 | O68: 0 | P68: =SUM(R68,T68,V68,X68,Z68) -> 7 | Q68: 0 | R68: 1 | S68: 0 | T68: 4 | U68: 0 | V68: 0 | W68: 0 | X68: 1 | Y68: 0 | Z68: 1 | AA68: 0 | AB68: =SUM(AD68,AF68,AH68,AJ68,AL68) -> 6 | AC68: 0 | AD68: 2 | AE68: 0 | AF68: 4 | AG68: 0 | AH68: 0 | AI68: 0 | AJ68: 0 | AK68: 0 | AL68: 0 | AM68: 0
C69: 깔림·뒤집힘(물체의 쓰러짐이나 뒤집힘) | D69: 1 | E69: 0 | F69: 0 | G69: 0 | H69: 0 | I69: 0 | J69: 0 | K69: 0 | L69: 0 | M69: 0 | N69: 1 | O69: 0 | P69: 1 | Q69: 0 | R69: 0 | S69: 0 | T69: 1 | U69: 0 | V69: 0 | W69: 0 | X69: 0 | Y69: 0 | Z69: 0 | AA69: 0 | AB69: 0 | AC69: 0 | AD69: 0 | AE69: 0 | AF69: 0 | AG69: 0 | AH69: 0 | AI69: 0 | AJ69: 0 | AK69: 0 | AL69: 0 | AM69: 0
C70: 부딪힘(물체에 부딪힘) | D70: 1 | E70: 0 | F70: 0 | G70: 0 | H70: 0 | I70: 0 | J70: 1 | K70: 0 | L70: 0 | M70: 0 | N70: 0 | O70: 0 | P70: 5 | Q70: 0 | R70: 2 | S70: 0 | T70: 1 | U70: 0 | V70: 1 | W70: 0 | X70: 1 | Y70: 0 | Z70: 0 | AA70: 0 | AB70: 6 | AC70: 0 | AD70: 1 | AE70: 0 | AF70: 0 | AG70: 0 | AH70: 2 | AI70: 0 | AJ70: 2 | AK70: 0 | AL70: 1 | AM70: 0
C71: 물체에 맞음(날아오거나 떨어진 물체에 맞음) | D71: 6 | E71: 0 | F71: 2 | G71: 0 | H71: 0 | I71: 0 | J71: 2 | K71: 0 | L71: 0 | M71: 0 | N71: 2 | O71: 0 | P71: 2 | Q71: 0 | R71: 2 | S71: 0 | T71: 0 | U71: 0 | V71: 0 | W71: 0 | X71: 0 | Y71: 0 | Z71: 0 | AA71: 0 | AB71: 2 | AC71: 0 | AD71: 0 | AE71: 0 | AF71: 0 | AG71: 0 | AH71: 1 | AI71: 0 | AJ71: 1 | AK71: 0 | AL71: 0 | AM71: 0
C72: 무너짐(건축물이나 쌓여진 물체가 무너짐) | D72: 1 | E72: 0 | F72: 0 | G72: 0 | H72: 0 | I72: 0 | J72: 1 | K72: 0 | L72: 0 | M72: 0 | N72: 0 | O72: 0 | P72: 0 | Q72: 0 | R72: 0 | S72: 0 | T72: 0 | U72: 0 | V72: 0 | W72: 0 | X72: 0 | Y72: 0 | Z72: 0 | AA72: 0 | AB72: 0 | AC72: 0 | AD72: 0 | AE72: 0 | AF72: 0 | AG72: 0 | AH72: 0 | AI72: 0 | AJ72: 0 | AK72: 0 | AL72: 0 | AM72: 0
C73: 끼임(기계설비에 끼이거나 감김) | D73: 22 | E73: 0 | F73: 4 | G73: 0 | H73: 2 | I73: 0 | J73: 5 | K73: 0 | L73: 7 | M73: 0 | N73: 4 | O73: 0 | P73: 23 | Q73: 0 | R73: 6 | S73: 0 | T73: 2 | U73: 0 | V73: 4 | W73: 0 | X73: 6 | Y73: 0 | Z73: 5 | AA73: 0 | AB73: 17 | AC73: 0 | AD73: 2 | AE73: 0 | AF73: 1 | AG73: 0 | AH73: 11 | AI73: 0 | AJ73: 2 | AK73: 0 | AL73: 1 | AM73: 0
C74: 절단·베임·찔림 | D74: 12 | E74: 0 | F74: 6 | G74: 0 | H74: 2 | I74: 0 | J74: 1 | K74: 0 | L74: 0 | M74: 0 | N74: 3 | O74: 0 | P74: 7 | Q74: 0 | R74: 1 | S74: 0 | T74: 2 | U74: 0 | V74: 2 | W74: 0 | X74: 1 | Y74: 0 | Z74: 1 | AA74: 0 | AB74: 5 | AC74: 0 | AD74: 1 | AE74: 0 | AF74: 2 | AG74: 0 | AH74: 1 | AI74: 0 | AJ74: 1 | AK74: 0 | AL74: 0 | AM74: 0
C75: 감전 | D75: 0 | E75: 0 | F75: 0 | G75: 0 | H75: 0 | I75: 0 | J75: 0 | K75: 0 | L75: 0 | M75: 0 | N75: 0 | O75: 0 | P75: 0 | Q75: 0 | R75: 0 | S75: 0 | T75: 0 | U75: 0 | V75: 0 | W75: 0 | X75: 0 | Y75: 0 | Z75: 0 | AA75: 0 | AB75: 1 | AC75: 0 | AD75: 0 | AE75: 0 | AF75: 1 | AG75: 0 | AH75: 0 | AI75: 0 | AJ75: 0 | AK75: 0 | AL75: 0 | AM75: 0
C76: 폭발·파열 | D76: 2 | E76: 0 | F76: 0 | G76: 0 | H76: 1 | I76: 0 | J76: 0 | K76: 0 | L76: 0 | M76: 0 | N76: 1 | O76: 0 | P76: 2 | Q76: 0 | R76: 0 | S76: 0 | T76: 0 | U76: 0 | V76: 2 | W76: 0 | X76: 0 | Y76: 0 | Z76: 0 | AA76: 0 | AB76: 0 | AC76: 0 | AD76: 0 | AE76: 0 | AF76: 0 | AG76: 0 | AH76: 0 | AI76: 0 | AJ76: 0 | AK76: 0 | AL76: 0 | AM76: 0
C77: 불균형 및 무리한 동작 | D77: 1 | E77: 0 | F77: 0 | G77: 0 | H77: 0 | I77: 0 | J77: 1 | K77: 0 | L77: 0 | M77: 0 | N77: 0 | O77: 0 | P77: 0 | Q77: 0 | R77: 0 | S77: 0 | T77: 0 | U77: 0 | V77: 0 | W77: 0 | X77: 0 | Y77: 0 | Z77: 0 | AA77: 0 | AB77: 0 | AC77: 0 | AD77: 0 | AE77: 0 | AF77: 0 | AG77: 0 | AH77: 0 | AI77: 0 | AJ77: 0 | AK77: 0 | AL77: 0 | AM77: 0
C78: 이상온도 접촉 | D78: 3 | E78: 0 | F78: 2 | G78: 0 | H78: 0 | I78: 0 | J78: 0 | K78: 0 | L78: 1 | M78: 0 | N78: 0 | O78: 0 | P78: 0 | Q78: 0 | R78: 0 | S78: 0 | T78: 0 | U78: 0 | V78: 0 | W78: 0 | X78: 0 | Y78: 0 | Z78: 0 | AA78: 0 | AB78: 0 | AC78: 0 | AD78: 0 | AE78: 0 | AF78: 0 | AG78: 0 | AH78: 0 | AI78: 0 | AJ78: 0 | AK78: 0 | AL78: 0 | AM78: 0
C79: 화학물질누출·접촉 | D79: 1 | E79: 0 | F79: 1 | G79: 0 | H79: 0 | I79: 0 | J79: 0 | K79: 0 | L79: 0 | M79: 0 | N79: 0 | O79: 0 | P79: 0 | Q79: 0 | R79: 0 | S79: 0 | T79: 0 | U79: 0 | V79: 0 | W79: 0 | X79: 0 | Y79: 0 | Z79: 0 | AA79: 0 | AB79: 4 | AC79: 0 | AD79: 0 | AE79: 0 | AF79: 1 | AG79: 0 | AH79: 0 | AI79: 0 | AJ79: 0 | AK79: 0 | AL79: 3 | AM79: 0
C80: 사업장외 교통사고 | D80: 0 | E80: 0 | F80: 0 | G80: 0 | H80: 0 | I80: 0 | J80: 0 | K80: 0 | L80: 0 | M80: 0 | N80: 0 | O80: 0 | P80: 1 | Q80: 0 | R80: 1 | S80: 0 | T80: 0 | U80: 0 | V80: 0 | W80: 0 | X80: 0 | Y80: 0 | Z80: 0 | AA80: 0 | AB80: 0 | AC80: 0 | AD80: 0 | AE80: 0 | AF80: 0 | AG80: 0 | AH80: 0 | AI80: 0 | AJ80: 0 | AK80: 0 | AL80: 0 | AM80: 0
C81: 물리적인자 | D81: 0 | E81: 0 | F81: 0 | G81: 0 | H81: 0 | I81: 0 | J81: 0 | K81: 0 | L81: 0 | M81: 0 | N81: 0 | O81: 0 | P81: 0 | Q81: 0 | R81: 0 | S81: 0 | T81: 0 | U81: 0 | V81: 0 | W81: 0 | X81: 0 | Y81: 0 | Z81: 0 | AA81: 0 | AB81: 0 | AC81: 0 | AD81: 0 | AE81: 0 | AF81: 0 | AG81: 0 | AH81: 0 | AI81: 0 | AJ81: 0 | AK81: 0 | AL81: 0 | AM81: 0
C82: 뇌심혈관질환 | D82: 0 | E82: 0 | F82: 0 | G82: 0 | H82: 0 | I82: 0 | J82: 0 | K82: 0 | L82: 0 | M82: 0 | N82: 0 | O82: 0 | P82: 0 | Q82: 0 | R82: 0 | S82: 0 | T82: 0 | U82: 0 | V82: 0 | W82: 0 | X82: 0 | Y82: 0 | Z82: 0 | AA82: 0 | AB82: 0 | AC82: 0 | AD82: 0 | AE82: 0 | AF82: 0 | AG82: 0 | AH82: 0 | AI82: 0 | AJ82: 0 | AK82: 0 | AL82: 0 | AM82: 0
C83: 근골격계질환 | D83: 0 | E83: 0 | F83: 0 | G83: 0 | H83: 0 | I83: 0 | J83: 0 | K83: 0 | L83: 0 | M83: 0 | N83: 0 | O83: 0 | P83: 0 | Q83: 0 | R83: 0 | S83: 0 | T83: 0 | U83: 0 | V83: 0 | W83: 0 | X83: 0 | Y83: 0 | Z83: 0 | AA83: 0 | AB83: 0 | AC83: 0 | AD83: 0 | AE83: 0 | AF83: 0 | AG83: 0 | AH83: 0 | AI83: 0 | AJ83: 0 | AK83: 0 | AL83: 0 | AM83: 0
B84: 의약품·화장품·연탄·석유제품제조업 | C84: 합계 | D84: 0 | E84: 0 | F84: 0 | G84: 0 | H84: 0 | I84: 0 | J84: 0 | K84: 0 | L84: 0 | M84: 0 | N84: 0 | O84: 0 | P84: 3 | Q84: 0 | R84: 0 | S84: 0 | T84: 1 | U84: 0 | V84: 1 | W84: 0 | X84: 1 | Y84: 0 | Z84: 0 | AA84: 0 | AB84: 0 | AC84: 0 | AD84: 0 | AE84: 0 | AF84: 0 | AG84: 0 | AH84: 0 | AI84: 0 | AJ84: 0 | AK84: 0 | AL84: 0 | AM84: 0
C85: 떨어짐(높이가 있는 곳에서 사람이 떨어짐) | D85: 0 | E85: 0 | F85: 0 | G85: 0 | H85: 0 | I85: 0 | J85: 0 | K85: 0 | L85: 0 | M85: 0 | N85: 0 | O85: 0 | P85: 1 | Q85: 0 | R85: 0 | S85: 0 | T85: 0 | U85: 0 | V85: 1 | W85: 0 | X85: 0 | Y85: 0 | Z85: 0 | AA85: 0 | AB85: 0 | AC85: 0 | AD85: 0 | AE85: 0 | AF85: 0 | AG85: 0 | AH85: 0 | AI85: 0 | AJ85: 0 | AK85: 0 | AL85: 0 | AM85: 0
C86: 끼임(기계설비에 끼이거나 감김) | D86: 0 | E86: 0 | F86: 0 | G86: 0 | H86: 0 | I86: 0 | J86: 0 | K86: 0 | L86: 0 | M86: 0 | N86: 0 | O86: 0 | P86: 2 | Q86: 0 | R86: 0 | S86: 0 | T86: 1 | U86: 0 | V86: 0 | W86: 0 | X86: 1 | Y86: 0 | Z86: 0 | AA86: 0 | AB86: 0 | AC86: 0 | AD86: 0 | AE86: 0 | AF86: 0 | AG86: 0 | AH86: 0 | AI86: 0 | AJ86: 0 | AK86: 0 | AL86: 0 | AM86: 0
C87: 물리적인자 | D87: 0 | E87: 0 | F87: 0 | G87: 0 | H87: 0 | I87: 0 | J87: 0 | K87: 0 | L87: 0 | M87: 0 | N87: 0 | O87: 0 | P87: 0 | Q87: 0 | R87: 0 | S87: 0 | T87: 0 | U87: 0 | V87: 0 | W87: 0 | X87: 0 | Y87: 0 | Z87: 0 | AA87: 0 | AB87: 0 | AC87: 0 | AD87: 0 | AE87: 0 | AF87: 0 | AG87: 0 | AH87: 0 | AI87: 0 | AJ87: 0 | AK87: 0 | AL87: 0 | AM87: 0
C88: 직업병기타 | D88: 0 | E88: 0 | F88: 0 | G88: 0 | H88: 0 | I88: 0 | J88: 0 | K88: 0 | L88: 0 | M88: 0 | N88: 0 | O88: 0 | P88: 0 | Q88: 0 | R88: 0 | S88: 0 | T88: 0 | U88: 0 | V88: 0 | W88: 0 | X88: 0 | Y88: 0 | Z88: 0 | AA88: 0 | AB88: 0 | AC88: 0 | AD88: 0 | AE88: 0 | AF88: 0 | AG88: 0 | AH88: 0 | AI88: 0 | AJ88: 0 | AK88: 0 | AL88: 0 | AM88: 0
C89: 화학적인자 | D89: 0 | E89: 0 | F89: 0 | G89: 0 | H89: 0 | I89: 0 | J89: 0 | K89: 0 | L89: 0 | M89: 0 | N89: 0 | O89: 0 | P89: 0 | Q89: 0 | R89: 0 | S89: 0 | T89: 0 | U89: 0 | V89: 0 | W89: 0 | X89: 0 | Y89: 0 | Z89: 0 | AA89: 0 | AB89: 0 | AC89: 0 | AD89: 0 | AE89: 0 | AF89: 0 | AG89: 0 | AH89: 0 | AI89: 0 | AJ89: 0 | AK89: 0 | AL89: 0 | AM89: 0
B90: 기계기구·금속·비금속광물제품제조업 | C90: 합계 | D90: 350 | E90: 2 | F90: 124 | G90: 0 | H90: 89 | I90: 0 | J90: 55 | K90: 2 | L90: 41 | M90: 0 | N90: 41 | O90: 0 | P90: 287 | Q90: 1 | R90: 93 | S90: 1 | T90: 69 | U90: 0 | V90: 54 | W90: 0 | X90: 28 | Y90: 0 | Z90: 43 | AA90: 0 | AB90: 296 | AC90: 1 | AD90: 111 | AE90: 0 | AF90: 70 | AG90: 1 | AH90: 59 | AI90: 0 | AJ90: 32 | AK90: 0 | AL90: 24 | AM90: 0
C91: 떨어짐(높이가 있는 곳에서 사람이 떨어짐) | D91: 18 | E91: 0 | F91: 5 | G91: 0 | H91: 3 | I91: 0 | J91: 4 | K91: 0 | L91: 5 | M91: 0 | N91: 1 | O91: 0 | P91: 18 | Q91: 0 | R91: 6 | S91: 0 | T91: 7 | U91: 0 | V91: 3 | W91: 0 | X91: 0 | Y91: 0 | Z91: 2 | AA91: 0 | AB91: 21 | AC91: 0 | AD91: 9 | AE91: 0 | AF91: 5 | AG91: 0 | AH91: 4 | AI91: 0 | AJ91: 1 | AK91: 0 | AL91: 2 | AM91: 0
C92: 넘어짐(사람이 미끄러지거나 넘어짐) | D92: 32 | E92: 0 | F92: 10 | G92: 0 | H92: 7 | I92: 0 | J92: 5 | K92: 0 | L92: 2 | M92: 0 | N92: 8 | O92: 0 | P92: 25 | Q92: 0 | R92: 9 | S92: 0 | T92: 8 | U92: 0 | V92: 2 | W92: 0 | X92: 1 | Y92: 0 | Z92: 5 | AA92: 0 | AB92: 30 | AC92: 1 | AD92: 4 | AE92: 0 | AF92: 10 | AG92: 1 | AH92: 9 | AI92: 0 | AJ92: 4 | AK92: 0 | AL92: 3 | AM92: 0
C93: 깔림·뒤집힘(물체의 쓰러짐이나 뒤집힘) | D93: 13 | E93: 0 | F93: 7 | G93: 0 | H93: 2 | I93: 0 | J93: 0 | K93: 0 | L93: 2 | M93: 0 | N93: 2 | O93: 0 | P93: 12 | Q93: 0 | R93: 3 | S93: 0 | T93: 4 | U93: 0 | V93: 1 | W93: 0 | X93: 2 | Y93: 0 | Z93: 2 | AA93: 0 | AB93: 16 | AC93: 0 | AD93: 5 | AE93: 0 | AF93: 5 | AG93: 0 | AH93: 2 | AI93: 0 | AJ93: 0 | AK93: 0 | AL93: 4 | AM93: 0
C94: 부딪힘(물체에 부딪힘) | D94: 24 | E94: 0 | F94: 10 | G94: 0 | H94: 5 | I94: 0 | J94: 4 | K94: 0 | L94: 4 | M94: 0 | N94: 1 | O94: 0 | P94: 24 | Q94: 0 | R94: 7 | S94: 0 | T94: 6 | U94: 0 | V94: 5 | W94: 0 | X94: 4 | Y94: 0 | Z94: 2 | AA94: 0 | AB94: 26 | AC94: 0 | AD94: 8 | AE94: 0 | AF94: 5 | AG94: 0 | AH94: 7 | AI94: 0 | AJ94: 3 | AK94: 0 | AL94: 3 | AM94: 0
C95: 물체에 맞음(날아오거나 떨어진 물체에 맞음) | D95: 43 | E95: 0 | F95: 16 | G95: 0 | H95: 12 | I95: 0 | J95: 7 | K95: 0 | L95: 5 | M95: 0 | N95: 3 | O95: 0 | P95: 32 | Q95: 1 | R95: 11 | S95: 1 | T95: 7 | U95: 0 | V95: 8 | W95: 0 | X95: 2 | Y95: 0 | Z95: 4 | AA95: 0 | AB95: 28 | AC95: 0 | AD95: 13 | AE95: 0 | AF95: 8 | AG95: 0 | AH95: 4 | AI95: 0 | AJ95: 1 | AK95: 0 | AL95: 2 | AM95: 0
C96: 무너짐(건축물이나 쌓여진 물체가 무너짐) | D96: 3 | E96: 0 | F96: 0 | G96: 0 | H96: 2 | I96: 0 | J96: 1 | K96: 0 | L96: 0 | M96: 0 | N96: 0 | O96: 0 | P96: 0 | Q96: 0 | R96: 0 | S96: 0 | T96: 0 | U96: 0 | V96: 0 | W96: 0 | X96: 0 | Y96: 0 | Z96: 0 | AA96: 0 | AB96: 0 | AC96: 0 | AD96: 0 | AE96: 0 | AF96: 0 | AG96: 0 | AH96: 0 | AI96: 0 | AJ96: 0 | AK96: 0 | AL96: 0 | AM96: 0
C97: 끼임(기계설비에 끼이거나 감김) | D97: 152 | E97: 2 | F97: 54 | G97: 0 | H97: 40 | I97: 0 | J97: 27 | K97: 2 | L97: 16 | M97: 0 | N97: 15 | O97: 0 | P97: 119 | Q97: 0 | R97: 41 | S97: 0 | T97: 20 | U97: 0 | V97: 24 | W97: 0 | X97: 16 | Y97: 0 | Z97: 18 | AA97: 0 | AB97: 123 | AC97: 0 | AD97: 51 | AE97: 0 | AF97: 26 | AG97: 0 | AH97: 24 | AI97: 0 | AJ97: 17 | AK97: 0 | AL97: 5 | AM97: 0
C98: 절단·베임·찔림 | D98: 31 | E98: 0 | F98: 8 | G98: 0 | H98: 13 | I98: 0 | J98: 3 | K98: 0 | L98: 5 | M98: 0 | N98: 2 | O98: 0 | P98: 20 | Q98: 0 | R98: 3 | S98: 0 | T98: 7 | U98: 0 | V98: 4 | W98: 0 | X98: 1 | Y98: 0 | Z98: 5 | AA98: 0 | AB98: 24 | AC98: 0 | AD98: 10 | AE98: 0 | AF98: 4 | AG98: 0 | AH98: 4 | AI98: 0 | AJ98: 3 | AK98: 0 | AL98: 3 | AM98: 0
C99: 폭발·파열 | D99: 3 | E99: 0 | F99: 1 | G99: 0 | H99: 0 | I99: 0 | J99: 2 | K99: 0 | L99: 0 | M99: 0 | N99: 0 | O99: 0 | P99: 1 | Q99: 0 | R99: 0 | S99: 0 | T99: 0 | U99: 0 | V99: 1 | W99: 0 | X99: 0 | Y99: 0 | Z99: 0 | AA99: 0 | AB99: 1 | AC99: 0 | AD99: 1 | AE99: 0 | AF99: 0 | AG99: 0 | AH99: 0 | AI99: 0 | AJ99: 0 | AK99: 0 | AL99: 0 | AM99: 0
C100: 화재 | D100: 2 | E100: 0 | F100: 1 | G100: 0 | H100: 0 | I100: 0 | J100: 0 | K100: 0 | L100: 0 | M100: 0 | N100: 1 | O100: 0 | P100: 3 | Q100: 0 | R100: 2 | S100: 0 | T100: 1 | U100: 0 | V100: 0 | W100: 0 | X100: 0 | Y100: 0 | Z100: 0 | AA100: 0 | AB100: 1 | AC100: 0 | AD100: 0 | AE100: 0 | AF100: 0 | AG100: 0 | AH100: 1 | AI100: 0 | AJ100: 0 | AK100: 0 | AL100: 0 | AM100: 0
C101: 불균형 및 무리한 동작 | D101: 7 | E101: 0 | F101: 2 | G101: 0 | H101: 0 | I101: 0 | J101: 2 | K101: 0 | L101: 0 | M101: 0 | N101: 3 | O101: 0 | P101: 14 | Q101: 0 | R101: 4 | S101: 0 | T101: 6 | U101: 0 | V101: 2 | W101: 0 | X101: 1 | Y101: 0 | Z101: 1 | AA101: 0 | AB101: 8 | AC101: 0 | AD101: 3 | AE101: 0 | AF101: 2 | AG101: 0 | AH101: 1 | AI101: 0 | AJ101: 2 | AK101: 0 | AL101: 0 | AM101: 0
C102: 이상온도 접촉 | D102: 13 | E102: 0 | F102: 7 | G102: 0 | H102: 3 | I102: 0 | J102: 0 | K102: 0 | L102: 1 | M102: 0 | N102: 2 | O102: 0 | P102: 12 | Q102: 0 | R102: 7 | S102: 0 | T102: 1 | U102: 0 | V102: 2 | W102: 0 | X102: 0 | Y102: 0 | Z102: 2 | AA102: 0 | AB102: 10 | AC102: 0 | AD102: 6 | AE102: 0 | AF102: 1 | AG102: 0 | AH102: 1 | AI102: 0 | AJ102: 1 | AK102: 0 | AL102: 1 | AM102: 0
C103: 화학물질누출·접촉 | D103: 5 | E103: 0 | F103: 2 | G103: 0 | H103: 1 | I103: 0 | J103: 0 | K103: 0 | L103: 0 | M103: 0 | N103: 2 | O103: 0 | P103: 5 | Q103: 0 | R103: 0 | S103: 0 | T103: 1 | U103: 0 | V103: 1 | W103: 0 | X103: 1 | Y103: 0 | Z103: 2 | AA103: 0 | AB103: 4 | AC103: 0 | AD103: 1 | AE103: 0 | AF103: 1 | AG103: 0 | AH103: 1 | AI103: 0 | AJ103: 0 | AK103: 0 | AL103: 1 | AM103: 0
C104: 사업장외 교통사고 | D104: 3 | E104: 0 | F104: 1 | G104: 0 | H104: 1 | I104: 0 | J104: 0 | K104: 0 | L104: 1 | M104: 0 | N104: 0 | O104: 0 | P104: 1 | Q104: 0 | R104: 0 | S104: 0 | T104: 0 | U104: 0 | V104: 1 | W104: 0 | X104: 0 | Y104: 0 | Z104: 0 | AA104: 0 | AB104: 3 | AC104: 0 | AD104: 0 | AE104: 0 | AF104: 2 | AG104: 0 | AH104: 1 | AI104: 0 | AJ104: 0 | AK104: 0 | AL104: 0 | AM104: 0
C105: 체육행사 등의 사고 | D105: 0 | E105: 0 | F105: 0 | G105: 0 | H105: 0 | I105: 0 | J105: 0 | K105: 0 | L105: 0 | M105: 0 | N105: 0 | O105: 0 | P105: 1 | Q105: 0 | R105: 0 | S105: 0 | T105: 1 | U105: 0 | V105: 0 | W105: 0 | X105: 0 | Y105: 0 | Z105: 0 | AA105: 0 | AB105: 0 | AC105: 0 | AD105: 0 | AE105: 0 | AF105: 0 | AG105: 0 | AH105: 0 | AI105: 0 | AJ105: 0 | AK105: 0 | AL105: 0 | AM105: 0
C106: 폭력행위 | D106: 1 | E106: 0 | F106: 0 | G106: 0 | H106: 0 | I106: 0 | J106: 0 | K106: 0 | L106: 0 | M106: 0 | N106: 1 | O106: 0 | P106: 0 | Q106: 0 | R106: 0 | S106: 0 | T106: 0 | U106: 0 | V106: 0 | W106: 0 | X106: 0 | Y106: 0 | Z106: 0 | AA106: 0 | AB106: 0 | AC106: 0 | AD106: 0 | AE106: 0 | AF106: 0 | AG106: 0 | AH106: 0 | AI106: 0 | AJ106: 0 | AK106: 0 | AL106: 0 | AM106: 0
C107: 동물상해 | D107: 0 | E107: 0 | F107: 0 | G107: 0 | H107: 0 | I107: 0 | J107: 0 | K107: 0 | L107: 0 | M107: 0 | N107: 0 | O107: 0 | P107: 0 | Q107: 0 | R107: 0 | S107: 0 | T107: 0 | U107: 0 | V107: 0 | W107: 0 | X107: 0 | Y107: 0 | Z107: 0 | AA107: 0 | AB107: 1 | AC107: 0 | AD107: 0 | AE107: 0 | AF107: 1 | AG107: 0 | AH107: 0 | AI107: 0 | AJ107: 0 | AK107: 0 | AL107: 0 | AM107: 0
C108: 물리적인자 | D108: 0 | E108: 0 | F108: 0 | G108: 0 | H108: 0 | I108: 0 | J108: 0 | K108: 0 | L108: 0 | M108: 0 | N108: 0 | O108: 0 | P108: 0 | Q108: 0 | R108: 0 | S108: 0 | T108: 0 | U108: 0 | V108: 0 | W108: 0 | X108: 0 | Y108: 0 | Z108: 0 | AA108: 0 | AB108: 0 | AC108: 0 | AD108: 0 | AE108: 0 | AF108: 0 | AG108: 0 | AH108: 0 | AI108: 0 | AJ108: 0 | AK108: 0 | AL108: 0 | AM108: 0
C109: 화학적인자 | D109: 0 | E109: 0 | F109: 0 | G109: 0 | H109: 0 | I109: 0 | J109: 0 | K109: 0 | L109: 0 | M109: 0 | N109: 0 | O109: 0 | P109: 0 | Q109: 0 | R109: 0 | S109: 0 | T109: 0 | U109: 0 | V109: 0 | W109: 0 | X109: 0 | Y109: 0 | Z109: 0 | AA109: 0 | AB109: 0 | AC109: 0 | AD109: 0 | AE109: 0 | AF109: 0 | AG109: 0 | AH109: 0 | AI109: 0 | AJ109: 0 | AK109: 0 | AL109: 0 | AM109: 0
C110: 직업병기타 | D110: 0 | E110: 0 | F110: 0 | G110: 0 | H110: 0 | I110: 0 | J110: 0 | K110: 0 | L110: 0 | M110: 0 | N110: 0 | O110: 0 | P110: 0 | Q110: 0 | R110: 0 | S110: 0 | T110: 0 | U110: 0 | V110: 0 | W110: 0 | X110: 0 | Y110: 0 | Z110: 0 | AA110: 0 | AB110: 0 | AC110: 0 | AD110: 0 | AE110: 0 | AF110: 0 | AG110: 0 | AH110: 0 | AI110: 0 | AJ110: 0 | AK110: 0 | AL110: 0 | AM110: 0
C111: 화학적인자 | D111: 0 | E111: 0 | F111: 0 | G111: 0 | H111: 0 | I111: 0 | J111: 0 | K111: 0 | L111: 0 | M111: 0 | N111: 0 | O111: 0 | P111: 0 | Q111: 0 | R111: 0 | S111: 0 | T111: 0 | U111: 0 | V111: 0 | W111: 0 | X111: 0 | Y111: 0 | Z111: 0 | AA111: 0 | AB111: 0 | AC111: 0 | AD111: 0 | AE111: 0 | AF111: 0 | AG111: 0 | AH111: 0 | AI111: 0 | AJ111: 0 | AK111: 0 | AL111: 0 | AM111: 0
C112: 뇌심혈관질환 | D112: 0 | E112: 0 | F112: 0 | G112: 0 | H112: 0 | I112: 0 | J112: 0 | K112: 0 | L112: 0 | M112: 0 | N112: 0 | O112: 0 | P112: 0 | Q112: 0 | R112: 0 | S112: 0 | T112: 0 | U112: 0 | V112: 0 | W112: 0 | X112: 0 | Y112: 0 | Z112: 0 | AA112: 0 | AB112: 0 | AC112: 0 | AD112: 0 | AE112: 0 | AF112: 0 | AG112: 0 | AH112: 0 | AI112: 0 | AJ112: 0 | AK112: 0 | AL112: 0 | AM112: 0
C113: 근골격계질환 | D113: 0 | E113: 0 | F113: 0 | G113: 0 | H113: 0 | I113: 0 | J113: 0 | K113: 0 | L113: 0 | M113: 0 | N113: 0 | O113: 0 | P113: 0 | Q113: 0 | R113: 0 | S113: 0 | T113: 0 | U113: 0 | V113: 0 | W113: 0 | X113: 0 | Y113: 0 | Z113: 0 | AA113: 0 | AB113: 0 | AC113: 0 | AD113: 0 | AE113: 0 | AF113: 0 | AG113: 0 | AH113: 0 | AI113: 0 | AJ113: 0 | AK113: 0 | AL113: 0 | AM113: 0
C114: 작업관련성질환 기타 | D114: 0 | E114: 0 | F114: 0 | G114: 0 | H114: 0 | I114: 0 | J114: 0 | K114: 0 | L114: 0 | M114: 0 | N114: 0 | O114: 0 | P114: 0 | Q114: 0 | R114: 0 | S114: 0 | T114: 0 | U114: 0 | V114: 0 | W114: 0 | X114: 0 | Y114: 0 | Z114: 0 | AA114: 0 | AB114: 0 | AC114: 0 | AD114: 0 | AE114: 0 | AF114: 0 | AG114: 0 | AH114: 0 | AI114: 0 | AJ114: 0 | AK114: 0 | AL114: 0 | AM114: 0
B115: 전기기계기구·정밀기구·전자제품제조업 | C115: 합계 | D115: 20 | E115: 0 | F115: 6 | G115: 0 | H115: 5 | I115: 0 | J115: 4 | K115: 0 | L115: 0 | M115: 0 | N115: 5 | O115: 0 | P115: 25 | Q115: 0 | R115: 8 | S115: 0 | T115: 6 | U115: 0 | V115: 6 | W115: 0 | X115: 2 | Y115: 0 | Z115: 3 | AA115: 0 | AB115: 17 | AC115: 0 | AD115: 7 | AE115: 0 | AF115: 1 | AG115: 0 | AH115: 5 | AI115: 0 | AJ115: 2 | AK115: 0 | AL115: 2 | AM115: 0
C116: 떨어짐(높이가 있는 곳에서 사람이 떨어짐) | D116: 4 | E116: 0 | F116: 2 | G116: 0 | H116: 1 | I116: 0 | J116: 1 | K116: 0 | L116: 0 | M116: 0 | N116: 0 | O116: 0 | P116: 3 | Q116: 0 | R116: 0 | S116: 0 | T116: 0 | U116: 0 | V116: 1 | W116: 0 | X116: 1 | Y116: 0 | Z116: 1 | AA116: 0 | AB116: 1 | AC116: 0 | AD116: 1 | AE116: 0 | AF116: 0 | AG116: 0 | AH116: 0 | AI116: 0 | AJ116: 0 | AK116: 0 | AL116: 0 | AM116: 0
C117: 넘어짐(사람이 미끄러지거나 넘어짐) | D117: 2 | E117: 0 | F117: 1 | G117: 0 | H117: 0 | I117: 0 | J117: 0 | K117: 0 | L117: 0 | M117: 0 | N117: 1 | O117: 0 | P117: 4 | Q117: 0 | R117: 3 | S117: 0 | T117: 1 | U117: 0 | V117: 0 | W117: 0 | X117: 0 | Y117: 0 | Z117: 0 | AA117: 0 | AB117: 5 | AC117: 0 | AD117: 3 | AE117: 0 | AF117: 0 | AG117: 0 | AH117: 1 | AI117: 0 | AJ117: 1 | AK117: 0 | AL117: 0 | AM117: 0
C118: 깔림·뒤집힘(물체의 쓰러짐이나 뒤집힘) | D118: 1 | E118: 0 | F118: 1 | G118: 0 | H118: 0 | I118: 0 | J118: 0 | K118: 0 | L118: 0 | M118: 0 | N118: 0 | O118: 0 | P118: 0 | Q118: 0 | R118: 0 | S118: 0 | T118: 0 | U118: 0 | V118: 0 | W118: 0 | X118: 0 | Y118: 0 | Z118: 0 | AA118: 0 | AB118: 0 | AC118: 0 | AD118: 0 | AE118: 0 | AF118: 0 | AG118: 0 | AH118: 0 | AI118: 0 | AJ118: 0 | AK118: 0 | AL118: 0 | AM118: 0
C119: 부딪힘(물체에 부딪힘) | D119: 4 | E119: 0 | F119: 0 | G119: 0 | H119: 1 | I119: 0 | J119: 1 | K119: 0 | L119: 0 | M119: 0 | N119: 2 | O119: 0 | P119: 3 | Q119: 0 | R119: 0 | S119: 0 | T119: 2 | U119: 0 | V119: 1 | W119: 0 | X119: 0 | Y119: 0 | Z119: 0 | AA119: 0 | AB119: 1 | AC119: 0 | AD119: 0 | AE119: 0 | AF119: 1 | AG119: 0 | AH119: 0 | AI119: 0 | AJ119: 0 | AK119: 0 | AL119: 0 | AM119: 0
C120: 물체에 맞음(날아오거나 떨어진 물체에 맞음) | D120: 1 | E120: 0 | F120: 0 | G120: 0 | H120: 1 | I120: 0 | J120: 0 | K120: 0 | L120: 0 | M120: 0 | N120: 0 | O120: 0 | P120: 3 | Q120: 0 | R120: 2 | S120: 0 | T120: 0 | U120: 0 | V120: 1 | W120: 0 | X120: 0 | Y120: 0 | Z120: 0 | AA120: 0 | AB120: 3 | AC120: 0 | AD120: 1 | AE120: 0 | AF120: 0 | AG120: 0 | AH120: 0 | AI120: 0 | AJ120: 0 | AK120: 0 | AL120: 2 | AM120: 0
C121: 끼임(기계설비에 끼이거나 감김) | D121: 6 | E121: 0 | F121: 2 | G121: 0 | H121: 1 | I121: 0 | J121: 2 | K121: 0 | L121: 0 | M121: 0 | N121: 1 | O121: 0 | P121: 7 | Q121: 0 | R121: 1 | S121: 0 | T121: 1 | U121: 0 | V121: 2 | W121: 0 | X121: 1 | Y121: 0 | Z121: 2 | AA121: 0 | AB121: 3 | AC121: 0 | AD121: 2 | AE121: 0 | AF121: 0 | AG121: 0 | AH121: 1 | AI121: 0 | AJ121: 0 | AK121: 0 | AL121: 0 | AM121: 0
C122: 절단·베임·찔림 | D122: 1 | E122: 0 | F122: 0 | G122: 0 | H122: 1 | I122: 0 | J122: 0 | K122: 0 | L122: 0 | M122: 0 | N122: 0 | O122: 0 | P122: 1 | Q122: 0 | R122: 1 | S122: 0 | T122: 0 | U122: 0 | V122: 0 | W122: 0 | X122: 0 | Y122: 0 | Z122: 0 | AA122: 0 | AB122: 1 | AC122: 0 | AD122: 0 | AE122: 0 | AF122: 0 | AG122: 0 | AH122: 1 | AI122: 0 | AJ122: 0 | AK122: 0 | AL122: 0 | AM122: 0
C123: 화재 | D123: 1 | E123: 0 | F123: 0 | G123: 0 | H123: 0 | I123: 0 | J123: 0 | K123: 0 | L123: 0 | M123: 0 | N123: 1 | O123: 0 | P123: 0 | Q123: 0 | R123: 0 | S123: 0 | T123: 0 | U123: 0 | V123: 0 | W123: 0 | X123: 0 | Y123: 0 | Z123: 0 | AA123: 0 | AB123: 0 | AC123: 0 | AD123: 0 | AE123: 0 | AF123: 0 | AG123: 0 | AH123: 0 | AI123: 0 | AJ123: 0 | AK123: 0 | AL123: 0 | AM123: 0
C124: 불균형 및 무리한 동작 | D124: 0 | E124: 0 | F124: 0 | G124: 0 | H124: 0 | I124: 0 | J124: 0 | K124: 0 | L124: 0 | M124: 0 | N124: 0 | O124: 0 | P124: 1 | Q124: 0 | R124: 0 | S124: 0 | T124: 1 | U124: 0 | V124: 0 | W124: 0 | X124: 0 | Y124: 0 | Z124: 0 | AA124: 0 | AB124: 0 | AC124: 0 | AD124: 0 | AE124: 0 | AF124: 0 | AG124: 0 | AH124: 0 | AI124: 0 | AJ124: 0 | AK124: 0 | AL124: 0 | AM124: 0
C125: 이상온도 접촉 | D125: 0 | E125: 0 | F125: 0 | G125: 0 | H125: 0 | I125: 0 | J125: 0 | K125: 0 | L125: 0 | M125: 0 | N125: 0 | O125: 0 | P125: 2 | Q125: 0 | R125: 1 | S125: 0 | T125: 1 | U125: 0 | V125: 0 | W125: 0 | X125: 0 | Y125: 0 | Z125: 0 | AA125: 0 | AB125: 0 | AC125: 0 | AD125: 0 | AE125: 0 | AF125: 0 | AG125: 0 | AH125: 0 | AI125: 0 | AJ125: 0 | AK125: 0 | AL125: 0 | AM125: 0
C126: 사업장외 교통사고 | D126: 0 | E126: 0 | F126: 0 | G126: 0 | H126: 0 | I126: 0 | J126: 0 | K126: 0 | L126: 0 | M126: 0 | N126: 0 | O126: 0 | P126: 1 | Q126: 0 | R126: 0 | S126: 0 | T126: 0 | U126: 0 | V126: 1 | W126: 0 | X126: 0 | Y126: 0 | Z126: 0 | AA126: 0 | AB126: 1 | AC126: 0 | AD126: 0 | AE126: 0 | AF126: 0 | AG126: 0 | AH126: 1 | AI126: 0 | AJ126: 0 | AK126: 0 | AL126: 0 | AM126: 0
C127: 체육행사 등의 사고 | D127: 0 | E127: 0 | F127: 0 | G127: 0 | H127: 0 | I127: 0 | J127: 0 | K127: 0 | L127: 0 | M127: 0 | N127: 0 | O127: 0 | P127: 0 | Q127: 0 | R127: 0 | S127: 0 | T127: 0 | U127: 0 | V127: 0 | W127: 0 | X127: 0 | Y127: 0 | Z127: 0 | AA127: 0 | AB127: 2 | AC127: 0 | AD127: 0 | AE127: 0 | AF127: 0 | AG127: 0 | AH127: 1 | AI127: 0 | AJ127: 1 | AK127: 0 | AL127: 0 | AM127: 0
C128: 물리적인자 | D128: 0 | E128: 0 | F128: 0 | G128: 0 | H128: 0 | I128: 0 | J128: 0 | K128: 0 | L128: 0 | M128: 0 | N128: 0 | O128: 0 | P128: 0 | Q128: 0 | R128: 0 | S128: 0 | T128: 0 | U128: 0 | V128: 0 | W128: 0 | X128: 0 | Y128: 0 | Z128: 0 | AA128: 0 | AB128: 0 | AC128: 0 | AD128: 0 | AE128: 0 | AF128: 0 | AG128: 0 | AH128: 0 | AI128: 0 | AJ128: 0 | AK128: 0 | AL128: 0 | AM128: 0
C129: 화학적인자 | D129: 0 | E129: 0 | F129: 0 | G129: 0 | H129: 0 | I129: 0 | J129: 0 | K129: 0 | L129: 0 | M129: 0 | N129: 0 | O129: 0 | P129: 0 | Q129: 0 | R129: 0 | S129: 0 | T129: 0 | U129: 0 | V129: 0 | W129: 0 | X129: 0 | Y129: 0 | Z129: 0 | AA129: 0 | AB129: 0 | AC129: 0 | AD129: 0 | AE129: 0 | AF129: 0 | AG129: 0 | AH129: 0 | AI129: 0 | AJ129: 0 | AK129: 0 | AL129: 0 | AM129: 0
C130: 뇌심혈관질환 | D130: 0 | E130: 0 | F130: 0 | G130: 0 | H130: 0 | I130: 0 | J130: 0 | K130: 0 | L130: 0 | M130: 0 | N130: 0 | O130: 0 | P130: 0 | Q130: 0 | R130: 0 | S130: 0 | T130: 0 | U130: 0 | V130: 0 | W130: 0 | X130: 0 | Y130: 0 | Z130: 0 | AA130: 0 | AB130: 0 | AC130: 0 | AD130: 0 | AE130: 0 | AF130: 0 | AG130: 0 | AH130: 0 | AI130: 0 | AJ130: 0 | AK130: 0 | AL130: 0 | AM130: 0
C131: 근골격계질환 | D131: 0 | E131: 0 | F131: 0 | G131: 0 | H131: 0 | I131: 0 | J131: 0 | K131: 0 | L131: 0 | M131: 0 | N131: 0 | O131: 0 | P131: 0 | Q131: 0 | R131: 0 | S131: 0 | T131: 0 | U131: 0 | V131: 0 | W131: 0 | X131: 0 | Y131: 0 | Z131: 0 | AA131: 0 | AB131: 0 | AC131: 0 | AD131: 0 | AE131: 0 | AF131: 0 | AG131: 0 | AH131: 0 | AI131: 0 | AJ131: 0 | AK131: 0 | AL131: 0 | AM131: 0
B132: 수제품및기타제품제조업 | C132: 합계 | D132: =SUM(F132,H132,J132,L132,N132) -> 31 | E132: 1 | F132: 8 | G132: 1 | H132: 4 | I132: 0 | J132: 11 | K132: 0 | L132: 6 | M132: 0 | N132: 2 | O132: 0 | P132: =SUM(R132,T132,V132,X132,Z132) -> 29 | Q132: 1 | R132: 12 | S132: 1 | T132: 4 | U132: 0 | V132: 6 | W132: 0 | X132: 2 | Y132: 0 | Z132: 5 | AA132: 0 | AB132: =SUM(AD132,AF132,AH132,AJ132,AL132) -> 32 | AC132: 0 | AD132: 10 | AE132: 0 | AF132: 5 | AG132: 0 | AH132: 4 | AI132: 0 | AJ132: 8 | AK132: 0 | AL132: 5 | AM132: 0
C133: 떨어짐(높이가 있는 곳에서 사람이 떨어짐) | D133: 4 | E133: 0 | F133: 3 | G133: 0 | H133: 0 | I133: 0 | J133: 1 | K133: 0 | L133: 0 | M133: 0 | N133: 0 | O133: 0 | P133: 3 | Q133: 1 | R133: 3 | S133: 1 | T133: 0 | U133: 0 | V133: 0 | W133: 0 | X133: 0 | Y133: 0 | Z133: 0 | AA133: 0 | AB133: 3 | AC133: 0 | AD133: 1 | AE133: 0 | AF133: 1 | AG133: 0 | AH133: 0 | AI133: 0 | AJ133: 1 | AK133: 0 | AL133: 0 | AM133: 0
C134: 넘어짐(사람이 미끄러지거나 넘어짐) | D134: 3 | E134: 0 | F134: 2 | G134: 0 | H134: 1 | I134: 0 | J134: 0 | K134: 0 | L134: 0 | M134: 0 | N134: 0 | O134: 0 | P134: 5 | Q134: 0 | R134: 1 | S134: 0 | T134: 1 | U134: 0 | V134: 2 | W134: 0 | X134: 0 | Y134: 0 | Z134: 1 | AA134: 0 | AB134: 2 | AC134: 0 | AD134: 1 | AE134: 0 | AF134: 0 | AG134: 0 | AH134: 1 | AI134: 0 | AJ134: 0 | AK134: 0 | AL134: 0 | AM134: 0
C135: 부딪힘(물체에 부딪힘) | D135: 4 | E135: 1 | F135: 1 | G135: 1 | H135: 0 | I135: 0 | J135: 3 | K135: 0 | L135: 0 | M135: 0 | N135: 0 | O135: 0 | P135: 3 | Q135: 0 | R135: 0 | S135: 0 | T135: 1 | U135: 0 | V135: 1 | W135: 0 | X135: 0 | Y135: 0 | Z135: 1 | AA135: 0 | AB135: 4 | AC135: 0 | AD135: 1 | AE135: 0 | AF135: 0 | AG135: 0 | AH135: 2 | AI135: 0 | AJ135: 1 | AK135: 0 | AL135: 0 | AM135: 0
C136: 물체에 맞음(날아오거나 떨어진 물체에 맞음) | D136: 2 | E136: 0 | F136: 0 | G136: 0 | H136: 1 | I136: 0 | J136: 0 | K136: 0 | L136: 1 | M136: 0 | N136: 0 | O136: 0 | P136: 3 | Q136: 0 | R136: 0 | S136: 0 | T136: 1 | U136: 0 | V136: 1 | W136: 0 | X136: 1 | Y136: 0 | Z136: 0 | AA136: 0 | AB136: 3 | AC136: 0 | AD136: 1 | AE136: 0 | AF136: 0 | AG136: 0 | AH136: 0 | AI136: 0 | AJ136: 1 | AK136: 0 | AL136: 1 | AM136: 0
C137: 끼임(기계설비에 끼이거나 감김) | D137: 6 | E137: 0 | F137: 1 | G137: 0 | H137: 1 | I137: 0 | J137: 3 | K137: 0 | L137: 0 | M137: 0 | N137: 1 | O137: 0 | P137: 8 | Q137: 0 | R137: 6 | S137: 0 | T137: 0 | U137: 0 | V137: 1 | W137: 0 | X137: 0 | Y137: 0 | Z137: 1 | AA137: 0 | AB137: 5 | AC137: 0 | AD137: 1 | AE137: 0 | AF137: 0 | AG137: 0 | AH137: 0 | AI137: 0 | AJ137: 3 | AK137: 0 | AL137: 1 | AM137: 0
C138: 절단·베임·찔림 | D138: 9 | E138: 0 | F138: 0 | G138: 0 | H138: 0 | I138: 0 | J138: 4 | K138: 0 | L138: 5 | M138: 0 | N138: 0 | O138: 0 | P138: 3 | Q138: 0 | R138: 1 | S138: 0 | T138: 1 | U138: 0 | V138: 1 | W138: 0 | X138: 0 | Y138: 0 | Z138: 0 | AA138: 0 | AB138: 8 | AC138: 0 | AD138: 3 | AE138: 0 | AF138: 1 | AG138: 0 | AH138: 1 | AI138: 0 | AJ138: 1 | AK138: 0 | AL138: 2 | AM138: 0
C139: 폭발·파열 | D139: 0 | E139: 0 | F139: 0 | G139: 0 | H139: 0 | I139: 0 | J139: 0 | K139: 0 | L139: 0 | M139: 0 | N139: 0 | O139: 0 | P139: 1 | Q139: 0 | R139: 0 | S139: 0 | T139: 0 | U139: 0 | V139: 0 | W139: 0 | X139: 1 | Y139: 0 | Z139: 0 | AA139: 0 | AB139: 0 | AC139: 0 | AD139: 0 | AE139: 0 | AF139: 0 | AG139: 0 | AH139: 0 | AI139: 0 | AJ139: 0 | AK139: 0 | AL139: 0 | AM139: 0
C140: 불균형 및 무리한 동작 | D140: 2 | E140: 0 | F140: 1 | G140: 0 | H140: 1 | I140: 0 | J140: 0 | K140: 0 | L140: 0 | M140: 0 | N140: 0 | O140: 0 | P140: 1 | Q140: 0 | R140: 0 | S140: 0 | T140: 0 | U140: 0 | V140: 0 | W140: 0 | X140: 0 | Y140: 0 | Z140: 1 | AA140: 0 | AB140: 3 | AC140: 0 | AD140: 0 | AE140: 0 | AF140: 1 | AG140: 0 | AH140: 0 | AI140: 0 | AJ140: 1 | AK140: 0 | AL140: 1 | AM140: 0
C141: 이상온도 접촉 | D141: 0 | E141: 0 | F141: 0 | G141: 0 | H141: 0 | I141: 0 | J141: 0 | K141: 0 | L141: 0 | M141: 0 | N141: 0 | O141: 0 | P141: 0 | Q141: 0 | R141: 0 | S141: 0 | T141: 0 | U141: 0 | V141: 0 | W141: 0 | X141: 0 | Y141: 0 | Z141: 0 | AA141: 0 | AB141: 2 | AC141: 0 | AD141: 1 | AE141: 0 | AF141: 1 | AG141: 0 | AH141: 0 | AI141: 0 | AJ141: 0 | AK141: 0 | AL141: 0 | AM141: 0
C142: 화학물질누출·접촉 | D142: 1 | E142: 0 | F142: 0 | G142: 0 | H142: 0 | I142: 0 | J142: 0 | K142: 0 | L142: 0 | M142: 0 | N142: 1 | O142: 0 | P142: 0 | Q142: 0 | R142: 0 | S142: 0 | T142: 0 | U142: 0 | V142: 0 | W142: 0 | X142: 0 | Y142: 0 | Z142: 0 | AA142: 0 | AB142: 0 | AC142: 0 | AD142: 0 | AE142: 0 | AF142: 0 | AG142: 0 | AH142: 0 | AI142: 0 | AJ142: 0 | AK142: 0 | AL142: 0 | AM142: 0
C143: 사업장외 교통사고 | D143: 0 | E143: 0 | F143: 0 | G143: 0 | H143: 0 | I143: 0 | J143: 0 | K143: 0 | L143: 0 | M143: 0 | N143: 0 | O143: 0 | P143: 1 | Q143: 0 | R143: 1 | S143: 0 | T143: 0 | U143: 0 | V143: 0 | W143: 0 | X143: 0 | Y143: 0 | Z143: 0 | AA143: 0 | AB143: 0 | AC143: 0 | AD143: 0 | AE143: 0 | AF143: 0 | AG143: 0 | AH143: 0 | AI143: 0 | AJ143: 0 | AK143: 0 | AL143: 0 | AM143: 0
C144: 체육행사 등의 사고 | D144: 0 | E144: 0 | F144: 0 | G144: 0 | H144: 0 | I144: 0 | J144: 0 | K144: 0 | L144: 0 | M144: 0 | N144: 0 | O144: 0 | P144: 0 | Q144: 0 | R144: 0 | S144: 0 | T144: 0 | U144: 0 | V144: 0 | W144: 0 | X144: 0 | Y144: 0 | Z144: 0 | AA144: 0 | AB144: 2 | AC144: 0 | AD144: 1 | AE144: 0 | AF144: 1 | AG144: 0 | AH144: 0 | AI144: 0 | AJ144: 0 | AK144: 0 | AL144: 0 | AM144: 0
C145: 물리적인자 | D145: 0 | E145: 0 | F145: 0 | G145: 0 | H145: 0 | I145: 0 | J145: 0 | K145: 0 | L145: 0 | M145: 0 | N145: 0 | O145: 0 | P145: 0 | Q145: 0 | R145: 0 | S145: 0 | T145: 0 | U145: 0 | V145: 0 | W145: 0 | X145: 0 | Y145: 0 | Z145: 0 | AA145: 0 | AB145: 0 | AC145: 0 | AD145: 0 | AE145: 0 | AF145: 0 | AG145: 0 | AH145: 0 | AI145: 0 | AJ145: 0 | AK145: 0 | AL145: 0 | AM145: 0
C146: 직업병기타 | D146: 0 | E146: 0 | F146: 0 | G146: 0 | H146: 0 | I146: 0 | J146: 0 | K146: 0 | L146: 0 | M146: 0 | N146: 0 | O146: 0 | P146: 0 | Q146: 0 | R146: 0 | S146: 0 | T146: 0 | U146: 0 | V146: 0 | W146: 0 | X146: 0 | Y146: 0 | Z146: 0 | AA146: 0 | AB146: 0 | AC146: 0 | AD146: 0 | AE146: 0 | AF146: 0 | AG146: 0 | AH146: 0 | AI146: 0 | AJ146: 0 | AK146: 0 | AL146: 0 | AM146: 0
C147: 화학적인자 | D147: 0 | E147: 0 | F147: 0 | G147: 0 | H147: 0 | I147: 0 | J147: 0 | K147: 0 | L147: 0 | M147: 0 | N147: 0 | O147: 0 | P147: 0 | Q147: 0 | R147: 0 | S147: 0 | T147: 0 | U147: 0 | V147: 0 | W147: 0 | X147: 0 | Y147: 0 | Z147: 0 | AA147: 0 | AB147: 0 | AC147: 0 | AD147: 0 | AE147: 0 | AF147: 0 | AG147: 0 | AH147: 0 | AI147: 0 | AJ147: 0 | AK147: 0 | AL147: 0 | AM147: 0
C148: 근골격계질환 | D148: 0 | E148: 0 | F148: 0 | G148: 0 | H148: 0 | I148: 0 | J148: 0 | K148: 0 | L148: 0 | M148: 0 | N148: 0 | O148: 0 | P148: 0 | Q148: 0 | R148: 0 | S148: 0 | T148: 0 | U148: 0 | V148: 0 | W148: 0 | X148: 0 | Y148: 0 | Z148: 0 | AA148: 0 | AB148: 0 | AC148: 0 | AD148: 0 | AE148: 0 | AF148: 0 | AG148: 0 | AH148: 0 | AI148: 0 | AJ148: 0 | AK148: 0 | AL148: 0 | AM148: 0
C149: 분류불능 | D149: 0 | E149: 0 | F149: 0 | G149: 0 | H149: 0 | I149: 0 | J149: 0 | K149: 0 | L149: 0 | M149: 0 | N149: 0 | O149: 0 | P149: 1 | Q149: 0 | R149: 0 | S149: 0 | T149: 0 | U149: 0 | V149: 0 | W149: 0 | X149: 0 | Y149: 0 | Z149: 1 | AA149: 0 | AB149: 0 | AC149: 0 | AD149: 0 | AE149: 0 | AF149: 0 | AG149: 0 | AH149: 0 | AI149: 0 | AJ149: 0 | AK149: 0 | AL149: 0 | AM149: 0
A150: 대구서부 | B150: 합계 | D150: 891 | E150: 6 | F150: 299 | G150: 3 | H150: 195 | I150: 1 | J150: 197 | K150: 0 | L150: 99 | M150: 2 | N150: 101 | O150: 0 | P150: 849 | Q150: 9 | R150: 274 | S150: 1 | T150: 197 | U150: 1 | V150: 165 | W150: 4 | X150: 108 | Y150: 2 | Z150: 105 | AA150: 1 | AB150: 808 | AC150: 7 | AD150: 250 | AE150: 2 | AF150: 181 | AG150: 0 | AH150: 180 | AI150: 2 | AJ150: 103 | AK150: 1 | AL150: 94 | AM150: 2
B151: 식료품제조업 | C151: 합계 | D151: 54 | E151: 0 | F151: 22 | G151: 0 | H151: 13 | I151: 0 | J151: 12 | K151: 0 | L151: 0 | M151: 0 | N151: 7 | O151: 0 | P151: 45 | Q151: 0 | R151: 14 | S151: 0 | T151: 9 | U151: 0 | V151: 13 | W151: 0 | X151: 6 | Y151: 0 | Z151: 3 | AA151: 0 | AB151: 53 | AC151: 0 | AD151: 10 | AE151: 0 | AF151: 12 | AG151: 0 | AH151: 17 | AI151: 0 | AJ151: 5 | AK151: 0 | AL151: 9 | AM151: 0
C152: 떨어짐(높이가 있는 곳에서 사람이 떨어짐) | D152: 3 | E152: 0 | F152: 3 | G152: 0 | H152: 0 | I152: 0 | J152: 0 | K152: 0 | L152: 0 | M152: 0 | N152: 0 | O152: 0 | P152: 2 | Q152: 0 | R152: 0 | S152: 0 | T152: 1 | U152: 0 | V152: 1 | W152: 0 | X152: 0 | Y152: 0 | Z152: 0 | AA152: 0 | AB152: 6 | AC152: 0 | AD152: 2 | AE152: 0 | AF152: 1 | AG152: 0 | AH152: 2 | AI152: 0 | AJ152: 1 | AK152: 0 | AL152: 0 | AM152: 0
C153: 넘어짐(사람이 미끄러지거나 넘어짐) | D153: 9 | E153: 0 | F153: 2 | G153: 0 | H153: 2 | I153: 0 | J153: 3 | K153: 0 | L153: 0 | M153: 0 | N153: 2 | O153: 0 | P153: 11 | Q153: 0 | R153: 3 | S153: 0 | T153: 1 | U153: 0 | V153: 6 | W153: 0 | X153: 1 | Y153: 0 | Z153: 0 | AA153: 0 | AB153: 12 | AC153: 0 | AD153: 1 | AE153: 0 | AF153: 3 | AG153: 0 | AH153: 3 | AI153: 0 | AJ153: 1 | AK153: 0 | AL153: 4 | AM153: 0
C154: 부딪힘(물체에 부딪힘) | D154: 2 | E154: 0 | F154: 1 | G154: 0 | H154: 0 | I154: 0 | J154: 0 | K154: 0 | L154: 0 | M154: 0 | N154: 1 | O154: 0 | P154: 0 | Q154: 0 | R154: 0 | S154: 0 | T154: 0 | U154: 0 | V154: 0 | W154: 0 | X154: 0 | Y154: 0 | Z154: 0 | AA154: 0 | AB154: 3 | AC154: 0 | AD154: 0 | AE154: 0 | AF154: 0 | AG154: 0 | AH154: 2 | AI154: 0 | AJ154: 0 | AK154: 0 | AL154: 1 | AM154: 0
C155: 물체에 맞음(날아오거나 떨어진 물체에 맞음) | D155: 1 | E155: 0 | F155: 0 | G155: 0 | H155: 1 | I155: 0 | J155: 0 | K155: 0 | L155: 0 | M155: 0 | N155: 0 | O155: 0 | P155: 1 | Q155: 0 | R155: 0 | S155: 0 | T155: 1 | U155: 0 | V155: 0 | W155: 0 | X155: 0 | Y155: 0 | Z155: 0 | AA155: 0 | AB155: 1 | AC155: 0 | AD155: 0 | AE155: 0 | AF155: 0 | AG155: 0 | AH155: 0 | AI155: 0 | AJ155: 0 | AK155: 0 | AL155: 1 | AM155: 0
C156: 끼임(기계설비에 끼이거나 감김) | D156: 16 | E156: 0 | F156: 10 | G156: 0 | H156: 4 | I156: 0 | J156: 1 | K156: 0 | L156: 0 | M156: 0 | N156: 1 | O156: 0 | P156: 9 | Q156: 0 | R156: 3 | S156: 0 | T156: 3 | U156: 0 | V156: 1 | W156: 0 | X156: 1 | Y156: 0 | Z156: 1 | AA156: 0 | AB156: 8 | AC156: 0 | AD156: 2 | AE156: 0 | AF156: 2 | AG156: 0 | AH156: 3 | AI156: 0 | AJ156: 0 | AK156: 0 | AL156: 1 | AM156: 0
C157: 절단·베임·찔림 | D157: 14 | E157: 0 | F157: 2 | G157: 0 | H157: 5 | I157: 0 | J157: 5 | K157: 0 | L157: 0 | M157: 0 | N157: 2 | O157: 0 | P157: 13 | Q157: 0 | R157: 5 | S157: 0 | T157: 3 | U157: 0 | V157: 2 | W157: 0 | X157: 1 | Y157: 0 | Z157: 2 | AA157: 0 | AB157: 12 | AC157: 0 | AD157: 2 | AE157: 0 | AF157: 4 | AG157: 0 | AH157: 2 | AI157: 0 | AJ157: 2 | AK157: 0 | AL157: 2 | AM157: 0
C158: 불균형 및 무리한 동작 | D158: 2 | E158: 0 | F158: 1 | G158: 0 | H158: 0 | I158: 0 | J158: 1 | K158: 0 | L158: 0 | M158: 0 | N158: 0 | O158: 0 | P158: 2 | Q158: 0 | R158: 1 | S158: 0 | T158: 0 | U158: 0 | V158: 1 | W158: 0 | X158: 0 | Y158: 0 | Z158: 0 | AA158: 0 | AB158: 1 | AC158: 0 | AD158: 0 | AE158: 0 | AF158: 1 | AG158: 0 | AH158: 0 | AI158: 0 | AJ158: 0 | AK158: 0 | AL158: 0 | AM158: 0
C159: 이상온도 접촉 | D159: 4 | E159: 0 | F159: 3 | G159: 0 | H159: 0 | I159: 0 | J159: 1 | K159: 0 | L159: 0 | M159: 0 | N159: 0 | O159: 0 | P159: 4 | Q159: 0 | R159: 1 | S159: 0 | T159: 0 | U159: 0 | V159: 0 | W159: 0 | X159: 3 | Y159: 0 | Z159: 0 | AA159: 0 | AB159: 9 | AC159: 0 | AD159: 2 | AE159: 0 | AF159: 1 | AG159: 0 | AH159: 5 | AI159: 0 | AJ159: 1 | AK159: 0 | AL159: 0 | AM159: 0
C160: 사업장외 교통사고 | D160: 2 | E160: 0 | F160: 0 | G160: 0 | H160: 1 | I160: 0 | J160: 1 | K160: 0 | L160: 0 | M160: 0 | N160: 0 | O160: 0 | P160: 2 | Q160: 0 | R160: 1 | S160: 0 | T160: 0 | U160: 0 | V160: 1 | W160: 0 | X160: 0 | Y160: 0 | Z160: 0 | AA160: 0 | AB160: 0 | AC160: 0 | AD160: 0 | AE160: 0 | AF160: 0 | AG160: 0 | AH160: 0 | AI160: 0 | AJ160: 0 | AK160: 0 | AL160: 0 | AM160: 0
C161: 체육행사 등의 사고 | D161: 0 | E161: 0 | F161: 0 | G161: 0 | H161: 0 | I161: 0 | J161: 0 | K161: 0 | L161: 0 | M161: 0 | N161: 0 | O161: 0 | P161: 1 | Q161: 0 | R161: 0 | S161: 0 | T161: 0 | U161: 0 | V161: 1 | W161: 0 | X161: 0 | Y161: 0 | Z161: 0 | AA161: 0 | AB161: 0 | AC161: 0 | AD161: 0 | AE161: 0 | AF161: 0 | AG161: 0 | AH161: 0 | AI161: 0 | AJ161: 0 | AK161: 0 | AL161: 0 | AM161: 0
C162: 동물상해 | D162: 1 | E162: 0 | F162: 0 | G162: 0 | H162: 0 | I162: 0 | J162: 0 | K162: 0 | L162: 0 | M162: 0 | N162: 1 | O162: 0 | P162: 0 | Q162: 0 | R162: 0 | S162: 0 | T162: 0 | U162: 0 | V162: 0 | W162: 0 | X162: 0 | Y162: 0 | Z162: 0 | AA162: 0 | AB162: 1 | AC162: 0 | AD162: 1 | AE162: 0 | AF162: 0 | AG162: 0 | AH162: 0 | AI162: 0 | AJ162: 0 | AK162: 0 | AL162: 0 | AM162: 0
C163: 물리적인자 | D163: 0 | E163: 0 | F163: 0 | G163: 0 | H163: 0 | I163: 0 | J163: 0 | K163: 0 | L163: 0 | M163: 0 | N163: 0 | O163: 0 | P163: 0 | Q163: 0 | R163: 0 | S163: 0 | T163: 0 | U163: 0 | V163: 0 | W163: 0 | X163: 0 | Y163: 0 | Z163: 0 | AA163: 0 | AB163: 0 | AC163: 0 | AD163: 0 | AE163: 0 | AF163: 0 | AG163: 0 | AH163: 0 | AI163: 0 | AJ163: 0 | AK163: 0 | AL163: 0 | AM163: 0
C164: 뇌심혈관질환 | D164: 0 | E164: 0 | F164: 0 | G164: 0 | H164: 0 | I164: 0 | J164: 0 | K164: 0 | L164: 0 | M164: 0 | N164: 0 | O164: 0 | P164: 0 | Q164: 0 | R164: 0 | S164: 0 | T164: 0 | U164: 0 | V164: 0 | W164: 0 | X164: 0 | Y164: 0 | Z164: 0 | AA164: 0 | AB164: 0 | AC164: 0 | AD164: 0 | AE164: 0 | AF164: 0 | AG164: 0 | AH164: 0 | AI164: 0 | AJ164: 0 | AK164: 0 | AL164: 0 | AM164: 0
C165: 근골격계질환 | D165: 0 | E165: 0 | F165: 0 | G165: 0 | H165: 0 | I165: 0 | J165: 0 | K165: 0 | L165: 0 | M165: 0 | N165: 0 | O165: 0 | P165: 0 | Q165: 0 | R165: 0 | S165: 0 | T165: 0 | U165: 0 | V165: 0 | W165: 0 | X165: 0 | Y165: 0 | Z165: 0 | AA165: 0 | AB165: 0 | AC165: 0 | AD165: 0 | AE165: 0 | AF165: 0 | AG165: 0 | AH165: 0 | AI165: 0 | AJ165: 0 | AK165: 0 | AL165: 0 | AM165: 0
B166: 섬유및섬유제품제조업 | C166: 합계 | D166: 126 | E166: 1 | F166: 36 | G166: 0 | H166: 22 | I166: 0 | J166: 39 | K166: 0 | L166: 17 | M166: 1 | N166: 12 | O166: 0 | P166: 131 | Q166: 2 | R166: 29 | S166: 0 | T166: 28 | U166: 0 | V166: 33 | W166: 1 | X166: 26 | Y166: 0 | Z166: 15 | AA166: 1 | AB166: 129 | AC166: 3 | AD166: 27 | AE166: 1 | AF166: 31 | AG166: 0 | AH166: 29 | AI166: 0 | AJ166: 24 | AK166: 0 | AL166: 18 | AM166: 2
C167: 떨어짐(높이가 있는 곳에서 사람이 떨어짐) | D167: 15 | E167: 1 | F167: 5 | G167: 0 | H167: 1 | I167: 0 | J167: 3 | K167: 0 | L167: 5 | M167: 1 | N167: 1 | O167: 0 | P167: 21 | Q167: 1 | R167: 6 | S167: 0 | T167: 5 | U167: 0 | V167: 4 | W167: 0 | X167: 4 | Y167: 0 | Z167: 2 | AA167: 1 | AB167: 12 | AC167: 1 | AD167: 4 | AE167: 1 | AF167: 1 | AG167: 0 | AH167: 3 | AI167: 0 | AJ167: 3 | AK167: 0 | AL167: 1 | AM167: 0
C168: 넘어짐(사람이 미끄러지거나 넘어짐) | D168: 25 | E168: 0 | F168: 9 | G168: 0 | H168: 3 | I168: 0 | J168: 8 | K168: 0 | L168: 3 | M168: 0 | N168: 2 | O168: 0 | P168: 13 | Q168: 0 | R168: 2 | S168: 0 | T168: 2 | U168: 0 | V168: 4 | W168: 0 | X168: 4 | Y168: 0 | Z168: 1 | AA168: 0 | AB168: 18 | AC168: 0 | AD168: 3 | AE168: 0 | AF168: 4 | AG168: 0 | AH168: 7 | AI168: 0 | AJ168: 2 | AK168: 0 | AL168: 2 | AM168: 0
C169: 부딪힘(물체에 부딪힘) | D169: 11 | E169: 0 | F169: 2 | G169: 0 | H169: 3 | I169: 0 | J169: 3 | K169: 0 | L169: 1 | M169: 0 | N169: 2 | O169: 0 | P169: 10 | Q169: 0 | R169: 0 | S169: 0 | T169: 2 | U169: 0 | V169: 3 | W169: 0 | X169: 2 | Y169: 0 | Z169: 3 | AA169: 0 | AB169: 18 | AC169: 0 | AD169: 4 | AE169: 0 | AF169: 5 | AG169: 0 | AH169: 5 | AI169: 0 | AJ169: 2 | AK169: 0 | AL169: 2 | AM169: 0
C170: 물체에 맞음(날아오거나 떨어진 물체에 맞음) | D170: 7 | E170: 0 | F170: 4 | G170: 0 | H170: 1 | I170: 0 | J170: 2 | K170: 0 | L170: 0 | M170: 0 | N170: 0 | O170: 0 | P170: 7 | Q170: 0 | R170: 5 | S170: 0 | T170: 1 | U170: 0 | V170: 0 | W170: 0 | X170: 1 | Y170: 0 | Z170: 0 | AA170: 0 | AB170: 6 | AC170: 0 | AD170: 1 | AE170: 0 | AF170: 1 | AG170: 0 | AH170: 1 | AI170: 0 | AJ170: 3 | AK170: 0 | AL170: 0 | AM170: 0
C171: 끼임(기계설비에 끼이거나 감김) | D171: 46 | E171: 0 | F171: 10 | G171: 0 | H171: 11 | I171: 0 | J171: 15 | K171: 0 | L171: 7 | M171: 0 | N171: 3 | O171: 0 | P171: 57 | Q171: 0 | R171: 12 | S171: 0 | T171: 12 | U171: 0 | V171: 15 | W171: 0 | X171: 12 | Y171: 0 | Z171: 6 | AA171: 0 | AB171: 57 | AC171: 1 | AD171: 11 | AE171: 0 | AF171: 19 | AG171: 0 | AH171: 10 | AI171: 0 | AJ171: 8 | AK171: 0 | AL171: 9 | AM171: 1
C172: 절단·베임·찔림 | D172: 9 | E172: 0 | F172: 4 | G172: 0 | H172: 2 | I172: 0 | J172: 2 | K172: 0 | L172: 0 | M172: 0 | N172: 1 | O172: 0 | P172: 9 | Q172: 0 | R172: 2 | S172: 0 | T172: 2 | U172: 0 | V172: 4 | W172: 0 | X172: 0 | Y172: 0 | Z172: 1 | AA172: 0 | AB172: 3 | AC172: 0 | AD172: 1 | AE172: 0 | AF172: 0 | AG172: 0 | AH172: 1 | AI172: 0 | AJ172: 0 | AK172: 0 | AL172: 1 | AM172: 0
C173: 폭발·파열 | D173: 0 | E173: 0 | F173: 0 | G173: 0 | H173: 0 | I173: 0 | J173: 0 | K173: 0 | L173: 0 | M173: 0 | N173: 0 | O173: 0 | P173: 1 | Q173: 1 | R173: 0 | S173: 0 | T173: 0 | U173: 0 | V173: 1 | W173: 1 | X173: 0 | Y173: 0 | Z173: 0 | AA173: 0 | AB173: 2 | AC173: 0 | AD173: 1 | AE173: 0 | AF173: 0 | AG173: 0 | AH173: 1 | AI173: 0 | AJ173: 0 | AK173: 0 | AL173: 0 | AM173: 0
C174: 불균형 및 무리한 동작 | D174: 4 | E174: 0 | F174: 2 | G174: 0 | H174: 0 | I174: 0 | J174: 2 | K174: 0 | L174: 0 | M174: 0 | N174: 0 | O174: 0 | P174: 6 | Q174: 0 | R174: 1 | S174: 0 | T174: 3 | U174: 0 | V174: 1 | W174: 0 | X174: 0 | Y174: 0 | Z174: 1 | AA174: 0 | AB174: 4 | AC174: 0 | AD174: 0 | AE174: 0 | AF174: 1 | AG174: 0 | AH174: 0 | AI174: 0 | AJ174: 2 | AK174: 0 | AL174: 1 | AM174: 0
C175: 이상온도 접촉 | D175: 5 | E175: 0 | F175: 0 | G175: 0 | H175: 0 | I175: 0 | J175: 3 | K175: 0 | L175: 1 | M175: 0 | N175: 1 | O175: 0 | P175: 6 | Q175: 0 | R175: 1 | S175: 0 | T175: 1 | U175: 0 | V175: 1 | W175: 0 | X175: 2 | Y175: 0 | Z175: 1 | AA175: 0 | AB175: 7 | AC175: 1 | AD175: 2 | AE175: 0 | AF175: 0 | AG175: 0 | AH175: 0 | AI175: 0 | AJ175: 3 | AK175: 0 | AL175: 2 | AM175: 1
C176: 화학물질누출·접촉 | D176: 2 | E176: 0 | F176: 0 | G176: 0 | H176: 0 | I176: 0 | J176: 0 | K176: 0 | L176: 0 | M176: 0 | N176: 2 | O176: 0 | P176: 0 | Q176: 0 | R176: 0 | S176: 0 | T176: 0 | U176: 0 | V176: 0 | W176: 0 | X176: 0 | Y176: 0 | Z176: 0 | AA176: 0 | AB176: 0 | AC176: 0 | AD176: 0 | AE176: 0 | AF176: 0 | AG176: 0 | AH176: 0 | AI176: 0 | AJ176: 0 | AK176: 0 | AL176: 0 | AM176: 0
C177: 체육행사 등의 사고 | D177: 0 | E177: 0 | F177: 0 | G177: 0 | H177: 0 | I177: 0 | J177: 0 | K177: 0 | L177: 0 | M177: 0 | N177: 0 | O177: 0 | P177: 1 | Q177: 0 | R177: 0 | S177: 0 | T177: 0 | U177: 0 | V177: 0 | W177: 0 | X177: 1 | Y177: 0 | Z177: 0 | AA177: 0 | AB177: 1 | AC177: 0 | AD177: 0 | AE177: 0 | AF177: 0 | AG177: 0 | AH177: 1 | AI177: 0 | AJ177: 0 | AK177: 0 | AL177: 0 | AM177: 0
C178: 폭력행위 | D178: 1 | E178: 0 | F178: 0 | G178: 0 | H178: 1 | I178: 0 | J178: 0 | K178: 0 | L178: 0 | M178: 0 | N178: 0 | O178: 0 | P178: 0 | Q178: 0 | R178: 0 | S178: 0 | T178: 0 | U178: 0 | V178: 0 | W178: 0 | X178: 0 | Y178: 0 | Z178: 0 | AA178: 0 | AB178: 1 | AC178: 0 | AD178: 0 | AE178: 0 | AF178: 0 | AG178: 0 | AH178: 0 | AI178: 0 | AJ178: 1 | AK178: 0 | AL178: 0 | AM178: 0
C179: 동물상해 | D179: 1 | E179: 0 | F179: 0 | G179: 0 | H179: 0 | I179: 0 | J179: 1 | K179: 0 | L179: 0 | M179: 0 | N179: 0 | O179: 0 | P179: 0 | Q179: 0 | R179: 0 | S179: 0 | T179: 0 | U179: 0 | V179: 0 | W179: 0 | X179: 0 | Y179: 0 | Z179: 0 | AA179: 0 | AB179: 0 | AC179: 0 | AD179: 0 | AE179: 0 | AF179: 0 | AG179: 0 | AH179: 0 | AI179: 0 | AJ179: 0 | AK179: 0 | AL179: 0 | AM179: 0
C180: 물리적인자 | D180: 0 | E180: 0 | F180: 0 | G180: 0 | H180: 0 | I180: 0 | J180: 0 | K180: 0 | L180: 0 | M180: 0 | N180: 0 | O180: 0 | P180: 0 | Q180: 0 | R180: 0 | S180: 0 | T180: 0 | U180: 0 | V180: 0 | W180: 0 | X180: 0 | Y180: 0 | Z180: 0 | AA180: 0 | AB180: 0 | AC180: 0 | AD180: 0 | AE180: 0 | AF180: 0 | AG180: 0 | AH180: 0 | AI180: 0 | AJ180: 0 | AK180: 0 | AL180: 0 | AM180: 0
C181: 화학적인자 | D181: 0 | E181: 0 | F181: 0 | G181: 0 | H181: 0 | I181: 0 | J181: 0 | K181: 0 | L181: 0 | M181: 0 | N181: 0 | O181: 0 | P181: 0 | Q181: 0 | R181: 0 | S181: 0 | T181: 0 | U181: 0 | V181: 0 | W181: 0 | X181: 0 | Y181: 0 | Z181: 0 | AA181: 0 | AB181: 0 | AC181: 0 | AD181: 0 | AE181: 0 | AF181: 0 | AG181: 0 | AH181: 0 | AI181: 0 | AJ181: 0 | AK181: 0 | AL181: 0 | AM181: 0
C182: 뇌심혈관질환 | D182: 0 | E182: 0 | F182: 0 | G182: 0 | H182: 0 | I182: 0 | J182: 0 | K182: 0 | L182: 0 | M182: 0 | N182: 0 | O182: 0 | P182: 0 | Q182: 0 | R182: 0 | S182: 0 | T182: 0 | U182: 0 | V182: 0 | W182: 0 | X182: 0 | Y182: 0 | Z182: 0 | AA182: 0 | AB182: 0 | AC182: 0 | AD182: 0 | AE182: 0 | AF182: 0 | AG182: 0 | AH182: 0 | AI182: 0 | AJ182: 0 | AK182: 0 | AL182: 0 | AM182: 0
C183: 근골격계질환 | D183: 0 | E183: 0 | F183: 0 | G183: 0 | H183: 0 | I183: 0 | J183: 0 | K183: 0 | L183: 0 | M183: 0 | N183: 0 | O183: 0 | P183: 0 | Q183: 0 | R183: 0 | S183: 0 | T183: 0 | U183: 0 | V183: 0 | W183: 0 | X183: 0 | Y183: 0 | Z183: 0 | AA183: 0 | AB183: 0 | AC183: 0 | AD183: 0 | AE183: 0 | AF183: 0 | AG183: 0 | AH183: 0 | AI183: 0 | AJ183: 0 | AK183: 0 | AL183: 0 | AM183: 0
B184: 목재및종이제품제조업 | C184: 합계 | D184: 53 | E184: 0 | F184: 18 | G184: 0 | H184: 10 | I184: 0 | J184: 14 | K184: 0 | L184: 4 | M184: 0 | N184: 7 | O184: 0 | P184: 53 | Q184: 0 | R184: 15 | S184: 0 | T184: 14 | U184: 0 | V184: 7 | W184: 0 | X184: 4 | Y184: 0 | Z184: 13 | AA184: 0 | AB184: 48 | AC184: 0 | AD184: 17 | AE184: 0 | AF184: 15 | AG184: 0 | AH184: 7 | AI184: 0 | AJ184: 3 | AK184: 0 | AL184: 6 | AM184: 0
C185: 떨어짐(높이가 있는 곳에서 사람이 떨어짐) | D185: 5 | E185: 0 | F185: 1 | G185: 0 | H185: 2 | I185: 0 | J185: 1 | K185: 0 | L185: 1 | M185: 0 | N185: 0 | O185: 0 | P185: 3 | Q185: 0 | R185: 1 | S185: 0 | T185: 2 | U185: 0 | V185: 0 | W185: 0 | X185: 0 | Y185: 0 | Z185: 0 | AA185: 0 | AB185: 4 | AC185: 0 | AD185: 2 | AE185: 0 | AF185: 1 | AG185: 0 | AH185: 0 | AI185: 0 | AJ185: 1 | AK185: 0 | AL185: 0 | AM185: 0
C186: 넘어짐(사람이 미끄러지거나 넘어짐) | D186: 2 | E186: 0 | F186: 0 | G186: 0 | H186: 1 | I186: 0 | J186: 0 | K186: 0 | L186: 0 | M186: 0 | N186: 1 | O186: 0 | P186: 10 | Q186: 0 | R186: 2 | S186: 0 | T186: 1 | U186: 0 | V186: 2 | W186: 0 | X186: 2 | Y186: 0 | Z186: 3 | AA186: 0 | AB186: 2 | AC186: 0 | AD186: 0 | AE186: 0 | AF186: 2 | AG186: 0 | AH186: 0 | AI186: 0 | AJ186: 0 | AK186: 0 | AL186: 0 | AM186: 0
C187: 깔림·뒤집힘(물체의 쓰러짐이나 뒤집힘) | D187: 0 | E187: 0 | F187: 0 | G187: 0 | H187: 0 | I187: 0 | J187: 0 | K187: 0 | L187: 0 | M187: 0 | N187: 0 | O187: 0 | P187: 2 | Q187: 0 | R187: 1 | S187: 0 | T187: 0 | U187: 0 | V187: 0 | W187: 0 | X187: 0 | Y187: 0 | Z187: 1 | AA187: 0 | AB187: 2 | AC187: 0 | AD187: 1 | AE187: 0 | AF187: 1 | AG187: 0 | AH187: 0 | AI187: 0 | AJ187: 0 | AK187: 0 | AL187: 0 | AM187: 0
C188: 부딪힘(물체에 부딪힘) | D188: 5 | E188: 0 | F188: 3 | G188: 0 | H188: 2 | I188: 0 | J188: 0 | K188: 0 | L188: 0 | M188: 0 | N188: 0 | O188: 0 | P188: 4 | Q188: 0 | R188: 0 | S188: 0 | T188: 1 | U188: 0 | V188: 1 | W188: 0 | X188: 0 | Y188: 0 | Z188: 2 | AA188: 0 | AB188: 3 | AC188: 0 | AD188: 1 | AE188: 0 | AF188: 0 | AG188: 0 | AH188: 1 | AI188: 0 | AJ188: 0 | AK188: 0 | AL188: 1 | AM188: 0
C189: 물체에 맞음(날아오거나 떨어진 물체에 맞음) | D189: 7 | E189: 0 | F189: 1 | G189: 0 | H189: 1 | I189: 0 | J189: 5 | K189: 0 | L189: 0 | M189: 0 | N189: 0 | O189: 0 | P189: 7 | Q189: 0 | R189: 2 | S189: 0 | T189: 3 | U189: 0 | V189: 0 | W189: 0 | X189: 1 | Y189: 0 | Z189: 1 | AA189: 0 | AB189: 6 | AC189: 0 | AD189: 3 | AE189: 0 | AF189: 2 | AG189: 0 | AH189: 0 | AI189: 0 | AJ189: 0 | AK189: 0 | AL189: 1 | AM189: 0
C190: 무너짐(건축물이나 쌓여진 물체가 무너짐) | D190: 1 | E190: 0 | F190: 1 | G190: 0 | H190: 0 | I190: 0 | J190: 0 | K190: 0 | L190: 0 | M190: 0 | N190: 0 | O190: 0 | P190: 0 | Q190: 0 | R190: 0 | S190: 0 | T190: 0 | U190: 0 | V190: 0 | W190: 0 | X190: 0 | Y190: 0 | Z190: 0 | AA190: 0 | AB190: 0 | AC190: 0 | AD190: 0 | AE190: 0 | AF190: 0 | AG190: 0 | AH190: 0 | AI190: 0 | AJ190: 0 | AK190: 0 | AL190: 0 | AM190: 0
C191: 끼임(기계설비에 끼이거나 감김) | D191: 18 | E191: 0 | F191: 4 | G191: 0 | H191: 0 | I191: 0 | J191: 8 | K191: 0 | L191: 0 | M191: 0 | N191: 6 | O191: 0 | P191: 14 | Q191: 0 | R191: 4 | S191: 0 | T191: 2 | U191: 0 | V191: 2 | W191: 0 | X191: 1 | Y191: 0 | Z191: 5 | AA191: 0 | AB191: 18 | AC191: 0 | AD191: 3 | AE191: 0 | AF191: 6 | AG191: 0 | AH191: 5 | AI191: 0 | AJ191: 2 | AK191: 0 | AL191: 2 | AM191: 0
C192: 절단·베임·찔림 | D192: 14 | E192: 0 | F192: 7 | G192: 0 | H192: 4 | I192: 0 | J192: 0 | K192: 0 | L192: 3 | M192: 0 | N192: 0 | O192: 0 | P192: 7 | Q192: 0 | R192: 4 | S192: 0 | T192: 2 | U192: 0 | V192: 1 | W192: 0 | X192: 0 | Y192: 0 | Z192: 0 | AA192: 0 | AB192: 11 | AC192: 0 | AD192: 6 | AE192: 0 | AF192: 3 | AG192: 0 | AH192: 0 | AI192: 0 | AJ192: 0 | AK192: 0 | AL192: 2 | AM192: 0
